Workbook

Sheet Deckblatt
A2: Sommer-Cup 2020
A4: Witten-Herbede, Abt.1&2 - 10.06.-27.08.2020 - Welcome-Cup
A6: Ergebnisliste - Deckblatt
A8: Turnierleitung: | B8: Peter Tabor, MGC "AS" Witten, Lizenznr. 8564
A9: Platzturnierleiter: | B9: Uwe Kersch
A10: Ausrichter: | B10: Marita Keuth/Uwe Kersch (Pächter)
B11: in Kooperation mit MGC "AS" Witten
A12: Schiedsgericht: | B12: wechselnd, jeweils durch Aushang bekanntgegeben
A24: Siegerfoto in Zeiten von Corona: Mit Abstand oder Mund-/Nasenschutz !
A25: Die Gewinner der Geldpreise (von links): Jörg Hein (4.), Volker Urban (2.),
A26: Rolf Lenk (5. n.St.), Michael Puschner (3.), Wolfgang Battig (1.) Foto: ASW
A28: Besondere Vorkommnisse:
A30: Am 2.7. wurde witterungsbedingt in der zweiten Runde zuerst unterbrochen und
A31: dann abgebrochen. An diesem Spieltag wurde nur die erste Runde gewertet.
A33: Anmerkungen des Turnierleiters:
A35: Je Spieltag wurden weitere Ball- bzw. Sachpreise unter den Teilnehmern
A36: verlost, eine Liste der Preise findet sich ebenfalls in dieser Ergebnisliste.
A38: Wir danken allen Teilnehmern und freuen uns auf ein Wiedersehen!
A40: Für die Richtigkeit:
A41: Peter Tabor
A42: MGC "AS" Witten

Sheet Einzelwertung1 (hidden)
A1: =CONCATENATE("6. Sommer-Cup - Freizeittreff Herbede - ",TEXT(Gesamtstand!$F$2,"TT.MM.JJ")) -> 6. Sommer-Cup - Freizeittreff Herbede - 07.05.20
A2: Spieler | B2: Runde 1 | C2: Runde 2 | D2: Gesamt | E2: bessere? | F2: Pl. R1 | G2: Pl. R2 | H2: Pl. Ges. | I2: gewertet | J2: Punkte
D3: =IF(B3>0,C3+B3,"") ->  | E3: TRUE | F3: =IF(B3>0,COUNTIF(B$3:B$55,"<"&B3)+1,"") ->  | G3: =IF(C3>0,COUNTIF(C$3:C$55,"<"&C3)+1,"") ->  | H3: =IF(AND(B3>0,C3>0),COUNTIF(D$3:D$55,"<"&D3)+1,"") ->  | I3: =IF(B3>0,IF(E3,MIN(F3:H3),MAX(F3:H3)),"") ->  | J3: =IF(B3>0,VLOOKUP(I3,Punkteschema!$A$2:$B$101,2,FALSE),"") -> 
E4: TRUE | J4: =IF(B4>0,VLOOKUP(I4,Punkteschema!$A$2:$B$101,2,FALSE),"") -> 
E5: TRUE | J5: =IF(B5>0,VLOOKUP(I5,Punkteschema!$A$2:$B$101,2,FALSE),"") -> 
E6: TRUE | J6: =IF(B6>0,VLOOKUP(I6,Punkteschema!$A$2:$B$101,2,FALSE),"") -> 
E7: TRUE | J7: =IF(B7>0,VLOOKUP(I7,Punkteschema!$A$2:$B$101,2,FALSE),"") -> 
E8: TRUE | J8: =IF(B8>0,VLOOKUP(I8,Punkteschema!$A$2:$B$101,2,FALSE),"") -> 
E9: TRUE | J9: =IF(B9>0,VLOOKUP(I9,Punkteschema!$A$2:$B$101,2,FALSE),"") -> 
E10: TRUE | J10: =IF(B10>0,VLOOKUP(I10,Punkteschema!$A$2:$B$101,2,FALSE),"") -> 
E11: TRUE | J11: =IF(B11>0,VLOOKUP(I11,Punkteschema!$A$2:$B$101,2,FALSE),"") -> 
E12: TRUE | J12: =IF(B12>0,VLOOKUP(I12,Punkteschema!$A$2:$B$101,2,FALSE),"") -> 
E13: TRUE | J13: =IF(B13>0,VLOOKUP(I13,Punkteschema!$A$2:$B$101,2,FALSE),"") -> 
E14: TRUE | J14: =IF(B14>0,VLOOKUP(I14,Punkteschema!$A$2:$B$101,2,FALSE),"") -> 
E15: TRUE | J15: =IF(B15>0,VLOOKUP(I15,Punkteschema!$A$2:$B$101,2,FALSE),"") -> 
E16: TRUE | J16: =IF(B16>0,VLOOKUP(I16,Punkteschema!$A$2:$B$101,2,FALSE),"") -> 
E17: TRUE | J17: =IF(B17>0,VLOOKUP(I17,Punkteschema!$A$2:$B$101,2,FALSE),"") -> 
E18: TRUE | J18: =IF(B18>0,VLOOKUP(I18,Punkteschema!$A$2:$B$101,2,FALSE),"") -> 
D19: =IF(B19>0,C19+B19,"") ->  | E19: TRUE | F19: =IF(B19>0,COUNTIF(B$3:B$55,"<"&B19)+1,"") ->  | H19: =IF(AND(B19>0,C19>0),COUNTIF(D$3:D$55,"<"&D19)+1,"") ->  | I19: =IF(B19>0,IF(E19,MIN(F19:H19),MAX(F19:H19)),"") ->  | J19: =IF(B19>0,VLOOKUP(I19,Punkteschema!$A$2:$B$101,2,FALSE),"") -> 
E20: TRUE | J20: =IF(B20>0,VLOOKUP(I20,Punkteschema!$A$2:$B$101,2,FALSE),"") -> 
E21: TRUE | J21: =IF(B21>0,VLOOKUP(I21,Punkteschema!$A$2:$B$101,2,FALSE),"") -> 
E22: TRUE | J22: =IF(B22>0,VLOOKUP(I22,Punkteschema!$A$2:$B$101,2,FALSE),"") -> 
E23: TRUE | J23: =IF(B23>0,VLOOKUP(I23,Punkteschema!$A$2:$B$101,2,FALSE),"") -> 
E24: TRUE | J24: =IF(B24>0,VLOOKUP(I24,Punkteschema!$A$2:$B$101,2,FALSE),"") -> 
E25: TRUE | J25: =IF(B25>0,VLOOKUP(I25,Punkteschema!$A$2:$B$101,2,FALSE),"") -> 
E26: TRUE | J26: =IF(B26>0,VLOOKUP(I26,Punkteschema!$A$2:$B$101,2,FALSE),"") -> 
E27: TRUE | J27: =IF(B27>0,VLOOKUP(I27,Punkteschema!$A$2:$B$101,2,FALSE),"") -> 
E28: TRUE | J28: =IF(B28>0,VLOOKUP(I28,Punkteschema!$A$2:$B$101,2,FALSE),"") -> 
E29: TRUE | J29: =IF(B29>0,VLOOKUP(I29,Punkteschema!$A$2:$B$101,2,FALSE),"") -> 
E30: TRUE | J30: =IF(B30>0,VLOOKUP(I30,Punkteschema!$A$2:$B$101,2,FALSE),"") -> 
E31: TRUE | J31: =IF(B31>0,VLOOKUP(I31,Punkteschema!$A$2:$B$101,2,FALSE),"") -> 
E32: TRUE | J32: =IF(B32>0,VLOOKUP(I32,Punkteschema!$A$2:$B$101,2,FALSE),"") -> 
E33: TRUE | J33: =IF(B33>0,VLOOKUP(I33,Punkteschema!$A$2:$B$101,2,FALSE),"") -> 
E34: TRUE | J34: =IF(B34>0,VLOOKUP(I34,Punkteschema!$A$2:$B$101,2,FALSE),"") -> 
E35: TRUE | J35: =IF(B35>0,VLOOKUP(I35,Punkteschema!$A$2:$B$101,2,FALSE),"") -> 
E36: TRUE | J36: =IF(B36>0,VLOOKUP(I36,Punkteschema!$A$2:$B$101,2,FALSE),"") -> 
E37: TRUE | J37: =IF(B37>0,VLOOKUP(I37,Punkteschema!$A$2:$B$101,2,FALSE),"") -> 
E38: TRUE | J38: =IF(B38>0,VLOOKUP(I38,Punkteschema!$A$2:$B$101,2,FALSE),"") -> 
E39: TRUE | J39: =IF(B39>0,VLOOKUP(I39,Punkteschema!$A$2:$B$101,2,FALSE),"") -> 
E40: TRUE | J40: =IF(B40>0,VLOOKUP(I40,Punkteschema!$A$2:$B$101,2,FALSE),"") -> 
E41: TRUE | J41: =IF(B41>0,VLOOKUP(I41,Punkteschema!$A$2:$B$101,2,FALSE),"") -> 
E42: TRUE | J42: =IF(B42>0,VLOOKUP(I42,Punkteschema!$A$2:$B$101,2,FALSE),"") -> 
E43: TRUE | J43: =IF(B43>0,VLOOKUP(I43,Punkteschema!$A$2:$B$101,2,FALSE),"") -> 
E44: TRUE | J44: =IF(B44>0,VLOOKUP(I44,Punkteschema!$A$2:$B$101,2,FALSE),"") -> 
E45: TRUE | J45: =IF(B45>0,VLOOKUP(I45,Punkteschema!$A$2:$B$101,2,FALSE),"") -> 
E46: TRUE | J46: =IF(B46>0,VLOOKUP(I46,Punkteschema!$A$2:$B$101,2,FALSE),"") -> 
E47: TRUE | J47: =IF(B47>0,VLOOKUP(I47,Punkteschema!$A$2:$B$101,2,FALSE),"") -> 
E48: TRUE | J48: =IF(B48>0,VLOOKUP(I48,Punkteschema!$A$2:$B$101,2,FALSE),"") -> 
E49: TRUE | J49: =IF(B49>0,VLOOKUP(I49,Punkteschema!$A$2:$B$101,2,FALSE),"") -> 
E50: TRUE | J50: =IF(B50>0,VLOOKUP(I50,Punkteschema!$A$2:$B$101,2,FALSE),"") -> 
E51: TRUE | J51: =IF(B51>0,VLOOKUP(I51,Punkteschema!$A$2:$B$101,2,FALSE),"") -> 
E52: TRUE | J52: =IF(B52>0,VLOOKUP(I52,Punkteschema!$A$2:$B$101,2,FALSE),"") -> 
E53: TRUE | F53: =IF(B53>0,COUNTIF(B$3:B$55,"<"&B53)+1,"") ->  | H53: =IF(AND(B53>0,C53>0),COUNTIF(D$3:D$55,"<"&D53)+1,"") ->  | I53: =IF(B53>0,IF(E53,MIN(F53:H53),MAX(F53:H53)),"") ->  | J53: =IF(B53>0,VLOOKUP(I53,Punkteschema!$A$2:$B$101,2,FALSE),"") -> 
E54: TRUE | H54: =IF(AND(B54>0,C54>0),COUNTIF(D$3:D$55,"<"&D54)+1,"") ->  | I54: =IF(B54>0,IF(E54,MIN(F54:H54),MAX(F54:H54)),"") ->  | J54: =IF(B54>0,VLOOKUP(I54,Punkteschema!$A$2:$B$101,2,FALSE),"") -> 
E55: TRUE | H55: =IF(AND(B55>0,C55>0),COUNTIF(D$3:D$55,"<"&D55)+1,"") ->  | I55: =IF(B55>0,IF(E55,MIN(F55:H55),MAX(F55:H55)),"") ->  | J55: =IF(B55>0,VLOOKUP(I55,Punkteschema!$A$2:$B$101,2,FALSE),"") -> 
A57: OS: | E57: Runde 1: | F57: E | G57: <- E/B
A58: S: | E58: Runde 2: | F58: B | G58: <- E/B
A59: S:
A61: Verloste Preise:

Sheet Einzelwertung2 (hidden)
A1: =CONCATENATE("6. Sommer-Cup - Freizeittreff Herbede - ",TEXT(Gesamtstand!$G$2,"TT.MM.JJ")) -> 6. Sommer-Cup - Freizeittreff Herbede - 14.05.20
A2: Spieler | B2: Runde 1 | C2: Runde 2 | D2: Gesamt | E2: bessere? | F2: Pl. R1 | G2: Pl. R2 | H2: Pl. Ges. | I2: gewertet | J2: Punkte
D3: =IF(B3>0,C3+B3,"") ->  | E3: TRUE | F3: =IF(B3>0,COUNTIF(B$3:B$55,"<"&B3)+1,"") ->  | G3: =IF(C3>0,COUNTIF(C$3:C$55,"<"&C3)+1,"") ->  | H3: =IF(AND(B3>0,C3>0),COUNTIF(D$3:D$55,"<"&D3)+1,"") ->  | I3: =IF(B3>0,IF(E3,MIN(F3:H3),MAX(F3:H3)),"") ->  | J3: =IF(B3>0,VLOOKUP(I3,Punkteschema!$A$2:$B$101,2,FALSE),"") -> 
E4: TRUE | J4: =IF(B4>0,VLOOKUP(I4,Punkteschema!$A$2:$B$101,2,FALSE),"") -> 
E5: TRUE | J5: =IF(B5>0,VLOOKUP(I5,Punkteschema!$A$2:$B$101,2,FALSE),"") -> 
E6: TRUE | J6: =IF(B6>0,VLOOKUP(I6,Punkteschema!$A$2:$B$101,2,FALSE),"") -> 
E7: TRUE | J7: =IF(B7>0,VLOOKUP(I7,Punkteschema!$A$2:$B$101,2,FALSE),"") -> 
E8: TRUE | J8: =IF(B8>0,VLOOKUP(I8,Punkteschema!$A$2:$B$101,2,FALSE),"") -> 
E9: TRUE | J9: =IF(B9>0,VLOOKUP(I9,Punkteschema!$A$2:$B$101,2,FALSE),"") -> 
E10: TRUE | J10: =IF(B10>0,VLOOKUP(I10,Punkteschema!$A$2:$B$101,2,FALSE),"") -> 
E11: TRUE | J11: =IF(B11>0,VLOOKUP(I11,Punkteschema!$A$2:$B$101,2,FALSE),"") -> 
E12: TRUE | J12: =IF(B12>0,VLOOKUP(I12,Punkteschema!$A$2:$B$101,2,FALSE),"") -> 
E13: TRUE | J13: =IF(B13>0,VLOOKUP(I13,Punkteschema!$A$2:$B$101,2,FALSE),"") -> 
E14: TRUE | J14: =IF(B14>0,VLOOKUP(I14,Punkteschema!$A$2:$B$101,2,FALSE),"") -> 
E15: TRUE | J15: =IF(B15>0,VLOOKUP(I15,Punkteschema!$A$2:$B$101,2,FALSE),"") -> 
E16: TRUE | J16: =IF(B16>0,VLOOKUP(I16,Punkteschema!$A$2:$B$101,2,FALSE),"") -> 
E17: TRUE | J17: =IF(B17>0,VLOOKUP(I17,Punkteschema!$A$2:$B$101,2,FALSE),"") -> 
E18: TRUE | J18: =IF(B18>0,VLOOKUP(I18,Punkteschema!$A$2:$B$101,2,FALSE),"") -> 
D19: =IF(B19>0,C19+B19,"") ->  | E19: TRUE | F19: =IF(B19>0,COUNTIF(B$3:B$55,"<"&B19)+1,"") ->  | G19: =IF(C19>0,COUNTIF(C$3:C$55,"<"&C19)+1,"") ->  | H19: =IF(AND(B19>0,C19>0),COUNTIF(D$3:D$55,"<"&D19)+1,"") ->  | I19: =IF(B19>0,IF(E19,MIN(F19:H19),MAX(F19:H19)),"") ->  | J19: =IF(B19>0,VLOOKUP(I19,Punkteschema!$A$2:$B$101,2,FALSE),"") -> 
E20: TRUE | J20: =IF(B20>0,VLOOKUP(I20,Punkteschema!$A$2:$B$101,2,FALSE),"") -> 
E21: TRUE | J21: =IF(B21>0,VLOOKUP(I21,Punkteschema!$A$2:$B$101,2,FALSE),"") -> 
E22: TRUE | J22: =IF(B22>0,VLOOKUP(I22,Punkteschema!$A$2:$B$101,2,FALSE),"") -> 
E23: TRUE | J23: =IF(B23>0,VLOOKUP(I23,Punkteschema!$A$2:$B$101,2,FALSE),"") -> 
D24: =IF(B24>0,C24+B24,"") ->  | E24: TRUE | F24: =IF(B24>0,COUNTIF(B$3:B$55,"<"&B24)+1,"") ->  | H24: =IF(AND(B24>0,C24>0),COUNTIF(D$3:D$55,"<"&D24)+1,"") ->  | I24: =IF(B24>0,IF(E24,MIN(F24:H24),MAX(F24:H24)),"") ->  | J24: =IF(B24>0,VLOOKUP(I24,Punkteschema!$A$2:$B$101,2,FALSE),"") -> 
E25: TRUE | J25: =IF(B25>0,VLOOKUP(I25,Punkteschema!$A$2:$B$101,2,FALSE),"") -> 
E26: TRUE | J26: =IF(B26>0,VLOOKUP(I26,Punkteschema!$A$2:$B$101,2,FALSE),"") -> 
E27: TRUE | J27: =IF(B27>0,VLOOKUP(I27,Punkteschema!$A$2:$B$101,2,FALSE),"") -> 
E28: TRUE | J28: =IF(B28>0,VLOOKUP(I28,Punkteschema!$A$2:$B$101,2,FALSE),"") -> 
E29: TRUE | J29: =IF(B29>0,VLOOKUP(I29,Punkteschema!$A$2:$B$101,2,FALSE),"") -> 
E30: TRUE | J30: =IF(B30>0,VLOOKUP(I30,Punkteschema!$A$2:$B$101,2,FALSE),"") -> 
E31: TRUE | J31: =IF(B31>0,VLOOKUP(I31,Punkteschema!$A$2:$B$101,2,FALSE),"") -> 
E32: TRUE | J32: =IF(B32>0,VLOOKUP(I32,Punkteschema!$A$2:$B$101,2,FALSE),"") -> 
E33: TRUE | J33: =IF(B33>0,VLOOKUP(I33,Punkteschema!$A$2:$B$101,2,FALSE),"") -> 
E34: TRUE | J34: =IF(B34>0,VLOOKUP(I34,Punkteschema!$A$2:$B$101,2,FALSE),"") -> 
E35: TRUE | J35: =IF(B35>0,VLOOKUP(I35,Punkteschema!$A$2:$B$101,2,FALSE),"") -> 
E36: TRUE | J36: =IF(B36>0,VLOOKUP(I36,Punkteschema!$A$2:$B$101,2,FALSE),"") -> 
E37: TRUE | J37: =IF(B37>0,VLOOKUP(I37,Punkteschema!$A$2:$B$101,2,FALSE),"") -> 
E38: TRUE | J38: =IF(B38>0,VLOOKUP(I38,Punkteschema!$A$2:$B$101,2,FALSE),"") -> 
E39: TRUE | J39: =IF(B39>0,VLOOKUP(I39,Punkteschema!$A$2:$B$101,2,FALSE),"") -> 
E40: TRUE | J40: =IF(B40>0,VLOOKUP(I40,Punkteschema!$A$2:$B$101,2,FALSE),"") -> 
E41: TRUE | J41: =IF(B41>0,VLOOKUP(I41,Punkteschema!$A$2:$B$101,2,FALSE),"") -> 
E42: TRUE | J42: =IF(B42>0,VLOOKUP(I42,Punkteschema!$A$2:$B$101,2,FALSE),"") -> 
E43: TRUE | J43: =IF(B43>0,VLOOKUP(I43,Punkteschema!$A$2:$B$101,2,FALSE),"") -> 
E44: TRUE | J44: =IF(B44>0,VLOOKUP(I44,Punkteschema!$A$2:$B$101,2,FALSE),"") -> 
E45: TRUE | J45: =IF(B45>0,VLOOKUP(I45,Punkteschema!$A$2:$B$101,2,FALSE),"") -> 
E46: TRUE | J46: =IF(B46>0,VLOOKUP(I46,Punkteschema!$A$2:$B$101,2,FALSE),"") -> 
E47: TRUE | J47: =IF(B47>0,VLOOKUP(I47,Punkteschema!$A$2:$B$101,2,FALSE),"") -> 
E48: TRUE | J48: =IF(B48>0,VLOOKUP(I48,Punkteschema!$A$2:$B$101,2,FALSE),"") -> 
E49: TRUE | J49: =IF(B49>0,VLOOKUP(I49,Punkteschema!$A$2:$B$101,2,FALSE),"") -> 
E50: TRUE | J50: =IF(B50>0,VLOOKUP(I50,Punkteschema!$A$2:$B$101,2,FALSE),"") -> 
E51: TRUE | J51: =IF(B51>0,VLOOKUP(I51,Punkteschema!$A$2:$B$101,2,FALSE),"") -> 
E52: TRUE | J52: =IF(B52>0,VLOOKUP(I52,Punkteschema!$A$2:$B$101,2,FALSE),"") -> 
E53: TRUE | F53: =IF(B53>0,COUNTIF(B$3:B$55,"<"&B53)+1,"") ->  | H53: =IF(AND(B53>0,C53>0),COUNTIF(D$3:D$55,"<"&D53)+1,"") ->  | I53: =IF(B53>0,IF(E53,MIN(F53:H53),MAX(F53:H53)),"") ->  | J53: =IF(B53>0,VLOOKUP(I53,Punkteschema!$A$2:$B$101,2,FALSE),"") -> 
E54: TRUE | H54: =IF(AND(B54>0,C54>0),COUNTIF(D$3:D$55,"<"&D54)+1,"") ->  | I54: =IF(B54>0,IF(E54,MIN(F54:H54),MAX(F54:H54)),"") ->  | J54: =IF(B54>0,VLOOKUP(I54,Punkteschema!$A$2:$B$101,2,FALSE),"") -> 
E55: TRUE | H55: =IF(AND(B55>0,C55>0),COUNTIF(D$3:D$55,"<"&D55)+1,"") ->  | I55: =IF(B55>0,IF(E55,MIN(F55:H55),MAX(F55:H55)),"") ->  | J55: =IF(B55>0,VLOOKUP(I55,Punkteschema!$A$2:$B$101,2,FALSE),"") -> 
A57: OS: | E57: Runde 1: | F57: E | G57: <- E/B
A58: S: | E58: Runde 2: | F58: B | G58: <- E/B
A59: S:
A61: Verloste Preise:

Sheet Einzelwertung3 (hidden)
A1: =CONCATENATE("6. Sommer-Cup - Freizeittreff Herbede - ",TEXT(Gesamtstand!$H$2,"TT.MM.JJ")) -> 6. Sommer-Cup - Freizeittreff Herbede - 20.05.20
A2: Spieler | B2: Runde 1 | C2: Runde 2 | D2: Gesamt | E2: bessere? | F2: Pl. R1 | G2: Pl. R2 | H2: Pl. Ges. | I2: gewertet | J2: Punkte
D3: =IF(B3>0,C3+B3,"") ->  | E3: TRUE | F3: =IF(B3>0,COUNTIF(B$3:B$55,"<"&B3)+1,"") ->  | G3: =IF(C3>0,COUNTIF(C$3:C$55,"<"&C3)+1,"") ->  | H3: =IF(AND(B3>0,C3>0),COUNTIF(D$3:D$55,"<"&D3)+1,"") ->  | I3: =IF(B3>0,IF(E3,MIN(F3:H3),MAX(F3:H3)),"") ->  | J3: =IF(B3>0,VLOOKUP(I3,Punkteschema!$A$2:$B$101,2,FALSE),"") -> 
E4: TRUE | J4: =IF(B4>0,VLOOKUP(I4,Punkteschema!$A$2:$B$101,2,FALSE),"") -> 
E5: TRUE | J5: =IF(B5>0,VLOOKUP(I5,Punkteschema!$A$2:$B$101,2,FALSE),"") -> 
E6: TRUE | J6: =IF(B6>0,VLOOKUP(I6,Punkteschema!$A$2:$B$101,2,FALSE),"") -> 
E7: TRUE | J7: =IF(B7>0,VLOOKUP(I7,Punkteschema!$A$2:$B$101,2,FALSE),"") -> 
E8: TRUE | J8: =IF(B8>0,VLOOKUP(I8,Punkteschema!$A$2:$B$101,2,FALSE),"") -> 
E9: TRUE | J9: =IF(B9>0,VLOOKUP(I9,Punkteschema!$A$2:$B$101,2,FALSE),"") -> 
E10: TRUE | J10: =IF(B10>0,VLOOKUP(I10,Punkteschema!$A$2:$B$101,2,FALSE),"") -> 
E11: TRUE | J11: =IF(B11>0,VLOOKUP(I11,Punkteschema!$A$2:$B$101,2,FALSE),"") -> 
E12: TRUE | J12: =IF(B12>0,VLOOKUP(I12,Punkteschema!$A$2:$B$101,2,FALSE),"") -> 
E13: TRUE | J13: =IF(B13>0,VLOOKUP(I13,Punkteschema!$A$2:$B$101,2,FALSE),"") -> 
E14: TRUE | J14: =IF(B14>0,VLOOKUP(I14,Punkteschema!$A$2:$B$101,2,FALSE),"") -> 
E15: TRUE | J15: =IF(B15>0,VLOOKUP(I15,Punkteschema!$A$2:$B$101,2,FALSE),"") -> 
E16: TRUE | J16: =IF(B16>0,VLOOKUP(I16,Punkteschema!$A$2:$B$101,2,FALSE),"") -> 
E17: TRUE | J17: =IF(B17>0,VLOOKUP(I17,Punkteschema!$A$2:$B$101,2,FALSE),"") -> 
E18: TRUE | J18: =IF(B18>0,VLOOKUP(I18,Punkteschema!$A$2:$B$101,2,FALSE),"") -> 
E19: TRUE | J19: =IF(B19>0,VLOOKUP(I19,Punkteschema!$A$2:$B$101,2,FALSE),"") -> 
E20: TRUE | J20: =IF(B20>0,VLOOKUP(I20,Punkteschema!$A$2:$B$101,2,FALSE),"") -> 
D21: =IF(B21>0,C21+B21,"") ->  | E21: TRUE | F21: =IF(B21>0,COUNTIF(B$3:B$55,"<"&B21)+1,"") ->  | G21: =IF(C21>0,COUNTIF(C$3:C$55,"<"&C21)+1,"") ->  | H21: =IF(AND(B21>0,C21>0),COUNTIF(D$3:D$55,"<"&D21)+1,"") ->  | I21: =IF(B21>0,IF(E21,MIN(F21:H21),MAX(F21:H21)),"") ->  | J21: =IF(B21>0,VLOOKUP(I21,Punkteschema!$A$2:$B$101,2,FALSE),"") -> 
E22: TRUE | J22: =IF(B22>0,VLOOKUP(I22,Punkteschema!$A$2:$B$101,2,FALSE),"") -> 
E23: TRUE | J23: =IF(B23>0,VLOOKUP(I23,Punkteschema!$A$2:$B$101,2,FALSE),"") -> 
D24: =IF(B24>0,C24+B24,"") ->  | E24: TRUE | F24: =IF(B24>0,COUNTIF(B$3:B$55,"<"&B24)+1,"") ->  | H24: =IF(AND(B24>0,C24>0),COUNTIF(D$3:D$55,"<"&D24)+1,"") ->  | I24: =IF(B24>0,IF(E24,MIN(F24:H24),MAX(F24:H24)),"") ->  | J24: =IF(B24>0,VLOOKUP(I24,Punkteschema!$A$2:$B$101,2,FALSE),"") -> 
E25: TRUE | J25: =IF(B25>0,VLOOKUP(I25,Punkteschema!$A$2:$B$101,2,FALSE),"") -> 
E26: TRUE | J26: =IF(B26>0,VLOOKUP(I26,Punkteschema!$A$2:$B$101,2,FALSE),"") -> 
E27: TRUE | J27: =IF(B27>0,VLOOKUP(I27,Punkteschema!$A$2:$B$101,2,FALSE),"") -> 
E28: TRUE | J28: =IF(B28>0,VLOOKUP(I28,Punkteschema!$A$2:$B$101,2,FALSE),"") -> 
E29: TRUE | J29: =IF(B29>0,VLOOKUP(I29,Punkteschema!$A$2:$B$101,2,FALSE),"") -> 
E30: TRUE | J30: =IF(B30>0,VLOOKUP(I30,Punkteschema!$A$2:$B$101,2,FALSE),"") -> 
E31: TRUE | J31: =IF(B31>0,VLOOKUP(I31,Punkteschema!$A$2:$B$101,2,FALSE),"") -> 
E32: TRUE | J32: =IF(B32>0,VLOOKUP(I32,Punkteschema!$A$2:$B$101,2,FALSE),"") -> 
E33: TRUE | J33: =IF(B33>0,VLOOKUP(I33,Punkteschema!$A$2:$B$101,2,FALSE),"") -> 
E34: TRUE | J34: =IF(B34>0,VLOOKUP(I34,Punkteschema!$A$2:$B$101,2,FALSE),"") -> 
E35: TRUE | J35: =IF(B35>0,VLOOKUP(I35,Punkteschema!$A$2:$B$101,2,FALSE),"") -> 
E36: TRUE | J36: =IF(B36>0,VLOOKUP(I36,Punkteschema!$A$2:$B$101,2,FALSE),"") -> 
E37: TRUE | J37: =IF(B37>0,VLOOKUP(I37,Punkteschema!$A$2:$B$101,2,FALSE),"") -> 
E38: TRUE | J38: =IF(B38>0,VLOOKUP(I38,Punkteschema!$A$2:$B$101,2,FALSE),"") -> 
E39: TRUE | J39: =IF(B39>0,VLOOKUP(I39,Punkteschema!$A$2:$B$101,2,FALSE),"") -> 
E40: TRUE | J40: =IF(B40>0,VLOOKUP(I40,Punkteschema!$A$2:$B$101,2,FALSE),"") -> 
E41: TRUE | J41: =IF(B41>0,VLOOKUP(I41,Punkteschema!$A$2:$B$101,2,FALSE),"") -> 
E42: TRUE | J42: =IF(B42>0,VLOOKUP(I42,Punkteschema!$A$2:$B$101,2,FALSE),"") -> 
E43: TRUE | J43: =IF(B43>0,VLOOKUP(I43,Punkteschema!$A$2:$B$101,2,FALSE),"") -> 
E44: TRUE | J44: =IF(B44>0,VLOOKUP(I44,Punkteschema!$A$2:$B$101,2,FALSE),"") -> 
E45: TRUE | J45: =IF(B45>0,VLOOKUP(I45,Punkteschema!$A$2:$B$101,2,FALSE),"") -> 
E46: TRUE | J46: =IF(B46>0,VLOOKUP(I46,Punkteschema!$A$2:$B$101,2,FALSE),"") -> 
E47: TRUE | J47: =IF(B47>0,VLOOKUP(I47,Punkteschema!$A$2:$B$101,2,FALSE),"") -> 
E48: TRUE | J48: =IF(B48>0,VLOOKUP(I48,Punkteschema!$A$2:$B$101,2,FALSE),"") -> 
E49: TRUE | J49: =IF(B49>0,VLOOKUP(I49,Punkteschema!$A$2:$B$101,2,FALSE),"") -> 
E50: TRUE | J50: =IF(B50>0,VLOOKUP(I50,Punkteschema!$A$2:$B$101,2,FALSE),"") -> 
E51: TRUE | J51: =IF(B51>0,VLOOKUP(I51,Punkteschema!$A$2:$B$101,2,FALSE),"") -> 
E52: TRUE | J52: =IF(B52>0,VLOOKUP(I52,Punkteschema!$A$2:$B$101,2,FALSE),"") -> 
E53: TRUE | F53: =IF(B53>0,COUNTIF(B$3:B$55,"<"&B53)+1,"") ->  | H53: =IF(AND(B53>0,C53>0),COUNTIF(D$3:D$55,"<"&D53)+1,"") ->  | I53: =IF(B53>0,IF(E53,MIN(F53:H53),MAX(F53:H53)),"") ->  | J53: =IF(B53>0,VLOOKUP(I53,Punkteschema!$A$2:$B$101,2,FALSE),"") -> 
E54: TRUE | H54: =IF(AND(B54>0,C54>0),COUNTIF(D$3:D$55,"<"&D54)+1,"") ->  | I54: =IF(B54>0,IF(E54,MIN(F54:H54),MAX(F54:H54)),"") ->  | J54: =IF(B54>0,VLOOKUP(I54,Punkteschema!$A$2:$B$101,2,FALSE),"") -> 
E55: TRUE | H55: =IF(AND(B55>0,C55>0),COUNTIF(D$3:D$55,"<"&D55)+1,"") ->  | I55: =IF(B55>0,IF(E55,MIN(F55:H55),MAX(F55:H55)),"") ->  | J55: =IF(B55>0,VLOOKUP(I55,Punkteschema!$A$2:$B$101,2,FALSE),"") -> 
A57: OS: | E57: Runde 1: | F57: E | G57: <- E/B
A58: S: | E58: Runde 2: | F58: B | G58: <- E/B
A59: S:
A61: Verloste Preise:

Sheet Einzelwertung4 (hidden)
A1: =CONCATENATE("6. Sommer-Cup - Freizeittreff Herbede - ",TEXT(Gesamtstand!$I$2,"TT.MM.JJ")) -> 6. Sommer-Cup - Freizeittreff Herbede - 28.05.20
A2: Spieler | B2: Runde 1 | C2: Runde 2 | D2: Gesamt | E2: bessere? | F2: Pl. R1 | G2: Pl. R2 | H2: Pl. Ges. | I2: gewertet | J2: Punkte
D3: =IF(B3>0,C3+B3,"") ->  | E3: TRUE | F3: =IF(B3>0,COUNTIF(B$3:B$55,"<"&B3)+1,"") ->  | G3: =IF(C3>0,COUNTIF(C$3:C$55,"<"&C3)+1,"") ->  | H3: =IF(AND(B3>0,C3>0),COUNTIF(D$3:D$55,"<"&D3)+1,"") ->  | I3: =IF(B3>0,IF(E3,MIN(F3:H3),MAX(F3:H3)),"") ->  | J3: =IF(B3>0,VLOOKUP(I3,Punkteschema!$A$2:$B$101,2,FALSE),"") -> 
D4: =IF(B4>0,C4+B4,"") ->  | E4: TRUE | J4: =IF(B4>0,VLOOKUP(I4,Punkteschema!$A$2:$B$101,2,FALSE),"") -> 
D5: < | E5: TRUE | J5: =IF(B5>0,VLOOKUP(I5,Punkteschema!$A$2:$B$101,2,FALSE),"") -> 
D6: =IF(B6>0,C6+B6,"") ->  | E6: TRUE | J6: =IF(B6>0,VLOOKUP(I6,Punkteschema!$A$2:$B$101,2,FALSE),"") -> 
E7: TRUE | J7: =IF(B7>0,VLOOKUP(I7,Punkteschema!$A$2:$B$101,2,FALSE),"") -> 
E8: TRUE | J8: =IF(B8>0,VLOOKUP(I8,Punkteschema!$A$2:$B$101,2,FALSE),"") -> 
E9: TRUE | J9: =IF(B9>0,VLOOKUP(I9,Punkteschema!$A$2:$B$101,2,FALSE),"") -> 
E10: TRUE | J10: =IF(B10>0,VLOOKUP(I10,Punkteschema!$A$2:$B$101,2,FALSE),"") -> 
E11: TRUE | J11: =IF(B11>0,VLOOKUP(I11,Punkteschema!$A$2:$B$101,2,FALSE),"") -> 
E12: TRUE | J12: =IF(B12>0,VLOOKUP(I12,Punkteschema!$A$2:$B$101,2,FALSE),"") -> 
E13: TRUE | J13: =IF(B13>0,VLOOKUP(I13,Punkteschema!$A$2:$B$101,2,FALSE),"") -> 
E14: TRUE | J14: =IF(B14>0,VLOOKUP(I14,Punkteschema!$A$2:$B$101,2,FALSE),"") -> 
E15: TRUE | J15: =IF(B15>0,VLOOKUP(I15,Punkteschema!$A$2:$B$101,2,FALSE),"") -> 
E16: TRUE | J16: =IF(B16>0,VLOOKUP(I16,Punkteschema!$A$2:$B$101,2,FALSE),"") -> 
E17: TRUE | J17: =IF(B17>0,VLOOKUP(I17,Punkteschema!$A$2:$B$101,2,FALSE),"") -> 
E18: TRUE | J18: =IF(B18>0,VLOOKUP(I18,Punkteschema!$A$2:$B$101,2,FALSE),"") -> 
D19: =IF(B19>0,C19+B19,"") ->  | E19: TRUE | F19: =IF(B19>0,COUNTIF(B$3:B$55,"<"&B19)+1,"") ->  | G19: =IF(C19>0,COUNTIF(C$3:C$55,"<"&C19)+1,"") ->  | H19: =IF(AND(B19>0,C19>0),COUNTIF(D$3:D$55,"<"&D19)+1,"") ->  | I19: =IF(B19>0,IF(E19,MIN(F19:H19),MAX(F19:H19)),"") ->  | J19: =IF(B19>0,VLOOKUP(I19,Punkteschema!$A$2:$B$101,2,FALSE),"") -> 
E20: TRUE | J20: =IF(B20>0,VLOOKUP(I20,Punkteschema!$A$2:$B$101,2,FALSE),"") -> 
E21: TRUE | J21: =IF(B21>0,VLOOKUP(I21,Punkteschema!$A$2:$B$101,2,FALSE),"") -> 
E22: TRUE | J22: =IF(B22>0,VLOOKUP(I22,Punkteschema!$A$2:$B$101,2,FALSE),"") -> 
E23: TRUE | J23: =IF(B23>0,VLOOKUP(I23,Punkteschema!$A$2:$B$101,2,FALSE),"") -> 
D24: =IF(B24>0,C24+B24,"") ->  | E24: TRUE | F24: =IF(B24>0,COUNTIF(B$3:B$55,"<"&B24)+1,"") ->  | H24: =IF(AND(B24>0,C24>0),COUNTIF(D$3:D$55,"<"&D24)+1,"") ->  | I24: =IF(B24>0,IF(E24,MIN(F24:H24),MAX(F24:H24)),"") ->  | J24: =IF(B24>0,VLOOKUP(I24,Punkteschema!$A$2:$B$101,2,FALSE),"") -> 
E25: TRUE | J25: =IF(B25>0,VLOOKUP(I25,Punkteschema!$A$2:$B$101,2,FALSE),"") -> 
E26: TRUE | J26: =IF(B26>0,VLOOKUP(I26,Punkteschema!$A$2:$B$101,2,FALSE),"") -> 
E27: TRUE | J27: =IF(B27>0,VLOOKUP(I27,Punkteschema!$A$2:$B$101,2,FALSE),"") -> 
E28: TRUE | J28: =IF(B28>0,VLOOKUP(I28,Punkteschema!$A$2:$B$101,2,FALSE),"") -> 
E29: TRUE | J29: =IF(B29>0,VLOOKUP(I29,Punkteschema!$A$2:$B$101,2,FALSE),"") -> 
E30: TRUE | J30: =IF(B30>0,VLOOKUP(I30,Punkteschema!$A$2:$B$101,2,FALSE),"") -> 
E31: TRUE | J31: =IF(B31>0,VLOOKUP(I31,Punkteschema!$A$2:$B$101,2,FALSE),"") -> 
E32: TRUE | J32: =IF(B32>0,VLOOKUP(I32,Punkteschema!$A$2:$B$101,2,FALSE),"") -> 
E33: TRUE | J33: =IF(B33>0,VLOOKUP(I33,Punkteschema!$A$2:$B$101,2,FALSE),"") -> 
E34: TRUE | J34: =IF(B34>0,VLOOKUP(I34,Punkteschema!$A$2:$B$101,2,FALSE),"") -> 
E35: TRUE | J35: =IF(B35>0,VLOOKUP(I35,Punkteschema!$A$2:$B$101,2,FALSE),"") -> 
E36: TRUE | J36: =IF(B36>0,VLOOKUP(I36,Punkteschema!$A$2:$B$101,2,FALSE),"") -> 
E37: TRUE | J37: =IF(B37>0,VLOOKUP(I37,Punkteschema!$A$2:$B$101,2,FALSE),"") -> 
E38: TRUE | J38: =IF(B38>0,VLOOKUP(I38,Punkteschema!$A$2:$B$101,2,FALSE),"") -> 
E39: TRUE | J39: =IF(B39>0,VLOOKUP(I39,Punkteschema!$A$2:$B$101,2,FALSE),"") -> 
E40: TRUE | J40: =IF(B40>0,VLOOKUP(I40,Punkteschema!$A$2:$B$101,2,FALSE),"") -> 
E41: TRUE | J41: =IF(B41>0,VLOOKUP(I41,Punkteschema!$A$2:$B$101,2,FALSE),"") -> 
E42: TRUE | J42: =IF(B42>0,VLOOKUP(I42,Punkteschema!$A$2:$B$101,2,FALSE),"") -> 
E43: TRUE | J43: =IF(B43>0,VLOOKUP(I43,Punkteschema!$A$2:$B$101,2,FALSE),"") -> 
E44: TRUE | J44: =IF(B44>0,VLOOKUP(I44,Punkteschema!$A$2:$B$101,2,FALSE),"") -> 
E45: TRUE | J45: =IF(B45>0,VLOOKUP(I45,Punkteschema!$A$2:$B$101,2,FALSE),"") -> 
E46: TRUE | J46: =IF(B46>0,VLOOKUP(I46,Punkteschema!$A$2:$B$101,2,FALSE),"") -> 
E47: TRUE | J47: =IF(B47>0,VLOOKUP(I47,Punkteschema!$A$2:$B$101,2,FALSE),"") -> 
E48: TRUE | J48: =IF(B48>0,VLOOKUP(I48,Punkteschema!$A$2:$B$101,2,FALSE),"") -> 
E49: TRUE | J49: =IF(B49>0,VLOOKUP(I49,Punkteschema!$A$2:$B$101,2,FALSE),"") -> 
E50: TRUE | J50: =IF(B50>0,VLOOKUP(I50,Punkteschema!$A$2:$B$101,2,FALSE),"") -> 
E51: TRUE | J51: =IF(B51>0,VLOOKUP(I51,Punkteschema!$A$2:$B$101,2,FALSE),"") -> 
E52: TRUE | J52: =IF(B52>0,VLOOKUP(I52,Punkteschema!$A$2:$B$101,2,FALSE),"") -> 
E53: TRUE | F53: =IF(B53>0,COUNTIF(B$3:B$55,"<"&B53)+1,"") ->  | H53: =IF(AND(B53>0,C53>0),COUNTIF(D$3:D$55,"<"&D53)+1,"") ->  | I53: =IF(B53>0,IF(E53,MIN(F53:H53),MAX(F53:H53)),"") ->  | J53: =IF(B53>0,VLOOKUP(I53,Punkteschema!$A$2:$B$101,2,FALSE),"") -> 
E54: TRUE | H54: =IF(AND(B54>0,C54>0),COUNTIF(D$3:D$55,"<"&D54)+1,"") ->  | I54: =IF(B54>0,IF(E54,MIN(F54:H54),MAX(F54:H54)),"") ->  | J54: =IF(B54>0,VLOOKUP(I54,Punkteschema!$A$2:$B$101,2,FALSE),"") -> 
E55: TRUE | H55: =IF(AND(B55>0,C55>0),COUNTIF(D$3:D$55,"<"&D55)+1,"") ->  | I55: =IF(B55>0,IF(E55,MIN(F55:H55),MAX(F55:H55)),"") ->  | J55: =IF(B55>0,VLOOKUP(I55,Punkteschema!$A$2:$B$101,2,FALSE),"") -> 
A57: OS: | E57: Runde 1: | F57: E | G57: <- E/B
A58: S: | E58: Runde 2: | F58: B | G58: <- E/B
A59: S:
A61: Verloste Preise:

Sheet Einzelwertung5 (hidden)
A1: =CONCATENATE("6. Sommer-Cup - Freizeittreff Herbede - ",TEXT(Gesamtstand!$J$2,"TT.MM.JJ")) -> 6. Sommer-Cup - Freizeittreff Herbede - 04.06.20
A2: Spieler | B2: Runde 1 | C2: Runde 2 | D2: Gesamt | E2: bessere? | F2: Pl. R1 | G2: Pl. R2 | H2: Pl. Ges. | I2: gewertet | J2: Punkte
D3: =IF(B3>0,C3+B3,"") ->  | E3: TRUE | F3: =IF(B3>0,COUNTIF(B$3:B$55,"<"&B3)+1,"") ->  | G3: =IF(C3>0,COUNTIF(C$3:C$55,"<"&C3)+1,"") ->  | H3: =IF(AND(B3>0,C3>0),COUNTIF(D$3:D$55,"<"&D3)+1,"") ->  | I3: =IF(B3>0,IF(E3,MIN(F3:H3),MAX(F3:H3)),"") ->  | J3: =IF(B3>0,VLOOKUP(I3,Punkteschema!$A$2:$B$101,2,FALSE),"") -> 
E4: TRUE | J4: =IF(B4>0,VLOOKUP(I4,Punkteschema!$A$2:$B$101,2,FALSE),"") -> 
E5: TRUE | J5: =IF(B5>0,VLOOKUP(I5,Punkteschema!$A$2:$B$101,2,FALSE),"") -> 
E6: TRUE | J6: =IF(B6>0,VLOOKUP(I6,Punkteschema!$A$2:$B$101,2,FALSE),"") -> 
E7: TRUE | J7: =IF(B7>0,VLOOKUP(I7,Punkteschema!$A$2:$B$101,2,FALSE),"") -> 
E8: TRUE | J8: =IF(B8>0,VLOOKUP(I8,Punkteschema!$A$2:$B$101,2,FALSE),"") -> 
E9: TRUE | J9: =IF(B9>0,VLOOKUP(I9,Punkteschema!$A$2:$B$101,2,FALSE),"") -> 
E10: TRUE | J10: =IF(B10>0,VLOOKUP(I10,Punkteschema!$A$2:$B$101,2,FALSE),"") -> 
E11: TRUE | J11: =IF(B11>0,VLOOKUP(I11,Punkteschema!$A$2:$B$101,2,FALSE),"") -> 
E12: TRUE | J12: =IF(B12>0,VLOOKUP(I12,Punkteschema!$A$2:$B$101,2,FALSE),"") -> 
E13: TRUE | J13: =IF(B13>0,VLOOKUP(I13,Punkteschema!$A$2:$B$101,2,FALSE),"") -> 
E14: TRUE | J14: =IF(B14>0,VLOOKUP(I14,Punkteschema!$A$2:$B$101,2,FALSE),"") -> 
E15: TRUE | J15: =IF(B15>0,VLOOKUP(I15,Punkteschema!$A$2:$B$101,2,FALSE),"") -> 
E16: TRUE | J16: =IF(B16>0,VLOOKUP(I16,Punkteschema!$A$2:$B$101,2,FALSE),"") -> 
E17: TRUE | J17: =IF(B17>0,VLOOKUP(I17,Punkteschema!$A$2:$B$101,2,FALSE),"") -> 
E18: TRUE | J18: =IF(B18>0,VLOOKUP(I18,Punkteschema!$A$2:$B$101,2,FALSE),"") -> 
E19: TRUE | J19: =IF(B19>0,VLOOKUP(I19,Punkteschema!$A$2:$B$101,2,FALSE),"") -> 
E20: TRUE | J20: =IF(B20>0,VLOOKUP(I20,Punkteschema!$A$2:$B$101,2,FALSE),"") -> 
E21: TRUE | J21: =IF(B21>0,VLOOKUP(I21,Punkteschema!$A$2:$B$101,2,FALSE),"") -> 
E22: TRUE | J22: =IF(B22>0,VLOOKUP(I22,Punkteschema!$A$2:$B$101,2,FALSE),"") -> 
D23: =IF(B23>0,C23+B23,"") ->  | E23: TRUE | I23: =IF(B23>0,IF(E23,MIN(F23:H23),MAX(F23:H23)),"") ->  | J23: =IF(B23>0,VLOOKUP(I23,Punkteschema!$A$2:$B$101,2,FALSE),"") -> 
E24: TRUE | J24: =IF(B24>0,VLOOKUP(I24,Punkteschema!$A$2:$B$101,2,FALSE),"") -> 
E25: TRUE | J25: =IF(B25>0,VLOOKUP(I25,Punkteschema!$A$2:$B$101,2,FALSE),"") -> 
E26: TRUE | J26: =IF(B26>0,VLOOKUP(I26,Punkteschema!$A$2:$B$101,2,FALSE),"") -> 
E27: TRUE | J27: =IF(B27>0,VLOOKUP(I27,Punkteschema!$A$2:$B$101,2,FALSE),"") -> 
E28: TRUE | J28: =IF(B28>0,VLOOKUP(I28,Punkteschema!$A$2:$B$101,2,FALSE),"") -> 
D29: =IF(B29>0,C29+B29,"") ->  | E29: TRUE | I29: =IF(B29>0,IF(E29,MIN(F29:H29),MAX(F29:H29)),"") ->  | J29: =IF(B29>0,VLOOKUP(I29,Punkteschema!$A$2:$B$101,2,FALSE),"") -> 
E30: TRUE | J30: =IF(B30>0,VLOOKUP(I30,Punkteschema!$A$2:$B$101,2,FALSE),"") -> 
E31: TRUE | J31: =IF(B31>0,VLOOKUP(I31,Punkteschema!$A$2:$B$101,2,FALSE),"") -> 
E32: TRUE | J32: =IF(B32>0,VLOOKUP(I32,Punkteschema!$A$2:$B$101,2,FALSE),"") -> 
E33: TRUE | J33: =IF(B33>0,VLOOKUP(I33,Punkteschema!$A$2:$B$101,2,FALSE),"") -> 
E34: TRUE | J34: =IF(B34>0,VLOOKUP(I34,Punkteschema!$A$2:$B$101,2,FALSE),"") -> 
E35: TRUE | F35: =IF(B35>0,COUNTIF(B$3:B$55,"<"&B35)+1,"") ->  | G35: =IF(C35>0,COUNTIF(C$3:C$55,"<"&C35)+1,"") ->  | H35: =IF(AND(B35>0,C35>0),COUNTIF(D$3:D$55,"<"&D35)+1,"") ->  | J35: =IF(B35>0,VLOOKUP(I35,Punkteschema!$A$2:$B$101,2,FALSE),"") -> 
E36: TRUE | J36: =IF(B36>0,VLOOKUP(I36,Punkteschema!$A$2:$B$101,2,FALSE),"") -> 
E37: TRUE | J37: =IF(B37>0,VLOOKUP(I37,Punkteschema!$A$2:$B$101,2,FALSE),"") -> 
E38: TRUE | J38: =IF(B38>0,VLOOKUP(I38,Punkteschema!$A$2:$B$101,2,FALSE),"") -> 
E39: TRUE | J39: =IF(B39>0,VLOOKUP(I39,Punkteschema!$A$2:$B$101,2,FALSE),"") -> 
E40: TRUE | J40: =IF(B40>0,VLOOKUP(I40,Punkteschema!$A$2:$B$101,2,FALSE),"") -> 
E41: TRUE | J41: =IF(B41>0,VLOOKUP(I41,Punkteschema!$A$2:$B$101,2,FALSE),"") -> 
E42: TRUE | J42: =IF(B42>0,VLOOKUP(I42,Punkteschema!$A$2:$B$101,2,FALSE),"") -> 
E43: TRUE | J43: =IF(B43>0,VLOOKUP(I43,Punkteschema!$A$2:$B$101,2,FALSE),"") -> 
E44: TRUE | J44: =IF(B44>0,VLOOKUP(I44,Punkteschema!$A$2:$B$101,2,FALSE),"") -> 
E45: TRUE | J45: =IF(B45>0,VLOOKUP(I45,Punkteschema!$A$2:$B$101,2,FALSE),"") -> 
E46: TRUE | J46: =IF(B46>0,VLOOKUP(I46,Punkteschema!$A$2:$B$101,2,FALSE),"") -> 
E47: TRUE | J47: =IF(B47>0,VLOOKUP(I47,Punkteschema!$A$2:$B$101,2,FALSE),"") -> 
E48: TRUE | J48: =IF(B48>0,VLOOKUP(I48,Punkteschema!$A$2:$B$101,2,FALSE),"") -> 
E49: TRUE | J49: =IF(B49>0,VLOOKUP(I49,Punkteschema!$A$2:$B$101,2,FALSE),"") -> 
E50: TRUE | J50: =IF(B50>0,VLOOKUP(I50,Punkteschema!$A$2:$B$101,2,FALSE),"") -> 
E51: TRUE | J51: =IF(B51>0,VLOOKUP(I51,Punkteschema!$A$2:$B$101,2,FALSE),"") -> 
E52: TRUE | J52: =IF(B52>0,VLOOKUP(I52,Punkteschema!$A$2:$B$101,2,FALSE),"") -> 
E53: TRUE | I53: =IF(B53>0,IF(E53,MIN(F53:H53),MAX(F53:H53)),"") ->  | J53: =IF(B53>0,VLOOKUP(I53,Punkteschema!$A$2:$B$101,2,FALSE),"") -> 
E54: TRUE | I54: =IF(B54>0,IF(E54,MIN(F54:H54),MAX(F54:H54)),"") ->  | J54: =IF(B54>0,VLOOKUP(I54,Punkteschema!$A$2:$B$101,2,FALSE),"") -> 
E55: TRUE | I55: =IF(B55>0,IF(E55,MIN(F55:H55),MAX(F55:H55)),"") ->  | J55: =IF(B55>0,VLOOKUP(I55,Punkteschema!$A$2:$B$101,2,FALSE),"") -> 
A57: OS: | E57: Runde 1: | F57: E | G57: <- E/B
A58: S: | E58: Runde 2: | F58: B | G58: <- E/B
A59: S:
A61: Verloste Preise:

Sheet Gesamtstand
B1: Sommer-Cup 2020 im Freizeittreff Herbede - Gesamtstand
A2: Pl. | B2: Spieler | C2: Verein | D2: Passnr. | E2: Kat. | F2: 2020-05-07 | G2: =F2+7 -> 2020-05-14 | H2: =G2+6 -> 2020-05-20 | I2: =H2+8 -> 2020-05-28 | J2: =I2+7 -> 2020-06-04 | K2: =J2+6 -> 2020-06-10 | L2: =K2+8 -> 2020-06-18 | M2: 2020-06-25 | N2: 2020-07-02 | O2: 2020-07-09 | P2: 2020-07-16 | Q2: 2020-07-23 | R2: 2020-07-30 | S2: 2020-08-06 | T2: 2020-08-13 | U2: 2020-08-20 | V2: 2020-08-27 | W2: 2020-09-03 | X2: Pkt. ges. | Y2: Starts | Z2: Startgeld
A3: 1 | B3: Battig, Wolfgang | C3: =VLOOKUP($B3,Teilnehmer!$A$3:$E$127,2,FALSE) -> Lüd. | D3: =VLOOKUP($B3,Teilnehmer!$A$3:$E$127,3,FALSE) -> 23741 | E3: =VLOOKUP($B3,Teilnehmer!$A$3:$E$127,4,FALSE) -> SM1 | F3: =SUMIF(Einzelwertung1!$A$3:$A$55,$B3,Einzelwertung1!$J$3:$J$55)+0.017 -> 0.017 | G3: =SUMIF(Einzelwertung2!$A$3:$A$55,$B3,Einzelwertung2!$J$3:$J$55)+0.016 -> 0.016 | H3: =SUMIF(Einzelwertung3!$A$3:$A$55,$B3,Einzelwertung3!$J$3:$J$55)+0.015 -> 0.015 | I3: =SUMIF(Einzelwertung4!$A$3:$A$55,$B3,Einzelwertung4!$J$3:$J$55)+0.014 -> 0.014 | J3: =SUMIF(Einzelwertung5!$A$3:$A$55,$B3,Einzelwertung5!$J$3:$J$55)+0.013 -> 0.013 | K3: =SUMIF(Einzelwertung6!$A$3:$A$55,$B3,Einzelwertung6!$J$3:$J$55)+0.012 -> 25.012 | L3: =SUMIF(Einzelwertung7!$A$3:$A$55,$B3,Einzelwertung7!$J$3:$J$55)+0.011 -> 5.011 | M3: =SUMIF(Einzelwertung8!$A$3:$A$55,$B3,Einzelwertung8!$J$3:$J$55)+0.01 -> 15.01 | N3: =SUMIF(Einzelwertung9!$A$3:$A$55,$B3,Einzelwertung9!$J$3:$J$55)+0.009 -> 21.009 | O3: =SUMIF(Einzelwertung10!$A$3:$A$55,$B3,Einzelwertung10!$J$3:$J$55)+0.008 -> 0.008 | P3: =SUMIF(Einzelwertung11!$A$3:$A$55,$B3,Einzelwertung11!$J$3:$J$55)+0.007 -> 18.007 | Q3: =SUMIF(Einzelwertung12!$A$3:$A$55,$B3,Einzelwertung12!$J$3:$J$55)+0.006 -> 25.006 | R3: =SUMIF(Einzelwertung13!$A$3:$A$55,$B3,Einzelwertung13!$J$3:$J$55)+0.005 -> 5.005 | S3: =SUMIF(Einzelwertung14!$A$3:$A$55,$B3,Einzelwertung14!$J$3:$J$55)+0.004 -> 15.004 | T3: =SUMIF(Einzelwertung15!$A$3:$A$67,$B3,Einzelwertung15!$J$3:$J$67)+0.003 -> 25.003 | U3: =SUMIF(Einzelwertung16!$A$3:$A$55,$B3,Einzelwertung16!$J$3:$J$55)+0.002 -> 21.002 | V3: =SUMIF(Einzelwertung17!$A$3:$A$55,$B3,Einzelwertung17!$J$3:$J$55)+0.001 -> 0.001 | W3: =SUMIF(Einzelwertung18!$A$3:$A$55,$B3,Einzelwertung18!$J$3:$J$55)+0 -> 0 | X3: =INT(IF(COUNTIF(F3:W3,CONCATENATE(">",1/10))<=Hilfe!$A$1,SUM(F3:W3),SUMIF(F3:W3,CONCATENATE(">=",LARGE(F3:W3,Hilfe!$A$1)),F3:W3))) -> 165 | Y3: =COUNTIF(E3:W3,">1") -> 10 | Z3: =IF(ISERROR(SEARCH(CONCATENATE(" ",E3," ")," JM JW SCHM SCHW ")),5,2.5)*Y3 -> 50
A4: 2 | B4: Urban, Volker | C4: =VLOOKUP($B4,Teilnehmer!$A$3:$E$127,2,FALSE) -> ASW | D4: =VLOOKUP($B4,Teilnehmer!$A$3:$E$127,3,FALSE) -> 35604 | E4: =VLOOKUP($B4,Teilnehmer!$A$3:$E$127,4,FALSE) -> SM1 | F4: =SUMIF(Einzelwertung1!$A$3:$A$55,$B4,Einzelwertung1!$J$3:$J$55)+0.017 -> 0.017 | G4: =SUMIF(Einzelwertung2!$A$3:$A$55,$B4,Einzelwertung2!$J$3:$J$55)+0.016 -> 0.016 | H4: =SUMIF(Einzelwertung3!$A$3:$A$55,$B4,Einzelwertung3!$J$3:$J$55)+0.015 -> 0.015 | I4: =SUMIF(Einzelwertung4!$A$3:$A$55,$B4,Einzelwertung4!$J$3:$J$55)+0.014 -> 0.014 | J4: =SUMIF(Einzelwertung5!$A$3:$A$55,$B4,Einzelwertung5!$J$3:$J$55)+0.013 -> 0.013 | K4: =SUMIF(Einzelwertung6!$A$3:$A$55,$B4,Einzelwertung6!$J$3:$J$55)+0.012 -> 21.012 | L4: =SUMIF(Einzelwertung7!$A$3:$A$55,$B4,Einzelwertung7!$J$3:$J$55)+0.011 -> 5.011 | M4: =SUMIF(Einzelwertung8!$A$3:$A$55,$B4,Einzelwertung8!$J$3:$J$55)+0.01 -> 25.01 | N4: =SUMIF(Einzelwertung9!$A$3:$A$55,$B4,Einzelwertung9!$J$3:$J$55)+0.009 -> 0.009 | O4: =SUMIF(Einzelwertung10!$A$3:$A$55,$B4,Einzelwertung10!$J$3:$J$55)+0.008 -> 21.008 | P4: =SUMIF(Einzelwertung11!$A$3:$A$55,$B4,Einzelwertung11!$J$3:$J$55)+0.007 -> 21.007 | Q4: =SUMIF(Einzelwertung12!$A$3:$A$55,$B4,Einzelwertung12!$J$3:$J$55)+0.006 -> 15.006 | R4: =SUMIF(Einzelwertung13!$A$3:$A$55,$B4,Einzelwertung13!$J$3:$J$55)+0.005 -> 10.005 | S4: =SUMIF(Einzelwertung14!$A$3:$A$55,$B4,Einzelwertung14!$J$3:$J$55)+0.004 -> 15.004 | T4: =SUMIF(Einzelwertung15!$A$3:$A$67,$B4,Einzelwertung15!$J$3:$J$67)+0.003 -> 21.003 | U4: =SUMIF(Einzelwertung16!$A$3:$A$55,$B4,Einzelwertung16!$J$3:$J$55)+0.002 -> 15.002 | V4: =SUMIF(Einzelwertung17!$A$3:$A$55,$B4,Einzelwertung17!$J$3:$J$55)+0.001 -> 25.001 | W4: =SUMIF(Einzelwertung18!$A$3:$A$55,$B4,Einzelwertung18!$J$3:$J$55)+0 -> 0 | X4: =INT(IF(COUNTIF(F4:W4,CONCATENATE(">",1/10))<=Hilfe!$A$1,SUM(F4:W4),SUMIF(F4:W4,CONCATENATE(">=",LARGE(F4:W4,Hilfe!$A$1)),F4:W4))) -> 164 | Y4: 11 | Z4: 55
A5: 3 | B5: Puschner, Michael | C5: =VLOOKUP($B5,Teilnehmer!$A$3:$E$127,2,FALSE) -> Hobby | D5: =VLOOKUP($B5,Teilnehmer!$A$3:$E$127,3,FALSE) -> Hobby11 | E5: =VLOOKUP($B5,Teilnehmer!$A$3:$E$127,4,FALSE) -> SM2 | F5: =SUMIF(Einzelwertung1!$A$3:$A$55,$B5,Einzelwertung1!$J$3:$J$55)+0.017 -> 0.017 | G5: =SUMIF(Einzelwertung2!$A$3:$A$55,$B5,Einzelwertung2!$J$3:$J$55)+0.016 -> 0.016 | H5: =SUMIF(Einzelwertung3!$A$3:$A$55,$B5,Einzelwertung3!$J$3:$J$55)+0.015 -> 0.015 | I5: =SUMIF(Einzelwertung4!$A$3:$A$55,$B5,Einzelwertung4!$J$3:$J$55)+0.014 -> 0.014 | J5: =SUMIF(Einzelwertung5!$A$3:$A$55,$B5,Einzelwertung5!$J$3:$J$55)+0.013 -> 0.013 | K5: =SUMIF(Einzelwertung6!$A$3:$A$55,$B5,Einzelwertung6!$J$3:$J$55)+0.012 -> 15.012 | L5: =SUMIF(Einzelwertung7!$A$3:$A$55,$B5,Einzelwertung7!$J$3:$J$55)+0.011 -> 5.011 | M5: =SUMIF(Einzelwertung8!$A$3:$A$55,$B5,Einzelwertung8!$J$3:$J$55)+0.01 -> 25.01 | N5: =SUMIF(Einzelwertung9!$A$3:$A$55,$B5,Einzelwertung9!$J$3:$J$55)+0.009 -> 5.009 | O5: =SUMIF(Einzelwertung10!$A$3:$A$55,$B5,Einzelwertung10!$J$3:$J$55)+0.008 -> 15.008 | P5: =SUMIF(Einzelwertung11!$A$3:$A$55,$B5,Einzelwertung11!$J$3:$J$55)+0.007 -> 18.007 | Q5: =SUMIF(Einzelwertung12!$A$3:$A$55,$B5,Einzelwertung12!$J$3:$J$55)+0.006 -> 21.006 | R5: =SUMIF(Einzelwertung13!$A$3:$A$55,$B5,Einzelwertung13!$J$3:$J$55)+0.005 -> 15.005 | S5: =SUMIF(Einzelwertung14!$A$3:$A$55,$B5,Einzelwertung14!$J$3:$J$55)+0.004 -> 0.004 | T5: =SUMIF(Einzelwertung15!$A$3:$A$67,$B5,Einzelwertung15!$J$3:$J$67)+0.003 -> 0.003 | U5: =SUMIF(Einzelwertung16!$A$3:$A$55,$B5,Einzelwertung16!$J$3:$J$55)+0.002 -> 18.002 | V5: =SUMIF(Einzelwertung17!$A$3:$A$55,$B5,Einzelwertung17!$J$3:$J$55)+0.001 -> 21.001 | W5: =SUMIF(Einzelwertung18!$A$3:$A$55,$B5,Einzelwertung18!$J$3:$J$55)+0 -> 0 | X5: =INT(IF(COUNTIF(F5:W5,CONCATENATE(">",1/10))<=Hilfe!$A$1,SUM(F5:W5),SUMIF(F5:W5,CONCATENATE(">=",LARGE(F5:W5,Hilfe!$A$1)),F5:W5))) -> 148 | Y5: 10 | Z5: 50
A6: 4 | B6: Hein, Hans-Jörg | C6: =VLOOKUP($B6,Teilnehmer!$A$3:$E$127,2,FALSE) -> ASW | D6: =VLOOKUP($B6,Teilnehmer!$A$3:$E$127,3,FALSE) -> 27863 | E6: =VLOOKUP($B6,Teilnehmer!$A$3:$E$127,4,FALSE) -> SM1 | F6: =SUMIF(Einzelwertung1!$A$3:$A$55,$B6,Einzelwertung1!$J$3:$J$55)+0.017 -> 0.017 | G6: =SUMIF(Einzelwertung2!$A$3:$A$55,$B6,Einzelwertung2!$J$3:$J$55)+0.016 -> 0.016 | H6: =SUMIF(Einzelwertung3!$A$3:$A$55,$B6,Einzelwertung3!$J$3:$J$55)+0.015 -> 0.015 | I6: =SUMIF(Einzelwertung4!$A$3:$A$55,$B6,Einzelwertung4!$J$3:$J$55)+0.014 -> 0.014 | J6: =SUMIF(Einzelwertung5!$A$3:$A$55,$B6,Einzelwertung5!$J$3:$J$55)+0.013 -> 0.013 | K6: =SUMIF(Einzelwertung6!$A$3:$A$55,$B6,Einzelwertung6!$J$3:$J$55)+0.012 -> 21.012 | L6: =SUMIF(Einzelwertung7!$A$3:$A$55,$B6,Einzelwertung7!$J$3:$J$55)+0.011 -> 10.011 | M6: =SUMIF(Einzelwertung8!$A$3:$A$55,$B6,Einzelwertung8!$J$3:$J$55)+0.01 -> 15.01 | N6: =SUMIF(Einzelwertung9!$A$3:$A$55,$B6,Einzelwertung9!$J$3:$J$55)+0.009 -> 15.009 | O6: =SUMIF(Einzelwertung10!$A$3:$A$55,$B6,Einzelwertung10!$J$3:$J$55)+0.008 -> 0.008 | P6: =SUMIF(Einzelwertung11!$A$3:$A$55,$B6,Einzelwertung11!$J$3:$J$55)+0.007 -> 10.007 | Q6: =SUMIF(Einzelwertung12!$A$3:$A$55,$B6,Einzelwertung12!$J$3:$J$55)+0.006 -> 0.006 | R6: =SUMIF(Einzelwertung13!$A$3:$A$55,$B6,Einzelwertung13!$J$3:$J$55)+0.005 -> 10.005 | S6: =SUMIF(Einzelwertung14!$A$3:$A$55,$B6,Einzelwertung14!$J$3:$J$55)+0.004 -> 15.004 | T6: =SUMIF(Einzelwertung15!$A$3:$A$67,$B6,Einzelwertung15!$J$3:$J$67)+0.003 -> 0.003 | U6: =SUMIF(Einzelwertung16!$A$3:$A$55,$B6,Einzelwertung16!$J$3:$J$55)+0.002 -> 25.002 | V6: =SUMIF(Einzelwertung17!$A$3:$A$55,$B6,Einzelwertung17!$J$3:$J$55)+0.001 -> 21.001 | W6: =SUMIF(Einzelwertung18!$A$3:$A$55,$B6,Einzelwertung18!$J$3:$J$55)+0 -> 0 | X6: =INT(IF(COUNTIF(F6:W6,CONCATENATE(">",1/10))<=Hilfe!$A$1,SUM(F6:W6),SUMIF(F6:W6,CONCATENATE(">=",LARGE(F6:W6,Hilfe!$A$1)),F6:W6))) -> 132 | Y6: 9 | Z6: 45
A7: 5 n.St. | B7: Lenk, Rolf | C7: =VLOOKUP($B7,Teilnehmer!$A$3:$E$127,2,FALSE) -> ASW | D7: =VLOOKUP($B7,Teilnehmer!$A$3:$E$127,3,FALSE) -> 61716 | E7: =VLOOKUP($B7,Teilnehmer!$A$3:$E$127,4,FALSE) -> SM2 | F7: =SUMIF(Einzelwertung1!$A$3:$A$55,$B7,Einzelwertung1!$J$3:$J$55)+0.017 -> 0.017 | G7: =SUMIF(Einzelwertung2!$A$3:$A$55,$B7,Einzelwertung2!$J$3:$J$55)+0.016 -> 0.016 | H7: =SUMIF(Einzelwertung3!$A$3:$A$55,$B7,Einzelwertung3!$J$3:$J$55)+0.015 -> 0.015 | I7: =SUMIF(Einzelwertung4!$A$3:$A$55,$B7,Einzelwertung4!$J$3:$J$55)+0.014 -> 0.014 | J7: =SUMIF(Einzelwertung5!$A$3:$A$55,$B7,Einzelwertung5!$J$3:$J$55)+0.013 -> 0.013 | K7: =SUMIF(Einzelwertung6!$A$3:$A$55,$B7,Einzelwertung6!$J$3:$J$55)+0.012 -> 10.012 | L7: =SUMIF(Einzelwertung7!$A$3:$A$55,$B7,Einzelwertung7!$J$3:$J$55)+0.011 -> 15.011 | M7: =SUMIF(Einzelwertung8!$A$3:$A$55,$B7,Einzelwertung8!$J$3:$J$55)+0.01 -> 15.01 | N7: =SUMIF(Einzelwertung9!$A$3:$A$55,$B7,Einzelwertung9!$J$3:$J$55)+0.009 -> 18.009 | O7: =SUMIF(Einzelwertung10!$A$3:$A$55,$B7,Einzelwertung10!$J$3:$J$55)+0.008 -> 10.008 | P7: =SUMIF(Einzelwertung11!$A$3:$A$55,$B7,Einzelwertung11!$J$3:$J$55)+0.007 -> 5.007 | Q7: =SUMIF(Einzelwertung12!$A$3:$A$55,$B7,Einzelwertung12!$J$3:$J$55)+0.006 -> 15.006 | R7: =SUMIF(Einzelwertung13!$A$3:$A$55,$B7,Einzelwertung13!$J$3:$J$55)+0.005 -> 5.005 | S7: =SUMIF(Einzelwertung14!$A$3:$A$55,$B7,Einzelwertung14!$J$3:$J$55)+0.004 -> 21.004 | T7: =SUMIF(Einzelwertung15!$A$3:$A$67,$B7,Einzelwertung15!$J$3:$J$67)+0.003 -> 15.003 | U7: =SUMIF(Einzelwertung16!$A$3:$A$55,$B7,Einzelwertung16!$J$3:$J$55)+0.002 -> 0.002 | V7: =SUMIF(Einzelwertung17!$A$3:$A$55,$B7,Einzelwertung17!$J$3:$J$55)+0.001 -> 18.001 | W7: =SUMIF(Einzelwertung18!$A$3:$A$55,$B7,Einzelwertung18!$J$3:$J$55)+0 -> 0 | X7: =INT(IF(COUNTIF(F7:W7,CONCATENATE(">",1/10))<=Hilfe!$A$1,SUM(F7:W7),SUMIF(F7:W7,CONCATENATE(">=",LARGE(F7:W7,Hilfe!$A$1)),F7:W7))) -> 127 | Y7: 11 | Z7: 55
A8: 6 n.St. | B8: Kunz, Martin | C8: =VLOOKUP($B8,Teilnehmer!$A$3:$E$127,2,FALSE) -> Hobby | D8: =VLOOKUP($B8,Teilnehmer!$A$3:$E$127,3,FALSE) -> Hobby40 | E8: =VLOOKUP($B8,Teilnehmer!$A$3:$E$127,4,FALSE) -> SM1 | F8: =SUMIF(Einzelwertung1!$A$3:$A$55,$B8,Einzelwertung1!$J$3:$J$55)+0.017 -> 0.017 | G8: =SUMIF(Einzelwertung2!$A$3:$A$55,$B8,Einzelwertung2!$J$3:$J$55)+0.016 -> 0.016 | H8: =SUMIF(Einzelwertung3!$A$3:$A$55,$B8,Einzelwertung3!$J$3:$J$55)+0.015 -> 0.015 | I8: =SUMIF(Einzelwertung4!$A$3:$A$55,$B8,Einzelwertung4!$J$3:$J$55)+0.014 -> 0.014 | J8: =SUMIF(Einzelwertung5!$A$3:$A$55,$B8,Einzelwertung5!$J$3:$J$55)+0.013 -> 0.013 | K8: =SUMIF(Einzelwertung6!$A$3:$A$55,$B8,Einzelwertung6!$J$3:$J$55)+0.012 -> 0.012 | L8: =SUMIF(Einzelwertung7!$A$3:$A$55,$B8,Einzelwertung7!$J$3:$J$55)+0.011 -> 15.011 | M8: =SUMIF(Einzelwertung8!$A$3:$A$55,$B8,Einzelwertung8!$J$3:$J$55)+0.01 -> 21.01 | N8: =SUMIF(Einzelwertung9!$A$3:$A$55,$B8,Einzelwertung9!$J$3:$J$55)+0.009 -> 5.009 | O8: =SUMIF(Einzelwertung10!$A$3:$A$55,$B8,Einzelwertung10!$J$3:$J$55)+0.008 -> 10.008 | P8: =SUMIF(Einzelwertung11!$A$3:$A$55,$B8,Einzelwertung11!$J$3:$J$55)+0.007 -> 18.007 | Q8: =SUMIF(Einzelwertung12!$A$3:$A$55,$B8,Einzelwertung12!$J$3:$J$55)+0.006 -> 15.006 | R8: =SUMIF(Einzelwertung13!$A$3:$A$55,$B8,Einzelwertung13!$J$3:$J$55)+0.005 -> 18.005 | S8: =SUMIF(Einzelwertung14!$A$3:$A$55,$B8,Einzelwertung14!$J$3:$J$55)+0.004 -> 10.004 | T8: =SUMIF(Einzelwertung15!$A$3:$A$67,$B8,Einzelwertung15!$J$3:$J$67)+0.003 -> 15.003 | U8: =SUMIF(Einzelwertung16!$A$3:$A$55,$B8,Einzelwertung16!$J$3:$J$55)+0.002 -> 15.002 | V8: =SUMIF(Einzelwertung17!$A$3:$A$55,$B8,Einzelwertung17!$J$3:$J$55)+0.001 -> 5.001 | W8: =SUMIF(Einzelwertung18!$A$3:$A$55,$B8,Einzelwertung18!$J$3:$J$55)+0 -> 0 | X8: =INT(IF(COUNTIF(F8:W8,CONCATENATE(">",1/10))<=Hilfe!$A$1,SUM(F8:W8),SUMIF(F8:W8,CONCATENATE(">=",LARGE(F8:W8,Hilfe!$A$1)),F8:W8))) -> 127 | Y8: 11 | Z8: 55
A9: 7 | B9: Lieber, Nicole | C9: =VLOOKUP($B9,Teilnehmer!$A$3:$E$127,2,FALSE) -> Hobby | D9: =VLOOKUP($B9,Teilnehmer!$A$3:$E$127,3,FALSE) -> Hobby7 | E9: =VLOOKUP($B9,Teilnehmer!$A$3:$E$127,4,FALSE) -> D | F9: =SUMIF(Einzelwertung1!$A$3:$A$55,$B9,Einzelwertung1!$J$3:$J$55)+0.017 -> 0.017 | G9: =SUMIF(Einzelwertung2!$A$3:$A$55,$B9,Einzelwertung2!$J$3:$J$55)+0.016 -> 0.016 | H9: =SUMIF(Einzelwertung3!$A$3:$A$55,$B9,Einzelwertung3!$J$3:$J$55)+0.015 -> 0.015 | I9: =SUMIF(Einzelwertung4!$A$3:$A$55,$B9,Einzelwertung4!$J$3:$J$55)+0.014 -> 0.014 | J9: =SUMIF(Einzelwertung5!$A$3:$A$55,$B9,Einzelwertung5!$J$3:$J$55)+0.013 -> 0.013 | K9: =SUMIF(Einzelwertung6!$A$3:$A$55,$B9,Einzelwertung6!$J$3:$J$55)+0.012 -> 21.012 | L9: =SUMIF(Einzelwertung7!$A$3:$A$55,$B9,Einzelwertung7!$J$3:$J$55)+0.011 -> 10.011 | M9: =SUMIF(Einzelwertung8!$A$3:$A$55,$B9,Einzelwertung8!$J$3:$J$55)+0.01 -> 5.01 | N9: =SUMIF(Einzelwertung9!$A$3:$A$55,$B9,Einzelwertung9!$J$3:$J$55)+0.009 -> 10.009 | O9: =SUMIF(Einzelwertung10!$A$3:$A$55,$B9,Einzelwertung10!$J$3:$J$55)+0.008 -> 21.008 | P9: =SUMIF(Einzelwertung11!$A$3:$A$55,$B9,Einzelwertung11!$J$3:$J$55)+0.007 -> 21.007 | Q9: =SUMIF(Einzelwertung12!$A$3:$A$55,$B9,Einzelwertung12!$J$3:$J$55)+0.006 -> 10.006 | R9: =SUMIF(Einzelwertung13!$A$3:$A$55,$B9,Einzelwertung13!$J$3:$J$55)+0.005 -> 10.005 | S9: =SUMIF(Einzelwertung14!$A$3:$A$55,$B9,Einzelwertung14!$J$3:$J$55)+0.004 -> 21.004 | T9: =SUMIF(Einzelwertung15!$A$3:$A$67,$B9,Einzelwertung15!$J$3:$J$67)+0.003 -> 5.003 | U9: =SUMIF(Einzelwertung16!$A$3:$A$55,$B9,Einzelwertung16!$J$3:$J$55)+0.002 -> 10.002 | V9: =SUMIF(Einzelwertung17!$A$3:$A$55,$B9,Einzelwertung17!$J$3:$J$55)+0.001 -> 10.001 | W9: =SUMIF(Einzelwertung18!$A$3:$A$55,$B9,Einzelwertung18!$J$3:$J$55)+0 -> 0 | X9: =INT(IF(COUNTIF(F9:W9,CONCATENATE(">",1/10))<=Hilfe!$A$1,SUM(F9:W9),SUMIF(F9:W9,CONCATENATE(">=",LARGE(F9:W9,Hilfe!$A$1)),F9:W9))) -> 124 | Y9: 12 | Z9: 60
A10: 8 | B10: Rabe, Jonas | C10: =VLOOKUP($B10,Teilnehmer!$A$3:$E$127,2,FALSE) -> Hobby | D10: =VLOOKUP($B10,Teilnehmer!$A$3:$E$127,3,FALSE) -> Hobby41 | E10: =VLOOKUP($B10,Teilnehmer!$A$3:$E$127,4,FALSE) -> SCHM | F10: =SUMIF(Einzelwertung1!$A$3:$A$55,$B10,Einzelwertung1!$J$3:$J$55)+0.017 -> 0.017 | G10: =SUMIF(Einzelwertung2!$A$3:$A$55,$B10,Einzelwertung2!$J$3:$J$55)+0.016 -> 0.016 | H10: =SUMIF(Einzelwertung3!$A$3:$A$55,$B10,Einzelwertung3!$J$3:$J$55)+0.015 -> 0.015 | I10: =SUMIF(Einzelwertung4!$A$3:$A$55,$B10,Einzelwertung4!$J$3:$J$55)+0.014 -> 0.014 | J10: =SUMIF(Einzelwertung5!$A$3:$A$55,$B10,Einzelwertung5!$J$3:$J$55)+0.013 -> 0.013 | K10: =SUMIF(Einzelwertung6!$A$3:$A$55,$B10,Einzelwertung6!$J$3:$J$55)+0.012 -> 15.012 | L10: =SUMIF(Einzelwertung7!$A$3:$A$55,$B10,Einzelwertung7!$J$3:$J$55)+0.011 -> 10.011 | M10: =SUMIF(Einzelwertung8!$A$3:$A$55,$B10,Einzelwertung8!$J$3:$J$55)+0.01 -> 15.01 | N10: =SUMIF(Einzelwertung9!$A$3:$A$55,$B10,Einzelwertung9!$J$3:$J$55)+0.009 -> 10.009 | O10: =SUMIF(Einzelwertung10!$A$3:$A$55,$B10,Einzelwertung10!$J$3:$J$55)+0.008 -> 25.008 | P10: =SUMIF(Einzelwertung11!$A$3:$A$55,$B10,Einzelwertung11!$J$3:$J$55)+0.007 -> 5.007 | Q10: =SUMIF(Einzelwertung12!$A$3:$A$55,$B10,Einzelwertung12!$J$3:$J$55)+0.006 -> 10.006 | R10: =SUMIF(Einzelwertung13!$A$3:$A$55,$B10,Einzelwertung13!$J$3:$J$55)+0.005 -> 15.005 | S10: =SUMIF(Einzelwertung14!$A$3:$A$55,$B10,Einzelwertung14!$J$3:$J$55)+0.004 -> 0.004 | T10: =SUMIF(Einzelwertung15!$A$3:$A$67,$B10,Einzelwertung15!$J$3:$J$67)+0.003 -> 15.003 | U10: =SUMIF(Einzelwertung16!$A$3:$A$55,$B10,Einzelwertung16!$J$3:$J$55)+0.002 -> 10.002 | V10: =SUMIF(Einzelwertung17!$A$3:$A$55,$B10,Einzelwertung17!$J$3:$J$55)+0.001 -> 15.001 | W10: =SUMIF(Einzelwertung18!$A$3:$A$55,$B10,Einzelwertung18!$J$3:$J$55)+0 -> 0 | X10: =INT(IF(COUNTIF(F10:W10,CONCATENATE(">",1/10))<=Hilfe!$A$1,SUM(F10:W10),SUMIF(F10:W10,CONCATENATE(">=",LARGE(F10:W10,Hilfe!$A$1)),F10:W10))) -> 120 | Y10: 11 | Z10: 27.5
A11: 9 | B11: Greiffendorf, Hellmut | C11: =VLOOKUP($B11,Teilnehmer!$A$3:$E$127,2,FALSE) -> ASW | D11: =VLOOKUP($B11,Teilnehmer!$A$3:$E$127,3,FALSE) -> 3800 | E11: =VLOOKUP($B11,Teilnehmer!$A$3:$E$127,4,FALSE) -> SM2 | F11: =SUMIF(Einzelwertung1!$A$3:$A$55,$B11,Einzelwertung1!$J$3:$J$55)+0.017 -> 0.017 | G11: =SUMIF(Einzelwertung2!$A$3:$A$55,$B11,Einzelwertung2!$J$3:$J$55)+0.016 -> 0.016 | H11: =SUMIF(Einzelwertung3!$A$3:$A$55,$B11,Einzelwertung3!$J$3:$J$55)+0.015 -> 0.015 | I11: =SUMIF(Einzelwertung4!$A$3:$A$55,$B11,Einzelwertung4!$J$3:$J$55)+0.014 -> 0.014 | J11: =SUMIF(Einzelwertung5!$A$3:$A$55,$B11,Einzelwertung5!$J$3:$J$55)+0.013 -> 0.013 | K11: =SUMIF(Einzelwertung6!$A$3:$A$55,$B11,Einzelwertung6!$J$3:$J$55)+0.012 -> 25.012 | L11: =SUMIF(Einzelwertung7!$A$3:$A$55,$B11,Einzelwertung7!$J$3:$J$55)+0.011 -> 5.011 | M11: =SUMIF(Einzelwertung8!$A$3:$A$55,$B11,Einzelwertung8!$J$3:$J$55)+0.01 -> 3.01 | N11: =SUMIF(Einzelwertung9!$A$3:$A$55,$B11,Einzelwertung9!$J$3:$J$55)+0.009 -> 5.009 | O11: =SUMIF(Einzelwertung10!$A$3:$A$55,$B11,Einzelwertung10!$J$3:$J$55)+0.008 -> 0.008 | P11: =SUMIF(Einzelwertung11!$A$3:$A$55,$B11,Einzelwertung11!$J$3:$J$55)+0.007 -> 0.007 | Q11: =SUMIF(Einzelwertung12!$A$3:$A$55,$B11,Einzelwertung12!$J$3:$J$55)+0.006 -> 18.006 | R11: =SUMIF(Einzelwertung13!$A$3:$A$55,$B11,Einzelwertung13!$J$3:$J$55)+0.005 -> 10.005 | S11: =SUMIF(Einzelwertung14!$A$3:$A$55,$B11,Einzelwertung14!$J$3:$J$55)+0.004 -> 0.004 | T11: =SUMIF(Einzelwertung15!$A$3:$A$67,$B11,Einzelwertung15!$J$3:$J$67)+0.003 -> 18.003 | U11: =SUMIF(Einzelwertung16!$A$3:$A$55,$B11,Einzelwertung16!$J$3:$J$55)+0.002 -> 18.002 | V11: =SUMIF(Einzelwertung17!$A$3:$A$55,$B11,Einzelwertung17!$J$3:$J$55)+0.001 -> 15.001 | W11: =SUMIF(Einzelwertung18!$A$3:$A$55,$B11,Einzelwertung18!$J$3:$J$55)+0 -> 0 | X11: =INT(IF(COUNTIF(F11:W11,CONCATENATE(">",1/10))<=Hilfe!$A$1,SUM(F11:W11),SUMIF(F11:W11,CONCATENATE(">=",LARGE(F11:W11,Hilfe!$A$1)),F11:W11))) -> 114 | Y11: 9 | Z11: 45
A12: 10 | B12: Tabor, Peter | C12: =VLOOKUP($B12,Teilnehmer!$A$3:$E$127,2,FALSE) -> ASW | D12: =VLOOKUP($B12,Teilnehmer!$A$3:$E$127,3,FALSE) -> 65804 | E12: =VLOOKUP($B12,Teilnehmer!$A$3:$E$127,4,FALSE) -> SM2 | F12: =SUMIF(Einzelwertung1!$A$3:$A$55,$B12,Einzelwertung1!$J$3:$J$55)+0.017 -> 0.017 | G12: =SUMIF(Einzelwertung2!$A$3:$A$55,$B12,Einzelwertung2!$J$3:$J$55)+0.016 -> 0.016 | H12: =SUMIF(Einzelwertung3!$A$3:$A$55,$B12,Einzelwertung3!$J$3:$J$55)+0.015 -> 0.015 | I12: =SUMIF(Einzelwertung4!$A$3:$A$55,$B12,Einzelwertung4!$J$3:$J$55)+0.014 -> 0.014 | J12: =SUMIF(Einzelwertung5!$A$3:$A$55,$B12,Einzelwertung5!$J$3:$J$55)+0.013 -> 0.013 | K12: =SUMIF(Einzelwertung6!$A$3:$A$55,$B12,Einzelwertung6!$J$3:$J$55)+0.012 -> 15.012 | L12: =SUMIF(Einzelwertung7!$A$3:$A$55,$B12,Einzelwertung7!$J$3:$J$55)+0.011 -> 3.011 | M12: =SUMIF(Einzelwertung8!$A$3:$A$55,$B12,Einzelwertung8!$J$3:$J$55)+0.01 -> 0.01 | N12: =SUMIF(Einzelwertung9!$A$3:$A$55,$B12,Einzelwertung9!$J$3:$J$55)+0.009 -> 0.009 | O12: =SUMIF(Einzelwertung10!$A$3:$A$55,$B12,Einzelwertung10!$J$3:$J$55)+0.008 -> 0.008 | P12: =SUMIF(Einzelwertung11!$A$3:$A$55,$B12,Einzelwertung11!$J$3:$J$55)+0.007 -> 0.007 | Q12: =SUMIF(Einzelwertung12!$A$3:$A$55,$B12,Einzelwertung12!$J$3:$J$55)+0.006 -> 18.006 | R12: =SUMIF(Einzelwertung13!$A$3:$A$55,$B12,Einzelwertung13!$J$3:$J$55)+0.005 -> 15.005 | S12: =SUMIF(Einzelwertung14!$A$3:$A$55,$B12,Einzelwertung14!$J$3:$J$55)+0.004 -> 15.004 | T12: =SUMIF(Einzelwertung15!$A$3:$A$67,$B12,Einzelwertung15!$J$3:$J$67)+0.003 -> 10.003 | U12: =SUMIF(Einzelwertung16!$A$3:$A$55,$B12,Einzelwertung16!$J$3:$J$55)+0.002 -> 10.002 | V12: =SUMIF(Einzelwertung17!$A$3:$A$55,$B12,Einzelwertung17!$J$3:$J$55)+0.001 -> 15.001 | W12: =SUMIF(Einzelwertung18!$A$3:$A$55,$B12,Einzelwertung18!$J$3:$J$55)+0 -> 0 | X12: =INT(IF(COUNTIF(F12:W12,CONCATENATE(">",1/10))<=Hilfe!$A$1,SUM(F12:W12),SUMIF(F12:W12,CONCATENATE(">=",LARGE(F12:W12,Hilfe!$A$1)),F12:W12))) -> 101 | Y12: 8 | Z12: 40
A13: 11 | B13: Börgmann, Ulrich | C13: =VLOOKUP($B13,Teilnehmer!$A$3:$E$127,2,FALSE) -> Hobby | D13: =VLOOKUP($B13,Teilnehmer!$A$3:$E$127,3,FALSE) -> Hobby15 | E13: =VLOOKUP($B13,Teilnehmer!$A$3:$E$127,4,FALSE) -> SM1 | F13: =SUMIF(Einzelwertung1!$A$3:$A$55,$B13,Einzelwertung1!$J$3:$J$55)+0.017 -> 0.017 | G13: =SUMIF(Einzelwertung2!$A$3:$A$55,$B13,Einzelwertung2!$J$3:$J$55)+0.016 -> 0.016 | H13: =SUMIF(Einzelwertung3!$A$3:$A$55,$B13,Einzelwertung3!$J$3:$J$55)+0.015 -> 0.015 | I13: =SUMIF(Einzelwertung4!$A$3:$A$55,$B13,Einzelwertung4!$J$3:$J$55)+0.014 -> 0.014 | J13: =SUMIF(Einzelwertung5!$A$3:$A$55,$B13,Einzelwertung5!$J$3:$J$55)+0.013 -> 0.013 | K13: =SUMIF(Einzelwertung6!$A$3:$A$55,$B13,Einzelwertung6!$J$3:$J$55)+0.012 -> 21.012 | L13: =SUMIF(Einzelwertung7!$A$3:$A$55,$B13,Einzelwertung7!$J$3:$J$55)+0.011 -> 3.011 | M13: =SUMIF(Einzelwertung8!$A$3:$A$55,$B13,Einzelwertung8!$J$3:$J$55)+0.01 -> 5.01 | N13: =SUMIF(Einzelwertung9!$A$3:$A$55,$B13,Einzelwertung9!$J$3:$J$55)+0.009 -> 10.009 | O13: =SUMIF(Einzelwertung10!$A$3:$A$55,$B13,Einzelwertung10!$J$3:$J$55)+0.008 -> 10.008 | P13: =SUMIF(Einzelwertung11!$A$3:$A$55,$B13,Einzelwertung11!$J$3:$J$55)+0.007 -> 10.007 | Q13: =SUMIF(Einzelwertung12!$A$3:$A$55,$B13,Einzelwertung12!$J$3:$J$55)+0.006 -> 10.006 | R13: =SUMIF(Einzelwertung13!$A$3:$A$55,$B13,Einzelwertung13!$J$3:$J$55)+0.005 -> 5.005 | S13: =SUMIF(Einzelwertung14!$A$3:$A$55,$B13,Einzelwertung14!$J$3:$J$55)+0.004 -> 15.004 | T13: =SUMIF(Einzelwertung15!$A$3:$A$67,$B13,Einzelwertung15!$J$3:$J$67)+0.003 -> 0.003 | U13: =SUMIF(Einzelwertung16!$A$3:$A$55,$B13,Einzelwertung16!$J$3:$J$55)+0.002 -> 0.002 | V13: =SUMIF(Einzelwertung17!$A$3:$A$55,$B13,Einzelwertung17!$J$3:$J$55)+0.001 -> 18.001 | W13: =SUMIF(Einzelwertung18!$A$3:$A$55,$B13,Einzelwertung18!$J$3:$J$55)+0 -> 0 | X13: =INT(IF(COUNTIF(F13:W13,CONCATENATE(">",1/10))<=Hilfe!$A$1,SUM(F13:W13),SUMIF(F13:W13,CONCATENATE(">=",LARGE(F13:W13,Hilfe!$A$1)),F13:W13))) -> 99 | Y13: 10 | Z13: 50
A14: 12 | B14: Buchholz, Ansgar | C14: =VLOOKUP($B14,Teilnehmer!$A$3:$E$127,2,FALSE) -> ASW | D14: =VLOOKUP($B14,Teilnehmer!$A$3:$E$127,3,FALSE) -> 31513 | E14: =VLOOKUP($B14,Teilnehmer!$A$3:$E$127,4,FALSE) -> SM1 | F14: =SUMIF(Einzelwertung1!$A$3:$A$55,$B14,Einzelwertung1!$J$3:$J$55)+0.017 -> 0.017 | G14: =SUMIF(Einzelwertung2!$A$3:$A$55,$B14,Einzelwertung2!$J$3:$J$55)+0.016 -> 0.016 | H14: =SUMIF(Einzelwertung3!$A$3:$A$55,$B14,Einzelwertung3!$J$3:$J$55)+0.015 -> 0.015 | I14: =SUMIF(Einzelwertung4!$A$3:$A$55,$B14,Einzelwertung4!$J$3:$J$55)+0.014 -> 0.014 | J14: =SUMIF(Einzelwertung5!$A$3:$A$55,$B14,Einzelwertung5!$J$3:$J$55)+0.013 -> 0.013 | K14: =SUMIF(Einzelwertung6!$A$3:$A$55,$B14,Einzelwertung6!$J$3:$J$55)+0.012 -> 0.012 | L14: =SUMIF(Einzelwertung7!$A$3:$A$55,$B14,Einzelwertung7!$J$3:$J$55)+0.011 -> 18.011 | M14: =SUMIF(Einzelwertung8!$A$3:$A$55,$B14,Einzelwertung8!$J$3:$J$55)+0.01 -> 15.01 | N14: =SUMIF(Einzelwertung9!$A$3:$A$55,$B14,Einzelwertung9!$J$3:$J$55)+0.009 -> 25.009 | O14: =SUMIF(Einzelwertung10!$A$3:$A$55,$B14,Einzelwertung10!$J$3:$J$55)+0.008 -> 0.008 | P14: =SUMIF(Einzelwertung11!$A$3:$A$55,$B14,Einzelwertung11!$J$3:$J$55)+0.007 -> 0.007 | Q14: =SUMIF(Einzelwertung12!$A$3:$A$55,$B14,Einzelwertung12!$J$3:$J$55)+0.006 -> 0.006 | R14: =SUMIF(Einzelwertung13!$A$3:$A$55,$B14,Einzelwertung13!$J$3:$J$55)+0.005 -> 25.005 | S14: =SUMIF(Einzelwertung14!$A$3:$A$55,$B14,Einzelwertung14!$J$3:$J$55)+0.004 -> 15.004 | T14: =SUMIF(Einzelwertung15!$A$3:$A$67,$B14,Einzelwertung15!$J$3:$J$67)+0.003 -> 0.003 | U14: =SUMIF(Einzelwertung16!$A$3:$A$55,$B14,Einzelwertung16!$J$3:$J$55)+0.002 -> 0.002 | V14: =SUMIF(Einzelwertung17!$A$3:$A$55,$B14,Einzelwertung17!$J$3:$J$55)+0.001 -> 0.001 | W14: =SUMIF(Einzelwertung18!$A$3:$A$55,$B14,Einzelwertung18!$J$3:$J$55)+0 -> 0 | X14: =INT(IF(COUNTIF(F14:W14,CONCATENATE(">",1/10))<=Hilfe!$A$1,SUM(F14:W14),SUMIF(F14:W14,CONCATENATE(">=",LARGE(F14:W14,Hilfe!$A$1)),F14:W14))) -> 98 | Y14: 5 | Z14: 25
A15: 13 | B15: Kortmann, Sabine | C15: =VLOOKUP($B15,Teilnehmer!$A$3:$E$127,2,FALSE) -> Hobby | D15: =VLOOKUP($B15,Teilnehmer!$A$3:$E$127,3,FALSE) -> Hobby31 | E15: =VLOOKUP($B15,Teilnehmer!$A$3:$E$127,4,FALSE) -> SW1 | F15: =SUMIF(Einzelwertung1!$A$3:$A$55,$B15,Einzelwertung1!$J$3:$J$55)+0.017 -> 0.017 | G15: =SUMIF(Einzelwertung2!$A$3:$A$55,$B15,Einzelwertung2!$J$3:$J$55)+0.016 -> 0.016 | H15: =SUMIF(Einzelwertung3!$A$3:$A$55,$B15,Einzelwertung3!$J$3:$J$55)+0.015 -> 0.015 | I15: =SUMIF(Einzelwertung4!$A$3:$A$55,$B15,Einzelwertung4!$J$3:$J$55)+0.014 -> 0.014 | J15: =SUMIF(Einzelwertung5!$A$3:$A$55,$B15,Einzelwertung5!$J$3:$J$55)+0.013 -> 0.013 | K15: =SUMIF(Einzelwertung6!$A$3:$A$55,$B15,Einzelwertung6!$J$3:$J$55)+0.012 -> 0.012 | L15: =SUMIF(Einzelwertung7!$A$3:$A$55,$B15,Einzelwertung7!$J$3:$J$55)+0.011 -> 3.011 | M15: =SUMIF(Einzelwertung8!$A$3:$A$55,$B15,Einzelwertung8!$J$3:$J$55)+0.01 -> 5.01 | N15: =SUMIF(Einzelwertung9!$A$3:$A$55,$B15,Einzelwertung9!$J$3:$J$55)+0.009 -> 10.009 | O15: =SUMIF(Einzelwertung10!$A$3:$A$55,$B15,Einzelwertung10!$J$3:$J$55)+0.008 -> 18.008 | P15: =SUMIF(Einzelwertung11!$A$3:$A$55,$B15,Einzelwertung11!$J$3:$J$55)+0.007 -> 10.007 | Q15: =SUMIF(Einzelwertung12!$A$3:$A$55,$B15,Einzelwertung12!$J$3:$J$55)+0.006 -> 10.006 | R15: =SUMIF(Einzelwertung13!$A$3:$A$55,$B15,Einzelwertung13!$J$3:$J$55)+0.005 -> 15.005 | S15: =SUMIF(Einzelwertung14!$A$3:$A$55,$B15,Einzelwertung14!$J$3:$J$55)+0.004 -> 0.004 | T15: =SUMIF(Einzelwertung15!$A$3:$A$67,$B15,Einzelwertung15!$J$3:$J$67)+0.003 -> 15.003 | U15: =SUMIF(Einzelwertung16!$A$3:$A$55,$B15,Einzelwertung16!$J$3:$J$55)+0.002 -> 10.002 | V15: =SUMIF(Einzelwertung17!$A$3:$A$55,$B15,Einzelwertung17!$J$3:$J$55)+0.001 -> 0.001 | W15: =SUMIF(Einzelwertung18!$A$3:$A$55,$B15,Einzelwertung18!$J$3:$J$55)+0 -> 0 | X15: =INT(IF(COUNTIF(F15:W15,CONCATENATE(">",1/10))<=Hilfe!$A$1,SUM(F15:W15),SUMIF(F15:W15,CONCATENATE(">=",LARGE(F15:W15,Hilfe!$A$1)),F15:W15))) -> 93 | Y15: 9 | Z15: 45
A16: 14 | B16: Urban, Dominic | C16: =VLOOKUP($B16,Teilnehmer!$A$3:$E$127,2,FALSE) -> ASW | D16: =VLOOKUP($B16,Teilnehmer!$A$3:$E$127,3,FALSE) -> 66186 | E16: =VLOOKUP($B16,Teilnehmer!$A$3:$E$127,4,FALSE) -> JM | F16: =SUMIF(Einzelwertung1!$A$3:$A$55,$B16,Einzelwertung1!$J$3:$J$55)+0.017 -> 0.017 | G16: =SUMIF(Einzelwertung2!$A$3:$A$55,$B16,Einzelwertung2!$J$3:$J$55)+0.016 -> 0.016 | H16: =SUMIF(Einzelwertung3!$A$3:$A$55,$B16,Einzelwertung3!$J$3:$J$55)+0.015 -> 0.015 | I16: =SUMIF(Einzelwertung4!$A$3:$A$55,$B16,Einzelwertung4!$J$3:$J$55)+0.014 -> 0.014 | J16: =SUMIF(Einzelwertung5!$A$3:$A$55,$B16,Einzelwertung5!$J$3:$J$55)+0.013 -> 0.013 | K16: =SUMIF(Einzelwertung6!$A$3:$A$55,$B16,Einzelwertung6!$J$3:$J$55)+0.012 -> 0.012 | L16: =SUMIF(Einzelwertung7!$A$3:$A$55,$B16,Einzelwertung7!$J$3:$J$55)+0.011 -> 15.011 | M16: =SUMIF(Einzelwertung8!$A$3:$A$55,$B16,Einzelwertung8!$J$3:$J$55)+0.01 -> 15.01 | N16: =SUMIF(Einzelwertung9!$A$3:$A$55,$B16,Einzelwertung9!$J$3:$J$55)+0.009 -> 0.009 | O16: =SUMIF(Einzelwertung10!$A$3:$A$55,$B16,Einzelwertung10!$J$3:$J$55)+0.008 -> 15.008 | P16: =SUMIF(Einzelwertung11!$A$3:$A$55,$B16,Einzelwertung11!$J$3:$J$55)+0.007 -> 25.007 | Q16: =SUMIF(Einzelwertung12!$A$3:$A$55,$B16,Einzelwertung12!$J$3:$J$55)+0.006 -> 21.006 | R16: =SUMIF(Einzelwertung13!$A$3:$A$55,$B16,Einzelwertung13!$J$3:$J$55)+0.005 -> 0.005 | S16: =SUMIF(Einzelwertung14!$A$3:$A$55,$B16,Einzelwertung14!$J$3:$J$55)+0.004 -> 0.004 | T16: =SUMIF(Einzelwertung15!$A$3:$A$67,$B16,Einzelwertung15!$J$3:$J$67)+0.003 -> 0.003 | U16: =SUMIF(Einzelwertung16!$A$3:$A$55,$B16,Einzelwertung16!$J$3:$J$55)+0.002 -> 0.002 | V16: =SUMIF(Einzelwertung17!$A$3:$A$55,$B16,Einzelwertung17!$J$3:$J$55)+0.001 -> 0.001 | W16: =SUMIF(Einzelwertung18!$A$3:$A$55,$B16,Einzelwertung18!$J$3:$J$55)+0 -> 0 | X16: =INT(IF(COUNTIF(F16:W16,CONCATENATE(">",1/10))<=Hilfe!$A$1,SUM(F16:W16),SUMIF(F16:W16,CONCATENATE(">=",LARGE(F16:W16,Hilfe!$A$1)),F16:W16))) -> 91 | Y16: 5 | Z16: 12.5
A17: 15 | B17: Kortmann, Uwe | C17: =VLOOKUP($B17,Teilnehmer!$A$3:$E$127,2,FALSE) -> Hobby | D17: =VLOOKUP($B17,Teilnehmer!$A$3:$E$127,3,FALSE) -> Hobby32 | E17: =VLOOKUP($B17,Teilnehmer!$A$3:$E$127,4,FALSE) -> SM1 | F17: =SUMIF(Einzelwertung1!$A$3:$A$55,$B17,Einzelwertung1!$J$3:$J$55)+0.017 -> 0.017 | G17: =SUMIF(Einzelwertung2!$A$3:$A$55,$B17,Einzelwertung2!$J$3:$J$55)+0.016 -> 0.016 | H17: =SUMIF(Einzelwertung3!$A$3:$A$55,$B17,Einzelwertung3!$J$3:$J$55)+0.015 -> 0.015 | I17: =SUMIF(Einzelwertung4!$A$3:$A$55,$B17,Einzelwertung4!$J$3:$J$55)+0.014 -> 0.014 | J17: =SUMIF(Einzelwertung5!$A$3:$A$55,$B17,Einzelwertung5!$J$3:$J$55)+0.013 -> 0.013 | K17: =SUMIF(Einzelwertung6!$A$3:$A$55,$B17,Einzelwertung6!$J$3:$J$55)+0.012 -> 0.012 | L17: =SUMIF(Einzelwertung7!$A$3:$A$55,$B17,Einzelwertung7!$J$3:$J$55)+0.011 -> 18.011 | M17: =SUMIF(Einzelwertung8!$A$3:$A$55,$B17,Einzelwertung8!$J$3:$J$55)+0.01 -> 5.01 | N17: =SUMIF(Einzelwertung9!$A$3:$A$55,$B17,Einzelwertung9!$J$3:$J$55)+0.009 -> 15.009 | O17: =SUMIF(Einzelwertung10!$A$3:$A$55,$B17,Einzelwertung10!$J$3:$J$55)+0.008 -> 5.008 | P17: =SUMIF(Einzelwertung11!$A$3:$A$55,$B17,Einzelwertung11!$J$3:$J$55)+0.007 -> 15.007 | Q17: =SUMIF(Einzelwertung12!$A$3:$A$55,$B17,Einzelwertung12!$J$3:$J$55)+0.006 -> 5.006 | R17: =SUMIF(Einzelwertung13!$A$3:$A$55,$B17,Einzelwertung13!$J$3:$J$55)+0.005 -> 10.005 | S17: =SUMIF(Einzelwertung14!$A$3:$A$55,$B17,Einzelwertung14!$J$3:$J$55)+0.004 -> 0.004 | T17: =SUMIF(Einzelwertung15!$A$3:$A$67,$B17,Einzelwertung15!$J$3:$J$67)+0.003 -> 10.003 | U17: =SUMIF(Einzelwertung16!$A$3:$A$55,$B17,Einzelwertung16!$J$3:$J$55)+0.002 -> 10.002 | V17: =SUMIF(Einzelwertung17!$A$3:$A$55,$B17,Einzelwertung17!$J$3:$J$55)+0.001 -> 0.001 | W17: =SUMIF(Einzelwertung18!$A$3:$A$55,$B17,Einzelwertung18!$J$3:$J$55)+0 -> 0 | X17: =INT(IF(COUNTIF(F17:W17,CONCATENATE(">",1/10))<=Hilfe!$A$1,SUM(F17:W17),SUMIF(F17:W17,CONCATENATE(">=",LARGE(F17:W17,Hilfe!$A$1)),F17:W17))) -> 88 | Y17: 9 | Z17: 45
A18: 16 | B18: Schmidtbauer, Günter | C18: =VLOOKUP($B18,Teilnehmer!$A$3:$E$127,2,FALSE) -> Hobby | D18: =VLOOKUP($B18,Teilnehmer!$A$3:$E$127,3,FALSE) -> Hobby4 | E18: =VLOOKUP($B18,Teilnehmer!$A$3:$E$127,4,FALSE) -> SM2 | F18: =SUMIF(Einzelwertung1!$A$3:$A$55,$B18,Einzelwertung1!$J$3:$J$55)+0.017 -> 0.017 | G18: =SUMIF(Einzelwertung2!$A$3:$A$55,$B18,Einzelwertung2!$J$3:$J$55)+0.016 -> 0.016 | H18: =SUMIF(Einzelwertung3!$A$3:$A$55,$B18,Einzelwertung3!$J$3:$J$55)+0.015 -> 0.015 | I18: =SUMIF(Einzelwertung4!$A$3:$A$55,$B18,Einzelwertung4!$J$3:$J$55)+0.014 -> 0.014 | J18: =SUMIF(Einzelwertung5!$A$3:$A$55,$B18,Einzelwertung5!$J$3:$J$55)+0.013 -> 0.013 | K18: =SUMIF(Einzelwertung6!$A$3:$A$55,$B18,Einzelwertung6!$J$3:$J$55)+0.012 -> 10.012 | L18: =SUMIF(Einzelwertung7!$A$3:$A$55,$B18,Einzelwertung7!$J$3:$J$55)+0.011 -> 3.011 | M18: =SUMIF(Einzelwertung8!$A$3:$A$55,$B18,Einzelwertung8!$J$3:$J$55)+0.01 -> 5.01 | N18: =SUMIF(Einzelwertung9!$A$3:$A$55,$B18,Einzelwertung9!$J$3:$J$55)+0.009 -> 5.009 | O18: =SUMIF(Einzelwertung10!$A$3:$A$55,$B18,Einzelwertung10!$J$3:$J$55)+0.008 -> 18.008 | P18: =SUMIF(Einzelwertung11!$A$3:$A$55,$B18,Einzelwertung11!$J$3:$J$55)+0.007 -> 25.007 | Q18: =SUMIF(Einzelwertung12!$A$3:$A$55,$B18,Einzelwertung12!$J$3:$J$55)+0.006 -> 5.006 | R18: =SUMIF(Einzelwertung13!$A$3:$A$55,$B18,Einzelwertung13!$J$3:$J$55)+0.005 -> 3.005 | S18: =SUMIF(Einzelwertung14!$A$3:$A$55,$B18,Einzelwertung14!$J$3:$J$55)+0.004 -> 5.004 | T18: =SUMIF(Einzelwertung15!$A$3:$A$67,$B18,Einzelwertung15!$J$3:$J$67)+0.003 -> 0.003 | U18: =SUMIF(Einzelwertung16!$A$3:$A$55,$B18,Einzelwertung16!$J$3:$J$55)+0.002 -> 0.002 | V18: =SUMIF(Einzelwertung17!$A$3:$A$55,$B18,Einzelwertung17!$J$3:$J$55)+0.001 -> 5.001 | W18: =SUMIF(Einzelwertung18!$A$3:$A$55,$B18,Einzelwertung18!$J$3:$J$55)+0 -> 0 | X18: =INT(IF(COUNTIF(F18:W18,CONCATENATE(">",1/10))<=Hilfe!$A$1,SUM(F18:W18),SUMIF(F18:W18,CONCATENATE(">=",LARGE(F18:W18,Hilfe!$A$1)),F18:W18))) -> 78 | Y18: 10 | Z18: 50
A19: 17 | B19: Urban, Angela | C19: =VLOOKUP($B19,Teilnehmer!$A$3:$E$127,2,FALSE) -> ASW | D19: =VLOOKUP($B19,Teilnehmer!$A$3:$E$127,3,FALSE) -> 35605 | E19: =VLOOKUP($B19,Teilnehmer!$A$3:$E$127,4,FALSE) -> SW1 | F19: =SUMIF(Einzelwertung1!$A$3:$A$55,$B19,Einzelwertung1!$J$3:$J$55)+0.017 -> 0.017 | G19: =SUMIF(Einzelwertung2!$A$3:$A$55,$B19,Einzelwertung2!$J$3:$J$55)+0.016 -> 0.016 | H19: =SUMIF(Einzelwertung3!$A$3:$A$55,$B19,Einzelwertung3!$J$3:$J$55)+0.015 -> 0.015 | I19: =SUMIF(Einzelwertung4!$A$3:$A$55,$B19,Einzelwertung4!$J$3:$J$55)+0.014 -> 0.014 | J19: =SUMIF(Einzelwertung5!$A$3:$A$55,$B19,Einzelwertung5!$J$3:$J$55)+0.013 -> 0.013 | K19: =SUMIF(Einzelwertung6!$A$3:$A$55,$B19,Einzelwertung6!$J$3:$J$55)+0.012 -> 21.012 | L19: =SUMIF(Einzelwertung7!$A$3:$A$55,$B19,Einzelwertung7!$J$3:$J$55)+0.011 -> 0.011 | M19: =SUMIF(Einzelwertung8!$A$3:$A$55,$B19,Einzelwertung8!$J$3:$J$55)+0.01 -> 3.01 | N19: =SUMIF(Einzelwertung9!$A$3:$A$55,$B19,Einzelwertung9!$J$3:$J$55)+0.009 -> 0.009 | O19: =SUMIF(Einzelwertung10!$A$3:$A$55,$B19,Einzelwertung10!$J$3:$J$55)+0.008 -> 5.008 | P19: =SUMIF(Einzelwertung11!$A$3:$A$55,$B19,Einzelwertung11!$J$3:$J$55)+0.007 -> 21.007 | Q19: =SUMIF(Einzelwertung12!$A$3:$A$55,$B19,Einzelwertung12!$J$3:$J$55)+0.006 -> 3.006 | R19: =SUMIF(Einzelwertung13!$A$3:$A$55,$B19,Einzelwertung13!$J$3:$J$55)+0.005 -> 0.005 | S19: =SUMIF(Einzelwertung14!$A$3:$A$55,$B19,Einzelwertung14!$J$3:$J$55)+0.004 -> 10.004 | T19: =SUMIF(Einzelwertung15!$A$3:$A$67,$B19,Einzelwertung15!$J$3:$J$67)+0.003 -> 0.003 | U19: =SUMIF(Einzelwertung16!$A$3:$A$55,$B19,Einzelwertung16!$J$3:$J$55)+0.002 -> 5.002 | V19: =SUMIF(Einzelwertung17!$A$3:$A$55,$B19,Einzelwertung17!$J$3:$J$55)+0.001 -> 0.001 | W19: =SUMIF(Einzelwertung18!$A$3:$A$55,$B19,Einzelwertung18!$J$3:$J$55)+0 -> 0 | X19: =INT(IF(COUNTIF(F19:W19,CONCATENATE(">",1/10))<=Hilfe!$A$1,SUM(F19:W19),SUMIF(F19:W19,CONCATENATE(">=",LARGE(F19:W19,Hilfe!$A$1)),F19:W19))) -> 68 | Y19: 7 | Z19: 35
B20: Börgmann, Brigitte | C20: =VLOOKUP($B20,Teilnehmer!$A$3:$E$127,2,FALSE) -> Hobby | D20: =VLOOKUP($B20,Teilnehmer!$A$3:$E$127,3,FALSE) -> Hobby6 | E20: =VLOOKUP($B20,Teilnehmer!$A$3:$E$127,4,FALSE) -> SW1 | F20: =SUMIF(Einzelwertung1!$A$3:$A$55,$B20,Einzelwertung1!$J$3:$J$55)+0.017 -> 0.017 | G20: =SUMIF(Einzelwertung2!$A$3:$A$55,$B20,Einzelwertung2!$J$3:$J$55)+0.016 -> 0.016 | H20: =SUMIF(Einzelwertung3!$A$3:$A$55,$B20,Einzelwertung3!$J$3:$J$55)+0.015 -> 0.015 | I20: =SUMIF(Einzelwertung4!$A$3:$A$55,$B20,Einzelwertung4!$J$3:$J$55)+0.014 -> 0.014 | J20: =SUMIF(Einzelwertung5!$A$3:$A$55,$B20,Einzelwertung5!$J$3:$J$55)+0.013 -> 0.013 | K20: =SUMIF(Einzelwertung6!$A$3:$A$55,$B20,Einzelwertung6!$J$3:$J$55)+0.012 -> 10.012 | L20: =SUMIF(Einzelwertung7!$A$3:$A$55,$B20,Einzelwertung7!$J$3:$J$55)+0.011 -> 5.011 | M20: =SUMIF(Einzelwertung8!$A$3:$A$55,$B20,Einzelwertung8!$J$3:$J$55)+0.01 -> 3.01 | N20: =SUMIF(Einzelwertung9!$A$3:$A$55,$B20,Einzelwertung9!$J$3:$J$55)+0.009 -> 3.009 | O20: =SUMIF(Einzelwertung10!$A$3:$A$55,$B20,Einzelwertung10!$J$3:$J$55)+0.008 -> 18.008 | P20: =SUMIF(Einzelwertung11!$A$3:$A$55,$B20,Einzelwertung11!$J$3:$J$55)+0.007 -> 5.007 | Q20: =SUMIF(Einzelwertung12!$A$3:$A$55,$B20,Einzelwertung12!$J$3:$J$55)+0.006 -> 5.006 | R20: =SUMIF(Einzelwertung13!$A$3:$A$55,$B20,Einzelwertung13!$J$3:$J$55)+0.005 -> 5.005 | S20: =SUMIF(Einzelwertung14!$A$3:$A$55,$B20,Einzelwertung14!$J$3:$J$55)+0.004 -> 15.004 | T20: =SUMIF(Einzelwertung15!$A$3:$A$67,$B20,Einzelwertung15!$J$3:$J$67)+0.003 -> 0.003 | U20: =SUMIF(Einzelwertung16!$A$3:$A$55,$B20,Einzelwertung16!$J$3:$J$55)+0.002 -> 0.002 | V20: =SUMIF(Einzelwertung17!$A$3:$A$55,$B20,Einzelwertung17!$J$3:$J$55)+0.001 -> 5.001 | W20: =SUMIF(Einzelwertung18!$A$3:$A$55,$B20,Einzelwertung18!$J$3:$J$55)+0 -> 0 | X20: =INT(IF(COUNTIF(F20:W20,CONCATENATE(">",1/10))<=Hilfe!$A$1,SUM(F20:W20),SUMIF(F20:W20,CONCATENATE(">=",LARGE(F20:W20,Hilfe!$A$1)),F20:W20))) -> 68 | Y20: 10 | Z20: 50
A21: 19 | B21: Kersch, Uwe | C21: =VLOOKUP($B21,Teilnehmer!$A$3:$E$127,2,FALSE) -> HEV | D21: =VLOOKUP($B21,Teilnehmer!$A$3:$E$127,3,FALSE) -> 67352 | E21: =VLOOKUP($B21,Teilnehmer!$A$3:$E$127,4,FALSE) -> SM2 | F21: =SUMIF(Einzelwertung1!$A$3:$A$55,$B21,Einzelwertung1!$J$3:$J$55)+0.017 -> 0.017 | G21: =SUMIF(Einzelwertung2!$A$3:$A$55,$B21,Einzelwertung2!$J$3:$J$55)+0.016 -> 0.016 | H21: =SUMIF(Einzelwertung3!$A$3:$A$55,$B21,Einzelwertung3!$J$3:$J$55)+0.015 -> 0.015 | I21: =SUMIF(Einzelwertung4!$A$3:$A$55,$B21,Einzelwertung4!$J$3:$J$55)+0.014 -> 0.014 | J21: =SUMIF(Einzelwertung5!$A$3:$A$55,$B21,Einzelwertung5!$J$3:$J$55)+0.013 -> 0.013 | K21: =SUMIF(Einzelwertung6!$A$3:$A$55,$B21,Einzelwertung6!$J$3:$J$55)+0.012 -> 10.012 | L21: =SUMIF(Einzelwertung7!$A$3:$A$55,$B21,Einzelwertung7!$J$3:$J$55)+0.011 -> 25.011 | M21: =SUMIF(Einzelwertung8!$A$3:$A$55,$B21,Einzelwertung8!$J$3:$J$55)+0.01 -> 0.01 | N21: =SUMIF(Einzelwertung9!$A$3:$A$55,$B21,Einzelwertung9!$J$3:$J$55)+0.009 -> 0.009 | O21: =SUMIF(Einzelwertung10!$A$3:$A$55,$B21,Einzelwertung10!$J$3:$J$55)+0.008 -> 10.008 | P21: =SUMIF(Einzelwertung11!$A$3:$A$55,$B21,Einzelwertung11!$J$3:$J$55)+0.007 -> 0.007 | Q21: =SUMIF(Einzelwertung12!$A$3:$A$55,$B21,Einzelwertung12!$J$3:$J$55)+0.006 -> 0.006 | R21: =SUMIF(Einzelwertung13!$A$3:$A$55,$B21,Einzelwertung13!$J$3:$J$55)+0.005 -> 5.005 | S21: =SUMIF(Einzelwertung14!$A$3:$A$55,$B21,Einzelwertung14!$J$3:$J$55)+0.004 -> 10.004 | T21: =SUMIF(Einzelwertung15!$A$3:$A$67,$B21,Einzelwertung15!$J$3:$J$67)+0.003 -> 5.003 | U21: =SUMIF(Einzelwertung16!$A$3:$A$55,$B21,Einzelwertung16!$J$3:$J$55)+0.002 -> 0.002 | V21: =SUMIF(Einzelwertung17!$A$3:$A$55,$B21,Einzelwertung17!$J$3:$J$55)+0.001 -> 0.001 | W21: =SUMIF(Einzelwertung18!$A$3:$A$55,$B21,Einzelwertung18!$J$3:$J$55)+0 -> 0 | X21: =INT(IF(COUNTIF(F21:W21,CONCATENATE(">",1/10))<=Hilfe!$A$1,SUM(F21:W21),SUMIF(F21:W21,CONCATENATE(">=",LARGE(F21:W21,Hilfe!$A$1)),F21:W21))) -> 65 | Y21: 6 | Z21: 30
A22: 20 | B22: Kalhöfer, Anna | C22: =VLOOKUP($B22,Teilnehmer!$A$3:$E$127,2,FALSE) -> ASW | D22: =VLOOKUP($B22,Teilnehmer!$A$3:$E$127,3,FALSE) -> 4222 | E22: =VLOOKUP($B22,Teilnehmer!$A$3:$E$127,4,FALSE) -> SW2 | F22: =SUMIF(Einzelwertung1!$A$3:$A$55,$B22,Einzelwertung1!$J$3:$J$55)+0.017 -> 0.017 | G22: =SUMIF(Einzelwertung2!$A$3:$A$55,$B22,Einzelwertung2!$J$3:$J$55)+0.016 -> 0.016 | H22: =SUMIF(Einzelwertung3!$A$3:$A$55,$B22,Einzelwertung3!$J$3:$J$55)+0.015 -> 0.015 | I22: =SUMIF(Einzelwertung4!$A$3:$A$55,$B22,Einzelwertung4!$J$3:$J$55)+0.014 -> 0.014 | J22: =SUMIF(Einzelwertung5!$A$3:$A$55,$B22,Einzelwertung5!$J$3:$J$55)+0.013 -> 0.013 | K22: =SUMIF(Einzelwertung6!$A$3:$A$55,$B22,Einzelwertung6!$J$3:$J$55)+0.012 -> 0.012 | L22: =SUMIF(Einzelwertung7!$A$3:$A$55,$B22,Einzelwertung7!$J$3:$J$55)+0.011 -> 0.011 | M22: =SUMIF(Einzelwertung8!$A$3:$A$55,$B22,Einzelwertung8!$J$3:$J$55)+0.01 -> 0.01 | N22: =SUMIF(Einzelwertung9!$A$3:$A$55,$B22,Einzelwertung9!$J$3:$J$55)+0.009 -> 0.009 | O22: =SUMIF(Einzelwertung10!$A$3:$A$55,$B22,Einzelwertung10!$J$3:$J$55)+0.008 -> 0.008 | P22: =SUMIF(Einzelwertung11!$A$3:$A$55,$B22,Einzelwertung11!$J$3:$J$55)+0.007 -> 0.007 | Q22: =SUMIF(Einzelwertung12!$A$3:$A$55,$B22,Einzelwertung12!$J$3:$J$55)+0.006 -> 21.006 | R22: =SUMIF(Einzelwertung13!$A$3:$A$55,$B22,Einzelwertung13!$J$3:$J$55)+0.005 -> 15.005 | S22: =SUMIF(Einzelwertung14!$A$3:$A$55,$B22,Einzelwertung14!$J$3:$J$55)+0.004 -> 10.004 | T22: =SUMIF(Einzelwertung15!$A$3:$A$67,$B22,Einzelwertung15!$J$3:$J$67)+0.003 -> 10.003 | U22: =SUMIF(Einzelwertung16!$A$3:$A$55,$B22,Einzelwertung16!$J$3:$J$55)+0.002 -> 0.002 | V22: =SUMIF(Einzelwertung17!$A$3:$A$55,$B22,Einzelwertung17!$J$3:$J$55)+0.001 -> 0.001 | W22: =SUMIF(Einzelwertung18!$A$3:$A$55,$B22,Einzelwertung18!$J$3:$J$55)+0 -> 0 | X22: =INT(IF(COUNTIF(F22:W22,CONCATENATE(">",1/10))<=Hilfe!$A$1,SUM(F22:W22),SUMIF(F22:W22,CONCATENATE(">=",LARGE(F22:W22,Hilfe!$A$1)),F22:W22))) -> 56 | Y22: 4 | Z22: 20
B23: Lehmann, Niclas | C23: =VLOOKUP($B23,Teilnehmer!$A$3:$E$127,2,FALSE) -> Oly | D23: =VLOOKUP($B23,Teilnehmer!$A$3:$E$127,3,FALSE) -> 67372 | E23: =VLOOKUP($B23,Teilnehmer!$A$3:$E$127,4,FALSE) -> H | F23: =SUMIF(Einzelwertung1!$A$3:$A$55,$B23,Einzelwertung1!$J$3:$J$55)+0.017 -> 0.017 | G23: =SUMIF(Einzelwertung2!$A$3:$A$55,$B23,Einzelwertung2!$J$3:$J$55)+0.016 -> 0.016 | H23: =SUMIF(Einzelwertung3!$A$3:$A$55,$B23,Einzelwertung3!$J$3:$J$55)+0.015 -> 0.015 | I23: =SUMIF(Einzelwertung4!$A$3:$A$55,$B23,Einzelwertung4!$J$3:$J$55)+0.014 -> 0.014 | J23: =SUMIF(Einzelwertung5!$A$3:$A$55,$B23,Einzelwertung5!$J$3:$J$55)+0.013 -> 0.013 | K23: =SUMIF(Einzelwertung6!$A$3:$A$55,$B23,Einzelwertung6!$J$3:$J$55)+0.012 -> 0.012 | L23: =SUMIF(Einzelwertung7!$A$3:$A$55,$B23,Einzelwertung7!$J$3:$J$55)+0.011 -> 15.011 | M23: =SUMIF(Einzelwertung8!$A$3:$A$55,$B23,Einzelwertung8!$J$3:$J$55)+0.01 -> 21.01 | N23: =SUMIF(Einzelwertung9!$A$3:$A$55,$B23,Einzelwertung9!$J$3:$J$55)+0.009 -> 15.009 | O23: =SUMIF(Einzelwertung10!$A$3:$A$55,$B23,Einzelwertung10!$J$3:$J$55)+0.008 -> 5.008 | P23: =SUMIF(Einzelwertung11!$A$3:$A$55,$B23,Einzelwertung11!$J$3:$J$55)+0.007 -> 0.007 | Q23: =SUMIF(Einzelwertung12!$A$3:$A$55,$B23,Einzelwertung12!$J$3:$J$55)+0.006 -> 0.006 | R23: =SUMIF(Einzelwertung13!$A$3:$A$55,$B23,Einzelwertung13!$J$3:$J$55)+0.005 -> 0.005 | S23: =SUMIF(Einzelwertung14!$A$3:$A$55,$B23,Einzelwertung14!$J$3:$J$55)+0.004 -> 0.004 | T23: =SUMIF(Einzelwertung15!$A$3:$A$67,$B23,Einzelwertung15!$J$3:$J$67)+0.003 -> 0.003 | U23: =SUMIF(Einzelwertung16!$A$3:$A$55,$B23,Einzelwertung16!$J$3:$J$55)+0.002 -> 0.002 | V23: =SUMIF(Einzelwertung17!$A$3:$A$55,$B23,Einzelwertung17!$J$3:$J$55)+0.001 -> 0.001 | W23: =SUMIF(Einzelwertung18!$A$3:$A$55,$B23,Einzelwertung18!$J$3:$J$55)+0 -> 0 | X23: =INT(IF(COUNTIF(F23:W23,CONCATENATE(">",1/10))<=Hilfe!$A$1,SUM(F23:W23),SUMIF(F23:W23,CONCATENATE(">=",LARGE(F23:W23,Hilfe!$A$1)),F23:W23))) -> 56 | Y23: 4 | Z23: 20
A24: 22 | B24: Schmidt, Barbara | C24: =VLOOKUP($B24,Teilnehmer!$A$3:$E$127,2,FALSE) -> Hobby | D24: =VLOOKUP($B24,Teilnehmer!$A$3:$E$127,3,FALSE) -> 3202768 | E24: =VLOOKUP($B24,Teilnehmer!$A$3:$E$127,4,FALSE) -> SW2 | F24: =SUMIF(Einzelwertung1!$A$3:$A$55,$B24,Einzelwertung1!$J$3:$J$55)+0.017 -> 0.017 | G24: =SUMIF(Einzelwertung2!$A$3:$A$55,$B24,Einzelwertung2!$J$3:$J$55)+0.016 -> 0.016 | H24: =SUMIF(Einzelwertung3!$A$3:$A$55,$B24,Einzelwertung3!$J$3:$J$55)+0.015 -> 0.015 | I24: =SUMIF(Einzelwertung4!$A$3:$A$55,$B24,Einzelwertung4!$J$3:$J$55)+0.014 -> 0.014 | J24: =SUMIF(Einzelwertung5!$A$3:$A$55,$B24,Einzelwertung5!$J$3:$J$55)+0.013 -> 0.013 | K24: =SUMIF(Einzelwertung6!$A$3:$A$55,$B24,Einzelwertung6!$J$3:$J$55)+0.012 -> 5.012 | L24: =SUMIF(Einzelwertung7!$A$3:$A$55,$B24,Einzelwertung7!$J$3:$J$55)+0.011 -> 1.011 | M24: =SUMIF(Einzelwertung8!$A$3:$A$55,$B24,Einzelwertung8!$J$3:$J$55)+0.01 -> 0.01 | N24: =SUMIF(Einzelwertung9!$A$3:$A$55,$B24,Einzelwertung9!$J$3:$J$55)+0.009 -> 5.009 | O24: =SUMIF(Einzelwertung10!$A$3:$A$55,$B24,Einzelwertung10!$J$3:$J$55)+0.008 -> 5.008 | P24: =SUMIF(Einzelwertung11!$A$3:$A$55,$B24,Einzelwertung11!$J$3:$J$55)+0.007 -> 3.007 | Q24: =SUMIF(Einzelwertung12!$A$3:$A$55,$B24,Einzelwertung12!$J$3:$J$55)+0.006 -> 3.006 | R24: =SUMIF(Einzelwertung13!$A$3:$A$55,$B24,Einzelwertung13!$J$3:$J$55)+0.005 -> 0.005 | S24: =SUMIF(Einzelwertung14!$A$3:$A$55,$B24,Einzelwertung14!$J$3:$J$55)+0.004 -> 0.004 | T24: =SUMIF(Einzelwertung15!$A$3:$A$67,$B24,Einzelwertung15!$J$3:$J$67)+0.003 -> 5.003 | U24: =SUMIF(Einzelwertung16!$A$3:$A$55,$B24,Einzelwertung16!$J$3:$J$55)+0.002 -> 0.002 | V24: =SUMIF(Einzelwertung17!$A$3:$A$55,$B24,Einzelwertung17!$J$3:$J$55)+0.001 -> 15.001 | W24: =SUMIF(Einzelwertung18!$A$3:$A$55,$B24,Einzelwertung18!$J$3:$J$55)+0 -> 0 | X24: =INT(IF(COUNTIF(F24:W24,CONCATENATE(">",1/10))<=Hilfe!$A$1,SUM(F24:W24),SUMIF(F24:W24,CONCATENATE(">=",LARGE(F24:W24,Hilfe!$A$1)),F24:W24))) -> 42 | Y24: 8 | Z24: 40
A25: 23 | B25: Paffrath, Siegfried | C25: =VLOOKUP($B25,Teilnehmer!$A$3:$E$127,2,FALSE) -> HEV | D25: =VLOOKUP($B25,Teilnehmer!$A$3:$E$127,3,FALSE) -> 33511 | E25: =VLOOKUP($B25,Teilnehmer!$A$3:$E$127,4,FALSE) -> SM2 | F25: =SUMIF(Einzelwertung1!$A$3:$A$55,$B25,Einzelwertung1!$J$3:$J$55)+0.017 -> 0.017 | G25: =SUMIF(Einzelwertung2!$A$3:$A$55,$B25,Einzelwertung2!$J$3:$J$55)+0.016 -> 0.016 | H25: =SUMIF(Einzelwertung3!$A$3:$A$55,$B25,Einzelwertung3!$J$3:$J$55)+0.015 -> 0.015 | I25: =SUMIF(Einzelwertung4!$A$3:$A$55,$B25,Einzelwertung4!$J$3:$J$55)+0.014 -> 0.014 | J25: =SUMIF(Einzelwertung5!$A$3:$A$55,$B25,Einzelwertung5!$J$3:$J$55)+0.013 -> 0.013 | K25: =SUMIF(Einzelwertung6!$A$3:$A$55,$B25,Einzelwertung6!$J$3:$J$55)+0.012 -> 0.012 | L25: =SUMIF(Einzelwertung7!$A$3:$A$55,$B25,Einzelwertung7!$J$3:$J$55)+0.011 -> 15.011 | M25: =SUMIF(Einzelwertung8!$A$3:$A$55,$B25,Einzelwertung8!$J$3:$J$55)+0.01 -> 15.01 | N25: =SUMIF(Einzelwertung9!$A$3:$A$55,$B25,Einzelwertung9!$J$3:$J$55)+0.009 -> 0.009 | O25: =SUMIF(Einzelwertung10!$A$3:$A$55,$B25,Einzelwertung10!$J$3:$J$55)+0.008 -> 0.008 | P25: =SUMIF(Einzelwertung11!$A$3:$A$55,$B25,Einzelwertung11!$J$3:$J$55)+0.007 -> 0.007 | Q25: =SUMIF(Einzelwertung12!$A$3:$A$55,$B25,Einzelwertung12!$J$3:$J$55)+0.006 -> 0.006 | R25: =SUMIF(Einzelwertung13!$A$3:$A$55,$B25,Einzelwertung13!$J$3:$J$55)+0.005 -> 0.005 | S25: =SUMIF(Einzelwertung14!$A$3:$A$55,$B25,Einzelwertung14!$J$3:$J$55)+0.004 -> 0.004 | T25: =SUMIF(Einzelwertung15!$A$3:$A$67,$B25,Einzelwertung15!$J$3:$J$67)+0.003 -> 0.003 | U25: =SUMIF(Einzelwertung16!$A$3:$A$55,$B25,Einzelwertung16!$J$3:$J$55)+0.002 -> 0.002 | V25: =SUMIF(Einzelwertung17!$A$3:$A$55,$B25,Einzelwertung17!$J$3:$J$55)+0.001 -> 0.001 | W25: =SUMIF(Einzelwertung18!$A$3:$A$55,$B25,Einzelwertung18!$J$3:$J$55)+0 -> 0 | X25: =INT(IF(COUNTIF(F25:W25,CONCATENATE(">",1/10))<=Hilfe!$A$1,SUM(F25:W25),SUMIF(F25:W25,CONCATENATE(">=",LARGE(F25:W25,Hilfe!$A$1)),F25:W25))) -> 30 | Y25: 2 | Z25: 10
A26: 24 | B26: Brunnenkant, Frank | C26: =VLOOKUP($B26,Teilnehmer!$A$3:$E$127,2,FALSE) -> Hobby | D26: =VLOOKUP($B26,Teilnehmer!$A$3:$E$127,3,FALSE) -> Hobby38 | E26: =VLOOKUP($B26,Teilnehmer!$A$3:$E$127,4,FALSE) -> SM1 | F26: =SUMIF(Einzelwertung1!$A$3:$A$55,$B26,Einzelwertung1!$J$3:$J$55)+0.017 -> 0.017 | G26: =SUMIF(Einzelwertung2!$A$3:$A$55,$B26,Einzelwertung2!$J$3:$J$55)+0.016 -> 0.016 | H26: =SUMIF(Einzelwertung3!$A$3:$A$55,$B26,Einzelwertung3!$J$3:$J$55)+0.015 -> 0.015 | I26: =SUMIF(Einzelwertung4!$A$3:$A$55,$B26,Einzelwertung4!$J$3:$J$55)+0.014 -> 0.014 | J26: =SUMIF(Einzelwertung5!$A$3:$A$55,$B26,Einzelwertung5!$J$3:$J$55)+0.013 -> 0.013 | K26: =SUMIF(Einzelwertung6!$A$3:$A$55,$B26,Einzelwertung6!$J$3:$J$55)+0.012 -> 0.012 | L26: =SUMIF(Einzelwertung7!$A$3:$A$55,$B26,Einzelwertung7!$J$3:$J$55)+0.011 -> 0.011 | M26: =SUMIF(Einzelwertung8!$A$3:$A$55,$B26,Einzelwertung8!$J$3:$J$55)+0.01 -> 0.01 | N26: =SUMIF(Einzelwertung9!$A$3:$A$55,$B26,Einzelwertung9!$J$3:$J$55)+0.009 -> 3.009 | O26: =SUMIF(Einzelwertung10!$A$3:$A$55,$B26,Einzelwertung10!$J$3:$J$55)+0.008 -> 0.008 | P26: =SUMIF(Einzelwertung11!$A$3:$A$55,$B26,Einzelwertung11!$J$3:$J$55)+0.007 -> 0.007 | Q26: =SUMIF(Einzelwertung12!$A$3:$A$55,$B26,Einzelwertung12!$J$3:$J$55)+0.006 -> 0.006 | R26: =SUMIF(Einzelwertung13!$A$3:$A$55,$B26,Einzelwertung13!$J$3:$J$55)+0.005 -> 0.005 | S26: =SUMIF(Einzelwertung14!$A$3:$A$55,$B26,Einzelwertung14!$J$3:$J$55)+0.004 -> 0.004 | T26: =SUMIF(Einzelwertung15!$A$3:$A$67,$B26,Einzelwertung15!$J$3:$J$67)+0.003 -> 15.003 | U26: =SUMIF(Einzelwertung16!$A$3:$A$55,$B26,Einzelwertung16!$J$3:$J$55)+0.002 -> 0.002 | V26: =SUMIF(Einzelwertung17!$A$3:$A$55,$B26,Einzelwertung17!$J$3:$J$55)+0.001 -> 10.001 | W26: =SUMIF(Einzelwertung18!$A$3:$A$55,$B26,Einzelwertung18!$J$3:$J$55)+0 -> 0 | X26: =INT(IF(COUNTIF(F26:W26,CONCATENATE(">",1/10))<=Hilfe!$A$1,SUM(F26:W26),SUMIF(F26:W26,CONCATENATE(">=",LARGE(F26:W26,Hilfe!$A$1)),F26:W26))) -> 28 | Y26: 3 | Z26: 15
A27: 25 | B27: Battling, Hendrik | C27: =VLOOKUP($B27,Teilnehmer!$A$3:$E$127,2,FALSE) -> ASW | D27: =VLOOKUP($B27,Teilnehmer!$A$3:$E$127,3,FALSE) -> 37799 | E27: =VLOOKUP($B27,Teilnehmer!$A$3:$E$127,4,FALSE) -> H | F27: =SUMIF(Einzelwertung1!$A$3:$A$55,$B27,Einzelwertung1!$J$3:$J$55)+0.017 -> 0.017 | G27: =SUMIF(Einzelwertung2!$A$3:$A$55,$B27,Einzelwertung2!$J$3:$J$55)+0.016 -> 0.016 | H27: =SUMIF(Einzelwertung3!$A$3:$A$55,$B27,Einzelwertung3!$J$3:$J$55)+0.015 -> 0.015 | I27: =SUMIF(Einzelwertung4!$A$3:$A$55,$B27,Einzelwertung4!$J$3:$J$55)+0.014 -> 0.014 | J27: =SUMIF(Einzelwertung5!$A$3:$A$55,$B27,Einzelwertung5!$J$3:$J$55)+0.013 -> 0.013 | K27: =SUMIF(Einzelwertung6!$A$3:$A$55,$B27,Einzelwertung6!$J$3:$J$55)+0.012 -> 0.012 | L27: =SUMIF(Einzelwertung7!$A$3:$A$55,$B27,Einzelwertung7!$J$3:$J$55)+0.011 -> 0.011 | M27: =SUMIF(Einzelwertung8!$A$3:$A$55,$B27,Einzelwertung8!$J$3:$J$55)+0.01 -> 0.01 | N27: =SUMIF(Einzelwertung9!$A$3:$A$55,$B27,Einzelwertung9!$J$3:$J$55)+0.009 -> 0.009 | O27: =SUMIF(Einzelwertung10!$A$3:$A$55,$B27,Einzelwertung10!$J$3:$J$55)+0.008 -> 0.008 | P27: =SUMIF(Einzelwertung11!$A$3:$A$55,$B27,Einzelwertung11!$J$3:$J$55)+0.007 -> 0.007 | Q27: =SUMIF(Einzelwertung12!$A$3:$A$55,$B27,Einzelwertung12!$J$3:$J$55)+0.006 -> 0.006 | R27: =SUMIF(Einzelwertung13!$A$3:$A$55,$B27,Einzelwertung13!$J$3:$J$55)+0.005 -> 25.005 | S27: =SUMIF(Einzelwertung14!$A$3:$A$55,$B27,Einzelwertung14!$J$3:$J$55)+0.004 -> 0.004 | T27: =SUMIF(Einzelwertung15!$A$3:$A$67,$B27,Einzelwertung15!$J$3:$J$67)+0.003 -> 0.003 | U27: =SUMIF(Einzelwertung16!$A$3:$A$55,$B27,Einzelwertung16!$J$3:$J$55)+0.002 -> 0.002 | V27: =SUMIF(Einzelwertung17!$A$3:$A$55,$B27,Einzelwertung17!$J$3:$J$55)+0.001 -> 0.001 | W27: =SUMIF(Einzelwertung18!$A$3:$A$55,$B27,Einzelwertung18!$J$3:$J$55)+0 -> 0 | X27: =INT(IF(COUNTIF(F27:W27,CONCATENATE(">",1/10))<=Hilfe!$A$1,SUM(F27:W27),SUMIF(F27:W27,CONCATENATE(">=",LARGE(F27:W27,Hilfe!$A$1)),F27:W27))) -> 25 | Y27: 1 | Z27: 5
B28: Hettrich, Willi | C28: =VLOOKUP($B28,Teilnehmer!$A$3:$E$127,2,FALSE) -> CAS | D28: =VLOOKUP($B28,Teilnehmer!$A$3:$E$127,3,FALSE) -> 35236 | E28: =VLOOKUP($B28,Teilnehmer!$A$3:$E$127,4,FALSE) -> SM2 | F28: =SUMIF(Einzelwertung1!$A$3:$A$55,$B28,Einzelwertung1!$J$3:$J$55)+0.017 -> 0.017 | G28: =SUMIF(Einzelwertung2!$A$3:$A$55,$B28,Einzelwertung2!$J$3:$J$55)+0.016 -> 0.016 | H28: =SUMIF(Einzelwertung3!$A$3:$A$55,$B28,Einzelwertung3!$J$3:$J$55)+0.015 -> 0.015 | I28: =SUMIF(Einzelwertung4!$A$3:$A$55,$B28,Einzelwertung4!$J$3:$J$55)+0.014 -> 0.014 | J28: =SUMIF(Einzelwertung5!$A$3:$A$55,$B28,Einzelwertung5!$J$3:$J$55)+0.013 -> 0.013 | K28: =SUMIF(Einzelwertung6!$A$3:$A$55,$B28,Einzelwertung6!$J$3:$J$55)+0.012 -> 0.012 | L28: =SUMIF(Einzelwertung7!$A$3:$A$55,$B28,Einzelwertung7!$J$3:$J$55)+0.011 -> 0.011 | M28: =SUMIF(Einzelwertung8!$A$3:$A$55,$B28,Einzelwertung8!$J$3:$J$55)+0.01 -> 0.01 | N28: =SUMIF(Einzelwertung9!$A$3:$A$55,$B28,Einzelwertung9!$J$3:$J$55)+0.009 -> 0.009 | O28: =SUMIF(Einzelwertung10!$A$3:$A$55,$B28,Einzelwertung10!$J$3:$J$55)+0.008 -> 0.008 | P28: =SUMIF(Einzelwertung11!$A$3:$A$55,$B28,Einzelwertung11!$J$3:$J$55)+0.007 -> 0.007 | Q28: =SUMIF(Einzelwertung12!$A$3:$A$55,$B28,Einzelwertung12!$J$3:$J$55)+0.006 -> 0.006 | R28: =SUMIF(Einzelwertung13!$A$3:$A$55,$B28,Einzelwertung13!$J$3:$J$55)+0.005 -> 0.005 | S28: =SUMIF(Einzelwertung14!$A$3:$A$55,$B28,Einzelwertung14!$J$3:$J$55)+0.004 -> 0.004 | T28: =SUMIF(Einzelwertung15!$A$3:$A$67,$B28,Einzelwertung15!$J$3:$J$67)+0.003 -> 0.003 | U28: =SUMIF(Einzelwertung16!$A$3:$A$55,$B28,Einzelwertung16!$J$3:$J$55)+0.002 -> 25.002 | V28: =SUMIF(Einzelwertung17!$A$3:$A$55,$B28,Einzelwertung17!$J$3:$J$55)+0.001 -> 0.001 | W28: =SUMIF(Einzelwertung18!$A$3:$A$55,$B28,Einzelwertung18!$J$3:$J$55)+0 -> 0 | X28: =INT(IF(COUNTIF(F28:W28,CONCATENATE(">",1/10))<=Hilfe!$A$1,SUM(F28:W28),SUMIF(F28:W28,CONCATENATE(">=",LARGE(F28:W28,Hilfe!$A$1)),F28:W28))) -> 25 | Y28: 1 | Z28: 5
B29: Wickel-Paffrath, Melanie | C29: =VLOOKUP($B29,Teilnehmer!$A$3:$E$127,2,FALSE) -> HEV | D29: =VLOOKUP($B29,Teilnehmer!$A$3:$E$127,3,FALSE) -> 33510 | E29: =VLOOKUP($B29,Teilnehmer!$A$3:$E$127,4,FALSE) -> D | F29: =SUMIF(Einzelwertung1!$A$3:$A$55,$B29,Einzelwertung1!$J$3:$J$55)+0.017 -> 0.017 | G29: =SUMIF(Einzelwertung2!$A$3:$A$55,$B29,Einzelwertung2!$J$3:$J$55)+0.016 -> 0.016 | H29: =SUMIF(Einzelwertung3!$A$3:$A$55,$B29,Einzelwertung3!$J$3:$J$55)+0.015 -> 0.015 | I29: =SUMIF(Einzelwertung4!$A$3:$A$55,$B29,Einzelwertung4!$J$3:$J$55)+0.014 -> 0.014 | J29: =SUMIF(Einzelwertung5!$A$3:$A$55,$B29,Einzelwertung5!$J$3:$J$55)+0.013 -> 0.013 | K29: =SUMIF(Einzelwertung6!$A$3:$A$55,$B29,Einzelwertung6!$J$3:$J$55)+0.012 -> 0.012 | L29: =SUMIF(Einzelwertung7!$A$3:$A$55,$B29,Einzelwertung7!$J$3:$J$55)+0.011 -> 0.011 | M29: =SUMIF(Einzelwertung8!$A$3:$A$55,$B29,Einzelwertung8!$J$3:$J$55)+0.01 -> 25.01 | N29: =SUMIF(Einzelwertung9!$A$3:$A$55,$B29,Einzelwertung9!$J$3:$J$55)+0.009 -> 0.009 | O29: =SUMIF(Einzelwertung10!$A$3:$A$55,$B29,Einzelwertung10!$J$3:$J$55)+0.008 -> 0.008 | P29: =SUMIF(Einzelwertung11!$A$3:$A$55,$B29,Einzelwertung11!$J$3:$J$55)+0.007 -> 0.007 | Q29: =SUMIF(Einzelwertung12!$A$3:$A$55,$B29,Einzelwertung12!$J$3:$J$55)+0.006 -> 0.006 | R29: =SUMIF(Einzelwertung13!$A$3:$A$55,$B29,Einzelwertung13!$J$3:$J$55)+0.005 -> 0.005 | S29: =SUMIF(Einzelwertung14!$A$3:$A$55,$B29,Einzelwertung14!$J$3:$J$55)+0.004 -> 0.004 | T29: =SUMIF(Einzelwertung15!$A$3:$A$67,$B29,Einzelwertung15!$J$3:$J$67)+0.003 -> 0.003 | U29: =SUMIF(Einzelwertung16!$A$3:$A$55,$B29,Einzelwertung16!$J$3:$J$55)+0.002 -> 0.002 | V29: =SUMIF(Einzelwertung17!$A$3:$A$55,$B29,Einzelwertung17!$J$3:$J$55)+0.001 -> 0.001 | W29: =SUMIF(Einzelwertung18!$A$3:$A$55,$B29,Einzelwertung18!$J$3:$J$55)+0 -> 0 | X29: =INT(IF(COUNTIF(F29:W29,CONCATENATE(">",1/10))<=Hilfe!$A$1,SUM(F29:W29),SUMIF(F29:W29,CONCATENATE(">=",LARGE(F29:W29,Hilfe!$A$1)),F29:W29))) -> 25 | Y29: 1 | Z29: 5
A30: 28 | B30: Rade, Marcus | C30: =VLOOKUP($B30,Teilnehmer!$A$3:$E$127,2,FALSE) -> ASW | D30: =VLOOKUP($B30,Teilnehmer!$A$3:$E$127,3,FALSE) -> 38625 | E30: =VLOOKUP($B30,Teilnehmer!$A$3:$E$127,4,FALSE) -> H | F30: =SUMIF(Einzelwertung1!$A$3:$A$55,$B30,Einzelwertung1!$J$3:$J$55)+0.017 -> 0.017 | G30: =SUMIF(Einzelwertung2!$A$3:$A$55,$B30,Einzelwertung2!$J$3:$J$55)+0.016 -> 0.016 | H30: =SUMIF(Einzelwertung3!$A$3:$A$55,$B30,Einzelwertung3!$J$3:$J$55)+0.015 -> 0.015 | I30: =SUMIF(Einzelwertung4!$A$3:$A$55,$B30,Einzelwertung4!$J$3:$J$55)+0.014 -> 0.014 | J30: =SUMIF(Einzelwertung5!$A$3:$A$55,$B30,Einzelwertung5!$J$3:$J$55)+0.013 -> 0.013 | K30: =SUMIF(Einzelwertung6!$A$3:$A$55,$B30,Einzelwertung6!$J$3:$J$55)+0.012 -> 0.012 | L30: =SUMIF(Einzelwertung7!$A$3:$A$55,$B30,Einzelwertung7!$J$3:$J$55)+0.011 -> 0.011 | M30: =SUMIF(Einzelwertung8!$A$3:$A$55,$B30,Einzelwertung8!$J$3:$J$55)+0.01 -> 0.01 | N30: =SUMIF(Einzelwertung9!$A$3:$A$55,$B30,Einzelwertung9!$J$3:$J$55)+0.009 -> 0.009 | O30: =SUMIF(Einzelwertung10!$A$3:$A$55,$B30,Einzelwertung10!$J$3:$J$55)+0.008 -> 0.008 | P30: =SUMIF(Einzelwertung11!$A$3:$A$55,$B30,Einzelwertung11!$J$3:$J$55)+0.007 -> 0.007 | Q30: =SUMIF(Einzelwertung12!$A$3:$A$55,$B30,Einzelwertung12!$J$3:$J$55)+0.006 -> 0.006 | R30: =SUMIF(Einzelwertung13!$A$3:$A$55,$B30,Einzelwertung13!$J$3:$J$55)+0.005 -> 21.005 | S30: =SUMIF(Einzelwertung14!$A$3:$A$55,$B30,Einzelwertung14!$J$3:$J$55)+0.004 -> 0.004 | T30: =SUMIF(Einzelwertung15!$A$3:$A$67,$B30,Einzelwertung15!$J$3:$J$67)+0.003 -> 0.003 | U30: =SUMIF(Einzelwertung16!$A$3:$A$55,$B30,Einzelwertung16!$J$3:$J$55)+0.002 -> 0.002 | V30: =SUMIF(Einzelwertung17!$A$3:$A$55,$B30,Einzelwertung17!$J$3:$J$55)+0.001 -> 0.001 | W30: =SUMIF(Einzelwertung18!$A$3:$A$55,$B30,Einzelwertung18!$J$3:$J$55)+0 -> 0 | X30: =INT(IF(COUNTIF(F30:W30,CONCATENATE(">",1/10))<=Hilfe!$A$1,SUM(F30:W30),SUMIF(F30:W30,CONCATENATE(">=",LARGE(F30:W30,Hilfe!$A$1)),F30:W30))) -> 21 | Y30: 1 | Z30: 5
A31: 29 | B31: Schmitt, Jürgen | C31: =VLOOKUP($B31,Teilnehmer!$A$3:$E$127,2,FALSE) -> ASW | D31: =VLOOKUP($B31,Teilnehmer!$A$3:$E$127,3,FALSE) -> 44955 | E31: =VLOOKUP($B31,Teilnehmer!$A$3:$E$127,4,FALSE) -> SM1 | F31: =SUMIF(Einzelwertung1!$A$3:$A$55,$B31,Einzelwertung1!$J$3:$J$55)+0.017 -> 0.017 | G31: =SUMIF(Einzelwertung2!$A$3:$A$55,$B31,Einzelwertung2!$J$3:$J$55)+0.016 -> 0.016 | H31: =SUMIF(Einzelwertung3!$A$3:$A$55,$B31,Einzelwertung3!$J$3:$J$55)+0.015 -> 0.015 | I31: =SUMIF(Einzelwertung4!$A$3:$A$55,$B31,Einzelwertung4!$J$3:$J$55)+0.014 -> 0.014 | J31: =SUMIF(Einzelwertung5!$A$3:$A$55,$B31,Einzelwertung5!$J$3:$J$55)+0.013 -> 0.013 | K31: =SUMIF(Einzelwertung6!$A$3:$A$55,$B31,Einzelwertung6!$J$3:$J$55)+0.012 -> 0.012 | L31: =SUMIF(Einzelwertung7!$A$3:$A$55,$B31,Einzelwertung7!$J$3:$J$55)+0.011 -> 15.011 | M31: =SUMIF(Einzelwertung8!$A$3:$A$55,$B31,Einzelwertung8!$J$3:$J$55)+0.01 -> 5.01 | N31: =SUMIF(Einzelwertung9!$A$3:$A$55,$B31,Einzelwertung9!$J$3:$J$55)+0.009 -> 0.009 | O31: =SUMIF(Einzelwertung10!$A$3:$A$55,$B31,Einzelwertung10!$J$3:$J$55)+0.008 -> 0.008 | P31: =SUMIF(Einzelwertung11!$A$3:$A$55,$B31,Einzelwertung11!$J$3:$J$55)+0.007 -> 0.007 | Q31: =SUMIF(Einzelwertung12!$A$3:$A$55,$B31,Einzelwertung12!$J$3:$J$55)+0.006 -> 0.006 | R31: =SUMIF(Einzelwertung13!$A$3:$A$55,$B31,Einzelwertung13!$J$3:$J$55)+0.005 -> 0.005 | S31: =SUMIF(Einzelwertung14!$A$3:$A$55,$B31,Einzelwertung14!$J$3:$J$55)+0.004 -> 0.004 | T31: =SUMIF(Einzelwertung15!$A$3:$A$67,$B31,Einzelwertung15!$J$3:$J$67)+0.003 -> 0.003 | U31: =SUMIF(Einzelwertung16!$A$3:$A$55,$B31,Einzelwertung16!$J$3:$J$55)+0.002 -> 0.002 | V31: =SUMIF(Einzelwertung17!$A$3:$A$55,$B31,Einzelwertung17!$J$3:$J$55)+0.001 -> 0.001 | W31: =SUMIF(Einzelwertung18!$A$3:$A$55,$B31,Einzelwertung18!$J$3:$J$55)+0 -> 0 | X31: =INT(IF(COUNTIF(F31:W31,CONCATENATE(">",1/10))<=Hilfe!$A$1,SUM(F31:W31),SUMIF(F31:W31,CONCATENATE(">=",LARGE(F31:W31,Hilfe!$A$1)),F31:W31))) -> 20 | Y31: 2 | Z31: 10
A32: 30 | B32: Hickert, Peter | C32: =VLOOKUP($B32,Teilnehmer!$A$3:$E$127,2,FALSE) -> ASW | D32: =VLOOKUP($B32,Teilnehmer!$A$3:$E$127,3,FALSE) -> 46250 | E32: =VLOOKUP($B32,Teilnehmer!$A$3:$E$127,4,FALSE) -> SM2 | F32: =SUMIF(Einzelwertung1!$A$3:$A$55,$B32,Einzelwertung1!$J$3:$J$55)+0.017 -> 0.017 | G32: =SUMIF(Einzelwertung2!$A$3:$A$55,$B32,Einzelwertung2!$J$3:$J$55)+0.016 -> 0.016 | H32: =SUMIF(Einzelwertung3!$A$3:$A$55,$B32,Einzelwertung3!$J$3:$J$55)+0.015 -> 0.015 | I32: =SUMIF(Einzelwertung4!$A$3:$A$55,$B32,Einzelwertung4!$J$3:$J$55)+0.014 -> 0.014 | J32: =SUMIF(Einzelwertung5!$A$3:$A$55,$B32,Einzelwertung5!$J$3:$J$55)+0.013 -> 0.013 | K32: =SUMIF(Einzelwertung6!$A$3:$A$55,$B32,Einzelwertung6!$J$3:$J$55)+0.012 -> 0.012 | L32: =SUMIF(Einzelwertung7!$A$3:$A$55,$B32,Einzelwertung7!$J$3:$J$55)+0.011 -> 0.011 | M32: =SUMIF(Einzelwertung8!$A$3:$A$55,$B32,Einzelwertung8!$J$3:$J$55)+0.01 -> 0.01 | N32: =SUMIF(Einzelwertung9!$A$3:$A$55,$B32,Einzelwertung9!$J$3:$J$55)+0.009 -> 0.009 | O32: =SUMIF(Einzelwertung10!$A$3:$A$55,$B32,Einzelwertung10!$J$3:$J$55)+0.008 -> 0.008 | P32: =SUMIF(Einzelwertung11!$A$3:$A$55,$B32,Einzelwertung11!$J$3:$J$55)+0.007 -> 0.007 | Q32: =SUMIF(Einzelwertung12!$A$3:$A$55,$B32,Einzelwertung12!$J$3:$J$55)+0.006 -> 0.006 | R32: =SUMIF(Einzelwertung13!$A$3:$A$55,$B32,Einzelwertung13!$J$3:$J$55)+0.005 -> 0.005 | S32: =SUMIF(Einzelwertung14!$A$3:$A$55,$B32,Einzelwertung14!$J$3:$J$55)+0.004 -> 0.004 | T32: =SUMIF(Einzelwertung15!$A$3:$A$67,$B32,Einzelwertung15!$J$3:$J$67)+0.003 -> 18.003 | U32: =SUMIF(Einzelwertung16!$A$3:$A$55,$B32,Einzelwertung16!$J$3:$J$55)+0.002 -> 0.002 | V32: =SUMIF(Einzelwertung17!$A$3:$A$55,$B32,Einzelwertung17!$J$3:$J$55)+0.001 -> 0.001 | W32: =SUMIF(Einzelwertung18!$A$3:$A$55,$B32,Einzelwertung18!$J$3:$J$55)+0 -> 0 | X32: =INT(IF(COUNTIF(F32:W32,CONCATENATE(">",1/10))<=Hilfe!$A$1,SUM(F32:W32),SUMIF(F32:W32,CONCATENATE(">=",LARGE(F32:W32,Hilfe!$A$1)),F32:W32))) -> 18 | Y32: 1 | Z32: 5
A33: 31 | B33: Scharpe, Sabine | C33: =VLOOKUP($B33,Teilnehmer!$A$3:$E$127,2,FALSE) -> BMC | D33: =VLOOKUP($B33,Teilnehmer!$A$3:$E$127,3,FALSE) -> 67147 | E33: =VLOOKUP($B33,Teilnehmer!$A$3:$E$127,4,FALSE) -> SW1 | F33: =SUMIF(Einzelwertung1!$A$3:$A$55,$B33,Einzelwertung1!$J$3:$J$55)+0.017 -> 0.017 | G33: =SUMIF(Einzelwertung2!$A$3:$A$55,$B33,Einzelwertung2!$J$3:$J$55)+0.016 -> 0.016 | H33: =SUMIF(Einzelwertung3!$A$3:$A$55,$B33,Einzelwertung3!$J$3:$J$55)+0.015 -> 0.015 | I33: =SUMIF(Einzelwertung4!$A$3:$A$55,$B33,Einzelwertung4!$J$3:$J$55)+0.014 -> 0.014 | J33: =SUMIF(Einzelwertung5!$A$3:$A$55,$B33,Einzelwertung5!$J$3:$J$55)+0.013 -> 0.013 | K33: =SUMIF(Einzelwertung6!$A$3:$A$55,$B33,Einzelwertung6!$J$3:$J$55)+0.012 -> 0.012 | L33: =SUMIF(Einzelwertung7!$A$3:$A$55,$B33,Einzelwertung7!$J$3:$J$55)+0.011 -> 0.011 | M33: =SUMIF(Einzelwertung8!$A$3:$A$55,$B33,Einzelwertung8!$J$3:$J$55)+0.01 -> 0.01 | N33: =SUMIF(Einzelwertung9!$A$3:$A$55,$B33,Einzelwertung9!$J$3:$J$55)+0.009 -> 0.009 | O33: =SUMIF(Einzelwertung10!$A$3:$A$55,$B33,Einzelwertung10!$J$3:$J$55)+0.008 -> 0.008 | P33: =SUMIF(Einzelwertung11!$A$3:$A$55,$B33,Einzelwertung11!$J$3:$J$55)+0.007 -> 10.007 | Q33: =SUMIF(Einzelwertung12!$A$3:$A$55,$B33,Einzelwertung12!$J$3:$J$55)+0.006 -> 0.006 | R33: =SUMIF(Einzelwertung13!$A$3:$A$55,$B33,Einzelwertung13!$J$3:$J$55)+0.005 -> 3.005 | S33: =SUMIF(Einzelwertung14!$A$3:$A$55,$B33,Einzelwertung14!$J$3:$J$55)+0.004 -> 0.004 | T33: =SUMIF(Einzelwertung15!$A$3:$A$67,$B33,Einzelwertung15!$J$3:$J$67)+0.003 -> 0.003 | U33: =SUMIF(Einzelwertung16!$A$3:$A$55,$B33,Einzelwertung16!$J$3:$J$55)+0.002 -> 0.002 | V33: =SUMIF(Einzelwertung17!$A$3:$A$55,$B33,Einzelwertung17!$J$3:$J$55)+0.001 -> 0.001 | W33: =SUMIF(Einzelwertung18!$A$3:$A$55,$B33,Einzelwertung18!$J$3:$J$55)+0 -> 0 | X33: =INT(IF(COUNTIF(F33:W33,CONCATENATE(">",1/10))<=Hilfe!$A$1,SUM(F33:W33),SUMIF(F33:W33,CONCATENATE(">=",LARGE(F33:W33,Hilfe!$A$1)),F33:W33))) -> 13 | Y33: 2 | Z33: 10
A34: 32 | B34: Wolf, Arnold | C34: =VLOOKUP($B34,Teilnehmer!$A$3:$E$127,2,FALSE) -> LIP | D34: =VLOOKUP($B34,Teilnehmer!$A$3:$E$127,3,FALSE) -> 66409 | E34: =VLOOKUP($B34,Teilnehmer!$A$3:$E$127,4,FALSE) -> SM2 | F34: =SUMIF(Einzelwertung1!$A$3:$A$55,$B34,Einzelwertung1!$J$3:$J$55)+0.017 -> 0.017 | G34: =SUMIF(Einzelwertung2!$A$3:$A$55,$B34,Einzelwertung2!$J$3:$J$55)+0.016 -> 0.016 | H34: =SUMIF(Einzelwertung3!$A$3:$A$55,$B34,Einzelwertung3!$J$3:$J$55)+0.015 -> 0.015 | I34: =SUMIF(Einzelwertung4!$A$3:$A$55,$B34,Einzelwertung4!$J$3:$J$55)+0.014 -> 0.014 | J34: =SUMIF(Einzelwertung5!$A$3:$A$55,$B34,Einzelwertung5!$J$3:$J$55)+0.013 -> 0.013 | K34: =SUMIF(Einzelwertung6!$A$3:$A$55,$B34,Einzelwertung6!$J$3:$J$55)+0.012 -> 0.012 | L34: =SUMIF(Einzelwertung7!$A$3:$A$55,$B34,Einzelwertung7!$J$3:$J$55)+0.011 -> 10.011 | M34: =SUMIF(Einzelwertung8!$A$3:$A$55,$B34,Einzelwertung8!$J$3:$J$55)+0.01 -> 0.01 | N34: =SUMIF(Einzelwertung9!$A$3:$A$55,$B34,Einzelwertung9!$J$3:$J$55)+0.009 -> 0.009 | O34: =SUMIF(Einzelwertung10!$A$3:$A$55,$B34,Einzelwertung10!$J$3:$J$55)+0.008 -> 0.008 | P34: =SUMIF(Einzelwertung11!$A$3:$A$55,$B34,Einzelwertung11!$J$3:$J$55)+0.007 -> 0.007 | Q34: =SUMIF(Einzelwertung12!$A$3:$A$55,$B34,Einzelwertung12!$J$3:$J$55)+0.006 -> 0.006 | R34: =SUMIF(Einzelwertung13!$A$3:$A$55,$B34,Einzelwertung13!$J$3:$J$55)+0.005 -> 0.005 | S34: =SUMIF(Einzelwertung14!$A$3:$A$55,$B34,Einzelwertung14!$J$3:$J$55)+0.004 -> 0.004 | T34: =SUMIF(Einzelwertung15!$A$3:$A$67,$B34,Einzelwertung15!$J$3:$J$67)+0.003 -> 0.003 | U34: =SUMIF(Einzelwertung16!$A$3:$A$55,$B34,Einzelwertung16!$J$3:$J$55)+0.002 -> 0.002 | V34: =SUMIF(Einzelwertung17!$A$3:$A$55,$B34,Einzelwertung17!$J$3:$J$55)+0.001 -> 0.001 | W34: =SUMIF(Einzelwertung18!$A$3:$A$55,$B34,Einzelwertung18!$J$3:$J$55)+0 -> 0 | X34: =INT(IF(COUNTIF(F34:W34,CONCATENATE(">",1/10))<=Hilfe!$A$1,SUM(F34:W34),SUMIF(F34:W34,CONCATENATE(">=",LARGE(F34:W34,Hilfe!$A$1)),F34:W34))) -> 10 | Y34: 1 | Z34: 5
A35: 33 | B35: Hoffmann, Thomas | C35: =VLOOKUP($B35,Teilnehmer!$A$3:$E$127,2,FALSE) -> Hobby | D35: =VLOOKUP($B35,Teilnehmer!$A$3:$E$127,3,FALSE) -> Hobby29 | E35: =VLOOKUP($B35,Teilnehmer!$A$3:$E$127,4,FALSE) -> SM2 | F35: =SUMIF(Einzelwertung1!$A$3:$A$55,$B35,Einzelwertung1!$J$3:$J$55)+0.017 -> 0.017 | G35: =SUMIF(Einzelwertung2!$A$3:$A$55,$B35,Einzelwertung2!$J$3:$J$55)+0.016 -> 0.016 | H35: =SUMIF(Einzelwertung3!$A$3:$A$55,$B35,Einzelwertung3!$J$3:$J$55)+0.015 -> 0.015 | I35: =SUMIF(Einzelwertung4!$A$3:$A$55,$B35,Einzelwertung4!$J$3:$J$55)+0.014 -> 0.014 | J35: =SUMIF(Einzelwertung5!$A$3:$A$55,$B35,Einzelwertung5!$J$3:$J$55)+0.013 -> 0.013 | K35: =SUMIF(Einzelwertung6!$A$3:$A$55,$B35,Einzelwertung6!$J$3:$J$55)+0.012 -> 0.012 | L35: =SUMIF(Einzelwertung7!$A$3:$A$55,$B35,Einzelwertung7!$J$3:$J$55)+0.011 -> 0.011 | M35: =SUMIF(Einzelwertung8!$A$3:$A$55,$B35,Einzelwertung8!$J$3:$J$55)+0.01 -> 0.01 | N35: =SUMIF(Einzelwertung9!$A$3:$A$55,$B35,Einzelwertung9!$J$3:$J$55)+0.009 -> 0.009 | O35: =SUMIF(Einzelwertung10!$A$3:$A$55,$B35,Einzelwertung10!$J$3:$J$55)+0.008 -> 0.008 | P35: =SUMIF(Einzelwertung11!$A$3:$A$55,$B35,Einzelwertung11!$J$3:$J$55)+0.007 -> 0.007 | Q35: =SUMIF(Einzelwertung12!$A$3:$A$55,$B35,Einzelwertung12!$J$3:$J$55)+0.006 -> 0.006 | R35: =SUMIF(Einzelwertung13!$A$3:$A$55,$B35,Einzelwertung13!$J$3:$J$55)+0.005 -> 0.005 | S35: =SUMIF(Einzelwertung14!$A$3:$A$55,$B35,Einzelwertung14!$J$3:$J$55)+0.004 -> 5.004 | T35: =SUMIF(Einzelwertung15!$A$3:$A$67,$B35,Einzelwertung15!$J$3:$J$67)+0.003 -> 0.003 | U35: =SUMIF(Einzelwertung16!$A$3:$A$55,$B35,Einzelwertung16!$J$3:$J$55)+0.002 -> 0.002 | V35: =SUMIF(Einzelwertung17!$A$3:$A$55,$B35,Einzelwertung17!$J$3:$J$55)+0.001 -> 0.001 | W35: =SUMIF(Einzelwertung18!$A$3:$A$55,$B35,Einzelwertung18!$J$3:$J$55)+0 -> 0 | X35: =INT(IF(COUNTIF(F35:W35,CONCATENATE(">",1/10))<=Hilfe!$A$1,SUM(F35:W35),SUMIF(F35:W35,CONCATENATE(">=",LARGE(F35:W35,Hilfe!$A$1)),F35:W35))) -> 5 | Y35: 1 | Z35: 5
A36: 34 | B36: Paffrath, Ben | C36: =VLOOKUP($B36,Teilnehmer!$A$3:$E$127,2,FALSE) -> HEV | D36: =VLOOKUP($B36,Teilnehmer!$A$3:$E$127,3,FALSE) -> 66565 | E36: =VLOOKUP($B36,Teilnehmer!$A$3:$E$127,4,FALSE) -> JM | F36: =SUMIF(Einzelwertung1!$A$3:$A$55,$B36,Einzelwertung1!$J$3:$J$55)+0.017 -> 0.017 | G36: =SUMIF(Einzelwertung2!$A$3:$A$55,$B36,Einzelwertung2!$J$3:$J$55)+0.016 -> 0.016 | H36: =SUMIF(Einzelwertung3!$A$3:$A$55,$B36,Einzelwertung3!$J$3:$J$55)+0.015 -> 0.015 | I36: =SUMIF(Einzelwertung4!$A$3:$A$55,$B36,Einzelwertung4!$J$3:$J$55)+0.014 -> 0.014 | J36: =SUMIF(Einzelwertung5!$A$3:$A$55,$B36,Einzelwertung5!$J$3:$J$55)+0.013 -> 0.013 | K36: =SUMIF(Einzelwertung6!$A$3:$A$55,$B36,Einzelwertung6!$J$3:$J$55)+0.012 -> 0.012 | L36: =SUMIF(Einzelwertung7!$A$3:$A$55,$B36,Einzelwertung7!$J$3:$J$55)+0.011 -> 0.011 | M36: =SUMIF(Einzelwertung8!$A$3:$A$55,$B36,Einzelwertung8!$J$3:$J$55)+0.01 -> 3.01 | N36: =SUMIF(Einzelwertung9!$A$3:$A$55,$B36,Einzelwertung9!$J$3:$J$55)+0.009 -> 0.009 | O36: =SUMIF(Einzelwertung10!$A$3:$A$55,$B36,Einzelwertung10!$J$3:$J$55)+0.008 -> 0.008 | P36: =SUMIF(Einzelwertung11!$A$3:$A$55,$B36,Einzelwertung11!$J$3:$J$55)+0.007 -> 0.007 | Q36: =SUMIF(Einzelwertung12!$A$3:$A$55,$B36,Einzelwertung12!$J$3:$J$55)+0.006 -> 0.006 | R36: =SUMIF(Einzelwertung13!$A$3:$A$55,$B36,Einzelwertung13!$J$3:$J$55)+0.005 -> 0.005 | S36: =SUMIF(Einzelwertung14!$A$3:$A$55,$B36,Einzelwertung14!$J$3:$J$55)+0.004 -> 0.004 | T36: =SUMIF(Einzelwertung15!$A$3:$A$67,$B36,Einzelwertung15!$J$3:$J$67)+0.003 -> 0.003 | U36: =SUMIF(Einzelwertung16!$A$3:$A$55,$B36,Einzelwertung16!$J$3:$J$55)+0.002 -> 0.002 | V36: =SUMIF(Einzelwertung17!$A$3:$A$55,$B36,Einzelwertung17!$J$3:$J$55)+0.001 -> 0.001 | W36: =SUMIF(Einzelwertung18!$A$3:$A$55,$B36,Einzelwertung18!$J$3:$J$55)+0 -> 0 | X36: =INT(IF(COUNTIF(F36:W36,CONCATENATE(">",1/10))<=Hilfe!$A$1,SUM(F36:W36),SUMIF(F36:W36,CONCATENATE(">=",LARGE(F36:W36,Hilfe!$A$1)),F36:W36))) -> 3 | Y36: 1 | Z36: 2.5
B37: Wruck, Wolfgang | C37: =VLOOKUP($B37,Teilnehmer!$A$3:$E$127,2,FALSE) -> LIP | D37: =VLOOKUP($B37,Teilnehmer!$A$3:$E$127,3,FALSE) -> 66408 | E37: =VLOOKUP($B37,Teilnehmer!$A$3:$E$127,4,FALSE) -> SM1 | F37: =SUMIF(Einzelwertung1!$A$3:$A$55,$B37,Einzelwertung1!$J$3:$J$55)+0.017 -> 0.017 | G37: =SUMIF(Einzelwertung2!$A$3:$A$55,$B37,Einzelwertung2!$J$3:$J$55)+0.016 -> 0.016 | H37: =SUMIF(Einzelwertung3!$A$3:$A$55,$B37,Einzelwertung3!$J$3:$J$55)+0.015 -> 0.015 | I37: =SUMIF(Einzelwertung4!$A$3:$A$55,$B37,Einzelwertung4!$J$3:$J$55)+0.014 -> 0.014 | J37: =SUMIF(Einzelwertung5!$A$3:$A$55,$B37,Einzelwertung5!$J$3:$J$55)+0.013 -> 0.013 | K37: =SUMIF(Einzelwertung6!$A$3:$A$55,$B37,Einzelwertung6!$J$3:$J$55)+0.012 -> 0.012 | L37: =SUMIF(Einzelwertung7!$A$3:$A$55,$B37,Einzelwertung7!$J$3:$J$55)+0.011 -> 3.011 | M37: =SUMIF(Einzelwertung8!$A$3:$A$55,$B37,Einzelwertung8!$J$3:$J$55)+0.01 -> 0.01 | N37: =SUMIF(Einzelwertung9!$A$3:$A$55,$B37,Einzelwertung9!$J$3:$J$55)+0.009 -> 0.009 | O37: =SUMIF(Einzelwertung10!$A$3:$A$55,$B37,Einzelwertung10!$J$3:$J$55)+0.008 -> 0.008 | P37: =SUMIF(Einzelwertung11!$A$3:$A$55,$B37,Einzelwertung11!$J$3:$J$55)+0.007 -> 0.007 | Q37: =SUMIF(Einzelwertung12!$A$3:$A$55,$B37,Einzelwertung12!$J$3:$J$55)+0.006 -> 0.006 | R37: =SUMIF(Einzelwertung13!$A$3:$A$55,$B37,Einzelwertung13!$J$3:$J$55)+0.005 -> 0.005 | S37: =SUMIF(Einzelwertung14!$A$3:$A$55,$B37,Einzelwertung14!$J$3:$J$55)+0.004 -> 0.004 | T37: =SUMIF(Einzelwertung15!$A$3:$A$67,$B37,Einzelwertung15!$J$3:$J$67)+0.003 -> 0.003 | U37: =SUMIF(Einzelwertung16!$A$3:$A$55,$B37,Einzelwertung16!$J$3:$J$55)+0.002 -> 0.002 | V37: =SUMIF(Einzelwertung17!$A$3:$A$55,$B37,Einzelwertung17!$J$3:$J$55)+0.001 -> 0.001 | W37: =SUMIF(Einzelwertung18!$A$3:$A$55,$B37,Einzelwertung18!$J$3:$J$55)+0 -> 0 | X37: =INT(IF(COUNTIF(F37:W37,CONCATENATE(">",1/10))<=Hilfe!$A$1,SUM(F37:W37),SUMIF(F37:W37,CONCATENATE(">=",LARGE(F37:W37,Hilfe!$A$1)),F37:W37))) -> 3 | Y37: 1 | Z37: 5
A38: < | B38: Dreischer, Burkhard | C38: =VLOOKUP($B38,Teilnehmer!$A$3:$E$127,2,FALSE) -> Oly | D38: =VLOOKUP($B38,Teilnehmer!$A$3:$E$127,3,FALSE) -> 23778 | E38: =VLOOKUP($B38,Teilnehmer!$A$3:$E$127,4,FALSE) -> SM2 | F38: =SUMIF(Einzelwertung1!$A$3:$A$55,$B38,Einzelwertung1!$J$3:$J$55)+0.017 -> 0.017 | G38: =SUMIF(Einzelwertung2!$A$3:$A$55,$B38,Einzelwertung2!$J$3:$J$55)+0.016 -> 0.016 | H38: =SUMIF(Einzelwertung3!$A$3:$A$55,$B38,Einzelwertung3!$J$3:$J$55)+0.015 -> 0.015 | I38: =SUMIF(Einzelwertung4!$A$3:$A$55,$B38,Einzelwertung4!$J$3:$J$55)+0.014 -> 0.014 | J38: =SUMIF(Einzelwertung5!$A$3:$A$55,$B38,Einzelwertung5!$J$3:$J$55)+0.013 -> 0.013 | K38: =SUMIF(Einzelwertung6!$A$3:$A$55,$B38,Einzelwertung6!$J$3:$J$55)+0.012 -> 0.012 | L38: =SUMIF(Einzelwertung7!$A$3:$A$55,$B38,Einzelwertung7!$J$3:$J$55)+0.011 -> 0.011 | M38: =SUMIF(Einzelwertung8!$A$3:$A$55,$B38,Einzelwertung8!$J$3:$J$55)+0.01 -> 0.01 | N38: =SUMIF(Einzelwertung9!$A$3:$A$55,$B38,Einzelwertung9!$J$3:$J$55)+0.009 -> 0.009 | O38: =SUMIF(Einzelwertung10!$A$3:$A$55,$B38,Einzelwertung10!$J$3:$J$55)+0.008 -> 0.008 | P38: =SUMIF(Einzelwertung11!$A$3:$A$55,$B38,Einzelwertung11!$J$3:$J$55)+0.007 -> 0.007 | Q38: =SUMIF(Einzelwertung12!$A$3:$A$55,$B38,Einzelwertung12!$J$3:$J$55)+0.006 -> 0.006 | R38: =SUMIF(Einzelwertung13!$A$3:$A$55,$B38,Einzelwertung13!$J$3:$J$55)+0.005 -> 0.005 | S38: =SUMIF(Einzelwertung14!$A$3:$A$55,$B38,Einzelwertung14!$J$3:$J$55)+0.004 -> 0.004 | T38: =SUMIF(Einzelwertung15!$A$3:$A$67,$B38,Einzelwertung15!$J$3:$J$67)+0.003 -> 0.003 | U38: =SUMIF(Einzelwertung16!$A$3:$A$55,$B38,Einzelwertung16!$J$3:$J$55)+0.002 -> 0.002 | V38: =SUMIF(Einzelwertung17!$A$3:$A$55,$B38,Einzelwertung17!$J$3:$J$55)+0.001 -> 0.001 | W38: =SUMIF(Einzelwertung18!$A$3:$A$55,$B38,Einzelwertung18!$J$3:$J$55)+0 -> 0 | X38: =INT(IF(COUNTIF(F38:W38,CONCATENATE(">",1/10))<=Hilfe!$A$1,SUM(F38:W38),SUMIF(F38:W38,CONCATENATE(">=",LARGE(F38:W38,Hilfe!$A$1)),F38:W38))) -> 0 | Y38: =COUNTIF(E38:W38,">1") -> 0 | Z38: =IF(ISERROR(SEARCH(CONCATENATE(" ",E38," ")," JM JW SCHM SCHW ")),5,2.5)*Y38 -> 0
B39: Schmitz, Ingeborg | C39: =VLOOKUP($B39,Teilnehmer!$A$3:$E$127,2,FALSE) -> BMC | D39: =VLOOKUP($B39,Teilnehmer!$A$3:$E$127,3,FALSE) -> 37171 | E39: =VLOOKUP($B39,Teilnehmer!$A$3:$E$127,4,FALSE) -> SW2 | F39: =SUMIF(Einzelwertung1!$A$3:$A$55,$B39,Einzelwertung1!$J$3:$J$55)+0.017 -> 0.017 | G39: =SUMIF(Einzelwertung2!$A$3:$A$55,$B39,Einzelwertung2!$J$3:$J$55)+0.016 -> 0.016 | H39: =SUMIF(Einzelwertung3!$A$3:$A$55,$B39,Einzelwertung3!$J$3:$J$55)+0.015 -> 0.015 | I39: =SUMIF(Einzelwertung4!$A$3:$A$55,$B39,Einzelwertung4!$J$3:$J$55)+0.014 -> 0.014 | J39: =SUMIF(Einzelwertung5!$A$3:$A$55,$B39,Einzelwertung5!$J$3:$J$55)+0.013 -> 0.013 | K39: =SUMIF(Einzelwertung6!$A$3:$A$55,$B39,Einzelwertung6!$J$3:$J$55)+0.012 -> 0.012 | L39: =SUMIF(Einzelwertung7!$A$3:$A$55,$B39,Einzelwertung7!$J$3:$J$55)+0.011 -> 0.011 | M39: =SUMIF(Einzelwertung8!$A$3:$A$55,$B39,Einzelwertung8!$J$3:$J$55)+0.01 -> 0.01 | N39: =SUMIF(Einzelwertung9!$A$3:$A$55,$B39,Einzelwertung9!$J$3:$J$55)+0.009 -> 0.009 | O39: =SUMIF(Einzelwertung10!$A$3:$A$55,$B39,Einzelwertung10!$J$3:$J$55)+0.008 -> 0.008 | P39: =SUMIF(Einzelwertung11!$A$3:$A$55,$B39,Einzelwertung11!$J$3:$J$55)+0.007 -> 0.007 | Q39: =SUMIF(Einzelwertung12!$A$3:$A$55,$B39,Einzelwertung12!$J$3:$J$55)+0.006 -> 0.006 | R39: =SUMIF(Einzelwertung13!$A$3:$A$55,$B39,Einzelwertung13!$J$3:$J$55)+0.005 -> 0.005 | S39: =SUMIF(Einzelwertung14!$A$3:$A$55,$B39,Einzelwertung14!$J$3:$J$55)+0.004 -> 0.004 | T39: =SUMIF(Einzelwertung15!$A$3:$A$67,$B39,Einzelwertung15!$J$3:$J$67)+0.003 -> 0.003 | U39: =SUMIF(Einzelwertung16!$A$3:$A$55,$B39,Einzelwertung16!$J$3:$J$55)+0.002 -> 0.002 | V39: =SUMIF(Einzelwertung17!$A$3:$A$55,$B39,Einzelwertung17!$J$3:$J$55)+0.001 -> 0.001 | W39: =SUMIF(Einzelwertung18!$A$3:$A$55,$B39,Einzelwertung18!$J$3:$J$55)+0 -> 0 | X39: =INT(IF(COUNTIF(F39:W39,CONCATENATE(">",1/10))<=Hilfe!$A$1,SUM(F39:W39),SUMIF(F39:W39,CONCATENATE(">=",LARGE(F39:W39,Hilfe!$A$1)),F39:W39))) -> 0 | Y39: 0 | Z39: 0
B40: Wilke, Andreas | C40: =VLOOKUP($B40,Teilnehmer!$A$3:$E$127,2,FALSE) -> Hobby | D40: =VLOOKUP($B40,Teilnehmer!$A$3:$E$127,3,FALSE) -> Hobby39 | E40: =VLOOKUP($B40,Teilnehmer!$A$3:$E$127,4,FALSE) -> SM1 | F40: =SUMIF(Einzelwertung1!$A$3:$A$55,$B40,Einzelwertung1!$J$3:$J$55)+0.017 -> 0.017 | G40: =SUMIF(Einzelwertung2!$A$3:$A$55,$B40,Einzelwertung2!$J$3:$J$55)+0.016 -> 0.016 | H40: =SUMIF(Einzelwertung3!$A$3:$A$55,$B40,Einzelwertung3!$J$3:$J$55)+0.015 -> 0.015 | I40: =SUMIF(Einzelwertung4!$A$3:$A$55,$B40,Einzelwertung4!$J$3:$J$55)+0.014 -> 0.014 | J40: =SUMIF(Einzelwertung5!$A$3:$A$55,$B40,Einzelwertung5!$J$3:$J$55)+0.013 -> 0.013 | K40: =SUMIF(Einzelwertung6!$A$3:$A$55,$B40,Einzelwertung6!$J$3:$J$55)+0.012 -> 0.012 | L40: =SUMIF(Einzelwertung7!$A$3:$A$55,$B40,Einzelwertung7!$J$3:$J$55)+0.011 -> 0.011 | M40: =SUMIF(Einzelwertung8!$A$3:$A$55,$B40,Einzelwertung8!$J$3:$J$55)+0.01 -> 0.01 | N40: =SUMIF(Einzelwertung9!$A$3:$A$55,$B40,Einzelwertung9!$J$3:$J$55)+0.009 -> 0.009 | O40: =SUMIF(Einzelwertung10!$A$3:$A$55,$B40,Einzelwertung10!$J$3:$J$55)+0.008 -> 0.008 | P40: =SUMIF(Einzelwertung11!$A$3:$A$55,$B40,Einzelwertung11!$J$3:$J$55)+0.007 -> 0.007 | Q40: =SUMIF(Einzelwertung12!$A$3:$A$55,$B40,Einzelwertung12!$J$3:$J$55)+0.006 -> 0.006 | R40: =SUMIF(Einzelwertung13!$A$3:$A$55,$B40,Einzelwertung13!$J$3:$J$55)+0.005 -> 0.005 | S40: =SUMIF(Einzelwertung14!$A$3:$A$55,$B40,Einzelwertung14!$J$3:$J$55)+0.004 -> 0.004 | T40: =SUMIF(Einzelwertung15!$A$3:$A$67,$B40,Einzelwertung15!$J$3:$J$67)+0.003 -> 0.003 | U40: =SUMIF(Einzelwertung16!$A$3:$A$55,$B40,Einzelwertung16!$J$3:$J$55)+0.002 -> 0.002 | V40: =SUMIF(Einzelwertung17!$A$3:$A$55,$B40,Einzelwertung17!$J$3:$J$55)+0.001 -> 0.001 | W40: =SUMIF(Einzelwertung18!$A$3:$A$55,$B40,Einzelwertung18!$J$3:$J$55)+0 -> 0 | X40: =INT(IF(COUNTIF(F40:W40,CONCATENATE(">",1/10))<=Hilfe!$A$1,SUM(F40:W40),SUMIF(F40:W40,CONCATENATE(">=",LARGE(F40:W40,Hilfe!$A$1)),F40:W40))) -> 0 | Y40: 0 | Z40: 0
B42: Teilnehmer pro Spieltag und im Mittel | F42: =COUNTIF(F3:F40,">0.1") -> 0 | G42: 0 | H42: 0 | I42: 0 | J42: 0 | K42: 15 | L42: 24 | M42: 22 | N42: 17 | O42: 16 | P42: 17 | Q42: 18 | R42: 21 | S42: 15 | T42: 15 | U42: 13 | V42: 14 | W42: 0 | X42: =IF(SUM(F42:W42)>0,SUM(F42:W42)/COUNTIF(F42:W42,">0"),0) -> 17.25 | Y42: =SUM(Y3:Y40) -> 207 | Z42: =SUM(Z3:Z40) -> 992.5

Sheet Bahnenstatistik
A1: 6. Sommer-Cup - Freizeittreff Herbede
A2: Bahnenstatistik
B4: 1 | C4: 2 | D4: 3 | E4: 4 | F4: 5 | G4: 6 | H4: 7 | I4: Schnitt | J4: As-Quote
A5: Pyramiden | B5: =COUNTIF(Bahnenergebnisse!$K$2:$K$208,B$4) -> 131 | C5: =COUNTIF(Bahnenergebnisse!$K$2:$K$208,C$4) -> 58 | D5: =COUNTIF(Bahnenergebnisse!$K$2:$K$208,D$4) -> 17 | E5: =COUNTIF(Bahnenergebnisse!$K$2:$K$208,E$4) -> 1 | F5: =COUNTIF(Bahnenergebnisse!$K$2:$K$208,F$4) -> 0 | G5: =COUNTIF(Bahnenergebnisse!$K$2:$K$208,G$4) -> 0 | H5: =COUNTIF(Bahnenergebnisse!$K$2:$K$208,H$4) -> 0 | I5: =SUMPRODUCT(B5:H5,B$4:H$4)/SUM(B5:H5) -> 1.458937198 | J5: =B5/SUM(B5:H5) -> 0.6328502415
A6: Rohrhügel | B6: =COUNTIF(Bahnenergebnisse!$L$2:$L$208,B$4) -> 97 | C6: =COUNTIF(Bahnenergebnisse!$L$2:$L$208,C$4) -> 50 | D6: =COUNTIF(Bahnenergebnisse!$L$2:$L$208,D$4) -> 20 | E6: =COUNTIF(Bahnenergebnisse!$L$2:$L$208,E$4) -> 17 | F6: =COUNTIF(Bahnenergebnisse!$L$2:$L$208,F$4) -> 8 | G6: =COUNTIF(Bahnenergebnisse!$L$2:$L$208,G$4) -> 7 | H6: =COUNTIF(Bahnenergebnisse!$L$2:$L$208,H$4) -> 8 | I6: =SUMPRODUCT(B6:H6,B$4:H$4)/SUM(B6:H6) -> 2.236714976 | J6: =B6/SUM(B6:H6) -> 0.4685990338
A7: Winkel | B7: =COUNTIF(Bahnenergebnisse!$M$2:$M$208,B$4) -> 103 | C7: =COUNTIF(Bahnenergebnisse!$M$2:$M$208,C$4) -> 95 | D7: =COUNTIF(Bahnenergebnisse!$M$2:$M$208,D$4) -> 9 | E7: =COUNTIF(Bahnenergebnisse!$M$2:$M$208,E$4) -> 0 | F7: =COUNTIF(Bahnenergebnisse!$M$2:$M$208,F$4) -> 0 | G7: =COUNTIF(Bahnenergebnisse!$M$2:$M$208,G$4) -> 0 | H7: =COUNTIF(Bahnenergebnisse!$M$2:$M$208,H$4) -> 0 | I7: 1.54589372 | J7: 0.4975845411
A8: Doppelwelle | B8: =COUNTIF(Bahnenergebnisse!$N$2:$N$208,B$4) -> 67 | C8: =COUNTIF(Bahnenergebnisse!$N$2:$N$208,C$4) -> 135 | D8: =COUNTIF(Bahnenergebnisse!$N$2:$N$208,D$4) -> 4 | E8: =COUNTIF(Bahnenergebnisse!$N$2:$N$208,E$4) -> 1 | F8: =COUNTIF(Bahnenergebnisse!$N$2:$N$208,F$4) -> 0 | G8: =COUNTIF(Bahnenergebnisse!$N$2:$N$208,G$4) -> 0 | H8: =COUNTIF(Bahnenergebnisse!$N$2:$N$208,H$4) -> 0 | I8: 1.70531401 | J8: 0.3236714976
A9: Schleife | B9: =COUNTIF(Bahnenergebnisse!$O$2:$O$208,B$4) -> 116 | C9: =COUNTIF(Bahnenergebnisse!$O$2:$O$208,C$4) -> 71 | D9: =COUNTIF(Bahnenergebnisse!$O$2:$O$208,D$4) -> 13 | E9: =COUNTIF(Bahnenergebnisse!$O$2:$O$208,E$4) -> 6 | F9: =COUNTIF(Bahnenergebnisse!$O$2:$O$208,F$4) -> 1 | G9: =COUNTIF(Bahnenergebnisse!$O$2:$O$208,G$4) -> 0 | H9: =COUNTIF(Bahnenergebnisse!$O$2:$O$208,H$4) -> 0 | I9: 1.574879227 | J9: 0.5603864734
A10: Labyrinth | B10: =COUNTIF(Bahnenergebnisse!$P$2:$P$208,B$4) -> 139 | C10: =COUNTIF(Bahnenergebnisse!$P$2:$P$208,C$4) -> 36 | D10: =COUNTIF(Bahnenergebnisse!$P$2:$P$208,D$4) -> 19 | E10: =COUNTIF(Bahnenergebnisse!$P$2:$P$208,E$4) -> 8 | F10: =COUNTIF(Bahnenergebnisse!$P$2:$P$208,F$4) -> 1 | G10: =COUNTIF(Bahnenergebnisse!$P$2:$P$208,G$4) -> 0 | H10: =COUNTIF(Bahnenergebnisse!$P$2:$P$208,H$4) -> 4 | I10: 1.608695652 | J10: 0.6714975845
A11: Mittelhügel | B11: =COUNTIF(Bahnenergebnisse!$Q$2:$Q$208,B$4) -> 148 | C11: =COUNTIF(Bahnenergebnisse!$Q$2:$Q$208,C$4) -> 33 | D11: =COUNTIF(Bahnenergebnisse!$Q$2:$Q$208,D$4) -> 11 | E11: =COUNTIF(Bahnenergebnisse!$Q$2:$Q$208,E$4) -> 7 | F11: =COUNTIF(Bahnenergebnisse!$Q$2:$Q$208,F$4) -> 5 | G11: =COUNTIF(Bahnenergebnisse!$Q$2:$Q$208,G$4) -> 0 | H11: =COUNTIF(Bahnenergebnisse!$Q$2:$Q$208,H$4) -> 3 | I11: 1.550724638 | J11: 0.7149758454
A12: Netz | B12: =COUNTIF(Bahnenergebnisse!$R$2:$R$208,B$4) -> 146 | C12: =COUNTIF(Bahnenergebnisse!$R$2:$R$208,C$4) -> 42 | D12: =COUNTIF(Bahnenergebnisse!$R$2:$R$208,D$4) -> 13 | E12: =COUNTIF(Bahnenergebnisse!$R$2:$R$208,E$4) -> 2 | F12: =COUNTIF(Bahnenergebnisse!$R$2:$R$208,F$4) -> 4 | G12: =COUNTIF(Bahnenergebnisse!$R$2:$R$208,G$4) -> 0 | H12: =COUNTIF(Bahnenergebnisse!$R$2:$R$208,H$4) -> 0 | I12: 1.434782609 | J12: 0.7053140097
A13: Brücke | B13: =COUNTIF(Bahnenergebnisse!$S$2:$S$208,B$4) -> 87 | C13: =COUNTIF(Bahnenergebnisse!$S$2:$S$208,C$4) -> 120 | D13: =COUNTIF(Bahnenergebnisse!$S$2:$S$208,D$4) -> 0 | E13: =COUNTIF(Bahnenergebnisse!$S$2:$S$208,E$4) -> 0 | F13: =COUNTIF(Bahnenergebnisse!$S$2:$S$208,F$4) -> 0 | G13: =COUNTIF(Bahnenergebnisse!$S$2:$S$208,G$4) -> 0 | H13: =COUNTIF(Bahnenergebnisse!$S$2:$S$208,H$4) -> 0 | I13: 1.579710145 | J13: 0.4202898551
A14: Radkappen | B14: =COUNTIF(Bahnenergebnisse!$T$2:$T$208,B$4) -> 78 | C14: =COUNTIF(Bahnenergebnisse!$T$2:$T$208,C$4) -> 121 | D14: =COUNTIF(Bahnenergebnisse!$T$2:$T$208,D$4) -> 5 | E14: =COUNTIF(Bahnenergebnisse!$T$2:$T$208,E$4) -> 2 | F14: =COUNTIF(Bahnenergebnisse!$T$2:$T$208,F$4) -> 1 | G14: =COUNTIF(Bahnenergebnisse!$T$2:$T$208,G$4) -> 0 | H14: =COUNTIF(Bahnenergebnisse!$T$2:$T$208,H$4) -> 0 | I14: 1.68115942 | J14: 0.3768115942
A15: Vulkan | B15: =COUNTIF(Bahnenergebnisse!$U$2:$U$208,B$4) -> 159 | C15: =COUNTIF(Bahnenergebnisse!$U$2:$U$208,C$4) -> 36 | D15: =COUNTIF(Bahnenergebnisse!$U$2:$U$208,D$4) -> 3 | E15: =COUNTIF(Bahnenergebnisse!$U$2:$U$208,E$4) -> 4 | F15: =COUNTIF(Bahnenergebnisse!$U$2:$U$208,F$4) -> 4 | G15: =COUNTIF(Bahnenergebnisse!$U$2:$U$208,G$4) -> 1 | H15: =COUNTIF(Bahnenergebnisse!$U$2:$U$208,H$4) -> 0 | I15: 1.362318841 | J15: 0.768115942
A16: Niere | B16: =COUNTIF(Bahnenergebnisse!$V$2:$V$208,B$4) -> 96 | C16: =COUNTIF(Bahnenergebnisse!$V$2:$V$208,C$4) -> 64 | D16: =COUNTIF(Bahnenergebnisse!$V$2:$V$208,D$4) -> 33 | E16: =COUNTIF(Bahnenergebnisse!$V$2:$V$208,E$4) -> 4 | F16: =COUNTIF(Bahnenergebnisse!$V$2:$V$208,F$4) -> 5 | G16: =COUNTIF(Bahnenergebnisse!$V$2:$V$208,G$4) -> 3 | H16: =COUNTIF(Bahnenergebnisse!$V$2:$V$208,H$4) -> 2 | I16: 1.913043478 | J16: 0.4637681159
A17: Fenster | B17: =COUNTIF(Bahnenergebnisse!$W$2:$W$208,B$4) -> 62 | C17: =COUNTIF(Bahnenergebnisse!$W$2:$W$208,C$4) -> 92 | D17: =COUNTIF(Bahnenergebnisse!$W$2:$W$208,D$4) -> 27 | E17: =COUNTIF(Bahnenergebnisse!$W$2:$W$208,E$4) -> 17 | F17: =COUNTIF(Bahnenergebnisse!$W$2:$W$208,F$4) -> 6 | G17: =COUNTIF(Bahnenergebnisse!$W$2:$W$208,G$4) -> 1 | H17: =COUNTIF(Bahnenergebnisse!$W$2:$W$208,H$4) -> 2 | I17: 2.149758454 | J17: 0.2995169082
A18: Banane | B18: =COUNTIF(Bahnenergebnisse!$X$2:$X$208,B$4) -> 95 | C18: =COUNTIF(Bahnenergebnisse!$X$2:$X$208,C$4) -> 45 | D18: =COUNTIF(Bahnenergebnisse!$X$2:$X$208,D$4) -> 27 | E18: =COUNTIF(Bahnenergebnisse!$X$2:$X$208,E$4) -> 21 | F18: =COUNTIF(Bahnenergebnisse!$X$2:$X$208,F$4) -> 8 | G18: =COUNTIF(Bahnenergebnisse!$X$2:$X$208,G$4) -> 7 | H18: =COUNTIF(Bahnenergebnisse!$X$2:$X$208,H$4) -> 4 | I18: 2.222222222 | J18: 0.4589371981
A19: Salto | B19: =COUNTIF(Bahnenergebnisse!$Y$2:$Y$208,B$4) -> 15 | C19: =COUNTIF(Bahnenergebnisse!$Y$2:$Y$208,C$4) -> 158 | D19: =COUNTIF(Bahnenergebnisse!$Y$2:$Y$208,D$4) -> 26 | E19: =COUNTIF(Bahnenergebnisse!$Y$2:$Y$208,E$4) -> 2 | F19: =COUNTIF(Bahnenergebnisse!$Y$2:$Y$208,F$4) -> 4 | G19: =COUNTIF(Bahnenergebnisse!$Y$2:$Y$208,G$4) -> 1 | H19: =COUNTIF(Bahnenergebnisse!$Y$2:$Y$208,H$4) -> 1 | I19: 2.173913043 | J19: 0.07246376812
A20: Töter | B20: =COUNTIF(Bahnenergebnisse!$Z$2:$Z$208,B$4) -> 59 | C20: =COUNTIF(Bahnenergebnisse!$Z$2:$Z$208,C$4) -> 71 | D20: =COUNTIF(Bahnenergebnisse!$Z$2:$Z$208,D$4) -> 38 | E20: =COUNTIF(Bahnenergebnisse!$Z$2:$Z$208,E$4) -> 20 | F20: =COUNTIF(Bahnenergebnisse!$Z$2:$Z$208,F$4) -> 9 | G20: =COUNTIF(Bahnenergebnisse!$Z$2:$Z$208,G$4) -> 5 | H20: =COUNTIF(Bahnenergebnisse!$Z$2:$Z$208,H$4) -> 5 | I20: 2.439613527 | J20: 0.2850241546
A21: Passagen | B21: =COUNTIF(Bahnenergebnisse!$AA$2:$AA$208,B$4) -> 90 | C21: =COUNTIF(Bahnenergebnisse!$AA$2:$AA$208,C$4) -> 103 | D21: =COUNTIF(Bahnenergebnisse!$AA$2:$AA$208,D$4) -> 11 | E21: =COUNTIF(Bahnenergebnisse!$AA$2:$AA$208,E$4) -> 3 | F21: =COUNTIF(Bahnenergebnisse!$AA$2:$AA$208,F$4) -> 0 | G21: =COUNTIF(Bahnenergebnisse!$AA$2:$AA$208,G$4) -> 0 | H21: =COUNTIF(Bahnenergebnisse!$AA$2:$AA$208,H$4) -> 0 | I21: 1.647342995 | J21: 0.4347826087
A22: Blitz | B22: =COUNTIF(Bahnenergebnisse!$AB$2:$AB$208,B$4) -> 55 | C22: =COUNTIF(Bahnenergebnisse!$AB$2:$AB$208,C$4) -> 100 | D22: =COUNTIF(Bahnenergebnisse!$AB$2:$AB$208,D$4) -> 35 | E22: =COUNTIF(Bahnenergebnisse!$AB$2:$AB$208,E$4) -> 13 | F22: =COUNTIF(Bahnenergebnisse!$AB$2:$AB$208,F$4) -> 2 | G22: =COUNTIF(Bahnenergebnisse!$AB$2:$AB$208,G$4) -> 1 | H22: =COUNTIF(Bahnenergebnisse!$AB$2:$AB$208,H$4) -> 1 | I22: 2.101449275 | J22: 0.2657004831
B24: 1 | C24: 2 | D24: 3 | E24: 4 | F24: 5 | G24: 6 | H24: 7 | I24: Schnitt | J24: As-Quote
A25: Bahn 1 | B25: =COUNTIF(Bahnenergebnisse!$AD$2:$AD$208,B$24) -> 43 | C25: =COUNTIF(Bahnenergebnisse!$AD$2:$AD$208,C$24) -> 141 | D25: =COUNTIF(Bahnenergebnisse!$AD$2:$AD$208,D$24) -> 6 | E25: =COUNTIF(Bahnenergebnisse!$AD$2:$AD$208,E$24) -> 0 | F25: =COUNTIF(Bahnenergebnisse!$AD$2:$AD$208,F$24) -> 0 | G25: =COUNTIF(Bahnenergebnisse!$AD$2:$AD$208,G$24) -> 0 | H25: =COUNTIF(Bahnenergebnisse!$AD$2:$AD$208,H$24) -> 0 | I25: =SUMPRODUCT(B25:H25,B$24:H$24)/SUM(B25:H25) -> 1.805263158 | J25: =B25/SUM(B25:H25) -> 0.2263157895
A26: Bahn 2 | B26: =COUNTIF(Bahnenergebnisse!$AE$2:$AE$208,B$24) -> 32 | C26: =COUNTIF(Bahnenergebnisse!$AE$2:$AE$208,C$24) -> 113 | D26: =COUNTIF(Bahnenergebnisse!$AE$2:$AE$208,D$24) -> 35 | E26: =COUNTIF(Bahnenergebnisse!$AE$2:$AE$208,E$24) -> 8 | F26: =COUNTIF(Bahnenergebnisse!$AE$2:$AE$208,F$24) -> 2 | G26: =COUNTIF(Bahnenergebnisse!$AE$2:$AE$208,G$24) -> 0 | H26: =COUNTIF(Bahnenergebnisse!$AE$2:$AE$208,H$24) -> 0 | I26: =SUMPRODUCT(B26:H26,B$24:H$24)/SUM(B26:H26) -> 2.131578947 | J26: 0.1684210526
A27: Bahn 3 | B27: =COUNTIF(Bahnenergebnisse!$AF$2:$AF$208,B$24) -> 84 | C27: =COUNTIF(Bahnenergebnisse!$AF$2:$AF$208,C$24) -> 82 | D27: =COUNTIF(Bahnenergebnisse!$AF$2:$AF$208,D$24) -> 15 | E27: =COUNTIF(Bahnenergebnisse!$AF$2:$AF$208,E$24) -> 5 | F27: =COUNTIF(Bahnenergebnisse!$AF$2:$AF$208,F$24) -> 2 | G27: =COUNTIF(Bahnenergebnisse!$AF$2:$AF$208,G$24) -> 0 | H27: =COUNTIF(Bahnenergebnisse!$AF$2:$AF$208,H$24) -> 2 | I27: 1.773684211 | J27: 0.4421052632
A28: Bahn 4 | B28: =COUNTIF(Bahnenergebnisse!$AG$2:$AG$208,B$24) -> 22 | C28: =COUNTIF(Bahnenergebnisse!$AG$2:$AG$208,C$24) -> 85 | D28: =COUNTIF(Bahnenergebnisse!$AG$2:$AG$208,D$24) -> 39 | E28: =COUNTIF(Bahnenergebnisse!$AG$2:$AG$208,E$24) -> 20 | F28: =COUNTIF(Bahnenergebnisse!$AG$2:$AG$208,F$24) -> 9 | G28: =COUNTIF(Bahnenergebnisse!$AG$2:$AG$208,G$24) -> 6 | H28: =COUNTIF(Bahnenergebnisse!$AG$2:$AG$208,H$24) -> 9 | I28: 2.805263158 | J28: 0.1157894737
A29: Bahn 5 | B29: =COUNTIF(Bahnenergebnisse!$AH$2:$AH$208,B$24) -> 59 | C29: =COUNTIF(Bahnenergebnisse!$AH$2:$AH$208,C$24) -> 114 | D29: =COUNTIF(Bahnenergebnisse!$AH$2:$AH$208,D$24) -> 10 | E29: =COUNTIF(Bahnenergebnisse!$AH$2:$AH$208,E$24) -> 5 | F29: =COUNTIF(Bahnenergebnisse!$AH$2:$AH$208,F$24) -> 0 | G29: =COUNTIF(Bahnenergebnisse!$AH$2:$AH$208,G$24) -> 0 | H29: =COUNTIF(Bahnenergebnisse!$AH$2:$AH$208,H$24) -> 2 | I29: 1.847368421 | J29: 0.3105263158
A30: Bahn 6 | B30: =COUNTIF(Bahnenergebnisse!$AI$2:$AI$208,B$24) -> 11 | C30: =COUNTIF(Bahnenergebnisse!$AI$2:$AI$208,C$24) -> 158 | D30: =COUNTIF(Bahnenergebnisse!$AI$2:$AI$208,D$24) -> 18 | E30: =COUNTIF(Bahnenergebnisse!$AI$2:$AI$208,E$24) -> 2 | F30: =COUNTIF(Bahnenergebnisse!$AI$2:$AI$208,F$24) -> 0 | G30: =COUNTIF(Bahnenergebnisse!$AI$2:$AI$208,G$24) -> 0 | H30: =COUNTIF(Bahnenergebnisse!$AI$2:$AI$208,H$24) -> 1 | I30: 2.084210526 | J30: 0.05789473684
A31: Bahn 7 | B31: =COUNTIF(Bahnenergebnisse!$AJ$2:$AJ$208,B$24) -> 133 | C31: =COUNTIF(Bahnenergebnisse!$AJ$2:$AJ$208,C$24) -> 49 | D31: =COUNTIF(Bahnenergebnisse!$AJ$2:$AJ$208,D$24) -> 8 | E31: =COUNTIF(Bahnenergebnisse!$AJ$2:$AJ$208,E$24) -> 0 | F31: =COUNTIF(Bahnenergebnisse!$AJ$2:$AJ$208,F$24) -> 0 | G31: =COUNTIF(Bahnenergebnisse!$AJ$2:$AJ$208,G$24) -> 0 | H31: =COUNTIF(Bahnenergebnisse!$AJ$2:$AJ$208,H$24) -> 0 | I31: 1.342105263 | J31: 0.7
A32: Bahn 8 | B32: =COUNTIF(Bahnenergebnisse!$AK$2:$AK$208,B$24) -> 24 | C32: =COUNTIF(Bahnenergebnisse!$AK$2:$AK$208,C$24) -> 145 | D32: =COUNTIF(Bahnenergebnisse!$AK$2:$AK$208,D$24) -> 14 | E32: =COUNTIF(Bahnenergebnisse!$AK$2:$AK$208,E$24) -> 5 | F32: =COUNTIF(Bahnenergebnisse!$AK$2:$AK$208,F$24) -> 2 | G32: =COUNTIF(Bahnenergebnisse!$AK$2:$AK$208,G$24) -> 0 | H32: =COUNTIF(Bahnenergebnisse!$AK$2:$AK$208,H$24) -> 0 | I32: 2.031578947 | J32: 0.1263157895
A33: Bahn 9 | B33: =COUNTIF(Bahnenergebnisse!$AL$2:$AL$208,B$24) -> 20 | C33: =COUNTIF(Bahnenergebnisse!$AL$2:$AL$208,C$24) -> 115 | D33: =COUNTIF(Bahnenergebnisse!$AL$2:$AL$208,D$24) -> 34 | E33: =COUNTIF(Bahnenergebnisse!$AL$2:$AL$208,E$24) -> 12 | F33: =COUNTIF(Bahnenergebnisse!$AL$2:$AL$208,F$24) -> 7 | G33: =COUNTIF(Bahnenergebnisse!$AL$2:$AL$208,G$24) -> 2 | H33: =COUNTIF(Bahnenergebnisse!$AL$2:$AL$208,H$24) -> 0 | I33: 2.352631579 | J33: 0.1052631579
A34: Bahn 10 | B34: =COUNTIF(Bahnenergebnisse!$AM$2:$AM$208,B$24) -> 32 | C34: =COUNTIF(Bahnenergebnisse!$AM$2:$AM$208,C$24) -> 147 | D34: =COUNTIF(Bahnenergebnisse!$AM$2:$AM$208,D$24) -> 9 | E34: =COUNTIF(Bahnenergebnisse!$AM$2:$AM$208,E$24) -> 2 | F34: =COUNTIF(Bahnenergebnisse!$AM$2:$AM$208,F$24) -> 0 | G34: =COUNTIF(Bahnenergebnisse!$AM$2:$AM$208,G$24) -> 0 | H34: =COUNTIF(Bahnenergebnisse!$AM$2:$AM$208,H$24) -> 0 | I34: 1.9 | J34: 0.1684210526
A35: Bahn 11 | B35: =COUNTIF(Bahnenergebnisse!$AN$2:$AN$208,B$24) -> 173 | C35: =COUNTIF(Bahnenergebnisse!$AN$2:$AN$208,C$24) -> 15 | D35: =COUNTIF(Bahnenergebnisse!$AN$2:$AN$208,D$24) -> 2 | E35: =COUNTIF(Bahnenergebnisse!$AN$2:$AN$208,E$24) -> 0 | F35: =COUNTIF(Bahnenergebnisse!$AN$2:$AN$208,F$24) -> 0 | G35: =COUNTIF(Bahnenergebnisse!$AN$2:$AN$208,G$24) -> 0 | H35: =COUNTIF(Bahnenergebnisse!$AN$2:$AN$208,H$24) -> 0 | I35: 1.1 | J35: 0.9105263158
A36: Bahn 12 | B36: =COUNTIF(Bahnenergebnisse!$AO$2:$AO$208,B$24) -> 73 | C36: =COUNTIF(Bahnenergebnisse!$AO$2:$AO$208,C$24) -> 100 | D36: =COUNTIF(Bahnenergebnisse!$AO$2:$AO$208,D$24) -> 14 | E36: =COUNTIF(Bahnenergebnisse!$AO$2:$AO$208,E$24) -> 1 | F36: =COUNTIF(Bahnenergebnisse!$AO$2:$AO$208,F$24) -> 2 | G36: =COUNTIF(Bahnenergebnisse!$AO$2:$AO$208,G$24) -> 0 | H36: =COUNTIF(Bahnenergebnisse!$AO$2:$AO$208,H$24) -> 0 | I36: 1.731578947 | J36: 0.3842105263
A37: Bahn 13 | B37: =COUNTIF(Bahnenergebnisse!$AP$2:$AP$208,B$24) -> 20 | C37: =COUNTIF(Bahnenergebnisse!$AP$2:$AP$208,C$24) -> 158 | D37: =COUNTIF(Bahnenergebnisse!$AP$2:$AP$208,D$24) -> 11 | E37: =COUNTIF(Bahnenergebnisse!$AP$2:$AP$208,E$24) -> 0 | F37: =COUNTIF(Bahnenergebnisse!$AP$2:$AP$208,F$24) -> 1 | G37: =COUNTIF(Bahnenergebnisse!$AP$2:$AP$208,G$24) -> 0 | H37: =COUNTIF(Bahnenergebnisse!$AP$2:$AP$208,H$24) -> 0 | I37: 1.968421053 | J37: 0.1052631579
A38: Bahn 14 | B38: =COUNTIF(Bahnenergebnisse!$AQ$2:$AQ$208,B$24) -> 30 | C38: =COUNTIF(Bahnenergebnisse!$AQ$2:$AQ$208,C$24) -> 145 | D38: =COUNTIF(Bahnenergebnisse!$AQ$2:$AQ$208,D$24) -> 12 | E38: =COUNTIF(Bahnenergebnisse!$AQ$2:$AQ$208,E$24) -> 3 | F38: =COUNTIF(Bahnenergebnisse!$AQ$2:$AQ$208,F$24) -> 0 | G38: =COUNTIF(Bahnenergebnisse!$AQ$2:$AQ$208,G$24) -> 0 | H38: =COUNTIF(Bahnenergebnisse!$AQ$2:$AQ$208,H$24) -> 0 | I38: 1.936842105 | J38: 0.1578947368
A39: Bahn 15 | B39: =COUNTIF(Bahnenergebnisse!$AR$2:$AR$208,B$24) -> 4 | C39: =COUNTIF(Bahnenergebnisse!$AR$2:$AR$208,C$24) -> 127 | D39: =COUNTIF(Bahnenergebnisse!$AR$2:$AR$208,D$24) -> 33 | E39: =COUNTIF(Bahnenergebnisse!$AR$2:$AR$208,E$24) -> 14 | F39: =COUNTIF(Bahnenergebnisse!$AR$2:$AR$208,F$24) -> 5 | G39: =COUNTIF(Bahnenergebnisse!$AR$2:$AR$208,G$24) -> 5 | H39: =COUNTIF(Bahnenergebnisse!$AR$2:$AR$208,H$24) -> 2 | I39: 2.536842105 | J39: 0.02105263158
A40: Bahn 16 | B40: =COUNTIF(Bahnenergebnisse!$AS$2:$AS$208,B$24) -> 8 | C40: =COUNTIF(Bahnenergebnisse!$AS$2:$AS$208,C$24) -> 129 | D40: =COUNTIF(Bahnenergebnisse!$AS$2:$AS$208,D$24) -> 37 | E40: =COUNTIF(Bahnenergebnisse!$AS$2:$AS$208,E$24) -> 11 | F40: =COUNTIF(Bahnenergebnisse!$AS$2:$AS$208,F$24) -> 3 | G40: =COUNTIF(Bahnenergebnisse!$AS$2:$AS$208,G$24) -> 1 | H40: =COUNTIF(Bahnenergebnisse!$AS$2:$AS$208,H$24) -> 1 | I40: 2.363157895 | J40: 0.04210526316
A41: Bahn 17 | B41: =COUNTIF(Bahnenergebnisse!$AT$2:$AT$208,B$24) -> 21 | C41: =COUNTIF(Bahnenergebnisse!$AT$2:$AT$208,C$24) -> 150 | D41: =COUNTIF(Bahnenergebnisse!$AT$2:$AT$208,D$24) -> 17 | E41: =COUNTIF(Bahnenergebnisse!$AT$2:$AT$208,E$24) -> 1 | F41: =COUNTIF(Bahnenergebnisse!$AT$2:$AT$208,F$24) -> 1 | G41: =COUNTIF(Bahnenergebnisse!$AT$2:$AT$208,G$24) -> 0 | H41: =COUNTIF(Bahnenergebnisse!$AT$2:$AT$208,H$24) -> 0 | I41: 2.005263158 | J41: 0.1105263158
A42: Bahn 18 | B42: =COUNTIF(Bahnenergebnisse!$AU$2:$AU$208,B$24) -> 109 | C42: =COUNTIF(Bahnenergebnisse!$AU$2:$AU$208,C$24) -> 48 | D42: =COUNTIF(Bahnenergebnisse!$AU$2:$AU$208,D$24) -> 18 | E42: =COUNTIF(Bahnenergebnisse!$AU$2:$AU$208,E$24) -> 4 | F42: =COUNTIF(Bahnenergebnisse!$AU$2:$AU$208,F$24) -> 7 | G42: =COUNTIF(Bahnenergebnisse!$AU$2:$AU$208,G$24) -> 1 | H42: =COUNTIF(Bahnenergebnisse!$AU$2:$AU$208,H$24) -> 3 | I42: 1.773684211 | J42: 0.5736842105

Sheet Verlosungen
A1: Sommer-Cup 2020 im Freizeittreff Herbede - verloste Preise
A2: =CONCATENATE(SUM(D4:D39)," Ballpreise",", ",COUNTIF(D4:D39,0)," andere Preise") -> 12 Ballpreise, 24 andere Preise
A3: Teilnehmer | B3: Gewinn | C3: Spieltag | D3: Ball?
A4: Angela Urban | B4: 1 Minigolfball (Magdeburg 2009) | C4: 10.6. | D4: 1
A5: Brigitte Börgmann | B5: 1 Flasche Rotwein | C5: 10.6. | D5: 0
A6: Rolf Lenk | B6: 1 Großpackung Haribo | C6: 10.6. | D6: 0
A7: Ulrich Börgmann | B7: 1 Flasche Rotwein | C7: 18.6. | D7: 0
A8: Siegfried Paffrath | B8: 1 Verzehrgutschein | C8: 18.6. | D8: 0
A9: Nicole Lieber | B9: 1 Minigolfball (Pingvin Turbo 80) | C9: 18.6. | D9: 1
A10: Niclas Lehmann | B10: 1 Minigolfball (Graues Wölkchen) | C10: 25.6. | D10: 1
A11: Uwe Kortmann | B11: 1 Set Gin-Miniaturen + 1xToffifee | C11: 25.6. | D11: 0
A12: Hellmut Greiffendorf | B12: 1 Verzehrgutschein | C12: 25.6. | D12: 0
A13: Frank Brunnenkant | B13: 1 Minigolfball (Deutschmann Tango) | C13: 2.7. | D13: 1
A14: Barbara Schmidt | B14: 1 Flasche Holunderwein | C14: 2.7. | D14: 0
A15: Brigitte Börgmann | B15: 1 Verzehrgutschein | C15: 2.7. | D15: 0
A16: Dominic Urban | B16: 1 Minigolfball (3D Wolfgang Döppner) | C16: 9.7. | D16: 1
A17: Barbara Schmidt | B17: 1 Glasquader "Minigolfer" | C17: 9.7. | D17: 0
A18: Brigitte Börgmann | B18: 1 Flasche Sekt | C18: 9.7. | D18: 0
A19: Brigitte Börgmann | B19: 1 Flasche Rotwein | C19: 16.7. | D19: 0
A20: Sabine Scharpe | B20: 1 Minigolfball (Olten Swiss Champion) | C20: 16.7. | D20: 1
A21: Ulrich Börgmann | B21: 1 Verzehrgutschein | C21: 16.7. | D21: 0
A22: Ulrich Börgmann | B22: 1 Flasche Prosecco | C22: 23.7. | D22: 0
A23: Hellmut Greiffendorf | B23: 1 Verzehrgutschein | C23: 23.7. | D23: 0
A24: Wolfgang Battig | B24: 1 Minigolfball BOF Dennis Prip Hansen | C24: 23.7. | D24: 1
A25: Michael Puschner | B25: 1 Flasche Rotwein | C25: 30.7. | D25: 0
A26: Anna Kalhöfer | B26: 1 Minigolfball BOF Ruge r | C26: 30.7. | D26: 1
A27: Marcus Rade | B27: 1 Verzehrgutschein | C27: 30.7. | D27: 0
A28: Volker Urban | B28: 1 Minigolfball Pingvin Cobi | C28: 6.8. | D28: 1
A29: Ulrich Börgmann | B29: 1 Flasche Rotwein | C29: 6.8. | D29: 0
A30: Martin Kunz | B30: 1 Set Garten-Solarleuchten | C30: 6.8. | D30: 0
A31: Wolfgang Battig | B31: 1 Minigolfball Pingvin Turbo 80 | C31: 13.8. | D31: 1
A32: Martin Kunz | B32: 1 Dose Haribo Colorado | C32: 13.8. | D32: 0
A33: Peter Tabor | B33: 1 Glasquader "Minigolfer" | C33: 13.8. | D33: 0
A34: Willi Hettrich | B34: 1 Minigolfball (BOF Romain Bausch) | C34: 20.8. | D34: 1
A35: Wolfgang Battig | B35: 1 Großpackung Haribo Fantasia | C35: 20.8. | D35: 0
A36: Michael Puschner | B36: 1 Verzehrgutschein | C36: 20.8. | D36: 0
A37: Frank Brunnenkant | B37: 1 Minigolfball (BOF Irene Sauer) | C37: 27.8. | D37: 1
A38: Peter Tabor | B38: 1 Flasche Rotwein | C38: 27.8. | D38: 0
A39: Barbara Schmidt | B39: 1 Verzehrgutschein | C39: 27.8. | D39: 0

Sheet Einzelwertung6
A1: =CONCATENATE("6. Sommer-Cup - Freizeittreff Herbede - ",TEXT(Gesamtstand!$K$2,"TT.MM.JJ")) -> 6. Sommer-Cup - Freizeittreff Herbede - 10.06.20
A2: Spieler | B2: Runde 1 | C2: Runde 2 | D2: Gesamt | E2: bessere? | F2: Pl. R1 | G2: Pl. R2 | H2: Pl. Ges. | I2: gewertet | J2: Punkte
A3: Battig, Wolfgang | B3: 25 | C3: 31 | D3: =IF(B3>0,C3+B3,"") -> 56 | E3: TRUE | F3: =IF(B3>0,COUNTIF(B$3:B$55,"<"&B3)+1,"") -> 1 | G3: =IF(C3>0,COUNTIF(C$3:C$55,"<"&C3)+1,"") -> 4 | H3: =IF(AND(B3>0,C3>0),COUNTIF(D$3:D$55,"<"&D3)+1,"") -> 1 | I3: =IF(B3>0,IF(E3,MIN(F3:H3),MAX(F3:H3)),"") -> 1 | J3: =IF(B3>0,VLOOKUP(I3,Punkteschema!$A$2:$B$101,2,FALSE),"") -> 25
A4: Greiffendorf, Hellmut | B4: 34 | C4: 29 | D4: 63 | E4: TRUE | F4: 9 | G4: 1 | H4: 7 | I4: 1 | J4: =IF(B4>0,VLOOKUP(I4,Punkteschema!$A$2:$B$101,2,FALSE),"") -> 25
A5: Urban, Volker | B5: 26 | C5: 31 | D5: 57 | E5: TRUE | F5: 2 | G5: 4 | H5: 2 | I5: 2 | J5: =IF(B5>0,VLOOKUP(I5,Punkteschema!$A$2:$B$101,2,FALSE),"") -> 21
A6: Hein, Hans-Jörg | B6: 26 | C6: 34 | D6: 60 | E6: TRUE | F6: 2 | G6: 9 | H6: 3 | I6: 2 | J6: =IF(B6>0,VLOOKUP(I6,Punkteschema!$A$2:$B$101,2,FALSE),"") -> 21
A7: Lieber, Nicole | B7: 30 | C7: 30 | D7: 60 | E7: TRUE | F7: 6 | G7: 2 | H7: 3 | I7: 2 | J7: =IF(B7>0,VLOOKUP(I7,Punkteschema!$A$2:$B$101,2,FALSE),"") -> 21
A8: Urban, Angela | B8: 32 | C8: 30 | D8: 62 | E8: TRUE | F8: 7 | G8: 2 | H8: 6 | I8: 2 | J8: =IF(B8>0,VLOOKUP(I8,Punkteschema!$A$2:$B$101,2,FALSE),"") -> 21
A9: Börgmann, Ulrich | B9: 26 | C9: 42 | D9: 68 | E9: TRUE | F9: 2 | G9: 14 | H9: 10 | I9: 2 | J9: =IF(B9>0,VLOOKUP(I9,Punkteschema!$A$2:$B$101,2,FALSE),"") -> 21
A10: Puschner, Michael | B10: 28 | C10: 33 | D10: 61 | E10: TRUE | F10: 5 | G10: 6 | H10: 5 | I10: 5 | J10: =IF(B10>0,VLOOKUP(I10,Punkteschema!$A$2:$B$101,2,FALSE),"") -> 15
A11: Tabor, Peter | B11: 33 | C11: 33 | D11: 66 | E11: TRUE | F11: 8 | G11: 6 | H11: 8 | I11: 6 | J11: =IF(B11>0,VLOOKUP(I11,Punkteschema!$A$2:$B$101,2,FALSE),"") -> 15
A12: Rabe, Jonas | B12: 34 | C12: 33 | D12: 67 | E12: TRUE | F12: 9 | G12: 6 | H12: 9 | I12: 6 | J12: =IF(B12>0,VLOOKUP(I12,Punkteschema!$A$2:$B$101,2,FALSE),"") -> 15
A13: Lenk, Rolf | B13: 34 | C13: 35 | D13: 69 | E13: TRUE | F13: 9 | G13: 10 | H13: 11 | I13: 9 | J13: =IF(B13>0,VLOOKUP(I13,Punkteschema!$A$2:$B$101,2,FALSE),"") -> 10
A14: Schmidtbauer, Günter | B14: 34 | C14: 35 | D14: 69 | E14: TRUE | F14: 9 | G14: 10 | H14: 11 | I14: 9 | J14: =IF(B14>0,VLOOKUP(I14,Punkteschema!$A$2:$B$101,2,FALSE),"") -> 10
A15: Börgmann, Brigitte | B15: 34 | C15: 37 | D15: 71 | E15: TRUE | F15: 9 | G15: 12 | H15: 13 | I15: 9 | J15: =IF(B15>0,VLOOKUP(I15,Punkteschema!$A$2:$B$101,2,FALSE),"") -> 10
A16: Kersch, Uwe | B16: 34 | C16: 37 | D16: 71 | E16: TRUE | F16: 9 | G16: 12 | H16: 13 | I16: 9 | J16: =IF(B16>0,VLOOKUP(I16,Punkteschema!$A$2:$B$101,2,FALSE),"") -> 10
A17: Schmidt, Barbara | B17: 54 | C17: 45 | D17: 99 | E17: TRUE | F17: 15 | G17: 15 | H17: 15 | I17: 15 | J17: =IF(B17>0,VLOOKUP(I17,Punkteschema!$A$2:$B$101,2,FALSE),"") -> 5
D18: =IF(B18>0,C18+B18,"") ->  | E18: TRUE | F18: =IF(B18>0,COUNTIF(B$3:B$55,"<"&B18)+1,"") ->  | H18: =IF(AND(B18>0,C18>0),COUNTIF(D$3:D$55,"<"&D18)+1,"") ->  | I18: =IF(B18>0,IF(E18,MIN(F18:H18),MAX(F18:H18)),"") ->  | J18: =IF(B18>0,VLOOKUP(I18,Punkteschema!$A$2:$B$101,2,FALSE),"") -> 
E19: TRUE | F19: =IF(B19>0,COUNTIF(B$3:B$55,"<"&B19)+1,"") ->  | J19: =IF(B19>0,VLOOKUP(I19,Punkteschema!$A$2:$B$101,2,FALSE),"") -> 
E20: TRUE | J20: =IF(B20>0,VLOOKUP(I20,Punkteschema!$A$2:$B$101,2,FALSE),"") -> 
E21: TRUE | J21: =IF(B21>0,VLOOKUP(I21,Punkteschema!$A$2:$B$101,2,FALSE),"") -> 
E22: TRUE | J22: =IF(B22>0,VLOOKUP(I22,Punkteschema!$A$2:$B$101,2,FALSE),"") -> 
E23: TRUE | J23: =IF(B23>0,VLOOKUP(I23,Punkteschema!$A$2:$B$101,2,FALSE),"") -> 
E24: TRUE | J24: =IF(B24>0,VLOOKUP(I24,Punkteschema!$A$2:$B$101,2,FALSE),"") -> 
E25: TRUE | J25: =IF(B25>0,VLOOKUP(I25,Punkteschema!$A$2:$B$101,2,FALSE),"") -> 
E26: TRUE | J26: =IF(B26>0,VLOOKUP(I26,Punkteschema!$A$2:$B$101,2,FALSE),"") -> 
E27: TRUE | J27: =IF(B27>0,VLOOKUP(I27,Punkteschema!$A$2:$B$101,2,FALSE),"") -> 
E28: TRUE | J28: =IF(B28>0,VLOOKUP(I28,Punkteschema!$A$2:$B$101,2,FALSE),"") -> 
E29: TRUE | J29: =IF(B29>0,VLOOKUP(I29,Punkteschema!$A$2:$B$101,2,FALSE),"") -> 
E30: TRUE | J30: =IF(B30>0,VLOOKUP(I30,Punkteschema!$A$2:$B$101,2,FALSE),"") -> 
E31: TRUE | J31: =IF(B31>0,VLOOKUP(I31,Punkteschema!$A$2:$B$101,2,FALSE),"") -> 
E32: TRUE | J32: =IF(B32>0,VLOOKUP(I32,Punkteschema!$A$2:$B$101,2,FALSE),"") -> 
E33: TRUE | J33: =IF(B33>0,VLOOKUP(I33,Punkteschema!$A$2:$B$101,2,FALSE),"") -> 
E34: TRUE | J34: =IF(B34>0,VLOOKUP(I34,Punkteschema!$A$2:$B$101,2,FALSE),"") -> 
E35: TRUE | J35: =IF(B35>0,VLOOKUP(I35,Punkteschema!$A$2:$B$101,2,FALSE),"") -> 
E36: TRUE | J36: =IF(B36>0,VLOOKUP(I36,Punkteschema!$A$2:$B$101,2,FALSE),"") -> 
E37: TRUE | J37: =IF(B37>0,VLOOKUP(I37,Punkteschema!$A$2:$B$101,2,FALSE),"") -> 
E38: TRUE | J38: =IF(B38>0,VLOOKUP(I38,Punkteschema!$A$2:$B$101,2,FALSE),"") -> 
E39: TRUE | J39: =IF(B39>0,VLOOKUP(I39,Punkteschema!$A$2:$B$101,2,FALSE),"") -> 
E40: TRUE | J40: =IF(B40>0,VLOOKUP(I40,Punkteschema!$A$2:$B$101,2,FALSE),"") -> 
E41: TRUE | J41: =IF(B41>0,VLOOKUP(I41,Punkteschema!$A$2:$B$101,2,FALSE),"") -> 
E42: TRUE | J42: =IF(B42>0,VLOOKUP(I42,Punkteschema!$A$2:$B$101,2,FALSE),"") -> 
E43: TRUE | J43: =IF(B43>0,VLOOKUP(I43,Punkteschema!$A$2:$B$101,2,FALSE),"") -> 
E44: TRUE | J44: =IF(B44>0,VLOOKUP(I44,Punkteschema!$A$2:$B$101,2,FALSE),"") -> 
E45: TRUE | J45: =IF(B45>0,VLOOKUP(I45,Punkteschema!$A$2:$B$101,2,FALSE),"") -> 
E46: TRUE | J46: =IF(B46>0,VLOOKUP(I46,Punkteschema!$A$2:$B$101,2,FALSE),"") -> 
E47: TRUE | J47: =IF(B47>0,VLOOKUP(I47,Punkteschema!$A$2:$B$101,2,FALSE),"") -> 
E48: TRUE | J48: =IF(B48>0,VLOOKUP(I48,Punkteschema!$A$2:$B$101,2,FALSE),"") -> 
E49: TRUE | J49: =IF(B49>0,VLOOKUP(I49,Punkteschema!$A$2:$B$101,2,FALSE),"") -> 
E50: TRUE | J50: =IF(B50>0,VLOOKUP(I50,Punkteschema!$A$2:$B$101,2,FALSE),"") -> 
E51: TRUE | J51: =IF(B51>0,VLOOKUP(I51,Punkteschema!$A$2:$B$101,2,FALSE),"") -> 
E52: TRUE | J52: =IF(B52>0,VLOOKUP(I52,Punkteschema!$A$2:$B$101,2,FALSE),"") -> 
E53: TRUE | F53: =IF(B53>0,COUNTIF(B$3:B$55,"<"&B53)+1,"") ->  | H53: =IF(AND(B53>0,C53>0),COUNTIF(D$3:D$55,"<"&D53)+1,"") ->  | I53: =IF(B53>0,IF(E53,MIN(F53:H53),MAX(F53:H53)),"") ->  | J53: =IF(B53>0,VLOOKUP(I53,Punkteschema!$A$2:$B$101,2,FALSE),"") -> 
E54: TRUE | H54: =IF(AND(B54>0,C54>0),COUNTIF(D$3:D$55,"<"&D54)+1,"") ->  | I54: =IF(B54>0,IF(E54,MIN(F54:H54),MAX(F54:H54)),"") ->  | J54: =IF(B54>0,VLOOKUP(I54,Punkteschema!$A$2:$B$101,2,FALSE),"") -> 
E55: TRUE | H55: =IF(AND(B55>0,C55>0),COUNTIF(D$3:D$55,"<"&D55)+1,"") ->  | I55: =IF(B55>0,IF(E55,MIN(F55:H55),MAX(F55:H55)),"") ->  | J55: =IF(B55>0,VLOOKUP(I55,Punkteschema!$A$2:$B$101,2,FALSE),"") -> 
A57: OS: Urban, Volker (ASW) | E57: Runde 1: | F57: E | G57: <- E/B
A58: S: Battig, Wolfgang (LÜD) | E58: Runde 2: | F58: B | G58: <- E/B
A59: S: Puschner, Michael (HOB)
A61: Verloste Preise: | B61: Angela Urban - 1 Minigolfball (Magdeburg 2009)
B62: Brigitte Börgmann - 1 Flasche Rotwein
B63: Rolf Lenk - 1 Großpackung Haribo

Sheet Einzelwertung7
A1: =CONCATENATE("6. Sommer-Cup - Freizeittreff Herbede - ",TEXT(Gesamtstand!$L$2,"TT.MM.JJ")) -> 6. Sommer-Cup - Freizeittreff Herbede - 18.06.20
A2: Spieler | B2: Runde 1 | C2: Runde 2 | D2: Gesamt | E2: bessere? | F2: Pl. R1 | G2: Pl. R2 | H2: Pl. Ges. | I2: gewertet | J2: Punkte
A3: Kersch, Uwe | B3: 32 | C3: 30 | D3: =IF(B3>0,C3+B3,"") -> 62 | E3: TRUE | F3: =IF(B3>0,COUNTIF(B$3:B$55,"<"&B3)+1,"") -> 13 | G3: =IF(C3>0,COUNTIF(C$3:C$55,"<"&C3)+1,"") -> 1 | H3: =IF(AND(B3>0,C3>0),COUNTIF(D$3:D$55,"<"&D3)+1,"") -> 7 | I3: =IF(B3>0,IF(E3,MIN(F3:H3),MAX(F3:H3)),"") -> 1 | J3: =IF(B3>0,VLOOKUP(I3,Punkteschema!$A$2:$B$101,2,FALSE),"") -> 25
A4: Buchholz, Ansgar | B4: 25 | C4: 34 | D4: 59 | E4: TRUE | F4: 3 | G4: 9 | H4: 3 | I4: 3 | J4: =IF(B4>0,VLOOKUP(I4,Punkteschema!$A$2:$B$101,2,FALSE),"") -> 18
A5: Kortmann, Uwe | B5: 31 | C5: 31 | D5: 62 | E5: TRUE | F5: 12 | G5: 3 | H5: 7 | I5: 3 | J5: =IF(B5>0,VLOOKUP(I5,Punkteschema!$A$2:$B$101,2,FALSE),"") -> 18
A6: Schmitt, Jürgen | B6: 29 | C6: 32 | D6: 61 | E6: TRUE | F6: 7 | G6: 4 | H6: 5 | I6: 4 | J6: =IF(B6>0,VLOOKUP(I6,Punkteschema!$A$2:$B$101,2,FALSE),"") -> 15
A7: Paffrath, Siegfried | B7: 26 | C7: 37 | D7: 63 | E7: TRUE | F7: 4 | G7: 17 | H7: 11 | I7: 4 | J7: =IF(B7>0,VLOOKUP(I7,Punkteschema!$A$2:$B$101,2,FALSE),"") -> 15
A8: Urban, Dominic | B8: 27 | C8: 35 | D8: 62 | E8: TRUE | F8: 5 | G8: 11 | H8: 7 | I8: 5 | J8: =IF(B8>0,VLOOKUP(I8,Punkteschema!$A$2:$B$101,2,FALSE),"") -> 15
A9: Lehmann, Niclas | B9: 27 | C9: 36 | D9: 63 | E9: TRUE | F9: 5 | G9: 15 | H9: 11 | I9: 5 | J9: =IF(B9>0,VLOOKUP(I9,Punkteschema!$A$2:$B$101,2,FALSE),"") -> 15
A10: Lenk, Rolf | B10: 32 | C10: 33 | D10: 65 | E10: TRUE | F10: 13 | G10: 6 | H10: 13 | I10: 6 | J10: =IF(B10>0,VLOOKUP(I10,Punkteschema!$A$2:$B$101,2,FALSE),"") -> 15
A11: Kunz, Martin | B11: 34 | C11: 33 | D11: 67 | E11: TRUE | F11: 17 | G11: 6 | H11: 15 | I11: 6 | J11: =IF(B11>0,VLOOKUP(I11,Punkteschema!$A$2:$B$101,2,FALSE),"") -> 15
A12: Lieber, Nicole | B12: 29 | C12: 32 | D12: 61 | E12: FALSE | F12: 7 | G12: 4 | H12: 5 | I12: 7 | J12: =IF(B12>0,VLOOKUP(I12,Punkteschema!$A$2:$B$101,2,FALSE),"") -> 10
A13: Hein, Hans-Jörg | B13: 29 | C13: 33 | D13: 62 | E13: FALSE | F13: 7 | G13: 6 | H13: 7 | I13: 7 | J13: =IF(B13>0,VLOOKUP(I13,Punkteschema!$A$2:$B$101,2,FALSE),"") -> 10
A14: Rabe, Jonas | B14: 29 | C14: 36 | D14: 65 | E14: TRUE | F14: 7 | G14: 15 | H14: 13 | I14: 7 | J14: =IF(B14>0,VLOOKUP(I14,Punkteschema!$A$2:$B$101,2,FALSE),"") -> 10
A15: Wolf, Arnold | B15: 43 | C15: 34 | D15: 77 | E15: TRUE | F15: 23 | G15: 9 | H15: 20 | I15: 9 | J15: =IF(B15>0,VLOOKUP(I15,Punkteschema!$A$2:$B$101,2,FALSE),"") -> 10
A16: Battig, Wolfgang | B16: 22 | C16: 35 | D16: 57 | E16: FALSE | F16: 1 | G16: 11 | H16: 1 | I16: 11 | J16: =IF(B16>0,VLOOKUP(I16,Punkteschema!$A$2:$B$101,2,FALSE),"") -> 5
A17: Urban, Volker | B17: 23 | C17: 35 | D17: 58 | E17: FALSE | F17: 2 | G17: 11 | H17: 2 | I17: 11 | J17: =IF(B17>0,VLOOKUP(I17,Punkteschema!$A$2:$B$101,2,FALSE),"") -> 5
A18: Greiffendorf, Hellmut | B18: 30 | C18: 30 | D18: 60 | E18: FALSE | F18: 11 | G18: 1 | H18: 4 | I18: 11 | J18: =IF(B18>0,VLOOKUP(I18,Punkteschema!$A$2:$B$101,2,FALSE),"") -> 5
A19: Börgmann, Brigitte | B19: 34 | C19: 35 | D19: 69 | E19: TRUE | F19: 17 | G19: 11 | H19: 16 | I19: 11 | J19: =IF(B19>0,VLOOKUP(I19,Punkteschema!$A$2:$B$101,2,FALSE),"") -> 5
A20: Puschner, Michael | B20: 32 | C20: 38 | D20: 70 | E20: TRUE | F20: 13 | G20: 18 | H20: 17 | I20: 13 | J20: =IF(B20>0,VLOOKUP(I20,Punkteschema!$A$2:$B$101,2,FALSE),"") -> 5
A21: Kortmann, Sabine | B21: 35 | C21: 39 | D21: 74 | E21: TRUE | F21: 19 | G21: 19 | H21: 19 | I21: 19 | J21: =IF(B21>0,VLOOKUP(I21,Punkteschema!$A$2:$B$101,2,FALSE),"") -> 3
A22: Börgmann, Ulrich | B22: 32 | C22: 41 | D22: 73 | E22: FALSE | F22: 13 | G22: 20 | H22: 18 | I22: 20 | J22: =IF(B22>0,VLOOKUP(I22,Punkteschema!$A$2:$B$101,2,FALSE),"") -> 3
A23: Tabor, Peter | B23: 36 | C23: 41 | D23: 77 | E23: TRUE | F23: 20 | G23: 20 | H23: 20 | I23: 20 | J23: =IF(B23>0,VLOOKUP(I23,Punkteschema!$A$2:$B$101,2,FALSE),"") -> 3
A24: Schmidtbauer, Günter | B24: 36 | C24: 44 | D24: 80 | E24: TRUE | F24: 20 | G24: 23 | H24: 22 | I24: 20 | J24: =IF(B24>0,VLOOKUP(I24,Punkteschema!$A$2:$B$101,2,FALSE),"") -> 3
A25: Wruck, Wolfgang | B25: 43 | C25: 41 | D25: 84 | E25: TRUE | F25: 23 | G25: 20 | H25: 23 | I25: 20 | J25: =IF(B25>0,VLOOKUP(I25,Punkteschema!$A$2:$B$101,2,FALSE),"") -> 3
A26: Schmidt, Barbara | B26: 42 | C26: 44 | D26: 86 | E26: TRUE | F26: 22 | G26: 23 | H26: 24 | I26: 22 | J26: =IF(B26>0,VLOOKUP(I26,Punkteschema!$A$2:$B$101,2,FALSE),"") -> 1
D27: =IF(B27>0,C27+B27,"") ->  | E27: TRUE | F27: =IF(B27>0,COUNTIF(B$3:B$55,"<"&B27)+1,"") ->  | H27: =IF(AND(B27>0,C27>0),COUNTIF(D$3:D$55,"<"&D27)+1,"") ->  | I27: =IF(B27>0,IF(E27,MIN(F27:H27),MAX(F27:H27)),"") ->  | J27: =IF(B27>0,VLOOKUP(I27,Punkteschema!$A$2:$B$101,2,FALSE),"") -> 
E28: TRUE | J28: =IF(B28>0,VLOOKUP(I28,Punkteschema!$A$2:$B$101,2,FALSE),"") -> 
E29: TRUE | J29: =IF(B29>0,VLOOKUP(I29,Punkteschema!$A$2:$B$101,2,FALSE),"") -> 
E30: TRUE | J30: =IF(B30>0,VLOOKUP(I30,Punkteschema!$A$2:$B$101,2,FALSE),"") -> 
E31: TRUE | J31: =IF(B31>0,VLOOKUP(I31,Punkteschema!$A$2:$B$101,2,FALSE),"") -> 
E32: TRUE | J32: =IF(B32>0,VLOOKUP(I32,Punkteschema!$A$2:$B$101,2,FALSE),"") -> 
E33: TRUE | J33: =IF(B33>0,VLOOKUP(I33,Punkteschema!$A$2:$B$101,2,FALSE),"") -> 
E34: TRUE | J34: =IF(B34>0,VLOOKUP(I34,Punkteschema!$A$2:$B$101,2,FALSE),"") -> 
E35: TRUE | J35: =IF(B35>0,VLOOKUP(I35,Punkteschema!$A$2:$B$101,2,FALSE),"") -> 
E36: TRUE | J36: =IF(B36>0,VLOOKUP(I36,Punkteschema!$A$2:$B$101,2,FALSE),"") -> 
E37: TRUE | J37: =IF(B37>0,VLOOKUP(I37,Punkteschema!$A$2:$B$101,2,FALSE),"") -> 
E38: TRUE | J38: =IF(B38>0,VLOOKUP(I38,Punkteschema!$A$2:$B$101,2,FALSE),"") -> 
E39: TRUE | J39: =IF(B39>0,VLOOKUP(I39,Punkteschema!$A$2:$B$101,2,FALSE),"") -> 
E40: TRUE | J40: =IF(B40>0,VLOOKUP(I40,Punkteschema!$A$2:$B$101,2,FALSE),"") -> 
E41: TRUE | J41: =IF(B41>0,VLOOKUP(I41,Punkteschema!$A$2:$B$101,2,FALSE),"") -> 
E42: TRUE | J42: =IF(B42>0,VLOOKUP(I42,Punkteschema!$A$2:$B$101,2,FALSE),"") -> 
E43: TRUE | J43: =IF(B43>0,VLOOKUP(I43,Punkteschema!$A$2:$B$101,2,FALSE),"") -> 
E44: TRUE | J44: =IF(B44>0,VLOOKUP(I44,Punkteschema!$A$2:$B$101,2,FALSE),"") -> 
E45: TRUE | J45: =IF(B45>0,VLOOKUP(I45,Punkteschema!$A$2:$B$101,2,FALSE),"") -> 
E46: TRUE | J46: =IF(B46>0,VLOOKUP(I46,Punkteschema!$A$2:$B$101,2,FALSE),"") -> 
E47: TRUE | J47: =IF(B47>0,VLOOKUP(I47,Punkteschema!$A$2:$B$101,2,FALSE),"") -> 
E48: TRUE | J48: =IF(B48>0,VLOOKUP(I48,Punkteschema!$A$2:$B$101,2,FALSE),"") -> 
E49: TRUE | J49: =IF(B49>0,VLOOKUP(I49,Punkteschema!$A$2:$B$101,2,FALSE),"") -> 
E50: TRUE | J50: =IF(B50>0,VLOOKUP(I50,Punkteschema!$A$2:$B$101,2,FALSE),"") -> 
E51: TRUE | J51: =IF(B51>0,VLOOKUP(I51,Punkteschema!$A$2:$B$101,2,FALSE),"") -> 
E52: TRUE | J52: =IF(B52>0,VLOOKUP(I52,Punkteschema!$A$2:$B$101,2,FALSE),"") -> 
E53: TRUE | F53: =IF(B53>0,COUNTIF(B$3:B$55,"<"&B53)+1,"") ->  | H53: =IF(AND(B53>0,C53>0),COUNTIF(D$3:D$55,"<"&D53)+1,"") ->  | I53: =IF(B53>0,IF(E53,MIN(F53:H53),MAX(F53:H53)),"") ->  | J53: =IF(B53>0,VLOOKUP(I53,Punkteschema!$A$2:$B$101,2,FALSE),"") -> 
E54: TRUE | H54: =IF(AND(B54>0,C54>0),COUNTIF(D$3:D$55,"<"&D54)+1,"") ->  | I54: =IF(B54>0,IF(E54,MIN(F54:H54),MAX(F54:H54)),"") ->  | J54: =IF(B54>0,VLOOKUP(I54,Punkteschema!$A$2:$B$101,2,FALSE),"") -> 
E55: TRUE | H55: =IF(AND(B55>0,C55>0),COUNTIF(D$3:D$55,"<"&D55)+1,"") ->  | I55: =IF(B55>0,IF(E55,MIN(F55:H55),MAX(F55:H55)),"") ->  | J55: =IF(B55>0,VLOOKUP(I55,Punkteschema!$A$2:$B$101,2,FALSE),"") -> 
A57: OS: Paffrath, Siegfried (HEV) | E57: Runde 1: | F57: E | G57: <- E/B
A58: S: Urban, Volker (ASW) | E58: Runde 2: | F58: B | G58: <- E/B
A59: S: Buchholz, Ansgar (ASW)
A61: Verloste Preise: | B61: Ulrich Börgmann - 1 Flasche Rotwein
B62: Siegfried Paffrath - 1 Verzehrgutschein
B63: Nicole Lieber - 1 Minigolfball (Pingvin Turbo 80)

Sheet Einzelwertung8
A1: =CONCATENATE("6. Sommer-Cup - Freizeittreff Herbede - ",TEXT(Gesamtstand!$M$2,"TT.MM.JJ")) -> 6. Sommer-Cup - Freizeittreff Herbede - 25.06.20
A2: Spieler | B2: Runde 1 | C2: Runde 2 | D2: Gesamt | E2: bessere? | F2: Pl. R1 | G2: Pl. R2 | H2: Pl. Ges. | I2: gewertet | J2: Punkte
A3: Puschner, Michael | B3: 31 | C3: 27 | D3: =IF(B3>0,C3+B3,"") -> 58 | E3: TRUE | F3: =IF(B3>0,COUNTIF(B$3:B$55,"<"&B3)+1,"") -> 2 | G3: =IF(C3>0,COUNTIF(C$3:C$55,"<"&C3)+1,"") -> 2 | H3: =IF(AND(B3>0,C3>0),COUNTIF(D$3:D$55,"<"&D3)+1,"") -> 1 | I3: =IF(B3>0,IF(E3,MIN(F3:H3),MAX(F3:H3)),"") -> 1 | J3: =IF(B3>0,VLOOKUP(I3,Punkteschema!$A$2:$B$101,2,FALSE),"") -> 25
A4: Urban, Volker | B4: 28 | C4: 31 | D4: 59 | E4: TRUE | F4: 1 | G4: 11 | H4: 2 | I4: 1 | J4: =IF(B4>0,VLOOKUP(I4,Punkteschema!$A$2:$B$101,2,FALSE),"") -> 25
A5: Wickel-Paffrath, Melanie | B5: 35 | C5: 25 | D5: 60 | E5: TRUE | F5: 11 | G5: 1 | H5: 3 | I5: 1 | J5: =IF(B5>0,VLOOKUP(I5,Punkteschema!$A$2:$B$101,2,FALSE),"") -> 25
A6: Kunz, Martin | B6: 31 | C6: 30 | D6: 61 | E6: TRUE | F6: 2 | G6: 9 | H6: 4 | I6: 2 | J6: =IF(B6>0,VLOOKUP(I6,Punkteschema!$A$2:$B$101,2,FALSE),"") -> 21
A7: Lehmann, Niclas | B7: 34 | C7: 27 | D7: 61 | E7: TRUE | F7: 9 | G7: 2 | H7: 4 | I7: 2 | J7: =IF(B7>0,VLOOKUP(I7,Punkteschema!$A$2:$B$101,2,FALSE),"") -> 21
A8: Urban, Dominic | B8: 32 | C8: 30 | D8: 62 | E8: TRUE | F8: 4 | G8: 9 | H8: 8 | I8: 4 | J8: =IF(B8>0,VLOOKUP(I8,Punkteschema!$A$2:$B$101,2,FALSE),"") -> 15
A9: Battig, Wolfgang | B9: 33 | C9: 28 | D9: 61 | E9: FALSE | F9: 6 | G9: 4 | H9: 4 | I9: 6 | J9: =IF(B9>0,VLOOKUP(I9,Punkteschema!$A$2:$B$101,2,FALSE),"") -> 15
A10: Hein, Hans-Jörg | B10: 33 | C10: 28 | D10: 61 | E10: FALSE | F10: 6 | G10: 4 | H10: 4 | I10: 6 | J10: =IF(B10>0,VLOOKUP(I10,Punkteschema!$A$2:$B$101,2,FALSE),"") -> 15
A11: Buchholz, Ansgar | B11: 34 | C11: 29 | D11: 63 | E11: TRUE | F11: 9 | G11: 6 | H11: 9 | I11: 6 | J11: =IF(B11>0,VLOOKUP(I11,Punkteschema!$A$2:$B$101,2,FALSE),"") -> 15
A12: Rabe, Jonas | B12: 37 | C12: 29 | D12: 66 | E12: TRUE | F12: 15 | G12: 6 | H12: 11 | I12: 6 | J12: =IF(B12>0,VLOOKUP(I12,Punkteschema!$A$2:$B$101,2,FALSE),"") -> 15
A13: Lenk, Rolf | B13: 33 | C13: 35 | D13: 68 | E13: TRUE | F13: 6 | G13: 17 | H13: 12 | I13: 6 | J13: =IF(B13>0,VLOOKUP(I13,Punkteschema!$A$2:$B$101,2,FALSE),"") -> 15
A14: Paffrath, Siegfried | B14: 45 | C14: 29 | D14: 74 | E14: TRUE | F14: 22 | G14: 6 | H14: 18 | I14: 6 | J14: =IF(B14>0,VLOOKUP(I14,Punkteschema!$A$2:$B$101,2,FALSE),"") -> 15
A15: Kortmann, Uwe | B15: 38 | C15: 31 | D15: 69 | E15: TRUE | F15: 17 | G15: 11 | H15: 13 | I15: 11 | J15: =IF(B15>0,VLOOKUP(I15,Punkteschema!$A$2:$B$101,2,FALSE),"") -> 5
A16: Schmitt, Jürgen | B16: 36 | C16: 33 | D16: 69 | E16: TRUE | F16: 12 | G16: 14 | H16: 13 | I16: 12 | J16: =IF(B16>0,VLOOKUP(I16,Punkteschema!$A$2:$B$101,2,FALSE),"") -> 5
A17: Kortmann, Sabine | B17: 36 | C17: 37 | D17: 73 | E17: TRUE | F17: 12 | G17: 20 | H17: 17 | I17: 12 | J17: =IF(B17>0,VLOOKUP(I17,Punkteschema!$A$2:$B$101,2,FALSE),"") -> 5
A18: Börgmann, Ulrich | B18: 40 | C18: 32 | D18: 72 | E18: TRUE | F18: 18 | G18: 13 | H18: 16 | I18: 13 | J18: =IF(B18>0,VLOOKUP(I18,Punkteschema!$A$2:$B$101,2,FALSE),"") -> 5
A19: Lieber, Nicole | B19: 32 | C19: 33 | D19: 65 | E19: FALSE | F19: 4 | G19: 14 | H19: 10 | I19: 14 | J19: =IF(B19>0,VLOOKUP(I19,Punkteschema!$A$2:$B$101,2,FALSE),"") -> 5
A20: Schmidtbauer, Günter | B20: 37 | C20: 43 | D20: 80 | E20: TRUE | F20: 15 | G20: 22 | H20: 21 | I20: 15 | J20: =IF(B20>0,VLOOKUP(I20,Punkteschema!$A$2:$B$101,2,FALSE),"") -> 5
A21: Greiffendorf, Hellmut | B21: 36 | C21: 34 | D21: 70 | E21: FALSE | F21: 12 | G21: 16 | H21: 15 | I21: 16 | J21: =IF(B21>0,VLOOKUP(I21,Punkteschema!$A$2:$B$101,2,FALSE),"") -> 3
A22: Paffrath, Ben | B22: 40 | C22: 35 | D22: 75 | E22: TRUE | F22: 18 | G22: 17 | H22: 19 | I22: 17 | J22: =IF(B22>0,VLOOKUP(I22,Punkteschema!$A$2:$B$101,2,FALSE),"") -> 3
A23: Urban, Angela | B23: 43 | C23: 35 | D23: 78 | E23: TRUE | F23: 21 | G23: 17 | H23: 20 | I23: 17 | J23: =IF(B23>0,VLOOKUP(I23,Punkteschema!$A$2:$B$101,2,FALSE),"") -> 3
A24: Börgmann, Brigitte | B24: 42 | C24: 38 | D24: 80 | E24: TRUE | F24: 20 | G24: 21 | H24: 21 | I24: 20 | J24: =IF(B24>0,VLOOKUP(I24,Punkteschema!$A$2:$B$101,2,FALSE),"") -> 3
D25: =IF(B25>0,C25+B25,"") ->  | E25: TRUE | F25: =IF(B25>0,COUNTIF(B$3:B$55,"<"&B25)+1,"") ->  | H25: =IF(AND(B25>0,C25>0),COUNTIF(D$3:D$55,"<"&D25)+1,"") ->  | I25: =IF(B25>0,IF(E25,MIN(F25:H25),MAX(F25:H25)),"") ->  | J25: =IF(B25>0,VLOOKUP(I25,Punkteschema!$A$2:$B$101,2,FALSE),"") -> 
E26: TRUE | J26: =IF(B26>0,VLOOKUP(I26,Punkteschema!$A$2:$B$101,2,FALSE),"") -> 
E27: TRUE | J27: =IF(B27>0,VLOOKUP(I27,Punkteschema!$A$2:$B$101,2,FALSE),"") -> 
E28: TRUE | J28: =IF(B28>0,VLOOKUP(I28,Punkteschema!$A$2:$B$101,2,FALSE),"") -> 
E29: TRUE | J29: =IF(B29>0,VLOOKUP(I29,Punkteschema!$A$2:$B$101,2,FALSE),"") -> 
E30: TRUE | J30: =IF(B30>0,VLOOKUP(I30,Punkteschema!$A$2:$B$101,2,FALSE),"") -> 
E31: TRUE | J31: =IF(B31>0,VLOOKUP(I31,Punkteschema!$A$2:$B$101,2,FALSE),"") -> 
E32: TRUE | J32: =IF(B32>0,VLOOKUP(I32,Punkteschema!$A$2:$B$101,2,FALSE),"") -> 
E33: TRUE | J33: =IF(B33>0,VLOOKUP(I33,Punkteschema!$A$2:$B$101,2,FALSE),"") -> 
E34: TRUE | J34: =IF(B34>0,VLOOKUP(I34,Punkteschema!$A$2:$B$101,2,FALSE),"") -> 
E35: TRUE | J35: =IF(B35>0,VLOOKUP(I35,Punkteschema!$A$2:$B$101,2,FALSE),"") -> 
E36: TRUE | J36: =IF(B36>0,VLOOKUP(I36,Punkteschema!$A$2:$B$101,2,FALSE),"") -> 
E37: TRUE | J37: =IF(B37>0,VLOOKUP(I37,Punkteschema!$A$2:$B$101,2,FALSE),"") -> 
E38: TRUE | J38: =IF(B38>0,VLOOKUP(I38,Punkteschema!$A$2:$B$101,2,FALSE),"") -> 
E39: TRUE | J39: =IF(B39>0,VLOOKUP(I39,Punkteschema!$A$2:$B$101,2,FALSE),"") -> 
E40: TRUE | J40: =IF(B40>0,VLOOKUP(I40,Punkteschema!$A$2:$B$101,2,FALSE),"") -> 
E41: TRUE | J41: =IF(B41>0,VLOOKUP(I41,Punkteschema!$A$2:$B$101,2,FALSE),"") -> 
E42: TRUE | J42: =IF(B42>0,VLOOKUP(I42,Punkteschema!$A$2:$B$101,2,FALSE),"") -> 
E43: TRUE | J43: =IF(B43>0,VLOOKUP(I43,Punkteschema!$A$2:$B$101,2,FALSE),"") -> 
E44: TRUE | J44: =IF(B44>0,VLOOKUP(I44,Punkteschema!$A$2:$B$101,2,FALSE),"") -> 
E45: TRUE | J45: =IF(B45>0,VLOOKUP(I45,Punkteschema!$A$2:$B$101,2,FALSE),"") -> 
E46: TRUE | J46: =IF(B46>0,VLOOKUP(I46,Punkteschema!$A$2:$B$101,2,FALSE),"") -> 
E47: TRUE | J47: =IF(B47>0,VLOOKUP(I47,Punkteschema!$A$2:$B$101,2,FALSE),"") -> 
E48: TRUE | J48: =IF(B48>0,VLOOKUP(I48,Punkteschema!$A$2:$B$101,2,FALSE),"") -> 
E49: TRUE | J49: =IF(B49>0,VLOOKUP(I49,Punkteschema!$A$2:$B$101,2,FALSE),"") -> 
E50: TRUE | J50: =IF(B50>0,VLOOKUP(I50,Punkteschema!$A$2:$B$101,2,FALSE),"") -> 
E51: TRUE | J51: =IF(B51>0,VLOOKUP(I51,Punkteschema!$A$2:$B$101,2,FALSE),"") -> 
E52: TRUE | J52: =IF(B52>0,VLOOKUP(I52,Punkteschema!$A$2:$B$101,2,FALSE),"") -> 
E53: TRUE | F53: =IF(B53>0,COUNTIF(B$3:B$55,"<"&B53)+1,"") ->  | H53: =IF(AND(B53>0,C53>0),COUNTIF(D$3:D$55,"<"&D53)+1,"") ->  | I53: =IF(B53>0,IF(E53,MIN(F53:H53),MAX(F53:H53)),"") ->  | J53: =IF(B53>0,VLOOKUP(I53,Punkteschema!$A$2:$B$101,2,FALSE),"") -> 
E54: TRUE | H54: =IF(AND(B54>0,C54>0),COUNTIF(D$3:D$55,"<"&D54)+1,"") ->  | I54: =IF(B54>0,IF(E54,MIN(F54:H54),MAX(F54:H54)),"") ->  | J54: =IF(B54>0,VLOOKUP(I54,Punkteschema!$A$2:$B$101,2,FALSE),"") -> 
E55: TRUE | H55: =IF(AND(B55>0,C55>0),COUNTIF(D$3:D$55,"<"&D55)+1,"") ->  | I55: =IF(B55>0,IF(E55,MIN(F55:H55),MAX(F55:H55)),"") ->  | J55: =IF(B55>0,VLOOKUP(I55,Punkteschema!$A$2:$B$101,2,FALSE),"") -> 
A57: OS: Urban, Volker (ASW) | E57: Runde 1: | F57: B | G57: <- E/B
A58: S: Paffrath, Siegfried (HEV) | E58: Runde 2: | F58: E | G58: <- E/B
A59: S: Puschner, Michael (HOB)
A61: Verloste Preise: | B61: Niclas Lehmann - 1 Minigolfball (Graues Wölkchen)
B62: Uwe Kortmann - 1 Set Gin-Miniaturen + 1xToffifee
B63: Hellmut Greiffendorf - 1 Verzehrgutschein

Sheet Einzelwertung9
A1: =CONCATENATE("6. Sommer-Cup - Freizeittreff Herbede - ",TEXT(Gesamtstand!$N$2,"TT.MM.JJ")) -> 6. Sommer-Cup - Freizeittreff Herbede - 02.07.20
A2: Spieler | B2: Runde 1 | C2: Runde 2 | D2: Gesamt | E2: bessere? | F2: Pl. R1 | G2: Pl. R2 | H2: Pl. Ges. | I2: gewertet | J2: Punkte
A3: Buchholz, Ansgar | B3: 23 | D3: =IF(B3>0,C3+B3,"") -> 23 | E3: TRUE | F3: =IF(B3>0,COUNTIF(B$3:B$55,"<"&B3)+1,"") -> 1 | G3: =IF(C3>0,COUNTIF(C$3:C$55,"<"&C3)+1,"") ->  | H3: =IF(AND(B3>0,C3>0),COUNTIF(D$3:D$55,"<"&D3)+1,"") ->  | I3: =IF(B3>0,IF(E3,MIN(F3:H3),MAX(F3:H3)),"") -> 1 | J3: =IF(B3>0,VLOOKUP(I3,Punkteschema!$A$2:$B$101,2,FALSE),"") -> 25
A4: Battig, Wolfgang | B4: 28 | D4: 28 | E4: FALSE | F4: 2 | I4: 2 | J4: =IF(B4>0,VLOOKUP(I4,Punkteschema!$A$2:$B$101,2,FALSE),"") -> 21
A5: Lenk, Rolf | B5: 29 | D5: 29 | E5: TRUE | F5: 3 | I5: 3 | J5: =IF(B5>0,VLOOKUP(I5,Punkteschema!$A$2:$B$101,2,FALSE),"") -> 18
A6: Lehmann, Niclas | B6: 31 | D6: 31 | E6: TRUE | F6: 4 | I6: 4 | J6: =IF(B6>0,VLOOKUP(I6,Punkteschema!$A$2:$B$101,2,FALSE),"") -> 15
A7: Hein, Hans-Jörg | B7: 31 | D7: 31 | E7: FALSE | F7: 4 | I7: 4 | J7: =IF(B7>0,VLOOKUP(I7,Punkteschema!$A$2:$B$101,2,FALSE),"") -> 15
A8: Kortmann, Uwe | B8: 32 | D8: 32 | E8: TRUE | F8: 6 | I8: 6 | J8: =IF(B8>0,VLOOKUP(I8,Punkteschema!$A$2:$B$101,2,FALSE),"") -> 15
A9: Kortmann, Sabine | B9: 33 | D9: 33 | E9: TRUE | F9: 7 | I9: 7 | J9: =IF(B9>0,VLOOKUP(I9,Punkteschema!$A$2:$B$101,2,FALSE),"") -> 10
A10: Rabe, Jonas | B10: 33 | D10: 33 | E10: TRUE | F10: 7 | I10: 7 | J10: =IF(B10>0,VLOOKUP(I10,Punkteschema!$A$2:$B$101,2,FALSE),"") -> 10
A11: Börgmann, Ulrich | B11: 33 | D11: 33 | E11: TRUE | F11: 7 | I11: 7 | J11: =IF(B11>0,VLOOKUP(I11,Punkteschema!$A$2:$B$101,2,FALSE),"") -> 10
A12: Lieber, Nicole | B12: 34 | D12: 34 | E12: TRUE | F12: 10 | I12: 10 | J12: =IF(B12>0,VLOOKUP(I12,Punkteschema!$A$2:$B$101,2,FALSE),"") -> 10
A13: Kunz, Martin | B13: 37 | D13: 37 | E13: TRUE | F13: 11 | I13: 11 | J13: =IF(B13>0,VLOOKUP(I13,Punkteschema!$A$2:$B$101,2,FALSE),"") -> 5
A14: Schmidt, Barbara | B14: 38 | D14: 38 | E14: TRUE | F14: 12 | I14: 12 | J14: =IF(B14>0,VLOOKUP(I14,Punkteschema!$A$2:$B$101,2,FALSE),"") -> 5
A15: Puschner, Michael | B15: 38 | D15: 38 | E15: FALSE | F15: 12 | I15: 12 | J15: =IF(B15>0,VLOOKUP(I15,Punkteschema!$A$2:$B$101,2,FALSE),"") -> 5
A16: Schmidtbauer, Günter | B16: 39 | D16: 39 | E16: TRUE | F16: 14 | I16: 14 | J16: =IF(B16>0,VLOOKUP(I16,Punkteschema!$A$2:$B$101,2,FALSE),"") -> 5
A17: Greiffendorf, Hellmut | B17: 40 | D17: 40 | E17: TRUE | F17: 15 | I17: 15 | J17: =IF(B17>0,VLOOKUP(I17,Punkteschema!$A$2:$B$101,2,FALSE),"") -> 5
A18: Börgmann, Brigitte | B18: 41 | D18: 41 | E18: TRUE | F18: 16 | I18: 16 | J18: =IF(B18>0,VLOOKUP(I18,Punkteschema!$A$2:$B$101,2,FALSE),"") -> 3
A19: Brunnenkant, Frank | B19: 43 | D19: 43 | E19: TRUE | F19: 17 | I19: 17 | J19: =IF(B19>0,VLOOKUP(I19,Punkteschema!$A$2:$B$101,2,FALSE),"") -> 3
D20: =IF(B20>0,C20+B20,"") ->  | E20: TRUE | F20: =IF(B20>0,COUNTIF(B$3:B$55,"<"&B20)+1,"") ->  | G20: =IF(C20>0,COUNTIF(C$3:C$55,"<"&C20)+1,"") ->  | H20: =IF(AND(B20>0,C20>0),COUNTIF(D$3:D$55,"<"&D20)+1,"") ->  | I20: =IF(B20>0,IF(E20,MIN(F20:H20),MAX(F20:H20)),"") ->  | J20: =IF(B20>0,VLOOKUP(I20,Punkteschema!$A$2:$B$101,2,FALSE),"") -> 
E21: TRUE | J21: =IF(B21>0,VLOOKUP(I21,Punkteschema!$A$2:$B$101,2,FALSE),"") -> 
E22: TRUE | J22: =IF(B22>0,VLOOKUP(I22,Punkteschema!$A$2:$B$101,2,FALSE),"") -> 
D23: =IF(B23>0,C23+B23,"") ->  | E23: TRUE | F23: =IF(B23>0,COUNTIF(B$3:B$55,"<"&B23)+1,"") ->  | G23: =IF(C23>0,COUNTIF(C$3:C$55,"<"&C23)+1,"") ->  | H23: =IF(AND(B23>0,C23>0),COUNTIF(D$3:D$55,"<"&D23)+1,"") ->  | I23: =IF(B23>0,IF(E23,MIN(F23:H23),MAX(F23:H23)),"") ->  | J23: =IF(B23>0,VLOOKUP(I23,Punkteschema!$A$2:$B$101,2,FALSE),"") -> 
D24: =IF(B24>0,C24+B24,"") ->  | E24: TRUE | F24: =IF(B24>0,COUNTIF(B$3:B$55,"<"&B24)+1,"") ->  | H24: =IF(AND(B24>0,C24>0),COUNTIF(D$3:D$55,"<"&D24)+1,"") ->  | I24: =IF(B24>0,IF(E24,MIN(F24:H24),MAX(F24:H24)),"") ->  | J24: =IF(B24>0,VLOOKUP(I24,Punkteschema!$A$2:$B$101,2,FALSE),"") -> 
E25: TRUE | J25: =IF(B25>0,VLOOKUP(I25,Punkteschema!$A$2:$B$101,2,FALSE),"") -> 
E26: TRUE | J26: =IF(B26>0,VLOOKUP(I26,Punkteschema!$A$2:$B$101,2,FALSE),"") -> 
E27: TRUE | J27: =IF(B27>0,VLOOKUP(I27,Punkteschema!$A$2:$B$101,2,FALSE),"") -> 
E28: TRUE | J28: =IF(B28>0,VLOOKUP(I28,Punkteschema!$A$2:$B$101,2,FALSE),"") -> 
E29: TRUE | J29: =IF(B29>0,VLOOKUP(I29,Punkteschema!$A$2:$B$101,2,FALSE),"") -> 
E30: TRUE | J30: =IF(B30>0,VLOOKUP(I30,Punkteschema!$A$2:$B$101,2,FALSE),"") -> 
E31: TRUE | J31: =IF(B31>0,VLOOKUP(I31,Punkteschema!$A$2:$B$101,2,FALSE),"") -> 
E32: TRUE | J32: =IF(B32>0,VLOOKUP(I32,Punkteschema!$A$2:$B$101,2,FALSE),"") -> 
E33: TRUE | J33: =IF(B33>0,VLOOKUP(I33,Punkteschema!$A$2:$B$101,2,FALSE),"") -> 
E34: TRUE | J34: =IF(B34>0,VLOOKUP(I34,Punkteschema!$A$2:$B$101,2,FALSE),"") -> 
E35: TRUE | J35: =IF(B35>0,VLOOKUP(I35,Punkteschema!$A$2:$B$101,2,FALSE),"") -> 
E36: TRUE | J36: =IF(B36>0,VLOOKUP(I36,Punkteschema!$A$2:$B$101,2,FALSE),"") -> 
E37: TRUE | J37: =IF(B37>0,VLOOKUP(I37,Punkteschema!$A$2:$B$101,2,FALSE),"") -> 
E38: TRUE | J38: =IF(B38>0,VLOOKUP(I38,Punkteschema!$A$2:$B$101,2,FALSE),"") -> 
E39: TRUE | J39: =IF(B39>0,VLOOKUP(I39,Punkteschema!$A$2:$B$101,2,FALSE),"") -> 
E40: TRUE | J40: =IF(B40>0,VLOOKUP(I40,Punkteschema!$A$2:$B$101,2,FALSE),"") -> 
E41: TRUE | J41: =IF(B41>0,VLOOKUP(I41,Punkteschema!$A$2:$B$101,2,FALSE),"") -> 
E42: TRUE | J42: =IF(B42>0,VLOOKUP(I42,Punkteschema!$A$2:$B$101,2,FALSE),"") -> 
E43: TRUE | J43: =IF(B43>0,VLOOKUP(I43,Punkteschema!$A$2:$B$101,2,FALSE),"") -> 
E44: TRUE | J44: =IF(B44>0,VLOOKUP(I44,Punkteschema!$A$2:$B$101,2,FALSE),"") -> 
E45: TRUE | J45: =IF(B45>0,VLOOKUP(I45,Punkteschema!$A$2:$B$101,2,FALSE),"") -> 
E46: TRUE | J46: =IF(B46>0,VLOOKUP(I46,Punkteschema!$A$2:$B$101,2,FALSE),"") -> 
E47: TRUE | J47: =IF(B47>0,VLOOKUP(I47,Punkteschema!$A$2:$B$101,2,FALSE),"") -> 
E48: TRUE | J48: =IF(B48>0,VLOOKUP(I48,Punkteschema!$A$2:$B$101,2,FALSE),"") -> 
E49: TRUE | J49: =IF(B49>0,VLOOKUP(I49,Punkteschema!$A$2:$B$101,2,FALSE),"") -> 
E50: TRUE | J50: =IF(B50>0,VLOOKUP(I50,Punkteschema!$A$2:$B$101,2,FALSE),"") -> 
E51: TRUE | J51: =IF(B51>0,VLOOKUP(I51,Punkteschema!$A$2:$B$101,2,FALSE),"") -> 
E52: TRUE | J52: =IF(B52>0,VLOOKUP(I52,Punkteschema!$A$2:$B$101,2,FALSE),"") -> 
E53: TRUE | F53: =IF(B53>0,COUNTIF(B$3:B$55,"<"&B53)+1,"") ->  | H53: =IF(AND(B53>0,C53>0),COUNTIF(D$3:D$55,"<"&D53)+1,"") ->  | I53: =IF(B53>0,IF(E53,MIN(F53:H53),MAX(F53:H53)),"") ->  | J53: =IF(B53>0,VLOOKUP(I53,Punkteschema!$A$2:$B$101,2,FALSE),"") -> 
E54: TRUE | H54: =IF(AND(B54>0,C54>0),COUNTIF(D$3:D$55,"<"&D54)+1,"") ->  | I54: =IF(B54>0,IF(E54,MIN(F54:H54),MAX(F54:H54)),"") ->  | J54: =IF(B54>0,VLOOKUP(I54,Punkteschema!$A$2:$B$101,2,FALSE),"") -> 
E55: TRUE | H55: =IF(AND(B55>0,C55>0),COUNTIF(D$3:D$55,"<"&D55)+1,"") ->  | I55: =IF(B55>0,IF(E55,MIN(F55:H55),MAX(F55:H55)),"") ->  | J55: =IF(B55>0,VLOOKUP(I55,Punkteschema!$A$2:$B$101,2,FALSE),"") -> 
A57: OS: Buchholz, Ansgar (ASW) | E57: Runde 1: | F57: E | G57: <- E/B
A58: S: Puschner, Michael (HOB) | E58: Runde 2: | F58: B | G58: <- E/B
A59: S: Battig, Wolfgang (LÜD)
A61: Verloste Preise: | B61: Frank Brunnenkant - 1 Minigolfball (Deutschmann Tango)
B62: Barbara Schmidt - 1 Flasche Holunderwein
B63: Brigitte Börgmann - 1 Verzehrgutschein
A65: Regenbedingt wurde während der Beton-Runde zuerst unter- und dann abgebrochen.

Sheet Einzelwertung10
A1: =CONCATENATE("6. Sommer-Cup - Freizeittreff Herbede - ",TEXT(Gesamtstand!$O$2,"TT.MM.JJ")) -> 6. Sommer-Cup - Freizeittreff Herbede - 09.07.20
A2: Spieler | B2: Runde 1 | C2: Runde 2 | D2: Gesamt | E2: bessere? | F2: Pl. R1 | G2: Pl. R2 | H2: Pl. Ges. | I2: gewertet | J2: Punkte
A3: Rabe, Jonas | B3: 25 | C3: 34 | D3: =IF(B3>0,C3+B3,"") -> 59 | E3: TRUE | F3: =IF(B3>0,COUNTIF(B$3:B$55,"<"&B3)+1,"") -> 1 | G3: =IF(C3>0,COUNTIF(C$3:C$55,"<"&C3)+1,"") -> 3 | H3: =IF(AND(B3>0,C3>0),COUNTIF(D$3:D$55,"<"&D3)+1,"") -> 2 | I3: =IF(B3>0,IF(E3,MIN(F3:H3),MAX(F3:H3)),"") -> 1 | J3: =IF(B3>0,VLOOKUP(I3,Punkteschema!$A$2:$B$101,2,FALSE),"") -> 25
A4: Urban, Volker | B4: 26 | C4: 31 | D4: 57 | E4: FALSE | F4: 2 | G4: 1 | H4: 1 | I4: 2 | J4: =IF(B4>0,VLOOKUP(I4,Punkteschema!$A$2:$B$101,2,FALSE),"") -> 21
A5: Lieber, Nicole | B5: 27 | C5: 33 | D5: 60 | E5: TRUE | F5: 4 | G5: 2 | H5: 3 | I5: 2 | J5: =IF(B5>0,VLOOKUP(I5,Punkteschema!$A$2:$B$101,2,FALSE),"") -> 21
A6: Kortmann, Sabine | B6: 29 | C6: 34 | D6: 63 | E6: TRUE | F6: 5 | G6: 3 | H6: 4 | I6: 3 | J6: =IF(B6>0,VLOOKUP(I6,Punkteschema!$A$2:$B$101,2,FALSE),"") -> 18
A7: Börgmann, Brigitte | B7: 43 | C7: 34 | D7: 77 | E7: TRUE | F7: 14 | G7: 3 | H7: 11 | I7: 3 | J7: =IF(B7>0,VLOOKUP(I7,Punkteschema!$A$2:$B$101,2,FALSE),"") -> 18
A8: Schmidtbauer, Günter | B8: 46 | C8: 34 | D8: 80 | E8: TRUE | F8: 15 | G8: 3 | H8: 14 | I8: 3 | J8: =IF(B8>0,VLOOKUP(I8,Punkteschema!$A$2:$B$101,2,FALSE),"") -> 18
A9: Puschner, Michael | B9: 30 | C9: 35 | D9: 65 | E9: TRUE | F9: 7 | G9: 7 | H9: 5 | I9: 5 | J9: =IF(B9>0,VLOOKUP(I9,Punkteschema!$A$2:$B$101,2,FALSE),"") -> 15
A10: Urban, Dominic | B10: 29 | C10: 37 | D10: 66 | E10: TRUE | F10: 5 | G10: 11 | H10: 7 | I10: 5 | J10: =IF(B10>0,VLOOKUP(I10,Punkteschema!$A$2:$B$101,2,FALSE),"") -> 15
A11: Börgmann, Ulrich | B11: 36 | C11: 35 | D11: 71 | E11: TRUE | F11: 10 | G11: 7 | H11: 10 | I11: 7 | J11: =IF(B11>0,VLOOKUP(I11,Punkteschema!$A$2:$B$101,2,FALSE),"") -> 10
A12: Kunz, Martin | B12: 33 | C12: 36 | D12: 69 | E12: TRUE | F12: 8 | G12: 9 | H12: 8 | I12: 8 | J12: =IF(B12>0,VLOOKUP(I12,Punkteschema!$A$2:$B$101,2,FALSE),"") -> 10
A13: Lenk, Rolf | B13: 33 | C13: 36 | D13: 69 | E13: FALSE | F13: 8 | G13: 9 | H13: 8 | I13: 9 | J13: =IF(B13>0,VLOOKUP(I13,Punkteschema!$A$2:$B$101,2,FALSE),"") -> 10
A14: Kersch, Uwe | B14: 36 | C14: 41 | D14: 77 | E14: TRUE | F14: 10 | G14: 14 | H14: 11 | I14: 10 | J14: =IF(B14>0,VLOOKUP(I14,Punkteschema!$A$2:$B$101,2,FALSE),"") -> 10
A15: Urban, Angela | B15: 37 | C15: 40 | D15: 77 | E15: TRUE | F15: 12 | G15: 13 | H15: 11 | I15: 11 | J15: =IF(B15>0,VLOOKUP(I15,Punkteschema!$A$2:$B$101,2,FALSE),"") -> 5
A16: Lehmann, Niclas | B16: 26 | C16: 39 | D16: 65 | E16: FALSE | F16: 2 | G16: 12 | H16: 5 | I16: 12 | J16: =IF(B16>0,VLOOKUP(I16,Punkteschema!$A$2:$B$101,2,FALSE),"") -> 5
A17: Kortmann, Uwe | B17: 40 | C17: 41 | D17: 81 | E17: TRUE | F17: 13 | G17: 14 | H17: 15 | I17: 13 | J17: =IF(B17>0,VLOOKUP(I17,Punkteschema!$A$2:$B$101,2,FALSE),"") -> 5
A18: Schmidt, Barbara | B18: 46 | C18: 48 | D18: 94 | E18: TRUE | F18: 15 | G18: 16 | H18: 16 | I18: 15 | J18: =IF(B18>0,VLOOKUP(I18,Punkteschema!$A$2:$B$101,2,FALSE),"") -> 5
D19: =IF(B19>0,C19+B19,"") ->  | E19: TRUE | F19: =IF(B19>0,COUNTIF(B$3:B$55,"<"&B19)+1,"") ->  | G19: =IF(C19>0,COUNTIF(C$3:C$55,"<"&C19)+1,"") ->  | H19: =IF(AND(B19>0,C19>0),COUNTIF(D$3:D$55,"<"&D19)+1,"") ->  | I19: =IF(B19>0,IF(E19,MIN(F19:H19),MAX(F19:H19)),"") ->  | J19: =IF(B19>0,VLOOKUP(I19,Punkteschema!$A$2:$B$101,2,FALSE),"") -> 
E20: TRUE | J20: =IF(B20>0,VLOOKUP(I20,Punkteschema!$A$2:$B$101,2,FALSE),"") -> 
E21: TRUE | J21: =IF(B21>0,VLOOKUP(I21,Punkteschema!$A$2:$B$101,2,FALSE),"") -> 
D22: =IF(B22>0,C22+B22,"") ->  | E22: TRUE | F22: =IF(B22>0,COUNTIF(B$3:B$55,"<"&B22)+1,"") ->  | G22: =IF(C22>0,COUNTIF(C$3:C$55,"<"&C22)+1,"") ->  | H22: =IF(AND(B22>0,C22>0),COUNTIF(D$3:D$55,"<"&D22)+1,"") ->  | I22: =IF(B22>0,IF(E22,MIN(F22:H22),MAX(F22:H22)),"") ->  | J22: =IF(B22>0,VLOOKUP(I22,Punkteschema!$A$2:$B$101,2,FALSE),"") -> 
E23: TRUE | J23: =IF(B23>0,VLOOKUP(I23,Punkteschema!$A$2:$B$101,2,FALSE),"") -> 
E24: TRUE | J24: =IF(B24>0,VLOOKUP(I24,Punkteschema!$A$2:$B$101,2,FALSE),"") -> 
E25: TRUE | J25: =IF(B25>0,VLOOKUP(I25,Punkteschema!$A$2:$B$101,2,FALSE),"") -> 
D26: =IF(B26>0,C26+B26,"") ->  | E26: TRUE | F26: =IF(B26>0,COUNTIF(B$3:B$55,"<"&B26)+1,"") ->  | H26: =IF(AND(B26>0,C26>0),COUNTIF(D$3:D$55,"<"&D26)+1,"") ->  | I26: =IF(B26>0,IF(E26,MIN(F26:H26),MAX(F26:H26)),"") ->  | J26: =IF(B26>0,VLOOKUP(I26,Punkteschema!$A$2:$B$101,2,FALSE),"") -> 
E27: TRUE | J27: =IF(B27>0,VLOOKUP(I27,Punkteschema!$A$2:$B$101,2,FALSE),"") -> 
E28: TRUE | J28: =IF(B28>0,VLOOKUP(I28,Punkteschema!$A$2:$B$101,2,FALSE),"") -> 
E29: TRUE | J29: =IF(B29>0,VLOOKUP(I29,Punkteschema!$A$2:$B$101,2,FALSE),"") -> 
E30: TRUE | J30: =IF(B30>0,VLOOKUP(I30,Punkteschema!$A$2:$B$101,2,FALSE),"") -> 
E31: TRUE | J31: =IF(B31>0,VLOOKUP(I31,Punkteschema!$A$2:$B$101,2,FALSE),"") -> 
E32: TRUE | J32: =IF(B32>0,VLOOKUP(I32,Punkteschema!$A$2:$B$101,2,FALSE),"") -> 
E33: TRUE | J33: =IF(B33>0,VLOOKUP(I33,Punkteschema!$A$2:$B$101,2,FALSE),"") -> 
E34: TRUE | J34: =IF(B34>0,VLOOKUP(I34,Punkteschema!$A$2:$B$101,2,FALSE),"") -> 
E35: TRUE | J35: =IF(B35>0,VLOOKUP(I35,Punkteschema!$A$2:$B$101,2,FALSE),"") -> 
E36: TRUE | J36: =IF(B36>0,VLOOKUP(I36,Punkteschema!$A$2:$B$101,2,FALSE),"") -> 
E37: TRUE | J37: =IF(B37>0,VLOOKUP(I37,Punkteschema!$A$2:$B$101,2,FALSE),"") -> 
E38: TRUE | J38: =IF(B38>0,VLOOKUP(I38,Punkteschema!$A$2:$B$101,2,FALSE),"") -> 
E39: TRUE | J39: =IF(B39>0,VLOOKUP(I39,Punkteschema!$A$2:$B$101,2,FALSE),"") -> 
E40: TRUE | J40: =IF(B40>0,VLOOKUP(I40,Punkteschema!$A$2:$B$101,2,FALSE),"") -> 
E41: TRUE | J41: =IF(B41>0,VLOOKUP(I41,Punkteschema!$A$2:$B$101,2,FALSE),"") -> 
E42: TRUE | J42: =IF(B42>0,VLOOKUP(I42,Punkteschema!$A$2:$B$101,2,FALSE),"") -> 
E43: TRUE | J43: =IF(B43>0,VLOOKUP(I43,Punkteschema!$A$2:$B$101,2,FALSE),"") -> 
E44: TRUE | J44: =IF(B44>0,VLOOKUP(I44,Punkteschema!$A$2:$B$101,2,FALSE),"") -> 
E45: TRUE | J45: =IF(B45>0,VLOOKUP(I45,Punkteschema!$A$2:$B$101,2,FALSE),"") -> 
E46: TRUE | J46: =IF(B46>0,VLOOKUP(I46,Punkteschema!$A$2:$B$101,2,FALSE),"") -> 
E47: TRUE | J47: =IF(B47>0,VLOOKUP(I47,Punkteschema!$A$2:$B$101,2,FALSE),"") -> 
E48: TRUE | J48: =IF(B48>0,VLOOKUP(I48,Punkteschema!$A$2:$B$101,2,FALSE),"") -> 
E49: TRUE | J49: =IF(B49>0,VLOOKUP(I49,Punkteschema!$A$2:$B$101,2,FALSE),"") -> 
E50: TRUE | J50: =IF(B50>0,VLOOKUP(I50,Punkteschema!$A$2:$B$101,2,FALSE),"") -> 
E51: TRUE | J51: =IF(B51>0,VLOOKUP(I51,Punkteschema!$A$2:$B$101,2,FALSE),"") -> 
E52: TRUE | J52: =IF(B52>0,VLOOKUP(I52,Punkteschema!$A$2:$B$101,2,FALSE),"") -> 
E53: TRUE | F53: =IF(B53>0,COUNTIF(B$3:B$55,"<"&B53)+1,"") ->  | H53: =IF(AND(B53>0,C53>0),COUNTIF(D$3:D$55,"<"&D53)+1,"") ->  | I53: =IF(B53>0,IF(E53,MIN(F53:H53),MAX(F53:H53)),"") ->  | J53: =IF(B53>0,VLOOKUP(I53,Punkteschema!$A$2:$B$101,2,FALSE),"") -> 
E54: TRUE | H54: =IF(AND(B54>0,C54>0),COUNTIF(D$3:D$55,"<"&D54)+1,"") ->  | I54: =IF(B54>0,IF(E54,MIN(F54:H54),MAX(F54:H54)),"") ->  | J54: =IF(B54>0,VLOOKUP(I54,Punkteschema!$A$2:$B$101,2,FALSE),"") -> 
E55: TRUE | H55: =IF(AND(B55>0,C55>0),COUNTIF(D$3:D$55,"<"&D55)+1,"") ->  | I55: =IF(B55>0,IF(E55,MIN(F55:H55),MAX(F55:H55)),"") ->  | J55: =IF(B55>0,VLOOKUP(I55,Punkteschema!$A$2:$B$101,2,FALSE),"") -> 
A57: OS: Urban, Volker (ASW) | E57: Runde 1: | F57: E | G57: <- E/B
A58: S: Puschner, Michael (HOB) | E58: Runde 2: | F58: B | G58: <- E/B
A59: S: Lieber, Nicole (HOB)
A61: Verloste Preise: | B61: Dominic Urban - 1 Minigolfball (3D Wolfgang Döppner)
B62: Barbara Schmidt - 1 Glasquader "Minigolfer"
B63: Brigitte Börgmann - 1 Flasche Sekt

Sheet Einzelwertung18 (hidden)
A1: =CONCATENATE("6. Sommer-Cup - Freizeittreff Herbede - ",TEXT(Gesamtstand!$W$2,"TT.MM.JJ")) -> 6. Sommer-Cup - Freizeittreff Herbede - 03.09.20
A2: Spieler | B2: Runde 1 | C2: Runde 2 | D2: Gesamt | E2: bessere? | F2: Pl. R1 | G2: Pl. R2 | H2: Pl. Ges. | I2: gewertet | J2: Punkte
D3: =IF(B3>0,C3+B3,"") ->  | E3: TRUE | F3: =IF(B3>0,COUNTIF(B$3:B$55,"<"&B3)+1,"") ->  | G3: =IF(C3>0,COUNTIF(C$3:C$55,"<"&C3)+1,"") ->  | H3: =IF(AND(B3>0,C3>0),COUNTIF(D$3:D$55,"<"&D3)+1,"") ->  | I3: =IF(B3>0,IF(E3,MIN(F3:H3),MAX(F3:H3)),"") ->  | J3: =IF(B3>0,VLOOKUP(I3,Punkteschema!$A$2:$B$101,2,FALSE),"") -> 
E4: TRUE | J4: =IF(B4>0,VLOOKUP(I4,Punkteschema!$A$2:$B$101,2,FALSE),"") -> 
E5: TRUE | J5: =IF(B5>0,VLOOKUP(I5,Punkteschema!$A$2:$B$101,2,FALSE),"") -> 
E6: TRUE | J6: =IF(B6>0,VLOOKUP(I6,Punkteschema!$A$2:$B$101,2,FALSE),"") -> 
E7: TRUE | J7: =IF(B7>0,VLOOKUP(I7,Punkteschema!$A$2:$B$101,2,FALSE),"") -> 
E8: TRUE | J8: =IF(B8>0,VLOOKUP(I8,Punkteschema!$A$2:$B$101,2,FALSE),"") -> 
E9: TRUE | J9: =IF(B9>0,VLOOKUP(I9,Punkteschema!$A$2:$B$101,2,FALSE),"") -> 
E10: TRUE | J10: =IF(B10>0,VLOOKUP(I10,Punkteschema!$A$2:$B$101,2,FALSE),"") -> 
E11: TRUE | J11: =IF(B11>0,VLOOKUP(I11,Punkteschema!$A$2:$B$101,2,FALSE),"") -> 
E12: TRUE | J12: =IF(B12>0,VLOOKUP(I12,Punkteschema!$A$2:$B$101,2,FALSE),"") -> 
E13: TRUE | J13: =IF(B13>0,VLOOKUP(I13,Punkteschema!$A$2:$B$101,2,FALSE),"") -> 
E14: TRUE | J14: =IF(B14>0,VLOOKUP(I14,Punkteschema!$A$2:$B$101,2,FALSE),"") -> 
E15: TRUE | J15: =IF(B15>0,VLOOKUP(I15,Punkteschema!$A$2:$B$101,2,FALSE),"") -> 
E16: TRUE | J16: =IF(B16>0,VLOOKUP(I16,Punkteschema!$A$2:$B$101,2,FALSE),"") -> 
E17: TRUE | J17: =IF(B17>0,VLOOKUP(I17,Punkteschema!$A$2:$B$101,2,FALSE),"") -> 
E18: TRUE | J18: =IF(B18>0,VLOOKUP(I18,Punkteschema!$A$2:$B$101,2,FALSE),"") -> 
E19: TRUE | J19: =IF(B19>0,VLOOKUP(I19,Punkteschema!$A$2:$B$101,2,FALSE),"") -> 
E20: TRUE | J20: =IF(B20>0,VLOOKUP(I20,Punkteschema!$A$2:$B$101,2,FALSE),"") -> 
E21: TRUE | J21: =IF(B21>0,VLOOKUP(I21,Punkteschema!$A$2:$B$101,2,FALSE),"") -> 
E22: TRUE | J22: =IF(B22>0,VLOOKUP(I22,Punkteschema!$A$2:$B$101,2,FALSE),"") -> 
D23: =IF(B23>0,C23+B23,"") ->  | E23: TRUE | F23: =IF(B23>0,COUNTIF(B$3:B$55,"<"&B23)+1,"") ->  | G23: =IF(C23>0,COUNTIF(C$3:C$55,"<"&C23)+1,"") ->  | H23: =IF(AND(B23>0,C23>0),COUNTIF(D$3:D$55,"<"&D23)+1,"") ->  | I23: =IF(B23>0,IF(E23,MIN(F23:H23),MAX(F23:H23)),"") ->  | J23: =IF(B23>0,VLOOKUP(I23,Punkteschema!$A$2:$B$101,2,FALSE),"") -> 
E24: TRUE | J24: =IF(B24>0,VLOOKUP(I24,Punkteschema!$A$2:$B$101,2,FALSE),"") -> 
E25: TRUE | J25: =IF(B25>0,VLOOKUP(I25,Punkteschema!$A$2:$B$101,2,FALSE),"") -> 
E26: TRUE | J26: =IF(B26>0,VLOOKUP(I26,Punkteschema!$A$2:$B$101,2,FALSE),"") -> 
E27: TRUE | J27: =IF(B27>0,VLOOKUP(I27,Punkteschema!$A$2:$B$101,2,FALSE),"") -> 
E28: TRUE | J28: =IF(B28>0,VLOOKUP(I28,Punkteschema!$A$2:$B$101,2,FALSE),"") -> 
E29: TRUE | J29: =IF(B29>0,VLOOKUP(I29,Punkteschema!$A$2:$B$101,2,FALSE),"") -> 
E30: TRUE | J30: =IF(B30>0,VLOOKUP(I30,Punkteschema!$A$2:$B$101,2,FALSE),"") -> 
E31: TRUE | J31: =IF(B31>0,VLOOKUP(I31,Punkteschema!$A$2:$B$101,2,FALSE),"") -> 
E32: TRUE | J32: =IF(B32>0,VLOOKUP(I32,Punkteschema!$A$2:$B$101,2,FALSE),"") -> 
E33: TRUE | J33: =IF(B33>0,VLOOKUP(I33,Punkteschema!$A$2:$B$101,2,FALSE),"") -> 
E34: TRUE | J34: =IF(B34>0,VLOOKUP(I34,Punkteschema!$A$2:$B$101,2,FALSE),"") -> 
E35: TRUE | J35: =IF(B35>0,VLOOKUP(I35,Punkteschema!$A$2:$B$101,2,FALSE),"") -> 
E36: TRUE | J36: =IF(B36>0,VLOOKUP(I36,Punkteschema!$A$2:$B$101,2,FALSE),"") -> 
E37: TRUE | J37: =IF(B37>0,VLOOKUP(I37,Punkteschema!$A$2:$B$101,2,FALSE),"") -> 
E38: TRUE | J38: =IF(B38>0,VLOOKUP(I38,Punkteschema!$A$2:$B$101,2,FALSE),"") -> 
E39: TRUE | J39: =IF(B39>0,VLOOKUP(I39,Punkteschema!$A$2:$B$101,2,FALSE),"") -> 
E40: TRUE | J40: =IF(B40>0,VLOOKUP(I40,Punkteschema!$A$2:$B$101,2,FALSE),"") -> 
E41: TRUE | J41: =IF(B41>0,VLOOKUP(I41,Punkteschema!$A$2:$B$101,2,FALSE),"") -> 
E42: TRUE | J42: =IF(B42>0,VLOOKUP(I42,Punkteschema!$A$2:$B$101,2,FALSE),"") -> 
E43: TRUE | J43: =IF(B43>0,VLOOKUP(I43,Punkteschema!$A$2:$B$101,2,FALSE),"") -> 
E44: TRUE | J44: =IF(B44>0,VLOOKUP(I44,Punkteschema!$A$2:$B$101,2,FALSE),"") -> 
E45: TRUE | J45: =IF(B45>0,VLOOKUP(I45,Punkteschema!$A$2:$B$101,2,FALSE),"") -> 
E46: TRUE | J46: =IF(B46>0,VLOOKUP(I46,Punkteschema!$A$2:$B$101,2,FALSE),"") -> 
E47: TRUE | J47: =IF(B47>0,VLOOKUP(I47,Punkteschema!$A$2:$B$101,2,FALSE),"") -> 
E48: TRUE | J48: =IF(B48>0,VLOOKUP(I48,Punkteschema!$A$2:$B$101,2,FALSE),"") -> 
E49: TRUE | J49: =IF(B49>0,VLOOKUP(I49,Punkteschema!$A$2:$B$101,2,FALSE),"") -> 
E50: TRUE | J50: =IF(B50>0,VLOOKUP(I50,Punkteschema!$A$2:$B$101,2,FALSE),"") -> 
E51: TRUE | J51: =IF(B51>0,VLOOKUP(I51,Punkteschema!$A$2:$B$101,2,FALSE),"") -> 
E52: TRUE | J52: =IF(B52>0,VLOOKUP(I52,Punkteschema!$A$2:$B$101,2,FALSE),"") -> 
E53: TRUE | F53: =IF(B53>0,COUNTIF(B$3:B$55,"<"&B53)+1,"") ->  | H53: =IF(AND(B53>0,C53>0),COUNTIF(D$3:D$55,"<"&D53)+1,"") ->  | I53: =IF(B53>0,IF(E53,MIN(F53:H53),MAX(F53:H53)),"") ->  | J53: =IF(B53>0,VLOOKUP(I53,Punkteschema!$A$2:$B$101,2,FALSE),"") -> 
E54: TRUE | H54: =IF(AND(B54>0,C54>0),COUNTIF(D$3:D$55,"<"&D54)+1,"") ->  | I54: =IF(B54>0,IF(E54,MIN(F54:H54),MAX(F54:H54)),"") ->  | J54: =IF(B54>0,VLOOKUP(I54,Punkteschema!$A$2:$B$101,2,FALSE),"") -> 
E55: TRUE | H55: =IF(AND(B55>0,C55>0),COUNTIF(D$3:D$55,"<"&D55)+1,"") ->  | I55: =IF(B55>0,IF(E55,MIN(F55:H55),MAX(F55:H55)),"") ->  | J55: =IF(B55>0,VLOOKUP(I55,Punkteschema!$A$2:$B$101,2,FALSE),"") -> 
A57: OS: | E57: Runde 1: | F57: E | G57: <- E/B
A58: S: | E58: Runde 2: | F58: B | G58: <- E/B
A59: S:
A61: Verloste Preise:

Sheet Einzelwertung11
A1: =CONCATENATE("6. Sommer-Cup - Freizeittreff Herbede - ",TEXT(Gesamtstand!$P$2,"TT.MM.JJ")) -> 6. Sommer-Cup - Freizeittreff Herbede - 16.07.20
A2: Spieler | B2: Runde 1 | C2: Runde 2 | D2: Gesamt | E2: bessere? | F2: Pl. R1 | G2: Pl. R2 | H2: Pl. Ges. | I2: gewertet | J2: Punkte
A3: Urban, Dominic | B3: 24 | C3: 32 | D3: =IF(B3>0,C3+B3,"") -> 56 | E3: TRUE | F3: =IF(B3>0,COUNTIF(B$3:B$55,"<"&B3)+1,"") -> 1 | G3: =IF(C3>0,COUNTIF(C$3:C$55,"<"&C3)+1,"") -> 2 | H3: =IF(AND(B3>0,C3>0),COUNTIF(D$3:D$55,"<"&D3)+1,"") -> 1 | I3: =IF(B3>0,IF(E3,MIN(F3:H3),MAX(F3:H3)),"") -> 1 | J3: =IF(B3>0,VLOOKUP(I3,Punkteschema!$A$2:$B$101,2,FALSE),"") -> 25
A4: Schmidtbauer, Günter | B4: 40 | C4: 31 | D4: 71 | E4: TRUE | F4: 15 | G4: 1 | H4: 10 | I4: 1 | J4: =IF(B4>0,VLOOKUP(I4,Punkteschema!$A$2:$B$101,2,FALSE),"") -> 25
A5: Urban, Volker | B5: 27 | C5: 32 | D5: 59 | E5: FALSE | F5: 2 | G5: 2 | H5: 2 | I5: 2 | J5: =IF(B5>0,VLOOKUP(I5,Punkteschema!$A$2:$B$101,2,FALSE),"") -> 21
A6: Lieber, Nicole | B6: 27 | C6: 36 | D6: 63 | E6: TRUE | F6: 2 | G6: 11 | H6: 6 | I6: 2 | J6: =IF(B6>0,VLOOKUP(I6,Punkteschema!$A$2:$B$101,2,FALSE),"") -> 21
A7: Urban, Angela | B7: 38 | C7: 32 | D7: 70 | E7: TRUE | F7: 13 | G7: 2 | H7: 8 | I7: 2 | J7: =IF(B7>0,VLOOKUP(I7,Punkteschema!$A$2:$B$101,2,FALSE),"") -> 21
A8: Puschner, Michael | B8: 28 | C8: 34 | D8: 62 | E8: TRUE | F8: 4 | G8: 7 | H8: 3 | I8: 3 | J8: =IF(B8>0,VLOOKUP(I8,Punkteschema!$A$2:$B$101,2,FALSE),"") -> 18
A9: Battig, Wolfgang | B9: 28 | C9: 34 | D9: 62 | E9: TRUE | F9: 4 | G9: 7 | H9: 3 | I9: 3 | J9: =IF(B9>0,VLOOKUP(I9,Punkteschema!$A$2:$B$101,2,FALSE),"") -> 18
A10: Kunz, Martin | B10: 29 | C10: 33 | D10: 62 | E10: TRUE | F10: 6 | G10: 5 | H10: 3 | I10: 3 | J10: =IF(B10>0,VLOOKUP(I10,Punkteschema!$A$2:$B$101,2,FALSE),"") -> 18
A11: Kortmann, Uwe | B11: 37 | C11: 33 | D11: 70 | E11: TRUE | F11: 12 | G11: 5 | H11: 8 | I11: 5 | J11: =IF(B11>0,VLOOKUP(I11,Punkteschema!$A$2:$B$101,2,FALSE),"") -> 15
A12: Kortmann, Sabine | B12: 32 | C12: 39 | D12: 71 | E12: TRUE | F12: 8 | G12: 12 | H12: 10 | I12: 8 | J12: =IF(B12>0,VLOOKUP(I12,Punkteschema!$A$2:$B$101,2,FALSE),"") -> 10
A13: Börgmann, Ulrich | B13: 36 | C13: 35 | D13: 71 | E13: TRUE | F13: 11 | G13: 9 | H13: 10 | I13: 9 | J13: =IF(B13>0,VLOOKUP(I13,Punkteschema!$A$2:$B$101,2,FALSE),"") -> 10
A14: Scharpe, Sabine | B14: 38 | C14: 35 | D14: 73 | E14: TRUE | F14: 13 | G14: 9 | H14: 13 | I14: 9 | J14: =IF(B14>0,VLOOKUP(I14,Punkteschema!$A$2:$B$101,2,FALSE),"") -> 10
A15: Hein, Hans-Jörg | B15: 34 | C15: 43 | D15: 77 | E15: TRUE | F15: 9 | G15: 15 | H15: 15 | I15: 9 | J15: =IF(B15>0,VLOOKUP(I15,Punkteschema!$A$2:$B$101,2,FALSE),"") -> 10
A16: Rabe, Jonas | B16: 30 | C16: 39 | D16: 69 | E16: FALSE | F16: 7 | G16: 12 | H16: 7 | I16: 12 | J16: =IF(B16>0,VLOOKUP(I16,Punkteschema!$A$2:$B$101,2,FALSE),"") -> 5
A17: Lenk, Rolf | B17: 35 | C17: 40 | D17: 75 | E17: FALSE | F17: 10 | G17: 14 | H17: 14 | I17: 14 | J17: =IF(B17>0,VLOOKUP(I17,Punkteschema!$A$2:$B$101,2,FALSE),"") -> 5
A18: Börgmann, Brigitte | B18: 40 | C18: 43 | D18: 83 | E18: TRUE | F18: 15 | G18: 15 | H18: 16 | I18: 15 | J18: =IF(B18>0,VLOOKUP(I18,Punkteschema!$A$2:$B$101,2,FALSE),"") -> 5
A19: Schmidt, Barbara | B19: 49 | C19: 47 | D19: 96 | E19: TRUE | F19: 17 | G19: 17 | H19: 17 | I19: 17 | J19: =IF(B19>0,VLOOKUP(I19,Punkteschema!$A$2:$B$101,2,FALSE),"") -> 3
D20: =IF(B20>0,C20+B20,"") ->  | E20: TRUE | F20: =IF(B20>0,COUNTIF(B$3:B$55,"<"&B20)+1,"") ->  | G20: =IF(C20>0,COUNTIF(C$3:C$55,"<"&C20)+1,"") ->  | H20: =IF(AND(B20>0,C20>0),COUNTIF(D$3:D$55,"<"&D20)+1,"") ->  | I20: =IF(B20>0,IF(E20,MIN(F20:H20),MAX(F20:H20)),"") ->  | J20: =IF(B20>0,VLOOKUP(I20,Punkteschema!$A$2:$B$101,2,FALSE),"") -> 
E21: TRUE | J21: =IF(B21>0,VLOOKUP(I21,Punkteschema!$A$2:$B$101,2,FALSE),"") -> 
D22: =IF(B22>0,C22+B22,"") ->  | E22: TRUE | F22: =IF(B22>0,COUNTIF(B$3:B$55,"<"&B22)+1,"") ->  | G22: =IF(C22>0,COUNTIF(C$3:C$55,"<"&C22)+1,"") ->  | H22: =IF(AND(B22>0,C22>0),COUNTIF(D$3:D$55,"<"&D22)+1,"") ->  | I22: =IF(B22>0,IF(E22,MIN(F22:H22),MAX(F22:H22)),"") ->  | J22: =IF(B22>0,VLOOKUP(I22,Punkteschema!$A$2:$B$101,2,FALSE),"") -> 
D23: =IF(B23>0,C23+B23,"") ->  | E23: TRUE | F23: =IF(B23>0,COUNTIF(B$3:B$55,"<"&B23)+1,"") ->  | H23: =IF(AND(B23>0,C23>0),COUNTIF(D$3:D$55,"<"&D23)+1,"") ->  | I23: =IF(B23>0,IF(E23,MIN(F23:H23),MAX(F23:H23)),"") ->  | J23: =IF(B23>0,VLOOKUP(I23,Punkteschema!$A$2:$B$101,2,FALSE),"") -> 
E24: TRUE | J24: =IF(B24>0,VLOOKUP(I24,Punkteschema!$A$2:$B$101,2,FALSE),"") -> 
E25: TRUE | J25: =IF(B25>0,VLOOKUP(I25,Punkteschema!$A$2:$B$101,2,FALSE),"") -> 
E26: TRUE | J26: =IF(B26>0,VLOOKUP(I26,Punkteschema!$A$2:$B$101,2,FALSE),"") -> 
E27: TRUE | J27: =IF(B27>0,VLOOKUP(I27,Punkteschema!$A$2:$B$101,2,FALSE),"") -> 
E28: TRUE | J28: =IF(B28>0,VLOOKUP(I28,Punkteschema!$A$2:$B$101,2,FALSE),"") -> 
E29: TRUE | J29: =IF(B29>0,VLOOKUP(I29,Punkteschema!$A$2:$B$101,2,FALSE),"") -> 
E30: TRUE | J30: =IF(B30>0,VLOOKUP(I30,Punkteschema!$A$2:$B$101,2,FALSE),"") -> 
E31: TRUE | J31: =IF(B31>0,VLOOKUP(I31,Punkteschema!$A$2:$B$101,2,FALSE),"") -> 
E32: TRUE | J32: =IF(B32>0,VLOOKUP(I32,Punkteschema!$A$2:$B$101,2,FALSE),"") -> 
E33: TRUE | J33: =IF(B33>0,VLOOKUP(I33,Punkteschema!$A$2:$B$101,2,FALSE),"") -> 
E34: TRUE | J34: =IF(B34>0,VLOOKUP(I34,Punkteschema!$A$2:$B$101,2,FALSE),"") -> 
E35: TRUE | J35: =IF(B35>0,VLOOKUP(I35,Punkteschema!$A$2:$B$101,2,FALSE),"") -> 
E36: TRUE | J36: =IF(B36>0,VLOOKUP(I36,Punkteschema!$A$2:$B$101,2,FALSE),"") -> 
E37: TRUE | J37: =IF(B37>0,VLOOKUP(I37,Punkteschema!$A$2:$B$101,2,FALSE),"") -> 
E38: TRUE | J38: =IF(B38>0,VLOOKUP(I38,Punkteschema!$A$2:$B$101,2,FALSE),"") -> 
E39: TRUE | J39: =IF(B39>0,VLOOKUP(I39,Punkteschema!$A$2:$B$101,2,FALSE),"") -> 
E40: TRUE | J40: =IF(B40>0,VLOOKUP(I40,Punkteschema!$A$2:$B$101,2,FALSE),"") -> 
E41: TRUE | J41: =IF(B41>0,VLOOKUP(I41,Punkteschema!$A$2:$B$101,2,FALSE),"") -> 
E42: TRUE | J42: =IF(B42>0,VLOOKUP(I42,Punkteschema!$A$2:$B$101,2,FALSE),"") -> 
E43: TRUE | J43: =IF(B43>0,VLOOKUP(I43,Punkteschema!$A$2:$B$101,2,FALSE),"") -> 
E44: TRUE | J44: =IF(B44>0,VLOOKUP(I44,Punkteschema!$A$2:$B$101,2,FALSE),"") -> 
E45: TRUE | J45: =IF(B45>0,VLOOKUP(I45,Punkteschema!$A$2:$B$101,2,FALSE),"") -> 
E46: TRUE | J46: =IF(B46>0,VLOOKUP(I46,Punkteschema!$A$2:$B$101,2,FALSE),"") -> 
E47: TRUE | J47: =IF(B47>0,VLOOKUP(I47,Punkteschema!$A$2:$B$101,2,FALSE),"") -> 
E48: TRUE | J48: =IF(B48>0,VLOOKUP(I48,Punkteschema!$A$2:$B$101,2,FALSE),"") -> 
E49: TRUE | J49: =IF(B49>0,VLOOKUP(I49,Punkteschema!$A$2:$B$101,2,FALSE),"") -> 
E50: TRUE | J50: =IF(B50>0,VLOOKUP(I50,Punkteschema!$A$2:$B$101,2,FALSE),"") -> 
E51: TRUE | J51: =IF(B51>0,VLOOKUP(I51,Punkteschema!$A$2:$B$101,2,FALSE),"") -> 
E52: TRUE | J52: =IF(B52>0,VLOOKUP(I52,Punkteschema!$A$2:$B$101,2,FALSE),"") -> 
E53: TRUE | F53: =IF(B53>0,COUNTIF(B$3:B$55,"<"&B53)+1,"") ->  | H53: =IF(AND(B53>0,C53>0),COUNTIF(D$3:D$55,"<"&D53)+1,"") ->  | I53: =IF(B53>0,IF(E53,MIN(F53:H53),MAX(F53:H53)),"") ->  | J53: =IF(B53>0,VLOOKUP(I53,Punkteschema!$A$2:$B$101,2,FALSE),"") -> 
E54: TRUE | H54: =IF(AND(B54>0,C54>0),COUNTIF(D$3:D$55,"<"&D54)+1,"") ->  | I54: =IF(B54>0,IF(E54,MIN(F54:H54),MAX(F54:H54)),"") ->  | J54: =IF(B54>0,VLOOKUP(I54,Punkteschema!$A$2:$B$101,2,FALSE),"") -> 
E55: TRUE | H55: =IF(AND(B55>0,C55>0),COUNTIF(D$3:D$55,"<"&D55)+1,"") ->  | I55: =IF(B55>0,IF(E55,MIN(F55:H55),MAX(F55:H55)),"") ->  | J55: =IF(B55>0,VLOOKUP(I55,Punkteschema!$A$2:$B$101,2,FALSE),"") -> 
A57: OS: Urban, Volker (ASW) | E57: Runde 1: | F57: E | G57: <- E/B
A58: S: Puschner, Michael (HOB) | E58: Runde 2: | F58: B | G58: <- E/B
A59: S: Battig, Wolfgang (LÜD)
A61: Verloste Preise: | B61: Brigitte Börgmann - 1 Flasche Rotwein
B62: Sabine Scharpe - 1 Minigolfball (Olten Swiss Champion)
B63: Ulrich Börgmann - 1 Verzehrgutschein

Sheet Einzelwertung12
A1: =CONCATENATE("6. Sommer-Cup - Freizeittreff Herbede - ",TEXT(Gesamtstand!$Q$2,"TT.MM.JJ")) -> 6. Sommer-Cup - Freizeittreff Herbede - 23.07.20
A2: Spieler | B2: Runde 1 | C2: Runde 2 | D2: Gesamt | E2: bessere? | F2: Pl. R1 | G2: Pl. R2 | H2: Pl. Ges. | I2: gewertet | J2: Punkte
A3: Battig, Wolfgang | B3: 23 | C3: 30 | D3: =IF(B3>0,C3+B3,"") -> 53 | E3: FALSE | F3: =IF(B3>0,COUNTIF(B$3:B$55,"<"&B3)+1,"") -> 1 | G3: =IF(C3>0,COUNTIF(C$3:C$55,"<"&C3)+1,"") -> 1 | H3: =IF(AND(B3>0,C3>0),COUNTIF(D$3:D$55,"<"&D3)+1,"") -> 1 | I3: =IF(B3>0,IF(E3,MIN(F3:H3),MAX(F3:H3)),"") -> 1 | J3: =IF(B3>0,VLOOKUP(I3,Punkteschema!$A$2:$B$101,2,FALSE),"") -> 25
A4: Kalhöfer, Anna | B4: 27 | C4: 33 | D4: 60 | E4: TRUE | F4: 2 | G4: 6 | H4: 3 | I4: 2 | J4: =IF(B4>0,VLOOKUP(I4,Punkteschema!$A$2:$B$101,2,FALSE),"") -> 21
A5: Puschner, Michael | B5: 27 | C5: 34 | D5: 61 | E5: TRUE | F5: 2 | G5: 8 | H5: 4 | I5: 2 | J5: =IF(B5>0,VLOOKUP(I5,Punkteschema!$A$2:$B$101,2,FALSE),"") -> 21
A6: Urban, Dominic | B6: 27 | C6: 34 | D6: 61 | E6: TRUE | F6: 2 | G6: 8 | H6: 4 | I6: 2 | J6: =IF(B6>0,VLOOKUP(I6,Punkteschema!$A$2:$B$101,2,FALSE),"") -> 21
A7: Tabor, Peter | B7: 33 | C7: 31 | D7: 64 | E7: TRUE | F7: 9 | G7: 3 | H7: 8 | I7: 3 | J7: =IF(B7>0,VLOOKUP(I7,Punkteschema!$A$2:$B$101,2,FALSE),"") -> 18
A8: Greiffendorf, Hellmut | B8: 35 | C8: 31 | D8: 66 | E8: TRUE | F8: 11 | G8: 3 | H8: 9 | I8: 3 | J8: =IF(B8>0,VLOOKUP(I8,Punkteschema!$A$2:$B$101,2,FALSE),"") -> 18
A9: Urban, Volker | B9: 27 | C9: 32 | D9: 59 | E9: FALSE | F9: 2 | G9: 5 | H9: 2 | I9: 5 | J9: =IF(B9>0,VLOOKUP(I9,Punkteschema!$A$2:$B$101,2,FALSE),"") -> 15
A10: Lenk, Rolf | B10: 28 | C10: 34 | D10: 62 | E10: TRUE | F10: 6 | G10: 8 | H10: 6 | I10: 6 | J10: =IF(B10>0,VLOOKUP(I10,Punkteschema!$A$2:$B$101,2,FALSE),"") -> 15
A11: Kunz, Martin | B11: 39 | C11: 33 | D11: 72 | E11: TRUE | F11: 14 | G11: 6 | H11: 13 | I11: 6 | J11: =IF(B11>0,VLOOKUP(I11,Punkteschema!$A$2:$B$101,2,FALSE),"") -> 15
A12: Lieber, Nicole | B12: 32 | C12: 30 | D12: 62 | E12: FALSE | F12: 7 | G12: 1 | H12: 6 | I12: 7 | J12: =IF(B12>0,VLOOKUP(I12,Punkteschema!$A$2:$B$101,2,FALSE),"") -> 10
A13: Börgmann, Ulrich | B13: 32 | C13: 37 | D13: 69 | E13: TRUE | F13: 7 | G13: 13 | H13: 11 | I13: 7 | J13: =IF(B13>0,VLOOKUP(I13,Punkteschema!$A$2:$B$101,2,FALSE),"") -> 10
A14: Kortmann, Sabine | B14: 33 | C14: 34 | D14: 67 | E14: TRUE | F14: 9 | G14: 8 | H14: 10 | I14: 8 | J14: =IF(B14>0,VLOOKUP(I14,Punkteschema!$A$2:$B$101,2,FALSE),"") -> 10
A15: Rabe, Jonas | B15: 36 | C15: 34 | D15: 70 | E15: TRUE | F15: 13 | G15: 8 | H15: 12 | I15: 8 | J15: =IF(B15>0,VLOOKUP(I15,Punkteschema!$A$2:$B$101,2,FALSE),"") -> 10
A16: Börgmann, Brigitte | B16: 35 | C16: 41 | D16: 76 | E16: TRUE | F16: 11 | G16: 16 | H16: 14 | I16: 11 | J16: =IF(B16>0,VLOOKUP(I16,Punkteschema!$A$2:$B$101,2,FALSE),"") -> 5
A17: Schmidtbauer, Günter | B17: 41 | C17: 37 | D17: 78 | E17: TRUE | F17: 16 | G17: 13 | H17: 15 | I17: 13 | J17: =IF(B17>0,VLOOKUP(I17,Punkteschema!$A$2:$B$101,2,FALSE),"") -> 5
A18: Kortmann, Uwe | B18: 40 | C18: 38 | D18: 78 | E18: TRUE | F18: 15 | G18: 15 | H18: 15 | I18: 15 | J18: =IF(B18>0,VLOOKUP(I18,Punkteschema!$A$2:$B$101,2,FALSE),"") -> 5
A19: Urban, Angela | B19: 43 | C19: 46 | D19: 89 | E19: TRUE | F19: 17 | G19: 17 | H19: 17 | I19: 17 | J19: =IF(B19>0,VLOOKUP(I19,Punkteschema!$A$2:$B$101,2,FALSE),"") -> 3
A20: Schmidt, Barbara | B20: 47 | C20: 47 | D20: 94 | E20: TRUE | F20: 18 | G20: 18 | H20: 18 | I20: 18 | J20: =IF(B20>0,VLOOKUP(I20,Punkteschema!$A$2:$B$101,2,FALSE),"") -> 3
D21: =IF(B21>0,C21+B21,"") ->  | E21: TRUE | F21: =IF(B21>0,COUNTIF(B$3:B$55,"<"&B21)+1,"") ->  | G21: =IF(C21>0,COUNTIF(C$3:C$55,"<"&C21)+1,"") ->  | H21: =IF(AND(B21>0,C21>0),COUNTIF(D$3:D$55,"<"&D21)+1,"") ->  | I21: =IF(B21>0,IF(E21,MIN(F21:H21),MAX(F21:H21)),"") ->  | J21: =IF(B21>0,VLOOKUP(I21,Punkteschema!$A$2:$B$101,2,FALSE),"") -> 
E22: TRUE | J22: =IF(B22>0,VLOOKUP(I22,Punkteschema!$A$2:$B$101,2,FALSE),"") -> 
E23: TRUE | J23: =IF(B23>0,VLOOKUP(I23,Punkteschema!$A$2:$B$101,2,FALSE),"") -> 
D24: =IF(B24>0,C24+B24,"") ->  | E24: TRUE | F24: =IF(B24>0,COUNTIF(B$3:B$55,"<"&B24)+1,"") ->  | G24: =IF(C24>0,COUNTIF(C$3:C$55,"<"&C24)+1,"") ->  | H24: =IF(AND(B24>0,C24>0),COUNTIF(D$3:D$55,"<"&D24)+1,"") ->  | I24: =IF(B24>0,IF(E24,MIN(F24:H24),MAX(F24:H24)),"") ->  | J24: =IF(B24>0,VLOOKUP(I24,Punkteschema!$A$2:$B$101,2,FALSE),"") -> 
E25: TRUE | J25: =IF(B25>0,VLOOKUP(I25,Punkteschema!$A$2:$B$101,2,FALSE),"") -> 
E26: TRUE | J26: =IF(B26>0,VLOOKUP(I26,Punkteschema!$A$2:$B$101,2,FALSE),"") -> 
E27: TRUE | J27: =IF(B27>0,VLOOKUP(I27,Punkteschema!$A$2:$B$101,2,FALSE),"") -> 
D28: =IF(B28>0,C28+B28,"") ->  | E28: TRUE | I28: =IF(B28>0,IF(E28,MIN(F28:H28),MAX(F28:H28)),"") ->  | J28: =IF(B28>0,VLOOKUP(I28,Punkteschema!$A$2:$B$101,2,FALSE),"") -> 
E29: TRUE | J29: =IF(B29>0,VLOOKUP(I29,Punkteschema!$A$2:$B$101,2,FALSE),"") -> 
E30: TRUE | J30: =IF(B30>0,VLOOKUP(I30,Punkteschema!$A$2:$B$101,2,FALSE),"") -> 
E31: TRUE | J31: =IF(B31>0,VLOOKUP(I31,Punkteschema!$A$2:$B$101,2,FALSE),"") -> 
E32: TRUE | J32: =IF(B32>0,VLOOKUP(I32,Punkteschema!$A$2:$B$101,2,FALSE),"") -> 
E33: TRUE | J33: =IF(B33>0,VLOOKUP(I33,Punkteschema!$A$2:$B$101,2,FALSE),"") -> 
E34: TRUE | J34: =IF(B34>0,VLOOKUP(I34,Punkteschema!$A$2:$B$101,2,FALSE),"") -> 
E35: TRUE | F35: =IF(B35>0,COUNTIF(B$3:B$55,"<"&B35)+1,"") ->  | G35: =IF(C35>0,COUNTIF(C$3:C$55,"<"&C35)+1,"") ->  | H35: =IF(AND(B35>0,C35>0),COUNTIF(D$3:D$55,"<"&D35)+1,"") ->  | J35: =IF(B35>0,VLOOKUP(I35,Punkteschema!$A$2:$B$101,2,FALSE),"") -> 
E36: TRUE | J36: =IF(B36>0,VLOOKUP(I36,Punkteschema!$A$2:$B$101,2,FALSE),"") -> 
E37: TRUE | J37: =IF(B37>0,VLOOKUP(I37,Punkteschema!$A$2:$B$101,2,FALSE),"") -> 
E38: TRUE | J38: =IF(B38>0,VLOOKUP(I38,Punkteschema!$A$2:$B$101,2,FALSE),"") -> 
E39: TRUE | J39: =IF(B39>0,VLOOKUP(I39,Punkteschema!$A$2:$B$101,2,FALSE),"") -> 
E40: TRUE | J40: =IF(B40>0,VLOOKUP(I40,Punkteschema!$A$2:$B$101,2,FALSE),"") -> 
E41: TRUE | J41: =IF(B41>0,VLOOKUP(I41,Punkteschema!$A$2:$B$101,2,FALSE),"") -> 
E42: TRUE | J42: =IF(B42>0,VLOOKUP(I42,Punkteschema!$A$2:$B$101,2,FALSE),"") -> 
E43: TRUE | J43: =IF(B43>0,VLOOKUP(I43,Punkteschema!$A$2:$B$101,2,FALSE),"") -> 
E44: TRUE | J44: =IF(B44>0,VLOOKUP(I44,Punkteschema!$A$2:$B$101,2,FALSE),"") -> 
E45: TRUE | J45: =IF(B45>0,VLOOKUP(I45,Punkteschema!$A$2:$B$101,2,FALSE),"") -> 
E46: TRUE | J46: =IF(B46>0,VLOOKUP(I46,Punkteschema!$A$2:$B$101,2,FALSE),"") -> 
E47: TRUE | J47: =IF(B47>0,VLOOKUP(I47,Punkteschema!$A$2:$B$101,2,FALSE),"") -> 
E48: TRUE | J48: =IF(B48>0,VLOOKUP(I48,Punkteschema!$A$2:$B$101,2,FALSE),"") -> 
E49: TRUE | J49: =IF(B49>0,VLOOKUP(I49,Punkteschema!$A$2:$B$101,2,FALSE),"") -> 
E50: TRUE | J50: =IF(B50>0,VLOOKUP(I50,Punkteschema!$A$2:$B$101,2,FALSE),"") -> 
E51: TRUE | J51: =IF(B51>0,VLOOKUP(I51,Punkteschema!$A$2:$B$101,2,FALSE),"") -> 
E52: TRUE | J52: =IF(B52>0,VLOOKUP(I52,Punkteschema!$A$2:$B$101,2,FALSE),"") -> 
E53: TRUE | I53: =IF(B53>0,IF(E53,MIN(F53:H53),MAX(F53:H53)),"") ->  | J53: =IF(B53>0,VLOOKUP(I53,Punkteschema!$A$2:$B$101,2,FALSE),"") -> 
E54: TRUE | I54: =IF(B54>0,IF(E54,MIN(F54:H54),MAX(F54:H54)),"") ->  | J54: =IF(B54>0,VLOOKUP(I54,Punkteschema!$A$2:$B$101,2,FALSE),"") -> 
E55: TRUE | I55: =IF(B55>0,IF(E55,MIN(F55:H55),MAX(F55:H55)),"") ->  | J55: =IF(B55>0,VLOOKUP(I55,Punkteschema!$A$2:$B$101,2,FALSE),"") -> 
A57: OS: Urban, Volker (ASW) | E57: Runde 1: | F57: E | G57: <- E/B
A58: S: Battig, Wolfgang (LÜD) | E58: Runde 2: | F58: B | G58: <- E/B
A59: S: Puschner, Michael (HOB)
A61: Verloste Preise: | B61: Ulrich Börgmann (1 Flasche Prosecco)
B62: Hellmut Greiffendorf (1 Verzehrgutschein)
B63: Wolfgang Battig (1 Minigolfball BOF Dennis Prip Hansen)

Sheet Einzelwertung13
A1: =CONCATENATE("6. Sommer-Cup - Freizeittreff Herbede - ",TEXT(Gesamtstand!$R$2,"TT.MM.JJ")) -> 6. Sommer-Cup - Freizeittreff Herbede - 30.07.20
A2: Spieler | B2: Runde 1 | C2: Runde 2 | D2: Gesamt | E2: bessere? | F2: Pl. R1 | G2: Pl. R2 | H2: Pl. Ges. | I2: gewertet | J2: Punkte
A3: Battling, Hendrik | B3: 23 | C3: 29 | D3: =IF(B3>0,C3+B3,"") -> 52 | E3: TRUE | F3: =IF(B3>0,COUNTIF(B$3:B$55,"<"&B3)+1,"") -> 1 | G3: =IF(C3>0,COUNTIF(C$3:C$55,"<"&C3)+1,"") -> 2 | H3: =IF(AND(B3>0,C3>0),COUNTIF(D$3:D$55,"<"&D3)+1,"") -> 1 | I3: =IF(B3>0,IF(E3,MIN(F3:H3),MAX(F3:H3)),"") -> 1 | J3: =IF(B3>0,VLOOKUP(I3,Punkteschema!$A$2:$B$101,2,FALSE),"") -> 25
A4: Buchholz, Ansgar | B4: 33 | C4: 28 | D4: 61 | E4: TRUE | F4: 11 | G4: 1 | H4: 6 | I4: 1 | J4: =IF(B4>0,VLOOKUP(I4,Punkteschema!$A$2:$B$101,2,FALSE),"") -> 25
A5: Rade, Marcus | B5: 24 | C5: 30 | D5: 54 | E5: TRUE | F5: 3 | G5: 3 | H5: 2 | I5: 2 | J5: =IF(B5>0,VLOOKUP(I5,Punkteschema!$A$2:$B$101,2,FALSE),"") -> 21
A6: Kunz, Martin | B6: 35 | C6: 30 | D6: 65 | E6: TRUE | F6: 17 | G6: 3 | H6: 10 | I6: 3 | J6: =IF(B6>0,VLOOKUP(I6,Punkteschema!$A$2:$B$101,2,FALSE),"") -> 18
A7: Rabe, Jonas | B7: 26 | C7: 34 | D7: 60 | E7: TRUE | F7: 4 | G7: 14 | H7: 5 | I7: 4 | J7: =IF(B7>0,VLOOKUP(I7,Punkteschema!$A$2:$B$101,2,FALSE),"") -> 15
A8: Puschner, Michael | B8: 27 | C8: 31 | D8: 58 | E8: FALSE | F8: 5 | G8: 5 | H8: 4 | I8: 5 | J8: =IF(B8>0,VLOOKUP(I8,Punkteschema!$A$2:$B$101,2,FALSE),"") -> 15
A9: Kortmann, Sabine | B9: 34 | C9: 31 | D9: 65 | E9: TRUE | F9: 13 | G9: 5 | H9: 10 | I9: 5 | J9: =IF(B9>0,VLOOKUP(I9,Punkteschema!$A$2:$B$101,2,FALSE),"") -> 15
A10: Tabor, Peter | B10: 29 | C10: 32 | D10: 61 | E10: TRUE | F10: 6 | G10: 7 | H10: 6 | I10: 6 | J10: =IF(B10>0,VLOOKUP(I10,Punkteschema!$A$2:$B$101,2,FALSE),"") -> 15
A11: Kalhöfer, Anna | B11: 29 | C11: 35 | D11: 64 | E11: TRUE | F11: 6 | G11: 16 | H11: 9 | I11: 6 | J11: =IF(B11>0,VLOOKUP(I11,Punkteschema!$A$2:$B$101,2,FALSE),"") -> 15
A12: Hein, Hans-Jörg | B12: 33 | C12: 32 | D12: 65 | E12: TRUE | F12: 11 | G12: 7 | H12: 10 | I12: 7 | J12: =IF(B12>0,VLOOKUP(I12,Punkteschema!$A$2:$B$101,2,FALSE),"") -> 10
A13: Greiffendorf, Hellmut | B13: 34 | C13: 32 | D13: 66 | E13: TRUE | F13: 13 | G13: 7 | H13: 13 | I13: 7 | J13: =IF(B13>0,VLOOKUP(I13,Punkteschema!$A$2:$B$101,2,FALSE),"") -> 10
A14: Urban, Volker | B14: 30 | C14: 32 | D14: 62 | E14: FALSE | F14: 8 | G14: 7 | H14: 8 | I14: 8 | J14: =IF(B14>0,VLOOKUP(I14,Punkteschema!$A$2:$B$101,2,FALSE),"") -> 10
A15: Lieber, Nicole | B15: 31 | C15: 35 | D15: 66 | E15: TRUE | F15: 9 | G15: 16 | H15: 13 | I15: 9 | J15: =IF(B15>0,VLOOKUP(I15,Punkteschema!$A$2:$B$101,2,FALSE),"") -> 10
A16: Kortmann, Uwe | B16: 32 | C16: 35 | D16: 67 | E16: TRUE | F16: 10 | G16: 16 | H16: 15 | I16: 10 | J16: =IF(B16>0,VLOOKUP(I16,Punkteschema!$A$2:$B$101,2,FALSE),"") -> 10
A17: Battig, Wolfgang | B17: 23 | C17: 33 | D17: 56 | E17: FALSE | F17: 1 | G17: 11 | H17: 3 | I17: 11 | J17: =IF(B17>0,VLOOKUP(I17,Punkteschema!$A$2:$B$101,2,FALSE),"") -> 5
A18: Börgmann, Ulrich | B18: 36 | C18: 33 | D18: 69 | E18: TRUE | F18: 18 | G18: 11 | H18: 17 | I18: 11 | J18: =IF(B18>0,VLOOKUP(I18,Punkteschema!$A$2:$B$101,2,FALSE),"") -> 5
A19: Börgmann, Brigitte | B19: 38 | C19: 33 | D19: 71 | E19: TRUE | F19: 20 | G19: 11 | H19: 18 | I19: 11 | J19: =IF(B19>0,VLOOKUP(I19,Punkteschema!$A$2:$B$101,2,FALSE),"") -> 5
A20: Lenk, Rolf | B20: 34 | C20: 34 | D20: 68 | E20: TRUE | F20: 13 | G20: 14 | H20: 16 | I20: 13 | J20: =IF(B20>0,VLOOKUP(I20,Punkteschema!$A$2:$B$101,2,FALSE),"") -> 5
A21: Kersch, Uwe | B21: 34 | C21: 41 | D21: 75 | E21: TRUE | F21: 13 | G21: 20 | H21: 19 | I21: 13 | J21: =IF(B21>0,VLOOKUP(I21,Punkteschema!$A$2:$B$101,2,FALSE),"") -> 5
A22: Schmidtbauer, Günter | B22: 36 | C22: 51 | D22: 87 | E22: TRUE | F22: 18 | G22: 21 | H22: 21 | I22: 18 | J22: =IF(B22>0,VLOOKUP(I22,Punkteschema!$A$2:$B$101,2,FALSE),"") -> 3
A23: Scharpe, Sabine | B23: 43 | C23: 37 | D23: 80 | E23: TRUE | F23: 21 | G23: 19 | H23: 20 | I23: 19 | J23: =IF(B23>0,VLOOKUP(I23,Punkteschema!$A$2:$B$101,2,FALSE),"") -> 3
D24: =IF(B24>0,C24+B24,"") ->  | E24: TRUE | F24: =IF(B24>0,COUNTIF(B$3:B$55,"<"&B24)+1,"") ->  | H24: =IF(AND(B24>0,C24>0),COUNTIF(D$3:D$55,"<"&D24)+1,"") ->  | I24: =IF(B24>0,IF(E24,MIN(F24:H24),MAX(F24:H24)),"") ->  | J24: =IF(B24>0,VLOOKUP(I24,Punkteschema!$A$2:$B$101,2,FALSE),"") -> 
E25: TRUE | J25: =IF(B25>0,VLOOKUP(I25,Punkteschema!$A$2:$B$101,2,FALSE),"") -> 
E26: TRUE | J26: =IF(B26>0,VLOOKUP(I26,Punkteschema!$A$2:$B$101,2,FALSE),"") -> 
E27: TRUE | J27: =IF(B27>0,VLOOKUP(I27,Punkteschema!$A$2:$B$101,2,FALSE),"") -> 
E28: TRUE | J28: =IF(B28>0,VLOOKUP(I28,Punkteschema!$A$2:$B$101,2,FALSE),"") -> 
E29: TRUE | J29: =IF(B29>0,VLOOKUP(I29,Punkteschema!$A$2:$B$101,2,FALSE),"") -> 
E30: TRUE | J30: =IF(B30>0,VLOOKUP(I30,Punkteschema!$A$2:$B$101,2,FALSE),"") -> 
E31: TRUE | J31: =IF(B31>0,VLOOKUP(I31,Punkteschema!$A$2:$B$101,2,FALSE),"") -> 
E32: TRUE | J32: =IF(B32>0,VLOOKUP(I32,Punkteschema!$A$2:$B$101,2,FALSE),"") -> 
E33: TRUE | J33: =IF(B33>0,VLOOKUP(I33,Punkteschema!$A$2:$B$101,2,FALSE),"") -> 
E34: TRUE | J34: =IF(B34>0,VLOOKUP(I34,Punkteschema!$A$2:$B$101,2,FALSE),"") -> 
E35: TRUE | J35: =IF(B35>0,VLOOKUP(I35,Punkteschema!$A$2:$B$101,2,FALSE),"") -> 
E36: TRUE | J36: =IF(B36>0,VLOOKUP(I36,Punkteschema!$A$2:$B$101,2,FALSE),"") -> 
E37: TRUE | J37: =IF(B37>0,VLOOKUP(I37,Punkteschema!$A$2:$B$101,2,FALSE),"") -> 
E38: TRUE | J38: =IF(B38>0,VLOOKUP(I38,Punkteschema!$A$2:$B$101,2,FALSE),"") -> 
E39: TRUE | J39: =IF(B39>0,VLOOKUP(I39,Punkteschema!$A$2:$B$101,2,FALSE),"") -> 
E40: TRUE | J40: =IF(B40>0,VLOOKUP(I40,Punkteschema!$A$2:$B$101,2,FALSE),"") -> 
E41: TRUE | J41: =IF(B41>0,VLOOKUP(I41,Punkteschema!$A$2:$B$101,2,FALSE),"") -> 
E42: TRUE | J42: =IF(B42>0,VLOOKUP(I42,Punkteschema!$A$2:$B$101,2,FALSE),"") -> 
E43: TRUE | J43: =IF(B43>0,VLOOKUP(I43,Punkteschema!$A$2:$B$101,2,FALSE),"") -> 
E44: TRUE | J44: =IF(B44>0,VLOOKUP(I44,Punkteschema!$A$2:$B$101,2,FALSE),"") -> 
E45: TRUE | J45: =IF(B45>0,VLOOKUP(I45,Punkteschema!$A$2:$B$101,2,FALSE),"") -> 
E46: TRUE | J46: =IF(B46>0,VLOOKUP(I46,Punkteschema!$A$2:$B$101,2,FALSE),"") -> 
E47: TRUE | J47: =IF(B47>0,VLOOKUP(I47,Punkteschema!$A$2:$B$101,2,FALSE),"") -> 
E48: TRUE | J48: =IF(B48>0,VLOOKUP(I48,Punkteschema!$A$2:$B$101,2,FALSE),"") -> 
E49: TRUE | J49: =IF(B49>0,VLOOKUP(I49,Punkteschema!$A$2:$B$101,2,FALSE),"") -> 
E50: TRUE | J50: =IF(B50>0,VLOOKUP(I50,Punkteschema!$A$2:$B$101,2,FALSE),"") -> 
E51: TRUE | J51: =IF(B51>0,VLOOKUP(I51,Punkteschema!$A$2:$B$101,2,FALSE),"") -> 
E52: TRUE | J52: =IF(B52>0,VLOOKUP(I52,Punkteschema!$A$2:$B$101,2,FALSE),"") -> 
E53: TRUE | F53: =IF(B53>0,COUNTIF(B$3:B$55,"<"&B53)+1,"") ->  | H53: =IF(AND(B53>0,C53>0),COUNTIF(D$3:D$55,"<"&D53)+1,"") ->  | I53: =IF(B53>0,IF(E53,MIN(F53:H53),MAX(F53:H53)),"") ->  | J53: =IF(B53>0,VLOOKUP(I53,Punkteschema!$A$2:$B$101,2,FALSE),"") -> 
E54: TRUE | H54: =IF(AND(B54>0,C54>0),COUNTIF(D$3:D$55,"<"&D54)+1,"") ->  | I54: =IF(B54>0,IF(E54,MIN(F54:H54),MAX(F54:H54)),"") ->  | J54: =IF(B54>0,VLOOKUP(I54,Punkteschema!$A$2:$B$101,2,FALSE),"") -> 
E55: TRUE | H55: =IF(AND(B55>0,C55>0),COUNTIF(D$3:D$55,"<"&D55)+1,"") ->  | I55: =IF(B55>0,IF(E55,MIN(F55:H55),MAX(F55:H55)),"") ->  | J55: =IF(B55>0,VLOOKUP(I55,Punkteschema!$A$2:$B$101,2,FALSE),"") -> 
E57: Runde 1: | F57: E | G57: <- E/B
A58: S: Battig, Wolfgang (LÜD) | E58: Runde 2: | F58: B | G58: <- E/B
A59: S: Lieber, Nicole (HOB)
A61: Verloste Preise: | B61: Michael Puschner (1 Flasche Rotwein)
B62: Anna Kalhöfer (1 Minigolfball BOF Ruge r)
B63: Marcus Rade (1 Verzehrgutschein)

Sheet Einzelwertung14
A1: =CONCATENATE("6. Sommer-Cup - Freizeittreff Herbede - ",TEXT(Gesamtstand!$S$2,"TT.MM.JJ")) -> 6. Sommer-Cup - Freizeittreff Herbede - 06.08.20
A2: Spieler | B2: Runde 1 | C2: Runde 2 | D2: Gesamt | E2: bessere? | F2: Pl. R1 | G2: Pl. R2 | H2: Pl. Ges. | I2: gewertet | J2: Punkte
A3: Lieber, Nicole | B3: 27 | C3: 28 | D3: =IF(B3>0,C3+B3,"") -> 55 | E3: FALSE | F3: =IF(B3>0,COUNTIF(B$3:B$55,"<"&B3)+1,"") -> 2 | G3: =IF(C3>0,COUNTIF(C$3:C$55,"<"&C3)+1,"") -> 1 | H3: =IF(AND(B3>0,C3>0),COUNTIF(D$3:D$55,"<"&D3)+1,"") -> 1 | I3: =IF(B3>0,IF(E3,MIN(F3:H3),MAX(F3:H3)),"") -> 2 | J3: =IF(B3>0,VLOOKUP(I3,Punkteschema!$A$2:$B$101,2,FALSE),"") -> 21
A4: Lenk, Rolf | B4: 28 | C4: 30 | D4: 58 | E4: TRUE | F4: 3 | G4: 2 | H4: 3 | I4: 2 | J4: =IF(B4>0,VLOOKUP(I4,Punkteschema!$A$2:$B$101,2,FALSE),"") -> 21
A5: Battig, Wolfgang | B5: 23 | C5: 33 | D5: 56 | E5: FALSE | F5: 1 | G5: 4 | H5: 2 | I5: 4 | J5: =IF(B5>0,VLOOKUP(I5,Punkteschema!$A$2:$B$101,2,FALSE),"") -> 15
A6: Buchholz, Ansgar | B6: 31 | C6: 33 | D6: 64 | E6: TRUE | F6: 6 | G6: 4 | H6: 5 | I6: 4 | J6: =IF(B6>0,VLOOKUP(I6,Punkteschema!$A$2:$B$101,2,FALSE),"") -> 15
A7: Hein, Hans-Jörg | B7: 29 | C7: 38 | D7: 67 | E7: TRUE | F7: 4 | G7: 11 | H7: 6 | I7: 4 | J7: =IF(B7>0,VLOOKUP(I7,Punkteschema!$A$2:$B$101,2,FALSE),"") -> 15
A8: Urban, Volker | B8: 30 | C8: 30 | D8: 60 | E8: FALSE | F8: 5 | G8: 2 | H8: 4 | I8: 5 | J8: =IF(B8>0,VLOOKUP(I8,Punkteschema!$A$2:$B$101,2,FALSE),"") -> 15
A9: Börgmann, Brigitte | B9: 32 | C9: 35 | D9: 67 | E9: TRUE | F9: 8 | G9: 7 | H9: 6 | I9: 6 | J9: =IF(B9>0,VLOOKUP(I9,Punkteschema!$A$2:$B$101,2,FALSE),"") -> 15
A10: Börgmann, Ulrich | B10: 31 | C10: 39 | D10: 70 | E10: TRUE | F10: 6 | G10: 12 | H10: 8 | I10: 6 | J10: =IF(B10>0,VLOOKUP(I10,Punkteschema!$A$2:$B$101,2,FALSE),"") -> 15
A11: Tabor, Peter | B11: 37 | C11: 34 | D11: 71 | E11: TRUE | F11: 12 | G11: 6 | H11: 11 | I11: 6 | J11: =IF(B11>0,VLOOKUP(I11,Punkteschema!$A$2:$B$101,2,FALSE),"") -> 15
A12: Kunz, Martin | B12: 35 | C12: 35 | D12: 70 | E12: TRUE | F12: 10 | G12: 7 | H12: 8 | I12: 7 | J12: =IF(B12>0,VLOOKUP(I12,Punkteschema!$A$2:$B$101,2,FALSE),"") -> 10
A13: Kersch, Uwe | B13: 39 | C13: 35 | D13: 74 | E13: TRUE | F13: 13 | G13: 7 | H13: 12 | I13: 7 | J13: =IF(B13>0,VLOOKUP(I13,Punkteschema!$A$2:$B$101,2,FALSE),"") -> 10
A14: Kalhöfer, Anna | B14: 34 | C14: 36 | D14: 70 | E14: TRUE | F14: 9 | G14: 10 | H14: 8 | I14: 8 | J14: =IF(B14>0,VLOOKUP(I14,Punkteschema!$A$2:$B$101,2,FALSE),"") -> 10
A15: Urban, Angela | B15: 35 | C15: 39 | D15: 74 | E15: TRUE | F15: 10 | G15: 12 | H15: 12 | I15: 10 | J15: =IF(B15>0,VLOOKUP(I15,Punkteschema!$A$2:$B$101,2,FALSE),"") -> 10
A16: Schmidtbauer, Günter | B16: 48 | C16: 43 | D16: 91 | E16: TRUE | F16: 14 | G16: 14 | H16: 14 | I16: 14 | J16: =IF(B16>0,VLOOKUP(I16,Punkteschema!$A$2:$B$101,2,FALSE),"") -> 5
A17: Hoffmann, Thomas | B17: 55 | C17: 55 | D17: 110 | E17: TRUE | F17: 15 | G17: 15 | H17: 15 | I17: 15 | J17: =IF(B17>0,VLOOKUP(I17,Punkteschema!$A$2:$B$101,2,FALSE),"") -> 5
D18: =IF(B18>0,C18+B18,"") ->  | E18: TRUE | F18: =IF(B18>0,COUNTIF(B$3:B$55,"<"&B18)+1,"") ->  | G18: =IF(C18>0,COUNTIF(C$3:C$55,"<"&C18)+1,"") ->  | H18: =IF(AND(B18>0,C18>0),COUNTIF(D$3:D$55,"<"&D18)+1,"") ->  | I18: =IF(B18>0,IF(E18,MIN(F18:H18),MAX(F18:H18)),"") ->  | J18: =IF(B18>0,VLOOKUP(I18,Punkteschema!$A$2:$B$101,2,FALSE),"") -> 
E19: TRUE | J19: =IF(B19>0,VLOOKUP(I19,Punkteschema!$A$2:$B$101,2,FALSE),"") -> 
E20: TRUE | J20: =IF(B20>0,VLOOKUP(I20,Punkteschema!$A$2:$B$101,2,FALSE),"") -> 
E21: TRUE | J21: =IF(B21>0,VLOOKUP(I21,Punkteschema!$A$2:$B$101,2,FALSE),"") -> 
E22: TRUE | J22: =IF(B22>0,VLOOKUP(I22,Punkteschema!$A$2:$B$101,2,FALSE),"") -> 
D23: =IF(B23>0,C23+B23,"") ->  | E23: TRUE | F23: =IF(B23>0,COUNTIF(B$3:B$55,"<"&B23)+1,"") ->  | G23: =IF(C23>0,COUNTIF(C$3:C$55,"<"&C23)+1,"") ->  | H23: =IF(AND(B23>0,C23>0),COUNTIF(D$3:D$55,"<"&D23)+1,"") ->  | I23: =IF(B23>0,IF(E23,MIN(F23:H23),MAX(F23:H23)),"") ->  | J23: =IF(B23>0,VLOOKUP(I23,Punkteschema!$A$2:$B$101,2,FALSE),"") -> 
D24: =IF(B24>0,C24+B24,"") ->  | E24: TRUE | F24: =IF(B24>0,COUNTIF(B$3:B$55,"<"&B24)+1,"") ->  | H24: =IF(AND(B24>0,C24>0),COUNTIF(D$3:D$55,"<"&D24)+1,"") ->  | I24: =IF(B24>0,IF(E24,MIN(F24:H24),MAX(F24:H24)),"") ->  | J24: =IF(B24>0,VLOOKUP(I24,Punkteschema!$A$2:$B$101,2,FALSE),"") -> 
E25: TRUE | J25: =IF(B25>0,VLOOKUP(I25,Punkteschema!$A$2:$B$101,2,FALSE),"") -> 
E26: TRUE | J26: =IF(B26>0,VLOOKUP(I26,Punkteschema!$A$2:$B$101,2,FALSE),"") -> 
E27: TRUE | J27: =IF(B27>0,VLOOKUP(I27,Punkteschema!$A$2:$B$101,2,FALSE),"") -> 
E28: TRUE | J28: =IF(B28>0,VLOOKUP(I28,Punkteschema!$A$2:$B$101,2,FALSE),"") -> 
E29: TRUE | J29: =IF(B29>0,VLOOKUP(I29,Punkteschema!$A$2:$B$101,2,FALSE),"") -> 
E30: TRUE | J30: =IF(B30>0,VLOOKUP(I30,Punkteschema!$A$2:$B$101,2,FALSE),"") -> 
E31: TRUE | J31: =IF(B31>0,VLOOKUP(I31,Punkteschema!$A$2:$B$101,2,FALSE),"") -> 
E32: TRUE | J32: =IF(B32>0,VLOOKUP(I32,Punkteschema!$A$2:$B$101,2,FALSE),"") -> 
E33: TRUE | J33: =IF(B33>0,VLOOKUP(I33,Punkteschema!$A$2:$B$101,2,FALSE),"") -> 
E34: TRUE | J34: =IF(B34>0,VLOOKUP(I34,Punkteschema!$A$2:$B$101,2,FALSE),"") -> 
E35: TRUE | J35: =IF(B35>0,VLOOKUP(I35,Punkteschema!$A$2:$B$101,2,FALSE),"") -> 
E36: TRUE | J36: =IF(B36>0,VLOOKUP(I36,Punkteschema!$A$2:$B$101,2,FALSE),"") -> 
E37: TRUE | J37: =IF(B37>0,VLOOKUP(I37,Punkteschema!$A$2:$B$101,2,FALSE),"") -> 
E38: TRUE | J38: =IF(B38>0,VLOOKUP(I38,Punkteschema!$A$2:$B$101,2,FALSE),"") -> 
E39: TRUE | J39: =IF(B39>0,VLOOKUP(I39,Punkteschema!$A$2:$B$101,2,FALSE),"") -> 
E40: TRUE | J40: =IF(B40>0,VLOOKUP(I40,Punkteschema!$A$2:$B$101,2,FALSE),"") -> 
E41: TRUE | J41: =IF(B41>0,VLOOKUP(I41,Punkteschema!$A$2:$B$101,2,FALSE),"") -> 
E42: TRUE | J42: =IF(B42>0,VLOOKUP(I42,Punkteschema!$A$2:$B$101,2,FALSE),"") -> 
E43: TRUE | J43: =IF(B43>0,VLOOKUP(I43,Punkteschema!$A$2:$B$101,2,FALSE),"") -> 
E44: TRUE | J44: =IF(B44>0,VLOOKUP(I44,Punkteschema!$A$2:$B$101,2,FALSE),"") -> 
E45: TRUE | J45: =IF(B45>0,VLOOKUP(I45,Punkteschema!$A$2:$B$101,2,FALSE),"") -> 
E46: TRUE | J46: =IF(B46>0,VLOOKUP(I46,Punkteschema!$A$2:$B$101,2,FALSE),"") -> 
E47: TRUE | J47: =IF(B47>0,VLOOKUP(I47,Punkteschema!$A$2:$B$101,2,FALSE),"") -> 
E48: TRUE | J48: =IF(B48>0,VLOOKUP(I48,Punkteschema!$A$2:$B$101,2,FALSE),"") -> 
E49: TRUE | J49: =IF(B49>0,VLOOKUP(I49,Punkteschema!$A$2:$B$101,2,FALSE),"") -> 
E50: TRUE | J50: =IF(B50>0,VLOOKUP(I50,Punkteschema!$A$2:$B$101,2,FALSE),"") -> 
E51: TRUE | J51: =IF(B51>0,VLOOKUP(I51,Punkteschema!$A$2:$B$101,2,FALSE),"") -> 
E52: TRUE | J52: =IF(B52>0,VLOOKUP(I52,Punkteschema!$A$2:$B$101,2,FALSE),"") -> 
E53: TRUE | F53: =IF(B53>0,COUNTIF(B$3:B$55,"<"&B53)+1,"") ->  | H53: =IF(AND(B53>0,C53>0),COUNTIF(D$3:D$55,"<"&D53)+1,"") ->  | I53: =IF(B53>0,IF(E53,MIN(F53:H53),MAX(F53:H53)),"") ->  | J53: =IF(B53>0,VLOOKUP(I53,Punkteschema!$A$2:$B$101,2,FALSE),"") -> 
E54: TRUE | H54: =IF(AND(B54>0,C54>0),COUNTIF(D$3:D$55,"<"&D54)+1,"") ->  | I54: =IF(B54>0,IF(E54,MIN(F54:H54),MAX(F54:H54)),"") ->  | J54: =IF(B54>0,VLOOKUP(I54,Punkteschema!$A$2:$B$101,2,FALSE),"") -> 
E55: TRUE | H55: =IF(AND(B55>0,C55>0),COUNTIF(D$3:D$55,"<"&D55)+1,"") ->  | I55: =IF(B55>0,IF(E55,MIN(F55:H55),MAX(F55:H55)),"") ->  | J55: =IF(B55>0,VLOOKUP(I55,Punkteschema!$A$2:$B$101,2,FALSE),"") -> 
A57: OS: Urban, Volker (ASW) | E57: Runde 1: | F57: E | G57: <- E/B
A58: S: Battig, Wolfgang (LÜD) | E58: Runde 2: | F58: B | G58: <- E/B
A59: S: Lieber, Nicole (HOB)
A61: Verloste Preise: | B61: Volker Urban (1 Minigolfball Pingvin Cobi)
B62: Ulrich Börgmann (1 Flasche Rotwein)
B63: Martin Kunz (1 Set Garten-Solarleuchten)

Sheet Einzelwertung15
A1: =CONCATENATE("6. Sommer-Cup - Freizeittreff Herbede - ",TEXT(Gesamtstand!$T$2,"TT.MM.JJ")) -> 6. Sommer-Cup - Freizeittreff Herbede - 13.08.20
A2: Spieler | B2: Runde 1 | C2: Runde 2 | D2: Gesamt | E2: bessere? | F2: Pl. R1 | G2: Pl. R2 | H2: Pl. Ges. | I2: gewertet | J2: Punkte
A3: Battig, Wolfgang | B3: 26 | C3: 31 | D3: =IF(B3>0,C3+B3,"") -> 57 | E3: FALSE | F3: =IF(B3>0,COUNTIF(B$3:B$55,"<"&B3)+1,"") -> 1 | G3: =IF(C3>0,COUNTIF(C$3:C$55,"<"&C3)+1,"") -> 1 | H3: =IF(AND(B3>0,C3>0),COUNTIF(D$3:D$55,"<"&D3)+1,"") -> 1 | I3: =IF(B3>0,IF(E3,MIN(F3:H3),MAX(F3:H3)),"") -> 1 | J3: =IF(B3>0,VLOOKUP(I3,Punkteschema!$A$2:$B$101,2,FALSE),"") -> 25
A4: Urban, Volker | B4: 26 | C4: 33 | D4: 59 | E4: FALSE | F4: 1 | G4: 2 | H4: 2 | I4: 2 | J4: =IF(B4>0,VLOOKUP(I4,Punkteschema!$A$2:$B$101,2,FALSE),"") -> 21
A5: Greiffendorf, Hellmut | B5: 29 | C5: 34 | D5: 63 | E5: TRUE | F5: 3 | G5: 3 | H5: 3 | I5: 3 | J5: =IF(B5>0,VLOOKUP(I5,Punkteschema!$A$2:$B$101,2,FALSE),"") -> 18
A6: Hickert, Peter | B6: 33 | C6: 34 | D6: 67 | E6: TRUE | F6: 9 | G6: 3 | H6: 6 | I6: 3 | J6: =IF(B6>0,VLOOKUP(I6,Punkteschema!$A$2:$B$101,2,FALSE),"") -> 18
A7: Kortmann, Sabine | B7: 30 | C7: 36 | D7: 66 | E7: TRUE | F7: 4 | G7: 8 | H7: 4 | I7: 4 | J7: =IF(B7>0,VLOOKUP(I7,Punkteschema!$A$2:$B$101,2,FALSE),"") -> 15
A8: Kunz, Martin | B8: 30 | C8: 37 | D8: 67 | E8: TRUE | F8: 4 | G8: 11 | H8: 6 | I8: 4 | J8: =IF(B8>0,VLOOKUP(I8,Punkteschema!$A$2:$B$101,2,FALSE),"") -> 15
A9: Rabe, Jonas | B9: 30 | C9: 36 | D9: 66 | E9: TRUE | F9: 4 | G9: 8 | H9: 4 | I9: 4 | J9: =IF(B9>0,VLOOKUP(I9,Punkteschema!$A$2:$B$101,2,FALSE),"") -> 15
A10: Brunnenkant, Frank | B10: 34 | C10: 35 | D10: 69 | E10: TRUE | F10: 11 | G10: 5 | H10: 9 | I10: 5 | J10: =IF(B10>0,VLOOKUP(I10,Punkteschema!$A$2:$B$101,2,FALSE),"") -> 15
A11: Lenk, Rolf | B11: 32 | C11: 35 | D11: 67 | E11: TRUE | F11: 7 | G11: 5 | H11: 6 | I11: 5 | J11: =IF(B11>0,VLOOKUP(I11,Punkteschema!$A$2:$B$101,2,FALSE),"") -> 15
A12: Tabor, Peter | B12: 32 | C12: 39 | D12: 71 | E12: TRUE | F12: 7 | G12: 13 | H12: 11 | I12: 7 | J12: =IF(B12>0,VLOOKUP(I12,Punkteschema!$A$2:$B$101,2,FALSE),"") -> 10
A13: Kortmann, Uwe | B13: 35 | C13: 36 | D13: 71 | E13: TRUE | F13: 13 | G13: 8 | H13: 11 | I13: 8 | J13: =IF(B13>0,VLOOKUP(I13,Punkteschema!$A$2:$B$101,2,FALSE),"") -> 10
A14: Kalhöfer, Anna | B14: 33 | C14: 38 | D14: 71 | E14: TRUE | F14: 9 | G14: 12 | H14: 11 | I14: 9 | J14: =IF(B14>0,VLOOKUP(I14,Punkteschema!$A$2:$B$101,2,FALSE),"") -> 10
A15: Lieber, Nicole | B15: 34 | C15: 35 | D15: 69 | E15: FALSE | F15: 11 | G15: 5 | H15: 9 | I15: 11 | J15: =IF(B15>0,VLOOKUP(I15,Punkteschema!$A$2:$B$101,2,FALSE),"") -> 5
A16: Kersch, Uwe | B16: 35 | C16: 42 | D16: 77 | E16: TRUE | F16: 13 | G16: 14 | H16: 14 | I16: 13 | J16: =IF(B16>0,VLOOKUP(I16,Punkteschema!$A$2:$B$101,2,FALSE),"") -> 5
A17: Schmidt, Barbara | B17: 43 | C17: 44 | D17: 87 | E17: TRUE | F17: 15 | G17: 15 | H17: 15 | I17: 15 | J17: =IF(B17>0,VLOOKUP(I17,Punkteschema!$A$2:$B$101,2,FALSE),"") -> 5
D18: =IF(B18>0,C18+B18,"") ->  | E18: TRUE | F18: =IF(B18>0,COUNTIF(B$3:B$55,"<"&B18)+1,"") ->  | G18: =IF(C18>0,COUNTIF(C$3:C$55,"<"&C18)+1,"") ->  | H18: =IF(AND(B18>0,C18>0),COUNTIF(D$3:D$55,"<"&D18)+1,"") ->  | I18: =IF(B18>0,IF(E18,MIN(F18:H18),MAX(F18:H18)),"") ->  | J18: =IF(B18>0,VLOOKUP(I18,Punkteschema!$A$2:$B$101,2,FALSE),"") -> 
E19: TRUE | J19: =IF(B19>0,VLOOKUP(I19,Punkteschema!$A$2:$B$101,2,FALSE),"") -> 
E20: TRUE | J20: =IF(B20>0,VLOOKUP(I20,Punkteschema!$A$2:$B$101,2,FALSE),"") -> 
E21: TRUE | J21: =IF(B21>0,VLOOKUP(I21,Punkteschema!$A$2:$B$101,2,FALSE),"") -> 
E22: TRUE | J22: =IF(B22>0,VLOOKUP(I22,Punkteschema!$A$2:$B$101,2,FALSE),"") -> 
D23: =IF(B23>0,C23+B23,"") ->  | E23: TRUE | F23: =IF(B23>0,COUNTIF(B$3:B$55,"<"&B23)+1,"") ->  | H23: =IF(AND(B23>0,C23>0),COUNTIF(D$3:D$55,"<"&D23)+1,"") ->  | I23: =IF(B23>0,IF(E23,MIN(F23:H23),MAX(F23:H23)),"") ->  | J23: =IF(B23>0,VLOOKUP(I23,Punkteschema!$A$2:$B$101,2,FALSE),"") -> 
E24: TRUE | J24: =IF(B24>0,VLOOKUP(I24,Punkteschema!$A$2:$B$101,2,FALSE),"") -> 
E25: TRUE | J25: =IF(B25>0,VLOOKUP(I25,Punkteschema!$A$2:$B$101,2,FALSE),"") -> 
E26: TRUE | J26: =IF(B26>0,VLOOKUP(I26,Punkteschema!$A$2:$B$101,2,FALSE),"") -> 
E27: TRUE | J27: =IF(B27>0,VLOOKUP(I27,Punkteschema!$A$2:$B$101,2,FALSE),"") -> 
E28: TRUE | J28: =IF(B28>0,VLOOKUP(I28,Punkteschema!$A$2:$B$101,2,FALSE),"") -> 
E29: TRUE | J29: =IF(B29>0,VLOOKUP(I29,Punkteschema!$A$2:$B$101,2,FALSE),"") -> 
E30: TRUE | J30: =IF(B30>0,VLOOKUP(I30,Punkteschema!$A$2:$B$101,2,FALSE),"") -> 
E31: TRUE | J31: =IF(B31>0,VLOOKUP(I31,Punkteschema!$A$2:$B$101,2,FALSE),"") -> 
E32: TRUE | J32: =IF(B32>0,VLOOKUP(I32,Punkteschema!$A$2:$B$101,2,FALSE),"") -> 
E33: TRUE | J33: =IF(B33>0,VLOOKUP(I33,Punkteschema!$A$2:$B$101,2,FALSE),"") -> 
E34: TRUE | J34: =IF(B34>0,VLOOKUP(I34,Punkteschema!$A$2:$B$101,2,FALSE),"") -> 
E35: TRUE | J35: =IF(B35>0,VLOOKUP(I35,Punkteschema!$A$2:$B$101,2,FALSE),"") -> 
E36: TRUE | J36: =IF(B36>0,VLOOKUP(I36,Punkteschema!$A$2:$B$101,2,FALSE),"") -> 
E37: TRUE | J37: =IF(B37>0,VLOOKUP(I37,Punkteschema!$A$2:$B$101,2,FALSE),"") -> 
E38: TRUE | J38: =IF(B38>0,VLOOKUP(I38,Punkteschema!$A$2:$B$101,2,FALSE),"") -> 
E39: TRUE | J39: =IF(B39>0,VLOOKUP(I39,Punkteschema!$A$2:$B$101,2,FALSE),"") -> 
E40: TRUE | J40: =IF(B40>0,VLOOKUP(I40,Punkteschema!$A$2:$B$101,2,FALSE),"") -> 
E41: TRUE | J41: =IF(B41>0,VLOOKUP(I41,Punkteschema!$A$2:$B$101,2,FALSE),"") -> 
E42: TRUE | J42: =IF(B42>0,VLOOKUP(I42,Punkteschema!$A$2:$B$101,2,FALSE),"") -> 
E43: TRUE | J43: =IF(B43>0,VLOOKUP(I43,Punkteschema!$A$2:$B$101,2,FALSE),"") -> 
E44: TRUE | J44: =IF(B44>0,VLOOKUP(I44,Punkteschema!$A$2:$B$101,2,FALSE),"") -> 
E45: TRUE | J45: =IF(B45>0,VLOOKUP(I45,Punkteschema!$A$2:$B$101,2,FALSE),"") -> 
E46: TRUE | J46: =IF(B46>0,VLOOKUP(I46,Punkteschema!$A$2:$B$101,2,FALSE),"") -> 
E47: TRUE | J47: =IF(B47>0,VLOOKUP(I47,Punkteschema!$A$2:$B$101,2,FALSE),"") -> 
E48: TRUE | J48: =IF(B48>0,VLOOKUP(I48,Punkteschema!$A$2:$B$101,2,FALSE),"") -> 
E49: TRUE | J49: =IF(B49>0,VLOOKUP(I49,Punkteschema!$A$2:$B$101,2,FALSE),"") -> 
E50: TRUE | J50: =IF(B50>0,VLOOKUP(I50,Punkteschema!$A$2:$B$101,2,FALSE),"") -> 
E51: TRUE | J51: =IF(B51>0,VLOOKUP(I51,Punkteschema!$A$2:$B$101,2,FALSE),"") -> 
E52: TRUE | J52: =IF(B52>0,VLOOKUP(I52,Punkteschema!$A$2:$B$101,2,FALSE),"") -> 
E53: TRUE | F53: =IF(B53>0,COUNTIF(B$3:B$55,"<"&B53)+1,"") ->  | H53: =IF(AND(B53>0,C53>0),COUNTIF(D$3:D$55,"<"&D53)+1,"") ->  | I53: =IF(B53>0,IF(E53,MIN(F53:H53),MAX(F53:H53)),"") ->  | J53: =IF(B53>0,VLOOKUP(I53,Punkteschema!$A$2:$B$101,2,FALSE),"") -> 
E54: TRUE | H54: =IF(AND(B54>0,C54>0),COUNTIF(D$3:D$55,"<"&D54)+1,"") ->  | I54: =IF(B54>0,IF(E54,MIN(F54:H54),MAX(F54:H54)),"") ->  | J54: =IF(B54>0,VLOOKUP(I54,Punkteschema!$A$2:$B$101,2,FALSE),"") -> 
E55: TRUE | H55: =IF(AND(B55>0,C55>0),COUNTIF(D$3:D$55,"<"&D55)+1,"") ->  | I55: =IF(B55>0,IF(E55,MIN(F55:H55),MAX(F55:H55)),"") ->  | J55: =IF(B55>0,VLOOKUP(I55,Punkteschema!$A$2:$B$101,2,FALSE),"") -> 
A57: OS: Urban, Volker (ASW) | E57: Runde 1: | F57: E | G57: <- E/B
A58: S: Battig, Wolfgang (LÜD) | E58: Runde 2: | F58: B | G58: <- E/B
A59: S: Lieber, Nicole (HOB)
A61: Verloste Preise: | B61: Wolfgang Battig - 1 Minigolfball (Pingvin Turbo 80)
B62: Martin Kunz - 1 Dose Haribo Colorado
B63: Peter Tabor - 1 Glasquader "Minigolfer"

Sheet Einzelwertung16
A1: =CONCATENATE("6. Sommer-Cup - Freizeittreff Herbede - ",TEXT(Gesamtstand!$U$2,"TT.MM.JJ")) -> 6. Sommer-Cup - Freizeittreff Herbede - 20.08.20
A2: Spieler | B2: Runde 1 | C2: Runde 2 | D2: Gesamt | E2: bessere? | F2: Pl. R1 | G2: Pl. R2 | H2: Pl. Ges. | I2: gewertet | J2: Punkte
A3: Hein, Hans-Jörg | B3: 22 | C3: 34 | D3: =IF(B3>0,C3+B3,"") -> 56 | E3: TRUE | F3: =IF(B3>0,COUNTIF(B$3:B$55,"<"&B3)+1,"") -> 1 | G3: =IF(C3>0,COUNTIF(C$3:C$55,"<"&C3)+1,"") -> 7 | H3: =IF(AND(B3>0,C3>0),COUNTIF(D$3:D$55,"<"&D3)+1,"") -> 3 | I3: =IF(B3>0,IF(E3,MIN(F3:H3),MAX(F3:H3)),"") -> 1 | J3: =IF(B3>0,VLOOKUP(I3,Punkteschema!$A$2:$B$101,2,FALSE),"") -> 25
A4: Hettrich, Willi | B4: 26 | C4: 28 | D4: 54 | E4: TRUE | F4: 3 | G4: 1 | H4: 2 | I4: 1 | J4: =IF(B4>0,VLOOKUP(I4,Punkteschema!$A$2:$B$101,2,FALSE),"") -> 25
A5: Battig, Wolfgang | B5: 22 | C5: 29 | D5: 51 | E5: FALSE | F5: 1 | G5: 2 | H5: 1 | I5: 2 | J5: =IF(B5>0,VLOOKUP(I5,Punkteschema!$A$2:$B$101,2,FALSE),"") -> 21
A6: Greiffendorf, Hellmut | B6: 26 | C6: 33 | D6: 59 | E6: TRUE | F6: 3 | G6: 6 | H6: 6 | I6: 3 | J6: =IF(B6>0,VLOOKUP(I6,Punkteschema!$A$2:$B$101,2,FALSE),"") -> 18
A7: Puschner, Michael | B7: 28 | C7: 30 | D7: 58 | E7: TRUE | F7: 6 | G7: 3 | H7: 4 | I7: 3 | J7: =IF(B7>0,VLOOKUP(I7,Punkteschema!$A$2:$B$101,2,FALSE),"") -> 18
A8: Kunz, Martin | B8: 33 | C8: 31 | D8: 64 | E8: TRUE | F8: 10 | G8: 4 | H8: 8 | I8: 4 | J8: =IF(B8>0,VLOOKUP(I8,Punkteschema!$A$2:$B$101,2,FALSE),"") -> 15
A9: Urban, Volker | B9: 26 | C9: 32 | D9: 58 | E9: FALSE | F9: 3 | G9: 5 | H9: 4 | I9: 5 | J9: =IF(B9>0,VLOOKUP(I9,Punkteschema!$A$2:$B$101,2,FALSE),"") -> 15
A10: Rabe, Jonas | B10: 32 | C10: 34 | D10: 66 | E10: TRUE | F10: 8 | G10: 7 | H10: 9 | I10: 7 | J10: =IF(B10>0,VLOOKUP(I10,Punkteschema!$A$2:$B$101,2,FALSE),"") -> 10
A11: Kortmann, Uwe | B11: 32 | C11: 40 | D11: 72 | E11: TRUE | F11: 8 | G11: 12 | H11: 10 | I11: 8 | J11: =IF(B11>0,VLOOKUP(I11,Punkteschema!$A$2:$B$101,2,FALSE),"") -> 10
A12: Lieber, Nicole | B12: 28 | C12: 35 | D12: 63 | E12: FALSE | F12: 6 | G12: 9 | H12: 7 | I12: 9 | J12: =IF(B12>0,VLOOKUP(I12,Punkteschema!$A$2:$B$101,2,FALSE),"") -> 10
A13: Kortmann, Sabine | B13: 33 | C13: 39 | D13: 72 | E13: TRUE | F13: 10 | G13: 11 | H13: 10 | I13: 10 | J13: =IF(B13>0,VLOOKUP(I13,Punkteschema!$A$2:$B$101,2,FALSE),"") -> 10
A14: Tabor, Peter | B14: 35 | C14: 38 | D14: 73 | E14: TRUE | F14: 13 | G14: 10 | H14: 12 | I14: 10 | J14: =IF(B14>0,VLOOKUP(I14,Punkteschema!$A$2:$B$101,2,FALSE),"") -> 10
A15: Urban, Angela | B15: 34 | C15: 43 | D15: 77 | E15: TRUE | F15: 12 | G15: 13 | H15: 13 | I15: 12 | J15: =IF(B15>0,VLOOKUP(I15,Punkteschema!$A$2:$B$101,2,FALSE),"") -> 5
D16: =IF(B16>0,C16+B16,"") ->  | E16: TRUE | F16: =IF(B16>0,COUNTIF(B$3:B$55,"<"&B16)+1,"") ->  | G16: =IF(C16>0,COUNTIF(C$3:C$55,"<"&C16)+1,"") ->  | H16: =IF(AND(B16>0,C16>0),COUNTIF(D$3:D$55,"<"&D16)+1,"") ->  | I16: =IF(B16>0,IF(E16,MIN(F16:H16),MAX(F16:H16)),"") ->  | J16: =IF(B16>0,VLOOKUP(I16,Punkteschema!$A$2:$B$101,2,FALSE),"") -> 
E17: TRUE | J17: =IF(B17>0,VLOOKUP(I17,Punkteschema!$A$2:$B$101,2,FALSE),"") -> 
E18: TRUE | J18: =IF(B18>0,VLOOKUP(I18,Punkteschema!$A$2:$B$101,2,FALSE),"") -> 
E19: TRUE | J19: =IF(B19>0,VLOOKUP(I19,Punkteschema!$A$2:$B$101,2,FALSE),"") -> 
E20: TRUE | J20: =IF(B20>0,VLOOKUP(I20,Punkteschema!$A$2:$B$101,2,FALSE),"") -> 
E21: TRUE | J21: =IF(B21>0,VLOOKUP(I21,Punkteschema!$A$2:$B$101,2,FALSE),"") -> 
E22: TRUE | J22: =IF(B22>0,VLOOKUP(I22,Punkteschema!$A$2:$B$101,2,FALSE),"") -> 
E23: TRUE | J23: =IF(B23>0,VLOOKUP(I23,Punkteschema!$A$2:$B$101,2,FALSE),"") -> 
D24: =IF(B24>0,C24+B24,"") ->  | E24: TRUE | F24: =IF(B24>0,COUNTIF(B$3:B$55,"<"&B24)+1,"") ->  | G24: =IF(C24>0,COUNTIF(C$3:C$55,"<"&C24)+1,"") ->  | H24: =IF(AND(B24>0,C24>0),COUNTIF(D$3:D$55,"<"&D24)+1,"") ->  | I24: =IF(B24>0,IF(E24,MIN(F24:H24),MAX(F24:H24)),"") ->  | J24: =IF(B24>0,VLOOKUP(I24,Punkteschema!$A$2:$B$101,2,FALSE),"") -> 
D25: =IF(B25>0,C25+B25,"") ->  | E25: TRUE | F25: =IF(B25>0,COUNTIF(B$3:B$55,"<"&B25)+1,"") ->  | H25: =IF(AND(B25>0,C25>0),COUNTIF(D$3:D$55,"<"&D25)+1,"") ->  | I25: =IF(B25>0,IF(E25,MIN(F25:H25),MAX(F25:H25)),"") ->  | J25: =IF(B25>0,VLOOKUP(I25,Punkteschema!$A$2:$B$101,2,FALSE),"") -> 
E26: TRUE | J26: =IF(B26>0,VLOOKUP(I26,Punkteschema!$A$2:$B$101,2,FALSE),"") -> 
E27: TRUE | J27: =IF(B27>0,VLOOKUP(I27,Punkteschema!$A$2:$B$101,2,FALSE),"") -> 
E28: TRUE | J28: =IF(B28>0,VLOOKUP(I28,Punkteschema!$A$2:$B$101,2,FALSE),"") -> 
E29: TRUE | J29: =IF(B29>0,VLOOKUP(I29,Punkteschema!$A$2:$B$101,2,FALSE),"") -> 
E30: TRUE | J30: =IF(B30>0,VLOOKUP(I30,Punkteschema!$A$2:$B$101,2,FALSE),"") -> 
E31: TRUE | J31: =IF(B31>0,VLOOKUP(I31,Punkteschema!$A$2:$B$101,2,FALSE),"") -> 
E32: TRUE | J32: =IF(B32>0,VLOOKUP(I32,Punkteschema!$A$2:$B$101,2,FALSE),"") -> 
E33: TRUE | J33: =IF(B33>0,VLOOKUP(I33,Punkteschema!$A$2:$B$101,2,FALSE),"") -> 
E34: TRUE | J34: =IF(B34>0,VLOOKUP(I34,Punkteschema!$A$2:$B$101,2,FALSE),"") -> 
E35: TRUE | J35: =IF(B35>0,VLOOKUP(I35,Punkteschema!$A$2:$B$101,2,FALSE),"") -> 
E36: TRUE | J36: =IF(B36>0,VLOOKUP(I36,Punkteschema!$A$2:$B$101,2,FALSE),"") -> 
E37: TRUE | J37: =IF(B37>0,VLOOKUP(I37,Punkteschema!$A$2:$B$101,2,FALSE),"") -> 
E38: TRUE | J38: =IF(B38>0,VLOOKUP(I38,Punkteschema!$A$2:$B$101,2,FALSE),"") -> 
E39: TRUE | J39: =IF(B39>0,VLOOKUP(I39,Punkteschema!$A$2:$B$101,2,FALSE),"") -> 
E40: TRUE | J40: =IF(B40>0,VLOOKUP(I40,Punkteschema!$A$2:$B$101,2,FALSE),"") -> 
E41: TRUE | J41: =IF(B41>0,VLOOKUP(I41,Punkteschema!$A$2:$B$101,2,FALSE),"") -> 
E42: TRUE | J42: =IF(B42>0,VLOOKUP(I42,Punkteschema!$A$2:$B$101,2,FALSE),"") -> 
E43: TRUE | J43: =IF(B43>0,VLOOKUP(I43,Punkteschema!$A$2:$B$101,2,FALSE),"") -> 
E44: TRUE | J44: =IF(B44>0,VLOOKUP(I44,Punkteschema!$A$2:$B$101,2,FALSE),"") -> 
E45: TRUE | J45: =IF(B45>0,VLOOKUP(I45,Punkteschema!$A$2:$B$101,2,FALSE),"") -> 
E46: TRUE | J46: =IF(B46>0,VLOOKUP(I46,Punkteschema!$A$2:$B$101,2,FALSE),"") -> 
E47: TRUE | J47: =IF(B47>0,VLOOKUP(I47,Punkteschema!$A$2:$B$101,2,FALSE),"") -> 
E48: TRUE | J48: =IF(B48>0,VLOOKUP(I48,Punkteschema!$A$2:$B$101,2,FALSE),"") -> 
E49: TRUE | J49: =IF(B49>0,VLOOKUP(I49,Punkteschema!$A$2:$B$101,2,FALSE),"") -> 
E50: TRUE | J50: =IF(B50>0,VLOOKUP(I50,Punkteschema!$A$2:$B$101,2,FALSE),"") -> 
E51: TRUE | J51: =IF(B51>0,VLOOKUP(I51,Punkteschema!$A$2:$B$101,2,FALSE),"") -> 
E52: TRUE | J52: =IF(B52>0,VLOOKUP(I52,Punkteschema!$A$2:$B$101,2,FALSE),"") -> 
E53: TRUE | F53: =IF(B53>0,COUNTIF(B$3:B$55,"<"&B53)+1,"") ->  | H53: =IF(AND(B53>0,C53>0),COUNTIF(D$3:D$55,"<"&D53)+1,"") ->  | I53: =IF(B53>0,IF(E53,MIN(F53:H53),MAX(F53:H53)),"") ->  | J53: =IF(B53>0,VLOOKUP(I53,Punkteschema!$A$2:$B$101,2,FALSE),"") -> 
E54: TRUE | H54: =IF(AND(B54>0,C54>0),COUNTIF(D$3:D$55,"<"&D54)+1,"") ->  | I54: =IF(B54>0,IF(E54,MIN(F54:H54),MAX(F54:H54)),"") ->  | J54: =IF(B54>0,VLOOKUP(I54,Punkteschema!$A$2:$B$101,2,FALSE),"") -> 
E55: TRUE | H55: =IF(AND(B55>0,C55>0),COUNTIF(D$3:D$55,"<"&D55)+1,"") ->  | I55: =IF(B55>0,IF(E55,MIN(F55:H55),MAX(F55:H55)),"") ->  | J55: =IF(B55>0,VLOOKUP(I55,Punkteschema!$A$2:$B$101,2,FALSE),"") -> 
A57: OS: Urban, Volker (ASW) | E57: Runde 1: | F57: E | G57: <- E/B
A58: S: Battig, Wolfgang (LÜD) | E58: Runde 2: | F58: B | G58: <- E/B
A59: S: Puschner, Michael (HOB)
A61: Verloste Preise: | B61: Willi Hettrich - 1 Minigolfball (BOF Romain Bausch)
B62: Wolfgang Battig - 1 Großpackung Haribo Fantasia
B63: Michael Puschner - 1 Verzehrgutschein

Sheet Einzelwertung17
A1: =CONCATENATE("6. Sommer-Cup - Freizeittreff Herbede - ",TEXT(Gesamtstand!$V$2,"TT.MM.JJ")) -> 6. Sommer-Cup - Freizeittreff Herbede - 27.08.20
A2: Spieler | B2: Runde 1 | C2: Runde 2 | D2: Gesamt | E2: bessere? | F2: Pl. R1 | G2: Pl. R2 | H2: Pl. Ges. | I2: gewertet | J2: Punkte
A3: Urban, Volker | B3: 23 | C3: 32 | D3: =IF(B3>0,C3+B3,"") -> 55 | E3: FALSE | F3: =IF(B3>0,COUNTIF(B$3:B$55,"<"&B3)+1,"") -> 1 | G3: =IF(C3>0,COUNTIF(C$3:C$55,"<"&C3)+1,"") -> 1 | H3: =IF(AND(B3>0,C3>0),COUNTIF(D$3:D$55,"<"&D3)+1,"") -> 1 | I3: =IF(B3>0,IF(E3,MIN(F3:H3),MAX(F3:H3)),"") -> 1 | J3: =IF(B3>0,VLOOKUP(I3,Punkteschema!$A$2:$B$101,2,FALSE),"") -> 25
A4: Puschner, Michael | B4: 24 | C4: 32 | D4: 56 | E4: FALSE | F4: 2 | G4: 1 | H4: 2 | I4: 2 | J4: =IF(B4>0,VLOOKUP(I4,Punkteschema!$A$2:$B$101,2,FALSE),"") -> 21
A5: Hein, Hans-Jörg | B5: 24 | C5: 33 | D5: 57 | E5: TRUE | F5: 2 | G5: 3 | H5: 3 | I5: 2 | J5: =IF(B5>0,VLOOKUP(I5,Punkteschema!$A$2:$B$101,2,FALSE),"") -> 21
A6: Börgmann, Ulrich | B6: 29 | C6: 33 | D6: 62 | E6: TRUE | F6: 6 | G6: 3 | H6: 6 | I6: 3 | J6: =IF(B6>0,VLOOKUP(I6,Punkteschema!$A$2:$B$101,2,FALSE),"") -> 18
A7: Lenk, Rolf | B7: 38 | C7: 33 | D7: 71 | E7: TRUE | F7: 13 | G7: 3 | H7: 11 | I7: 3 | J7: =IF(B7>0,VLOOKUP(I7,Punkteschema!$A$2:$B$101,2,FALSE),"") -> 18
A8: Greiffendorf, Hellmut | B8: 27 | C8: 34 | D8: 61 | E8: TRUE | F8: 4 | G8: 6 | H8: 4 | I8: 4 | J8: =IF(B8>0,VLOOKUP(I8,Punkteschema!$A$2:$B$101,2,FALSE),"") -> 15
A9: Tabor, Peter | B9: 27 | C9: 34 | D9: 61 | E9: TRUE | F9: 4 | G9: 6 | H9: 4 | I9: 4 | J9: =IF(B9>0,VLOOKUP(I9,Punkteschema!$A$2:$B$101,2,FALSE),"") -> 15
A10: Rabe, Jonas | B10: 29 | C10: 35 | D10: 64 | E10: TRUE | F10: 6 | G10: 9 | H10: 7 | I10: 6 | J10: =IF(B10>0,VLOOKUP(I10,Punkteschema!$A$2:$B$101,2,FALSE),"") -> 15
A11: Schmidt, Barbara | B11: 39 | C11: 34 | D11: 73 | E11: TRUE | F11: 14 | G11: 6 | H11: 12 | I11: 6 | J11: =IF(B11>0,VLOOKUP(I11,Punkteschema!$A$2:$B$101,2,FALSE),"") -> 15
A12: Brunnenkant, Frank | B12: 32 | C12: 37 | D12: 69 | E12: TRUE | F12: 9 | G12: 11 | H12: 10 | I12: 9 | J12: =IF(B12>0,VLOOKUP(I12,Punkteschema!$A$2:$B$101,2,FALSE),"") -> 10
A13: Lieber, Nicole | B13: 33 | C13: 35 | D13: 68 | E13: TRUE | F13: 10 | G13: 9 | H13: 9 | I13: 9 | J13: =IF(B13>0,VLOOKUP(I13,Punkteschema!$A$2:$B$101,2,FALSE),"") -> 10
A14: Kunz, Martin | B14: 29 | C14: 37 | D14: 66 | E14: FALSE | F14: 6 | G14: 11 | H14: 8 | I14: 11 | J14: =IF(B14>0,VLOOKUP(I14,Punkteschema!$A$2:$B$101,2,FALSE),"") -> 5
A15: Schmidtbauer, Günter | B15: 35 | C15: 50 | D15: 85 | E15: TRUE | F15: 11 | G15: 14 | H15: 14 | I15: 11 | J15: =IF(B15>0,VLOOKUP(I15,Punkteschema!$A$2:$B$101,2,FALSE),"") -> 5
A16: Börgmann, Brigitte | B16: 37 | C16: 38 | D16: 75 | E16: TRUE | F16: 12 | G16: 13 | H16: 13 | I16: 12 | J16: =IF(B16>0,VLOOKUP(I16,Punkteschema!$A$2:$B$101,2,FALSE),"") -> 5
D17: =IF(B17>0,C17+B17,"") ->  | E17: TRUE | F17: =IF(B17>0,COUNTIF(B$3:B$55,"<"&B17)+1,"") ->  | G17: =IF(C17>0,COUNTIF(C$3:C$55,"<"&C17)+1,"") ->  | H17: =IF(AND(B17>0,C17>0),COUNTIF(D$3:D$55,"<"&D17)+1,"") ->  | I17: =IF(B17>0,IF(E17,MIN(F17:H17),MAX(F17:H17)),"") ->  | J17: =IF(B17>0,VLOOKUP(I17,Punkteschema!$A$2:$B$101,2,FALSE),"") -> 
E18: TRUE | J18: =IF(B18>0,VLOOKUP(I18,Punkteschema!$A$2:$B$101,2,FALSE),"") -> 
E19: TRUE | J19: =IF(B19>0,VLOOKUP(I19,Punkteschema!$A$2:$B$101,2,FALSE),"") -> 
E20: TRUE | J20: =IF(B20>0,VLOOKUP(I20,Punkteschema!$A$2:$B$101,2,FALSE),"") -> 
E21: TRUE | J21: =IF(B21>0,VLOOKUP(I21,Punkteschema!$A$2:$B$101,2,FALSE),"") -> 
E22: TRUE | J22: =IF(B22>0,VLOOKUP(I22,Punkteschema!$A$2:$B$101,2,FALSE),"") -> 
E23: TRUE | J23: =IF(B23>0,VLOOKUP(I23,Punkteschema!$A$2:$B$101,2,FALSE),"") -> 
D24: =IF(B24>0,C24+B24,"") ->  | E24: TRUE | F24: =IF(B24>0,COUNTIF(B$3:B$55,"<"&B24)+1,"") ->  | G24: =IF(C24>0,COUNTIF(C$3:C$55,"<"&C24)+1,"") ->  | H24: =IF(AND(B24>0,C24>0),COUNTIF(D$3:D$55,"<"&D24)+1,"") ->  | I24: =IF(B24>0,IF(E24,MIN(F24:H24),MAX(F24:H24)),"") ->  | J24: =IF(B24>0,VLOOKUP(I24,Punkteschema!$A$2:$B$101,2,FALSE),"") -> 
D25: =IF(B25>0,C25+B25,"") ->  | E25: TRUE | F25: =IF(B25>0,COUNTIF(B$3:B$55,"<"&B25)+1,"") ->  | H25: =IF(AND(B25>0,C25>0),COUNTIF(D$3:D$55,"<"&D25)+1,"") ->  | I25: =IF(B25>0,IF(E25,MIN(F25:H25),MAX(F25:H25)),"") ->  | J25: =IF(B25>0,VLOOKUP(I25,Punkteschema!$A$2:$B$101,2,FALSE),"") -> 
E26: TRUE | J26: =IF(B26>0,VLOOKUP(I26,Punkteschema!$A$2:$B$101,2,FALSE),"") -> 
E27: TRUE | J27: =IF(B27>0,VLOOKUP(I27,Punkteschema!$A$2:$B$101,2,FALSE),"") -> 
E28: TRUE | J28: =IF(B28>0,VLOOKUP(I28,Punkteschema!$A$2:$B$101,2,FALSE),"") -> 
E29: TRUE | J29: =IF(B29>0,VLOOKUP(I29,Punkteschema!$A$2:$B$101,2,FALSE),"") -> 
E30: TRUE | J30: =IF(B30>0,VLOOKUP(I30,Punkteschema!$A$2:$B$101,2,FALSE),"") -> 
E31: TRUE | J31: =IF(B31>0,VLOOKUP(I31,Punkteschema!$A$2:$B$101,2,FALSE),"") -> 
E32: TRUE | J32: =IF(B32>0,VLOOKUP(I32,Punkteschema!$A$2:$B$101,2,FALSE),"") -> 
E33: TRUE | J33: =IF(B33>0,VLOOKUP(I33,Punkteschema!$A$2:$B$101,2,FALSE),"") -> 
E34: TRUE | J34: =IF(B34>0,VLOOKUP(I34,Punkteschema!$A$2:$B$101,2,FALSE),"") -> 
E35: TRUE | J35: =IF(B35>0,VLOOKUP(I35,Punkteschema!$A$2:$B$101,2,FALSE),"") -> 
E36: TRUE | J36: =IF(B36>0,VLOOKUP(I36,Punkteschema!$A$2:$B$101,2,FALSE),"") -> 
E37: TRUE | J37: =IF(B37>0,VLOOKUP(I37,Punkteschema!$A$2:$B$101,2,FALSE),"") -> 
E38: TRUE | J38: =IF(B38>0,VLOOKUP(I38,Punkteschema!$A$2:$B$101,2,FALSE),"") -> 
E39: TRUE | J39: =IF(B39>0,VLOOKUP(I39,Punkteschema!$A$2:$B$101,2,FALSE),"") -> 
E40: TRUE | J40: =IF(B40>0,VLOOKUP(I40,Punkteschema!$A$2:$B$101,2,FALSE),"") -> 
E41: TRUE | J41: =IF(B41>0,VLOOKUP(I41,Punkteschema!$A$2:$B$101,2,FALSE),"") -> 
E42: TRUE | J42: =IF(B42>0,VLOOKUP(I42,Punkteschema!$A$2:$B$101,2,FALSE),"") -> 
E43: TRUE | J43: =IF(B43>0,VLOOKUP(I43,Punkteschema!$A$2:$B$101,2,FALSE),"") -> 
E44: TRUE | J44: =IF(B44>0,VLOOKUP(I44,Punkteschema!$A$2:$B$101,2,FALSE),"") -> 
E45: TRUE | J45: =IF(B45>0,VLOOKUP(I45,Punkteschema!$A$2:$B$101,2,FALSE),"") -> 
E46: TRUE | J46: =IF(B46>0,VLOOKUP(I46,Punkteschema!$A$2:$B$101,2,FALSE),"") -> 
E47: TRUE | J47: =IF(B47>0,VLOOKUP(I47,Punkteschema!$A$2:$B$101,2,FALSE),"") -> 
E48: TRUE | J48: =IF(B48>0,VLOOKUP(I48,Punkteschema!$A$2:$B$101,2,FALSE),"") -> 
E49: TRUE | J49: =IF(B49>0,VLOOKUP(I49,Punkteschema!$A$2:$B$101,2,FALSE),"") -> 
E50: TRUE | J50: =IF(B50>0,VLOOKUP(I50,Punkteschema!$A$2:$B$101,2,FALSE),"") -> 
E51: TRUE | J51: =IF(B51>0,VLOOKUP(I51,Punkteschema!$A$2:$B$101,2,FALSE),"") -> 
E52: TRUE | J52: =IF(B52>0,VLOOKUP(I52,Punkteschema!$A$2:$B$101,2,FALSE),"") -> 
E53: TRUE | F53: =IF(B53>0,COUNTIF(B$3:B$55,"<"&B53)+1,"") ->  | H53: =IF(AND(B53>0,C53>0),COUNTIF(D$3:D$55,"<"&D53)+1,"") ->  | I53: =IF(B53>0,IF(E53,MIN(F53:H53),MAX(F53:H53)),"") ->  | J53: =IF(B53>0,VLOOKUP(I53,Punkteschema!$A$2:$B$101,2,FALSE),"") -> 
E54: TRUE | H54: =IF(AND(B54>0,C54>0),COUNTIF(D$3:D$55,"<"&D54)+1,"") ->  | I54: =IF(B54>0,IF(E54,MIN(F54:H54),MAX(F54:H54)),"") ->  | J54: =IF(B54>0,VLOOKUP(I54,Punkteschema!$A$2:$B$101,2,FALSE),"") -> 
E55: TRUE | H55: =IF(AND(B55>0,C55>0),COUNTIF(D$3:D$55,"<"&D55)+1,"") ->  | I55: =IF(B55>0,IF(E55,MIN(F55:H55),MAX(F55:H55)),"") ->  | J55: =IF(B55>0,VLOOKUP(I55,Punkteschema!$A$2:$B$101,2,FALSE),"") -> 
A57: OS: Urban, Volker (ASW) | E57: Runde 1: | F57: E | G57: <- E/B
A58: S: Lieber, Nicole (HOB) | E58: Runde 2: | F58: B | G58: <- E/B
A59: S: Puschner, Michael (HOB)
A61: Verloste Preise: | B61: Frank Brunnenkant - 1 Minigolfball (BOF Irene Sauer)
B62: Peter Tabor - 1 Flasche Rotwein
B63: Barbara Schmidt - 1 Verzehrgutschein

Sheet Bahnenergebnisse
A1: Datum | B1: Spieler | C1: R1 | D1: R2 | E1: R1 | F1: R2 | G1: L1 | H1: L2 | I1: Sys1 | J1: Sys2 | K1: E1 | L1: E2 | M1: E3 | N1: E4 | O1: E5 | P1: E6 | Q1: E7 | R1: E8 | S1: E9 | T1: E10 | U1: E11 | V1: E12 | W1: E13 | X1: E14 | Y1: E15 | Z1: E16 | AA1: E17 | AB1: E18 | AC1: E_Sum | AD1: B1 | AE1: B2 | AF1: B3 | AG1: B4 | AH1: B5 | AI1: B6 | AJ1: B7 | AK1: B8 | AL1: B9 | AM1: B10 | AN1: B11 | AO1: B12 | AP1: B13 | AQ1: B14 | AR1: B15 | AS1: B16 | AT1: B17 | AU1: B18 | AV1: B_Sum
A2: 2020-06-10 | B2: Battig, Wolfgang | C2: =IF(ISBLANK(E2),"",MID(E2,1,1)+MID(E2,2,1)+MID(E2,3,1)+MID(E2,4,1)+MID(E2,5,1)+MID(E2,6,1)+MID(E2,7,1)+MID(E2,8,1)+MID(E2,9,1)+MID(E2,10,1)+MID(E2,11,1)+MID(E2,12,1)+MID(E2,13,1)+MID(E2,14,1)+MID(E2,15,1)+MID(E2,16,1)+MID(E2,17,1)+MID(E2,18,1)) -> 25 | D2: =IF(ISBLANK(F2),"",MID(F2,1,1)+MID(F2,2,1)+MID(F2,3,1)+MID(F2,4,1)+MID(F2,5,1)+MID(F2,6,1)+MID(F2,7,1)+MID(F2,8,1)+MID(F2,9,1)+MID(F2,10,1)+MID(F2,11,1)+MID(F2,12,1)+MID(F2,13,1)+MID(F2,14,1)+MID(F2,15,1)+MID(F2,16,1)+MID(F2,17,1)+MID(F2,18,1)) -> 31 | E2: 112111112121212122 | F2: 222222112211222221 | G2: =LEN(E2) -> 18 | H2: =LEN(F2) -> 18 | I2: E | J2: B | K2: =IF($I2=MID(K$1,1,1),IF(ISBLANK($E2),"",VALUE(MID($E2,VALUE(MID(K$1,2,LEN(K$1)-1)),1))),IF($J2=MID(K$1,1,1),IF(ISBLANK($F2),"",VALUE(MID($F2,VALUE(MID(K$1,2,LEN(K$1)-1)),1))))) -> 1 | L2: 1 | M2: 2 | N2: 1 | O2: 1 | P2: 1 | Q2: 1 | R2: 1 | S2: 2 | T2: 1 | U2: 2 | V2: 1 | W2: 2 | X2: 1 | Y2: 2 | Z2: 1 | AA2: =IF($I2=MID(AA$1,1,1),IF(ISBLANK($E2),"",VALUE(MID($E2,VALUE(MID(AA$1,2,LEN(AA$1)-1)),1))),IF($J2=MID(AA$1,1,1),IF(ISBLANK($F2),"",VALUE(MID($F2,VALUE(MID(AA$1,2,LEN(AA$1)-1)),1))))) -> 2 | AB2: 2 | AC2: =IF(SUM(K2:AB2)>0,SUM(K2:AB2),0) -> 25 | AD2: =IF($I2=MID(AD$1,1,1),IF(ISBLANK($E2),"",VALUE(MID($E2,VALUE(MID(AD$1,2,LEN(AD$1)-1)),1))),IF($J2=MID(AD$1,1,1),IF(ISBLANK($F2),"",VALUE(MID($F2,VALUE(MID(AD$1,2,LEN(AD$1)-1)),1))))) -> 2 | AE2: 2 | AF2: 2 | AG2: 2 | AH2: 2 | AI2: 2 | AJ2: 1 | AK2: 1 | AL2: 2 | AM2: 2 | AN2: 1 | AO2: 1 | AP2: 2 | AQ2: 2 | AR2: 2 | AS2: 2 | AT2: 2 | AU2: 1 | AV2: =IF(SUM(AD2:AU2)>0,SUM(AD2:AU2),0) -> 31
A3: 2020-06-10 | B3: Greiffendorf, Hellmut | C3: 34 | D3: =IF(ISBLANK(F3),"",MID(F3,1,1)+MID(F3,2,1)+MID(F3,3,1)+MID(F3,4,1)+MID(F3,5,1)+MID(F3,6,1)+MID(F3,7,1)+MID(F3,8,1)+MID(F3,9,1)+MID(F3,10,1)+MID(F3,11,1)+MID(F3,12,1)+MID(F3,13,1)+MID(F3,14,1)+MID(F3,15,1)+MID(F3,16,1)+MID(F3,17,1)+MID(F3,18,1)) -> 29 | E3: 141111211212522421 | F3: 222112221211222121 | G3: =LEN(E3) -> 18 | H3: =LEN(F3) -> 18 | I3: E | J3: B | K3: 1 | L3: 4 | M3: 1 | N3: 1 | O3: 1 | P3: 1 | Q3: 2 | R3: 1 | S3: 1 | T3: 2 | U3: 1 | V3: 2 | W3: 5 | X3: 2 | Y3: 2 | Z3: 4 | AA3: 2 | AB3: 1 | AC3: =IF(SUM(K3:AB3)>0,SUM(K3:AB3),0) -> 34 | AD3: 2 | AE3: 2 | AF3: 2 | AG3: 1 | AH3: 1 | AI3: 2 | AJ3: 2 | AK3: 2 | AL3: 1 | AM3: 2 | AN3: 1 | AO3: 1 | AP3: 2 | AQ3: 2 | AR3: 2 | AS3: 1 | AT3: 2 | AU3: 1 | AV3: =IF(SUM(AD3:AU3)>0,SUM(AD3:AU3),0) -> 29
A4: 2020-06-10 | B4: Urban, Volker | C4: 26 | D4: =IF(ISBLANK(F4),"",MID(F4,1,1)+MID(F4,2,1)+MID(F4,3,1)+MID(F4,4,1)+MID(F4,5,1)+MID(F4,6,1)+MID(F4,7,1)+MID(F4,8,1)+MID(F4,9,1)+MID(F4,10,1)+MID(F4,11,1)+MID(F4,12,1)+MID(F4,13,1)+MID(F4,14,1)+MID(F4,15,1)+MID(F4,16,1)+MID(F4,17,1)+MID(F4,18,1)) -> 31 | E4: 112111112211122222 | F4: 222212133112211221 | G4: 18 | H4: 18 | I4: E | J4: B | K4: 1 | L4: 1 | M4: 2 | N4: 1 | O4: 1 | P4: 1 | Q4: 1 | R4: 1 | S4: 2 | T4: 2 | U4: 1 | V4: 1 | W4: 1 | X4: 2 | Y4: 2 | Z4: 2 | AA4: 2 | AB4: 2 | AC4: 26 | AD4: 2 | AE4: 2 | AF4: 2 | AG4: 2 | AH4: 1 | AI4: 2 | AJ4: 1 | AK4: 3 | AL4: 3 | AM4: 1 | AN4: 1 | AO4: 2 | AP4: 2 | AQ4: 1 | AR4: 1 | AS4: 2 | AT4: 2 | AU4: 1 | AV4: 31
A5: 2020-06-10 | B5: Hein, Hans-Jörg | C5: 26 | D5: 34 | E5: 211111131211222121 | F5: 231321122112224122 | G5: 18 | H5: 18 | I5: E | J5: B | K5: 2 | L5: 1 | M5: 1 | N5: 1 | O5: 1 | P5: 1 | Q5: 1 | R5: 3 | S5: 1 | T5: 2 | U5: 1 | V5: 1 | W5: 2 | X5: 2 | Y5: 2 | Z5: 1 | AA5: 2 | AB5: 1 | AC5: 26 | AD5: 2 | AE5: 3 | AF5: 1 | AG5: 3 | AH5: 2 | AI5: 1 | AJ5: 1 | AK5: 2 | AL5: 2 | AM5: 1 | AN5: 1 | AO5: 2 | AP5: 2 | AQ5: 2 | AR5: 4 | AS5: 1 | AT5: 2 | AU5: 2 | AV5: 34
A6: 2020-06-10 | B6: Lieber, Nicole | C6: 30 | D6: 30 | E6: 111211121111252124 | F6: 121222122211222221 | G6: 18 | H6: 18 | I6: E | J6: B | K6: 1 | L6: 1 | M6: 1 | N6: 2 | O6: 1 | P6: 1 | Q6: 1 | R6: 2 | S6: 1 | T6: 1 | U6: 1 | V6: 1 | W6: 2 | X6: 5 | Y6: 2 | Z6: 1 | AA6: 2 | AB6: 4 | AC6: 30 | AD6: 1 | AE6: 2 | AF6: 1 | AG6: 2 | AH6: 2 | AI6: 2 | AJ6: 1 | AK6: 2 | AL6: 2 | AM6: 2 | AN6: 1 | AO6: 1 | AP6: 2 | AQ6: 2 | AR6: 2 | AS6: 2 | AT6: 2 | AU6: 1 | AV6: 30
A7: 2020-06-10 | B7: Urban, Angela | C7: 32 | D7: 30 | E7: 222132212211322112 | F7: 231122122211222121 | G7: 18 | H7: 18 | I7: E | J7: B | K7: 2 | L7: 2 | M7: 2 | N7: 1 | O7: 3 | P7: 2 | Q7: 2 | R7: 1 | S7: 2 | T7: 2 | U7: 1 | V7: 1 | W7: 3 | X7: 2 | Y7: 2 | Z7: 1 | AA7: 1 | AB7: 2 | AC7: 32 | AD7: 2 | AE7: 3 | AF7: 1 | AG7: 1 | AH7: 2 | AI7: 2 | AJ7: 1 | AK7: 2 | AL7: 2 | AM7: 2 | AN7: 1 | AO7: 1 | AP7: 2 | AQ7: 2 | AR7: 2 | AS7: 1 | AT7: 2 | AU7: 1 | AV7: 30
A8: 2020-06-10 | B8: Börgmann, Ulrich | C8: 26 | D8: 42 | E8: 121121211112232111 | F8: 234422322212222322 | G8: 18 | H8: 18 | I8: E | J8: B | K8: 1 | L8: 2 | M8: 1 | N8: 1 | O8: 2 | P8: 1 | Q8: 2 | R8: 1 | S8: 1 | T8: 1 | U8: 1 | V8: 2 | W8: 2 | X8: 3 | Y8: 2 | Z8: 1 | AA8: 1 | AB8: 1 | AC8: 26 | AD8: 2 | AE8: 3 | AF8: 4 | AG8: 4 | AH8: 2 | AI8: 2 | AJ8: 3 | AK8: 2 | AL8: 2 | AM8: 2 | AN8: 1 | AO8: 2 | AP8: 2 | AQ8: 2 | AR8: 2 | AS8: 3 | AT8: 2 | AU8: 2 | AV8: 42
A9: 2020-06-10 | B9: Puschner, Michael | C9: 28 | D9: 33 | E9: 112111122223112122 | F9: 222322122211212222 | G9: 18 | H9: 18 | I9: E | J9: B | K9: 1 | L9: 1 | M9: 2 | N9: 1 | O9: 1 | P9: 1 | Q9: 1 | R9: 2 | S9: 2 | T9: 2 | U9: 2 | V9: 3 | W9: 1 | X9: 1 | Y9: 2 | Z9: 1 | AA9: 2 | AB9: 2 | AC9: 28 | AD9: 2 | AE9: 2 | AF9: 2 | AG9: 3 | AH9: 2 | AI9: 2 | AJ9: 1 | AK9: 2 | AL9: 2 | AM9: 2 | AN9: 1 | AO9: 1 | AP9: 2 | AQ9: 1 | AR9: 2 | AS9: 2 | AT9: 2 | AU9: 2 | AV9: 33
A10: 2020-06-10 | B10: Tabor, Peter | C10: 33 | D10: 33 | E10: 222211212211123332 | F10: 211221123211225221 | G10: 18 | H10: 18 | I10: E | J10: B | K10: 2 | L10: 2 | M10: 2 | N10: 2 | O10: 1 | P10: 1 | Q10: 2 | R10: 1 | S10: 2 | T10: 2 | U10: 1 | V10: 1 | W10: 1 | X10: 2 | Y10: 3 | Z10: 3 | AA10: 3 | AB10: 2 | AC10: 33 | AD10: 2 | AE10: 1 | AF10: 1 | AG10: 2 | AH10: 2 | AI10: 1 | AJ10: 1 | AK10: 2 | AL10: 3 | AM10: 2 | AN10: 1 | AO10: 1 | AP10: 2 | AQ10: 2 | AR10: 5 | AS10: 2 | AT10: 2 | AU10: 1 | AV10: 33
A11: 2020-06-10 | B11: Rabe, Jonas | C11: 34 | D11: 33 | E11: 221122122223212223 | F11: 122312123212212222 | G11: 18 | H11: 18 | I11: E | J11: B | K11: 2 | L11: 2 | M11: 1 | N11: 1 | O11: 2 | P11: 2 | Q11: 1 | R11: 2 | S11: 2 | T11: 2 | U11: 2 | V11: 3 | W11: 2 | X11: 1 | Y11: 2 | Z11: 2 | AA11: 2 | AB11: 3 | AC11: 34 | AD11: 1 | AE11: 2 | AF11: 2 | AG11: 3 | AH11: 1 | AI11: 2 | AJ11: 1 | AK11: 2 | AL11: 3 | AM11: 2 | AN11: 1 | AO11: 2 | AP11: 2 | AQ11: 1 | AR11: 2 | AS11: 2 | AT11: 2 | AU11: 2 | AV11: 33
A12: 2020-06-10 | B12: Lenk, Rolf | C12: 34 | D12: 35 | E12: 111221412213212215 | F12: 122322222221222231 | G12: 18 | H12: 18 | I12: E | J12: B | K12: 1 | L12: 1 | M12: 1 | N12: 2 | O12: 2 | P12: 1 | Q12: 4 | R12: 1 | S12: 2 | T12: 2 | U12: 1 | V12: 3 | W12: 2 | X12: 1 | Y12: 2 | Z12: 2 | AA12: 1 | AB12: 5 | AC12: 34 | AD12: 1 | AE12: 2 | AF12: 2 | AG12: 3 | AH12: 2 | AI12: 2 | AJ12: 2 | AK12: 2 | AL12: 2 | AM12: 2 | AN12: 2 | AO12: 1 | AP12: 2 | AQ12: 2 | AR12: 2 | AS12: 2 | AT12: 3 | AU12: 1 | AV12: 35
A13: 2020-06-10 | B13: Schmidtbauer, Günter | C13: 34 | D13: 35 | E13: 251224112112312121 | F13: 122223222211223231 | G13: 18 | H13: 18 | I13: E | J13: B | K13: 2 | L13: 5 | M13: 1 | N13: 2 | O13: 2 | P13: 4 | Q13: 1 | R13: 1 | S13: 2 | T13: 1 | U13: 1 | V13: 2 | W13: 3 | X13: 1 | Y13: 2 | Z13: 1 | AA13: 2 | AB13: 1 | AC13: 34 | AD13: 1 | AE13: 2 | AF13: 2 | AG13: 2 | AH13: 2 | AI13: 3 | AJ13: 2 | AK13: 2 | AL13: 2 | AM13: 2 | AN13: 1 | AO13: 1 | AP13: 2 | AQ13: 2 | AR13: 3 | AS13: 2 | AT13: 3 | AU13: 1 | AV13: 35
A14: 2020-06-10 | B14: Börgmann, Brigitte | C14: 34 | D14: 37 | E14: 152213132212212121 | F14: 232422122112222223 | G14: 18 | H14: 18 | I14: E | J14: B | K14: 1 | L14: 5 | M14: 2 | N14: 2 | O14: 1 | P14: 3 | Q14: 1 | R14: 3 | S14: 2 | T14: 2 | U14: 1 | V14: 2 | W14: 2 | X14: 1 | Y14: 2 | Z14: 1 | AA14: 2 | AB14: 1 | AC14: 34 | AD14: 2 | AE14: 3 | AF14: 2 | AG14: 4 | AH14: 2 | AI14: 2 | AJ14: 1 | AK14: 2 | AL14: 2 | AM14: 1 | AN14: 1 | AO14: 2 | AP14: 2 | AQ14: 2 | AR14: 2 | AS14: 2 | AT14: 2 | AU14: 3 | AV14: 37
A15: 2020-06-10 | B15: Kersch, Uwe | C15: 34 | D15: 37 | E15: 212114112212432113 | F15: 222722122112212222 | G15: 18 | H15: 18 | I15: E | J15: B | K15: 2 | L15: 1 | M15: 2 | N15: 1 | O15: 1 | P15: 4 | Q15: 1 | R15: 1 | S15: 2 | T15: 2 | U15: 1 | V15: 2 | W15: 4 | X15: 3 | Y15: 2 | Z15: 1 | AA15: 1 | AB15: 3 | AC15: 34 | AD15: 2 | AE15: 2 | AF15: 2 | AG15: 7 | AH15: 2 | AI15: 2 | AJ15: 1 | AK15: 2 | AL15: =IF($I15=MID(AL$1,1,1),IF(ISBLANK($E15),"",VALUE(MID($E15,VALUE(MID(AL$1,2,LEN(AL$1)-1)),1))),IF($J15=MID(AL$1,1,1),IF(ISBLANK($F15),"",VALUE(MID($F15,VALUE(MID(AL$1,2,LEN(AL$1)-1)),1))))) -> 2 | AM15: 1 | AN15: 1 | AO15: 2 | AP15: 2 | AQ15: 1 | AR15: 2 | AS15: 2 | AT15: 2 | AU15: 2 | AV15: 37
A16: 2020-06-10 | B16: Schmidt, Barbara | C16: 54 | D16: 45 | E16: 372244231227135114 | F16: 223522125215232222 | G16: 18 | H16: 18 | I16: E | J16: B | K16: 3 | L16: 7 | M16: 2 | N16: 2 | O16: 4 | P16: 4 | Q16: 2 | R16: 3 | S16: 1 | T16: 2 | U16: 2 | V16: 7 | W16: 1 | X16: 3 | Y16: 5 | Z16: 1 | AA16: 1 | AB16: 4 | AC16: 54 | AD16: =IF($I16=MID(AD$1,1,1),IF(ISBLANK($E16),"",VALUE(MID($E16,VALUE(MID(AD$1,2,LEN(AD$1)-1)),1))),IF($J16=MID(AD$1,1,1),IF(ISBLANK($F16),"",VALUE(MID($F16,VALUE(MID(AD$1,2,LEN(AD$1)-1)),1))))) -> 2 | AE16: 2 | AF16: 3 | AG16: 5 | AH16: 2 | AI16: 2 | AJ16: 1 | AK16: 2 | AL16: 5 | AM16: 2 | AN16: 1 | AO16: 5 | AP16: 2 | AQ16: 3 | AR16: 2 | AS16: 2 | AT16: 2 | AU16: 2 | AV16: 45
A17: 2020-06-18 | B17: Lehmann, Niclas | C17: =IF(ISBLANK(E17),"",MID(E17,1,1)+MID(E17,2,1)+MID(E17,3,1)+MID(E17,4,1)+MID(E17,5,1)+MID(E17,6,1)+MID(E17,7,1)+MID(E17,8,1)+MID(E17,9,1)+MID(E17,10,1)+MID(E17,11,1)+MID(E17,12,1)+MID(E17,13,1)+MID(E17,14,1)+MID(E17,15,1)+MID(E17,16,1)+MID(E17,17,1)+MID(E17,18,1)) -> 27 | D17: =IF(ISBLANK(F17),"",MID(F17,1,1)+MID(F17,2,1)+MID(F17,3,1)+MID(F17,4,1)+MID(F17,5,1)+MID(F17,6,1)+MID(F17,7,1)+MID(F17,8,1)+MID(F17,9,1)+MID(F17,10,1)+MID(F17,11,1)+MID(F17,12,1)+MID(F17,13,1)+MID(F17,14,1)+MID(F17,15,1)+MID(F17,16,1)+MID(F17,17,1)+MID(F17,18,1)) -> 36 | E17: 211221112211122212 | F17: 331222123212124311 | G17: =LEN(E17) -> 18 | H17: =LEN(F17) -> 18 | I17: E | J17: B | K17: 2 | L17: 1 | M17: 1 | N17: 2 | O17: 2 | P17: 1 | Q17: 1 | R17: 1 | S17: 2 | T17: 2 | U17: 1 | V17: 1 | W17: 1 | X17: 2 | Y17: 2 | Z17: =IF($I17=MID(Z$1,1,1),IF(ISBLANK($E17),"",VALUE(MID($E17,VALUE(MID(Z$1,2,LEN(Z$1)-1)),1))),IF($J17=MID(Z$1,1,1),IF(ISBLANK($F17),"",VALUE(MID($F17,VALUE(MID(Z$1,2,LEN(Z$1)-1)),1))))) -> 2 | AA17: 1 | AB17: 2 | AC17: 27 | AD17: 3 | AE17: 3 | AF17: 1 | AG17: 2 | AH17: 2 | AI17: 2 | AJ17: 1 | AK17: 2 | AL17: 3 | AM17: 2 | AN17: 1 | AO17: 2 | AP17: 1 | AQ17: 2 | AR17: 4 | AS17: 3 | AT17: 1 | AU17: 1 | AV17: 36
A18: 2020-06-18 | B18: Schmitt, Jürgen | C18: 29 | D18: 32 | E18: 111211121115322211 | F18: 211212112212223223 | G18: 18 | H18: 18 | I18: E | J18: B | K18: =IF($I18=MID(K$1,1,1),IF(ISBLANK($E18),"",VALUE(MID($E18,VALUE(MID(K$1,2,LEN(K$1)-1)),1))),IF($J18=MID(K$1,1,1),IF(ISBLANK($F18),"",VALUE(MID($F18,VALUE(MID(K$1,2,LEN(K$1)-1)),1))))) -> 1 | L18: 1 | M18: 1 | N18: 2 | O18: 1 | P18: 1 | Q18: 1 | R18: 2 | S18: 1 | T18: 1 | U18: 1 | V18: 5 | W18: 3 | X18: 2 | Y18: 2 | Z18: 2 | AA18: 1 | AB18: 1 | AC18: 29 | AD18: 2 | AE18: 1 | AF18: 1 | AG18: 2 | AH18: 1 | AI18: 2 | AJ18: 1 | AK18: 1 | AL18: 2 | AM18: 2 | AN18: 1 | AO18: 2 | AP18: 2 | AQ18: 2 | AR18: 3 | AS18: 2 | AT18: 2 | AU18: 3 | AV18: 32
A19: 2020-06-18 | B19: Wruck, Wolfgang | C19: 43 | D19: 41 | E19: 162111132216262213 | F19: 323223225311223221 | G19: 18 | H19: 18 | I19: E | J19: B | K19: 1 | L19: 6 | M19: 2 | N19: 1 | O19: 1 | P19: 1 | Q19: 1 | R19: 3 | S19: 2 | T19: 2 | U19: 1 | V19: 6 | W19: 2 | X19: 6 | Y19: 2 | Z19: 2 | AA19: 1 | AB19: 3 | AC19: 43 | AD19: 3 | AE19: 2 | AF19: 3 | AG19: 2 | AH19: 2 | AI19: 3 | AJ19: 2 | AK19: 2 | AL19: 5 | AM19: 3 | AN19: 1 | AO19: 1 | AP19: 2 | AQ19: 2 | AR19: 3 | AS19: 2 | AT19: 2 | AU19: 1 | AV19: 41
A20: 2020-06-18 | B20: Wolf, Arnold | C20: 43 | D20: 34 | E20: 151241512222112623 | F20: 121422123211222222 | G20: 18 | H20: 18 | I20: E | J20: B | K20: 1 | L20: 5 | M20: 1 | N20: 2 | O20: 4 | P20: 1 | Q20: 5 | R20: 1 | S20: 2 | T20: 2 | U20: 2 | V20: 2 | W20: 1 | X20: 1 | Y20: 2 | Z20: 6 | AA20: 2 | AB20: 3 | AC20: 43 | AD20: 1 | AE20: 2 | AF20: 1 | AG20: 4 | AH20: 2 | AI20: 2 | AJ20: 1 | AK20: 2 | AL20: 3 | AM20: 2 | AN20: 1 | AO20: 1 | AP20: 2 | AQ20: 2 | AR20: 2 | AS20: 2 | AT20: 2 | AU20: 2 | AV20: 34
A21: 2020-06-18 | B21: Lieber, Nicole | C21: 29 | D21: 32 | E21: 111231211112122322 | F21: 221112122222222222 | G21: 18 | H21: 18 | I21: E | J21: B | K21: 1 | L21: 1 | M21: 1 | N21: 2 | O21: 3 | P21: 1 | Q21: 2 | R21: 1 | S21: 1 | T21: 1 | U21: 1 | V21: 2 | W21: 1 | X21: 2 | Y21: 2 | Z21: 3 | AA21: 2 | AB21: 2 | AC21: 29 | AD21: 2 | AE21: 2 | AF21: 1 | AG21: 1 | AH21: 1 | AI21: 2 | AJ21: 1 | AK21: 2 | AL21: 2 | AM21: 2 | AN21: 2 | AO21: 2 | AP21: 2 | AQ21: 2 | AR21: 2 | AS21: 2 | AT21: 2 | AU21: 2 | AV21: 32
A22: 2020-06-18 | B22: Urban, Volker | C22: 23 | D22: 35 | E22: 111112111211112122 | F22: 112222224212212223 | G22: 18 | H22: 18 | I22: E | J22: B | K22: 1 | L22: 1 | M22: 1 | N22: 1 | O22: 1 | P22: 2 | Q22: 1 | R22: 1 | S22: 1 | T22: 2 | U22: 1 | V22: 1 | W22: 1 | X22: 1 | Y22: 2 | Z22: 1 | AA22: 2 | AB22: 2 | AC22: 23 | AD22: 1 | AE22: 1 | AF22: 2 | AG22: 2 | AH22: 2 | AI22: 2 | AJ22: 2 | AK22: 2 | AL22: 4 | AM22: 2 | AN22: 1 | AO22: 2 | AP22: 2 | AQ22: 1 | AR22: 2 | AS22: 2 | AT22: 2 | AU22: 3 | AV22: 35
A23: 2020-06-18 | B23: Urban, Dominic | C23: 27 | D23: 35 | E23: 211223111111113113 | F23: 232222223111222222 | G23: 18 | H23: 18 | I23: E | J23: B | K23: 2 | L23: 1 | M23: 1 | N23: 2 | O23: 2 | P23: 3 | Q23: 1 | R23: 1 | S23: 1 | T23: 1 | U23: 1 | V23: 1 | W23: 1 | X23: 1 | Y23: 3 | Z23: 1 | AA23: 1 | AB23: 3 | AC23: 27 | AD23: 2 | AE23: 3 | AF23: 2 | AG23: 2 | AH23: 2 | AI23: 2 | AJ23: 2 | AK23: 2 | AL23: 3 | AM23: 1 | AN23: 1 | AO23: 1 | AP23: 2 | AQ23: 2 | AR23: 2 | AS23: 2 | AT23: 2 | AU23: 2 | AV23: 35
A24: 2020-06-18 | B24: Börgmann, Ulrich | C24: 32 | D24: 41 | E24: 111123122221262111 | F24: 212322324212223224 | G24: 18 | H24: 18 | I24: E | J24: B | K24: 1 | L24: 1 | M24: 1 | N24: 1 | O24: 2 | P24: 3 | Q24: 1 | R24: 2 | S24: 2 | T24: 2 | U24: 2 | V24: 1 | W24: 2 | X24: 6 | Y24: 2 | Z24: 1 | AA24: 1 | AB24: 1 | AC24: 32 | AD24: 2 | AE24: 1 | AF24: 2 | AG24: 3 | AH24: 2 | AI24: 2 | AJ24: 3 | AK24: 2 | AL24: 4 | AM24: 2 | AN24: 1 | AO24: 2 | AP24: 2 | AQ24: 2 | AR24: 3 | AS24: 2 | AT24: 2 | AU24: 4 | AV24: 41
A25: 2020-06-18 | B25: Börgmann, Brigitte | C25: 34 | D25: 35 | E25: 122221211112322324 | F25: 241212224211222221 | G25: 18 | H25: 18 | I25: E | J25: B | K25: 1 | L25: 2 | M25: 2 | N25: 2 | O25: 2 | P25: 1 | Q25: 2 | R25: 1 | S25: 1 | T25: 1 | U25: 1 | V25: 2 | W25: 3 | X25: 2 | Y25: 2 | Z25: 3 | AA25: 2 | AB25: 4 | AC25: 34 | AD25: 2 | AE25: 4 | AF25: 1 | AG25: 2 | AH25: 1 | AI25: 2 | AJ25: 2 | AK25: 2 | AL25: 4 | AM25: 2 | AN25: 1 | AO25: 1 | AP25: 2 | AQ25: 2 | AR25: 2 | AS25: 2 | AT25: 2 | AU25: 1 | AV25: 35
A26: 2020-06-18 | B26: Lenk, Rolf | C26: 32 | D26: 33 | E26: 122211112225112114 | F26: 231222122112123321 | G26: 18 | H26: 18 | I26: E | J26: B | K26: 1 | L26: 2 | M26: 2 | N26: 2 | O26: 1 | P26: 1 | Q26: 1 | R26: 1 | S26: 2 | T26: 2 | U26: 2 | V26: 5 | W26: 1 | X26: 1 | Y26: 2 | Z26: 1 | AA26: 1 | AB26: 4 | AC26: 32 | AD26: 2 | AE26: 3 | AF26: 1 | AG26: 2 | AH26: 2 | AI26: 2 | AJ26: 1 | AK26: 2 | AL26: 2 | AM26: 1 | AN26: 1 | AO26: 2 | AP26: 1 | AQ26: 2 | AR26: 3 | AS26: 3 | AT26: 2 | AU26: 1 | AV26: 33
A27: 2020-06-18 | B27: Greiffendorf, Hellmut | C27: 30 | D27: 30 | E27: 213211111212311232 | F27: 122212122211221321 | G27: 18 | H27: 18 | I27: E | J27: B | K27: 2 | L27: 1 | M27: 3 | N27: 2 | O27: 1 | P27: 1 | Q27: 1 | R27: 1 | S27: 1 | T27: 2 | U27: 1 | V27: 2 | W27: 3 | X27: 1 | Y27: 1 | Z27: 2 | AA27: 3 | AB27: 2 | AC27: 30 | AD27: 1 | AE27: 2 | AF27: 2 | AG27: 2 | AH27: 1 | AI27: 2 | AJ27: 1 | AK27: 2 | AL27: 2 | AM27: 2 | AN27: 1 | AO27: 1 | AP27: 2 | AQ27: 2 | AR27: 1 | AS27: 3 | AT27: 2 | AU27: 1 | AV27: 30
A28: 2020-06-18 | B28: Battig, Wolfgang | C28: 22 | D28: 35 | E28: 111111112112211112 | F28: 222222222212223221 | G28: 18 | H28: 18 | I28: E | J28: B | K28: 1 | L28: 1 | M28: 1 | N28: 1 | O28: 1 | P28: 1 | Q28: 1 | R28: 1 | S28: 2 | T28: 1 | U28: 1 | V28: 2 | W28: 2 | X28: 1 | Y28: 1 | Z28: 1 | AA28: 1 | AB28: 2 | AC28: 22 | AD28: 2 | AE28: 2 | AF28: 2 | AG28: 2 | AH28: 2 | AI28: 2 | AJ28: 2 | AK28: 2 | AL28: 2 | AM28: 2 | AN28: 1 | AO28: 2 | AP28: 2 | AQ28: 2 | AR28: 3 | AS28: 2 | AT28: 2 | AU28: 1 | AV28: 35
A29: 2020-06-18 | B29: Schmidt, Barbara | C29: 42 | D29: 44 | E29: 371221322512122213 | F29: 212211252212226443 | G29: 18 | H29: 18 | I29: E | J29: B | K29: 3 | L29: 7 | M29: 1 | N29: 2 | O29: 2 | P29: 1 | Q29: 3 | R29: 2 | S29: 2 | T29: 5 | U29: 1 | V29: 2 | W29: 1 | X29: 2 | Y29: 2 | Z29: 2 | AA29: 1 | AB29: 3 | AC29: 42 | AD29: 2 | AE29: 1 | AF29: 2 | AG29: 2 | AH29: 1 | AI29: 1 | AJ29: 2 | AK29: 5 | AL29: =IF($I29=MID(AL$1,1,1),IF(ISBLANK($E29),"",VALUE(MID($E29,VALUE(MID(AL$1,2,LEN(AL$1)-1)),1))),IF($J29=MID(AL$1,1,1),IF(ISBLANK($F29),"",VALUE(MID($F29,VALUE(MID(AL$1,2,LEN(AL$1)-1)),1))))) -> 2 | AM29: 2 | AN29: 1 | AO29: 2 | AP29: 2 | AQ29: 2 | AR29: 6 | AS29: 4 | AT29: 4 | AU29: 3 | AV29: 44
A30: 2020-06-18 | B30: Rabe, Jonas | C30: 29 | D30: 36 | E30: 211121311211112422 | F30: 221231122212232521 | G30: 18 | H30: 18 | I30: E | J30: B | K30: 2 | L30: 1 | M30: 1 | N30: 1 | O30: 2 | P30: 1 | Q30: 3 | R30: 1 | S30: 1 | T30: 2 | U30: 1 | V30: 1 | W30: 1 | X30: 1 | Y30: 2 | Z30: 4 | AA30: 2 | AB30: 2 | AC30: 29 | AD30: =IF($I30=MID(AD$1,1,1),IF(ISBLANK($E30),"",VALUE(MID($E30,VALUE(MID(AD$1,2,LEN(AD$1)-1)),1))),IF($J30=MID(AD$1,1,1),IF(ISBLANK($F30),"",VALUE(MID($F30,VALUE(MID(AD$1,2,LEN(AD$1)-1)),1))))) -> 2 | AE30: 2 | AF30: 1 | AG30: 2 | AH30: 3 | AI30: 1 | AJ30: 1 | AK30: 2 | AL30: 2 | AM30: 2 | AN30: 1 | AO30: 2 | AP30: 2 | AQ30: 3 | AR30: 2 | AS30: 5 | AT30: 2 | AU30: 1 | AV30: 36
A31: 2020-06-18 | B31: Tabor, Peter | C31: 36 | D31: 41 | E31: 152221112111242332 | F31: 222212232212226332 | G31: 18 | H31: 18 | I31: E | J31: B | K31: 1 | L31: 5 | M31: 2 | N31: 2 | O31: 2 | P31: 1 | Q31: 1 | R31: 1 | S31: 2 | T31: 1 | U31: 1 | V31: 1 | W31: 2 | X31: 4 | Y31: 2 | Z31: 3 | AA31: 3 | AB31: 2 | AC31: 36 | AD31: 2 | AE31: 2 | AF31: 2 | AG31: 2 | AH31: 1 | AI31: 2 | AJ31: 2 | AK31: 3 | AL31: 2 | AM31: 2 | AN31: 1 | AO31: 2 | AP31: 2 | AQ31: 2 | AR31: 6 | AS31: 3 | AT31: 3 | AU31: 2 | AV31: 41
A32: 2020-06-18 | B32: Kersch, Uwe | C32: 32 | D32: 30 | E32: 242124112112122112 | F32: 121122212212312221 | G32: 18 | H32: 18 | I32: E | J32: B | K32: 2 | L32: 4 | M32: 2 | N32: 1 | O32: 2 | P32: 4 | Q32: 1 | R32: 1 | S32: 2 | T32: 1 | U32: 1 | V32: 2 | W32: 1 | X32: 2 | Y32: 2 | Z32: 1 | AA32: 1 | AB32: 2 | AC32: 32 | AD32: 1 | AE32: 2 | AF32: 1 | AG32: 1 | AH32: 2 | AI32: 2 | AJ32: 2 | AK32: 1 | AL32: 2 | AM32: 2 | AN32: 1 | AO32: 2 | AP32: 3 | AQ32: 1 | AR32: 2 | AS32: 2 | AT32: 2 | AU32: 1 | AV32: 30
A33: 2020-06-18 | B33: Puschner, Michael | C33: 32 | D33: 38 | E33: 122211512211113312 | F33: 132422122232222222 | G33: 18 | H33: 18 | I33: E | J33: B | K33: 1 | L33: 2 | M33: 2 | N33: 2 | O33: 1 | P33: 1 | Q33: 5 | R33: 1 | S33: 2 | T33: 2 | U33: 1 | V33: 1 | W33: 1 | X33: 1 | Y33: 3 | Z33: 3 | AA33: 1 | AB33: 2 | AC33: 32 | AD33: 1 | AE33: 3 | AF33: 2 | AG33: 4 | AH33: 2 | AI33: 2 | AJ33: 1 | AK33: 2 | AL33: 2 | AM33: 2 | AN33: 3 | AO33: 2 | AP33: 2 | AQ33: 2 | AR33: 2 | AS33: 2 | AT33: 2 | AU33: 2 | AV33: 38
A34: 2020-06-18 | B34: Schmidtbauer, Günter | C34: 36 | D34: 44 | E34: 231221222222212323 | F34: 223542124213224221 | G34: 18 | H34: 18 | I34: E | J34: B | K34: =IF($I34=MID(K$1,1,1),IF(ISBLANK($E34),"",VALUE(MID($E34,VALUE(MID(K$1,2,LEN(K$1)-1)),1))),IF($J34=MID(K$1,1,1),IF(ISBLANK($F34),"",VALUE(MID($F34,VALUE(MID(K$1,2,LEN(K$1)-1)),1))))) -> 2 | L34: 3 | M34: 1 | N34: 2 | O34: 2 | P34: 1 | Q34: 2 | R34: 2 | S34: 2 | T34: 2 | U34: 2 | V34: 2 | W34: 2 | X34: 1 | Y34: 2 | Z34: 3 | AA34: 2 | AB34: 3 | AC34: 36 | AD34: 2 | AE34: 2 | AF34: 3 | AG34: 5 | AH34: 4 | AI34: 2 | AJ34: 1 | AK34: 2 | AL34: 4 | AM34: 2 | AN34: 1 | AO34: 3 | AP34: 2 | AQ34: 2 | AR34: 4 | AS34: 2 | AT34: 2 | AU34: 1 | AV34: 44
A35: 2020-06-18 | B35: Kortmann, Uwe | C35: 31 | D35: 31 | E35: 121211212121232232 | F35: 222222112212122221 | G35: 18 | H35: 18 | I35: E | J35: B | K35: 1 | L35: 2 | M35: 1 | N35: 2 | O35: 1 | P35: 1 | Q35: 2 | R35: 1 | S35: 2 | T35: 1 | U35: 2 | V35: 1 | W35: 2 | X35: 3 | Y35: 2 | Z35: 2 | AA35: 3 | AB35: 2 | AC35: 31 | AD35: 2 | AE35: 2 | AF35: 2 | AG35: 2 | AH35: 2 | AI35: 2 | AJ35: 1 | AK35: 1 | AL35: 2 | AM35: 2 | AN35: 1 | AO35: 2 | AP35: 1 | AQ35: 2 | AR35: 2 | AS35: 2 | AT35: 2 | AU35: 1 | AV35: 31
A36: 2020-06-18 | B36: Kortmann, Sabine | C36: 35 | D36: 39 | E36: 112212112323222422 | F36: 221422232212216221 | G36: 18 | H36: 18 | I36: E | J36: B | K36: 1 | L36: 1 | M36: 2 | N36: 2 | O36: 1 | P36: 2 | Q36: 1 | R36: 1 | S36: 2 | T36: 3 | U36: 2 | V36: 3 | W36: 2 | X36: 2 | Y36: 2 | Z36: 4 | AA36: 2 | AB36: 2 | AC36: 35 | AD36: 2 | AE36: 2 | AF36: 1 | AG36: 4 | AH36: 2 | AI36: 2 | AJ36: 2 | AK36: 3 | AL36: 2 | AM36: 2 | AN36: 1 | AO36: 2 | AP36: 2 | AQ36: 1 | AR36: 6 | AS36: 2 | AT36: 2 | AU36: 1 | AV36: 39
A37: 2020-06-18 | B37: Paffrath, Siegfried | C37: 26 | D37: 37 | E37: 111111111112422212 | F37: 122412222212215321 | G37: 18 | H37: 18 | I37: E | J37: B | K37: 1 | L37: 1 | M37: 1 | N37: 1 | O37: 1 | P37: 1 | Q37: 1 | R37: 1 | S37: 1 | T37: 1 | U37: 1 | V37: 2 | W37: 4 | X37: 2 | Y37: 2 | Z37: 2 | AA37: =IF($I37=MID(AA$1,1,1),IF(ISBLANK($E37),"",VALUE(MID($E37,VALUE(MID(AA$1,2,LEN(AA$1)-1)),1))),IF($J37=MID(AA$1,1,1),IF(ISBLANK($F37),"",VALUE(MID($F37,VALUE(MID(AA$1,2,LEN(AA$1)-1)),1))))) -> 1 | AB37: 2 | AC37: 26 | AD37: 1 | AE37: 2 | AF37: 2 | AG37: 4 | AH37: 1 | AI37: 2 | AJ37: 2 | AK37: 2 | AL37: 2 | AM37: 2 | AN37: 1 | AO37: 2 | AP37: 2 | AQ37: 1 | AR37: 5 | AS37: 3 | AT37: 2 | AU37: 1 | AV37: 37
A38: 2020-06-18 | B38: Buchholz, Ansgar | C38: 25 | D38: 34 | E38: 122111111112212221 | F38: 222222124112222221 | G38: 18 | H38: 18 | I38: E | J38: B | K38: 1 | L38: 2 | M38: 2 | N38: 1 | O38: 1 | P38: 1 | Q38: 1 | R38: 1 | S38: 1 | T38: 1 | U38: 1 | V38: 2 | W38: 2 | X38: 1 | Y38: 2 | Z38: 2 | AA38: 2 | AB38: 1 | AC38: 25 | AD38: 2 | AE38: 2 | AF38: 2 | AG38: 2 | AH38: 2 | AI38: 2 | AJ38: 1 | AK38: 2 | AL38: 4 | AM38: 1 | AN38: 1 | AO38: 2 | AP38: 2 | AQ38: 2 | AR38: 2 | AS38: 2 | AT38: 2 | AU38: 1 | AV38: 34
A39: 2020-06-18 | B39: Hein, Hans-Jörg | C39: 29 | D39: 33 | E39: 121211112211342112 | F39: 221212122112222323 | G39: 18 | H39: 18 | I39: E | J39: B | K39: 1 | L39: 2 | M39: 1 | N39: 2 | O39: 1 | P39: 1 | Q39: 1 | R39: 1 | S39: 2 | T39: 2 | U39: 1 | V39: 1 | W39: 3 | X39: 4 | Y39: 2 | Z39: 1 | AA39: 1 | AB39: 2 | AC39: 29 | AD39: 2 | AE39: 2 | AF39: 1 | AG39: 2 | AH39: 1 | AI39: 2 | AJ39: 1 | AK39: 2 | AL39: 2 | AM39: 1 | AN39: 1 | AO39: 2 | AP39: 2 | AQ39: 2 | AR39: 2 | AS39: 3 | AT39: 2 | AU39: 3 | AV39: 33
A40: 2020-06-18 | B40: Kunz, Martin | C40: 34 | D40: 33 | E40: 142211212212223222 | F40: 221222132212222221 | G40: 18 | H40: 18 | I40: E | J40: B | K40: 1 | L40: 4 | M40: 2 | N40: 2 | O40: 1 | P40: 1 | Q40: 2 | R40: 1 | S40: 2 | T40: 2 | U40: 1 | V40: 2 | W40: 2 | X40: 2 | Y40: 3 | Z40: 2 | AA40: 2 | AB40: 2 | AC40: 34 | AD40: 2 | AE40: 2 | AF40: 1 | AG40: 2 | AH40: 2 | AI40: 2 | AJ40: 1 | AK40: 3 | AL40: 2 | AM40: 2 | AN40: 1 | AO40: 2 | AP40: 2 | AQ40: 2 | AR40: 2 | AS40: 2 | AT40: 2 | AU40: 1 | AV40: 33
A41: 2020-06-25 | B41: Lenk, Rolf | C41: 33 | D41: 35 | E41: 111421122212222322 | F41: 131221212211542122 | G41: 18 | H41: 18 | I41: E | J41: B | K41: 1 | L41: 1 | M41: 1 | N41: 4 | O41: 2 | P41: 1 | Q41: 1 | R41: 2 | S41: 2 | T41: 2 | U41: 1 | V41: 2 | W41: 2 | X41: 2 | Y41: 2 | Z41: 3 | AA41: 2 | AB41: 2 | AC41: 33 | AD41: 1 | AE41: 3 | AF41: 1 | AG41: 2 | AH41: 2 | AI41: 1 | AJ41: 2 | AK41: 1 | AL41: 2 | AM41: 2 | AN41: 1 | AO41: 1 | AP41: 5 | AQ41: 4 | AR41: 2 | AS41: 1 | AT41: 2 | AU41: 2 | AV41: 35
A42: 2020-06-25 | B42: Schmidtbauer, Günter | C42: 37 | D42: 43 | E42: 221323322311222231 | F42: 422221112221364323 | G42: 18 | H42: 18 | I42: B | J42: E | K42: =IF($I42=MID(K$1,1,1),IF(ISBLANK($E42),"",VALUE(MID($E42,VALUE(MID(K$1,2,LEN(K$1)-1)),1))),IF($J42=MID(K$1,1,1),IF(ISBLANK($F42),"",VALUE(MID($F42,VALUE(MID(K$1,2,LEN(K$1)-1)),1))))) -> 4 | L42: 2 | M42: 2 | N42: 2 | O42: 2 | P42: 1 | Q42: 1 | R42: 1 | S42: 2 | T42: 2 | U42: 2 | V42: 1 | W42: 3 | X42: 6 | Y42: 4 | Z42: 3 | AA42: 2 | AB42: 3 | AC42: 43 | AD42: 2 | AE42: 2 | AF42: 1 | AG42: 3 | AH42: 2 | AI42: 3 | AJ42: 3 | AK42: 2 | AL42: 2 | AM42: 3 | AN42: 1 | AO42: 1 | AP42: 2 | AQ42: 2 | AR42: 2 | AS42: 2 | AT42: 3 | AU42: 1 | AV42: 37
A43: 2020-06-25 | B43: Urban, Dominic | C43: 32 | D43: 30 | E43: 221212122211222223 | F43: 111117112211112222 | G43: 18 | H43: 18 | I43: B | J43: E | K43: =IF($I43=MID(K$1,1,1),IF(ISBLANK($E43),"",VALUE(MID($E43,VALUE(MID(K$1,2,LEN(K$1)-1)),1))),IF($J43=MID(K$1,1,1),IF(ISBLANK($F43),"",VALUE(MID($F43,VALUE(MID(K$1,2,LEN(K$1)-1)),1))))) -> 1 | L43: 1 | M43: 1 | N43: 1 | O43: 1 | P43: 7 | Q43: 1 | R43: 1 | S43: 2 | T43: 2 | U43: 1 | V43: 1 | W43: 1 | X43: 1 | Y43: 2 | Z43: 2 | AA43: 2 | AB43: 2 | AC43: 30 | AD43: 2 | AE43: 2 | AF43: 1 | AG43: 2 | AH43: 1 | AI43: 2 | AJ43: 1 | AK43: 2 | AL43: =IF($I43=MID(AL$1,1,1),IF(ISBLANK($E43),"",VALUE(MID($E43,VALUE(MID(AL$1,2,LEN(AL$1)-1)),1))),IF($J43=MID(AL$1,1,1),IF(ISBLANK($F43),"",VALUE(MID($F43,VALUE(MID(AL$1,2,LEN(AL$1)-1)),1))))) -> 2 | AM43: 2 | AN43: 1 | AO43: 1 | AP43: 2 | AQ43: 2 | AR43: 2 | AS43: 2 | AT43: 2 | AU43: 3 | AV43: 32
A44: 2020-06-25 | B44: Lehmann, Niclas | C44: 34 | D44: 27 | E44: 231222222212123221 | F44: 121123111113112212 | G44: 18 | H44: 18 | I44: B | J44: E | K44: 1 | L44: 2 | M44: 1 | N44: 1 | O44: 2 | P44: 3 | Q44: 1 | R44: 1 | S44: 1 | T44: 1 | U44: 1 | V44: 3 | W44: 1 | X44: 1 | Y44: 2 | Z44: 2 | AA44: 1 | AB44: 2 | AC44: 27 | AD44: =IF($I44=MID(AD$1,1,1),IF(ISBLANK($E44),"",VALUE(MID($E44,VALUE(MID(AD$1,2,LEN(AD$1)-1)),1))),IF($J44=MID(AD$1,1,1),IF(ISBLANK($F44),"",VALUE(MID($F44,VALUE(MID(AD$1,2,LEN(AD$1)-1)),1))))) -> 2 | AE44: 3 | AF44: 1 | AG44: 2 | AH44: 2 | AI44: 2 | AJ44: 2 | AK44: 2 | AL44: 2 | AM44: 2 | AN44: 1 | AO44: 2 | AP44: 1 | AQ44: 2 | AR44: 3 | AS44: 2 | AT44: 2 | AU44: 1 | AV44: 34
A45: 2020-06-25 | B45: Kunz, Martin | C45: 31 | D45: 30 | E45: 113113112213222221 | F45: 211211321213112321 | G45: 18 | H45: 18 | I45: B | J45: E | K45: 2 | L45: 1 | M45: 1 | N45: 2 | O45: 1 | P45: 1 | Q45: 3 | R45: 2 | S45: 1 | T45: 2 | U45: 1 | V45: 3 | W45: 1 | X45: 1 | Y45: 2 | Z45: 3 | AA45: 2 | AB45: 1 | AC45: 30 | AD45: 1 | AE45: 1 | AF45: 3 | AG45: 1 | AH45: 1 | AI45: 3 | AJ45: 1 | AK45: 1 | AL45: 2 | AM45: 2 | AN45: 1 | AO45: 3 | AP45: 2 | AQ45: 2 | AR45: 2 | AS45: 2 | AT45: 2 | AU45: 1 | AV45: 31
A46: 2020-06-25 | B46: Lieber, Nicole | C46: 32 | D46: 33 | E46: 131322122212122221 | F46: 231212111211213324 | G46: 18 | H46: 18 | I46: B | J46: E | K46: 2 | L46: 3 | M46: 1 | N46: 2 | O46: 1 | P46: 2 | Q46: 1 | R46: 1 | S46: 1 | T46: 2 | U46: 1 | V46: 1 | W46: 2 | X46: 1 | Y46: 3 | Z46: 3 | AA46: 2 | AB46: 4 | AC46: 33 | AD46: 1 | AE46: 3 | AF46: 1 | AG46: 3 | AH46: 2 | AI46: 2 | AJ46: 1 | AK46: 2 | AL46: 2 | AM46: 2 | AN46: 1 | AO46: 2 | AP46: 1 | AQ46: 2 | AR46: 2 | AS46: 2 | AT46: 2 | AU46: 1 | AV46: 32
A47: 2020-06-25 | B47: Kortmann, Uwe | C47: 38 | D47: 31 | E47: 242322221111222225 | F47: 131211112212532111 | G47: 18 | H47: 18 | I47: B | J47: E | K47: 1 | L47: 3 | M47: 1 | N47: 2 | O47: 1 | P47: 1 | Q47: 1 | R47: 1 | S47: 2 | T47: 2 | U47: 1 | V47: 2 | W47: 5 | X47: 3 | Y47: 2 | Z47: 1 | AA47: 1 | AB47: 1 | AC47: 31 | AD47: 2 | AE47: 4 | AF47: 2 | AG47: 3 | AH47: 2 | AI47: 2 | AJ47: 2 | AK47: 2 | AL47: 1 | AM47: 1 | AN47: 1 | AO47: 1 | AP47: 2 | AQ47: 2 | AR47: 2 | AS47: 2 | AT47: 2 | AU47: 5 | AV47: 38
A48: 2020-06-25 | B48: Puschner, Michael | C48: 31 | D48: 27 | E48: 221122113222212221 | F48: 211111112212212114 | G48: 18 | H48: 18 | I48: B | J48: E | K48: 2 | L48: 1 | M48: 1 | N48: 1 | O48: 1 | P48: 1 | Q48: 1 | R48: 1 | S48: 2 | T48: 2 | U48: 1 | V48: 2 | W48: 2 | X48: 1 | Y48: 2 | Z48: 1 | AA48: 1 | AB48: 4 | AC48: 27 | AD48: 2 | AE48: 2 | AF48: 1 | AG48: 1 | AH48: 2 | AI48: 2 | AJ48: 1 | AK48: 1 | AL48: 3 | AM48: 2 | AN48: 2 | AO48: 2 | AP48: 2 | AQ48: 1 | AR48: 2 | AS48: 2 | AT48: 2 | AU48: 1 | AV48: 31
A49: 2020-06-25 | B49: Kortmann, Sabine | C49: 36 | D49: 37 | E49: 131242122312223221 | F49: 162221112212322223 | G49: 18 | H49: 18 | I49: B | J49: E | K49: 1 | L49: 6 | M49: 2 | N49: 2 | O49: 2 | P49: 1 | Q49: 1 | R49: 1 | S49: 2 | T49: 2 | U49: 1 | V49: 2 | W49: 3 | X49: 2 | Y49: 2 | Z49: 2 | AA49: 2 | AB49: 3 | AC49: 37 | AD49: 1 | AE49: 3 | AF49: 1 | AG49: 2 | AH49: 4 | AI49: 2 | AJ49: 1 | AK49: 2 | AL49: 2 | AM49: 3 | AN49: 1 | AO49: 2 | AP49: 2 | AQ49: 2 | AR49: 3 | AS49: 2 | AT49: 2 | AU49: 1 | AV49: 36
A50: 2020-06-25 | B50: Battig, Wolfgang | C50: 33 | D50: 28 | E50: 211322122212222231 | F50: 222221121112212112 | G50: 18 | H50: 18 | I50: B | J50: E | K50: 2 | L50: 2 | M50: 2 | N50: 2 | O50: 2 | P50: 1 | Q50: 1 | R50: 2 | S50: 1 | T50: 1 | U50: 1 | V50: 2 | W50: 2 | X50: 1 | Y50: 2 | Z50: 1 | AA50: 1 | AB50: 2 | AC50: 28 | AD50: 2 | AE50: 1 | AF50: 1 | AG50: 3 | AH50: 2 | AI50: 2 | AJ50: 1 | AK50: 2 | AL50: 2 | AM50: 2 | AN50: 1 | AO50: 2 | AP50: 2 | AQ50: 2 | AR50: 2 | AS50: 2 | AT50: 3 | AU50: 1 | AV50: 33
A51: 2020-06-25 | B51: Börgmann, Brigitte | C51: =IF(ISBLANK(E51),"",MID(E51,1,1)+MID(E51,2,1)+MID(E51,3,1)+MID(E51,4,1)+MID(E51,5,1)+MID(E51,6,1)+MID(E51,7,1)+MID(E51,8,1)+MID(E51,9,1)+MID(E51,10,1)+MID(E51,11,1)+MID(E51,12,1)+MID(E51,13,1)+MID(E51,14,1)+MID(E51,15,1)+MID(E51,16,1)+MID(E51,17,1)+MID(E51,18,1)) -> 42 | D51: =IF(ISBLANK(F51),"",MID(F51,1,1)+MID(F51,2,1)+MID(F51,3,1)+MID(F51,4,1)+MID(F51,5,1)+MID(F51,6,1)+MID(F51,7,1)+MID(F51,8,1)+MID(F51,9,1)+MID(F51,10,1)+MID(F51,11,1)+MID(F51,12,1)+MID(F51,13,1)+MID(F51,14,1)+MID(F51,15,1)+MID(F51,16,1)+MID(F51,17,1)+MID(F51,18,1)) -> 38 | E51: 322612223213222322 | F51: 122221252222122323 | G51: =LEN(E51) -> 18 | H51: =LEN(F51) -> 18 | I51: B | J51: E | K51: 1 | L51: 2 | M51: 2 | N51: 2 | O51: 2 | P51: 1 | Q51: 2 | R51: 5 | S51: 2 | T51: 2 | U51: 2 | V51: 2 | W51: 1 | X51: 2 | Y51: 2 | Z51: 3 | AA51: 2 | AB51: 3 | AC51: 38 | AD51: 3 | AE51: 2 | AF51: 2 | AG51: 6 | AH51: 1 | AI51: 2 | AJ51: 2 | AK51: 2 | AL51: 3 | AM51: 2 | AN51: 1 | AO51: 3 | AP51: 2 | AQ51: 2 | AR51: 2 | AS51: 3 | AT51: 2 | AU51: 2 | AV51: 42
A52: 2020-06-25 | B52: Hein, Hans-Jörg | C52: 33 | D52: 28 | E52: 211232122211223222 | F52: 111212122111212142 | G52: 18 | H52: 18 | I52: B | J52: E | K52: 1 | L52: 1 | M52: 1 | N52: 2 | O52: 1 | P52: 2 | Q52: 1 | R52: 2 | S52: 2 | T52: 1 | U52: 1 | V52: 1 | W52: 2 | X52: 1 | Y52: 2 | Z52: 1 | AA52: 4 | AB52: 2 | AC52: 28 | AD52: 2 | AE52: 1 | AF52: 1 | AG52: 2 | AH52: 3 | AI52: 2 | AJ52: 1 | AK52: 2 | AL52: 2 | AM52: 2 | AN52: 1 | AO52: 1 | AP52: 2 | AQ52: 2 | AR52: 3 | AS52: 2 | AT52: 2 | AU52: 2 | AV52: 33
A53: 2020-06-25 | B53: Paffrath, Siegfried | C53: 45 | D53: 29 | E53: 223422125211223425 | F53: 1412111112122412112 | G53: 18 | H53: 19 | I53: B | J53: E | K53: 1 | L53: 4 | M53: 1 | N53: 2 | O53: 1 | P53: 1 | Q53: 1 | R53: 1 | S53: 1 | T53: 2 | U53: 1 | V53: 2 | W53: 2 | X53: 4 | Y53: 1 | Z53: 2 | AA53: 1 | AB53: 1 | AC53: 29 | AD53: 2 | AE53: 2 | AF53: 3 | AG53: 4 | AH53: 2 | AI53: 2 | AJ53: 1 | AK53: 2 | AL53: 5 | AM53: 2 | AN53: 1 | AO53: 1 | AP53: 2 | AQ53: 2 | AR53: 3 | AS53: 4 | AT53: 2 | AU53: 5 | AV53: 45
A54: 2020-06-25 | B54: Urban, Volker | C54: 28 | D54: 31 | E54: 112212112212222211 | F54: 112211122112162221 | G54: 18 | H54: 18 | I54: B | J54: E | K54: 1 | L54: 1 | M54: 2 | N54: 2 | O54: 1 | P54: 1 | Q54: 1 | R54: 2 | S54: 2 | T54: 1 | U54: 1 | V54: 2 | W54: 1 | X54: 6 | Y54: 2 | Z54: 2 | AA54: 2 | AB54: 1 | AC54: 31 | AD54: 1 | AE54: 1 | AF54: 2 | AG54: 2 | AH54: 1 | AI54: 2 | AJ54: 1 | AK54: 1 | AL54: 2 | AM54: 2 | AN54: 1 | AO54: 2 | AP54: 2 | AQ54: 2 | AR54: 2 | AS54: 2 | AT54: 1 | AU54: 1 | AV54: 28
A55: 2020-06-25 | B55: Börgmann, Ulrich | C55: 40 | D55: 32 | E55: 124522122112132234 | F55: 121221212212243121 | G55: 18 | H55: 18 | I55: B | J55: E | K55: 1 | L55: 2 | M55: 1 | N55: 2 | O55: 2 | P55: 1 | Q55: 2 | R55: 1 | S55: 2 | T55: 2 | U55: 1 | V55: 2 | W55: 2 | X55: 4 | Y55: 3 | Z55: 1 | AA55: 2 | AB55: 1 | AC55: 32 | AD55: 1 | AE55: 2 | AF55: 4 | AG55: 5 | AH55: 2 | AI55: 2 | AJ55: 1 | AK55: 2 | AL55: 2 | AM55: 1 | AN55: 1 | AO55: 2 | AP55: 1 | AQ55: 3 | AR55: 2 | AS55: 2 | AT55: 3 | AU55: 4 | AV55: 40
A56: 2020-06-25 | B56: Greiffendorf, Hellmut | C56: 36 | D56: 34 | E56: 211422123212212521 | F56: 141111211213212721 | G56: 18 | H56: 18 | I56: B | J56: E | K56: 1 | L56: 4 | M56: 1 | N56: 1 | O56: 1 | P56: 1 | Q56: 2 | R56: 1 | S56: 1 | T56: 2 | U56: 1 | V56: 3 | W56: 2 | X56: 1 | Y56: 2 | Z56: 7 | AA56: 2 | AB56: 1 | AC56: 34 | AD56: 2 | AE56: 1 | AF56: 1 | AG56: 4 | AH56: 2 | AI56: 2 | AJ56: 1 | AK56: 2 | AL56: 3 | AM56: 2 | AN56: 1 | AO56: 2 | AP56: 2 | AQ56: 1 | AR56: 2 | AS56: 5 | AT56: 2 | AU56: 1 | AV56: 36
A57: 2020-06-25 | B57: Urban, Angela | C57: 43 | D57: 35 | E57: 221742123211243222 | F57: 151211211212413313 | G57: 18 | H57: 18 | I57: B | J57: E | K57: 1 | L57: 5 | M57: 1 | N57: 2 | O57: 1 | P57: 1 | Q57: 2 | R57: 1 | S57: 1 | T57: 2 | U57: 1 | V57: 2 | W57: 4 | X57: 1 | Y57: 3 | Z57: 3 | AA57: =IF($I57=MID(AA$1,1,1),IF(ISBLANK($E57),"",VALUE(MID($E57,VALUE(MID(AA$1,2,LEN(AA$1)-1)),1))),IF($J57=MID(AA$1,1,1),IF(ISBLANK($F57),"",VALUE(MID($F57,VALUE(MID(AA$1,2,LEN(AA$1)-1)),1))))) -> 1 | AB57: 3 | AC57: 35 | AD57: 2 | AE57: 2 | AF57: 1 | AG57: 7 | AH57: 4 | AI57: 2 | AJ57: 1 | AK57: 2 | AL57: =IF($I57=MID(AL$1,1,1),IF(ISBLANK($E57),"",VALUE(MID($E57,VALUE(MID(AL$1,2,LEN(AL$1)-1)),1))),IF($J57=MID(AL$1,1,1),IF(ISBLANK($F57),"",VALUE(MID($F57,VALUE(MID(AL$1,2,LEN(AL$1)-1)),1))))) -> 3 | AM57: 2 | AN57: 1 | AO57: 1 | AP57: 2 | AQ57: 4 | AR57: 3 | AS57: 2 | AT57: 2 | AU57: 2 | AV57: 43
A58: 2020-06-25 | B58: Rabe, Jonas | C58: 37 | D58: 29 | E58: 211423223211123223 | F58: 222213111112222121 | G58: 18 | H58: 18 | I58: B | J58: E | K58: 2 | L58: 2 | M58: 2 | N58: 2 | O58: 1 | P58: 3 | Q58: 1 | R58: 1 | S58: 1 | T58: 1 | U58: 1 | V58: 2 | W58: 2 | X58: 2 | Y58: 2 | Z58: 1 | AA58: 2 | AB58: 1 | AC58: 29 | AD58: =IF($I58=MID(AD$1,1,1),IF(ISBLANK($E58),"",VALUE(MID($E58,VALUE(MID(AD$1,2,LEN(AD$1)-1)),1))),IF($J58=MID(AD$1,1,1),IF(ISBLANK($F58),"",VALUE(MID($F58,VALUE(MID(AD$1,2,LEN(AD$1)-1)),1))))) -> 2 | AE58: 1 | AF58: 1 | AG58: 4 | AH58: 2 | AI58: 3 | AJ58: 2 | AK58: 2 | AL58: 3 | AM58: 2 | AN58: 1 | AO58: 1 | AP58: 1 | AQ58: 2 | AR58: 3 | AS58: 2 | AT58: 2 | AU58: 3 | AV58: 37
A59: 2020-06-25 | B59: Paffrath, Ben | C59: 40 | D59: 35 | E59: 222532323212223121 | F59: 112231122221232422 | G59: 18 | H59: 18 | I59: B | J59: E | K59: =IF($I59=MID(K$1,1,1),IF(ISBLANK($E59),"",VALUE(MID($E59,VALUE(MID(K$1,2,LEN(K$1)-1)),1))),IF($J59=MID(K$1,1,1),IF(ISBLANK($F59),"",VALUE(MID($F59,VALUE(MID(K$1,2,LEN(K$1)-1)),1))))) -> 1 | L59: 1 | M59: 2 | N59: 2 | O59: 3 | P59: 1 | Q59: 1 | R59: 2 | S59: 2 | T59: 2 | U59: 2 | V59: 1 | W59: 2 | X59: 3 | Y59: 2 | Z59: 4 | AA59: 2 | AB59: 2 | AC59: 35 | AD59: 2 | AE59: 2 | AF59: 2 | AG59: 5 | AH59: 3 | AI59: 2 | AJ59: 3 | AK59: 2 | AL59: 3 | AM59: 2 | AN59: 1 | AO59: 2 | AP59: 2 | AQ59: 2 | AR59: 3 | AS59: 1 | AT59: 2 | AU59: 1 | AV59: 40
A60: 2020-06-25 | B60: Wickel-Paffrath, Melanie | C60: 35 | D60: 25 | E60: 231312122213222222 | F60: 112112112111212212 | G60: 18 | H60: 18 | I60: B | J60: E | K60: 1 | L60: 1 | M60: 2 | N60: 1 | O60: 1 | P60: 2 | Q60: 1 | R60: 1 | S60: 2 | T60: 1 | U60: 1 | V60: 1 | W60: 2 | X60: 1 | Y60: 2 | Z60: 2 | AA60: 1 | AB60: 2 | AC60: 25 | AD60: 2 | AE60: 3 | AF60: 1 | AG60: 3 | AH60: 1 | AI60: 2 | AJ60: 1 | AK60: 2 | AL60: 2 | AM60: 2 | AN60: 1 | AO60: 3 | AP60: 2 | AQ60: 2 | AR60: 2 | AS60: 2 | AT60: 2 | AU60: 2 | AV60: 35
A61: 2020-06-25 | B61: Schmitt, Jürgen | C61: 36 | D61: 33 | E61: 225122122111126221 | F61: 122111242213212222 | G61: 18 | H61: 18 | I61: B | J61: E | K61: 1 | L61: 2 | M61: 2 | N61: 1 | O61: 1 | P61: 1 | Q61: 2 | R61: 4 | S61: 2 | T61: 2 | U61: 1 | V61: 3 | W61: 2 | X61: 1 | Y61: 2 | Z61: 2 | AA61: 2 | AB61: 2 | AC61: 33 | AD61: 2 | AE61: 2 | AF61: 5 | AG61: 1 | AH61: 2 | AI61: 2 | AJ61: 1 | AK61: 2 | AL61: 2 | AM61: 1 | AN61: 1 | AO61: 1 | AP61: 1 | AQ61: 2 | AR61: 6 | AS61: 2 | AT61: 2 | AU61: 1 | AV61: 36
A62: 2020-06-25 | B62: Buchholz, Ansgar | C62: 34 | D62: 29 | E62: 211223124212222311 | F62: 112212112112341211 | G62: 18 | H62: 18 | I62: B | J62: E | K62: 1 | L62: 1 | M62: 2 | N62: 2 | O62: 1 | P62: 2 | Q62: 1 | R62: 1 | S62: 2 | T62: 1 | U62: 1 | V62: 2 | W62: 3 | X62: 4 | Y62: 1 | Z62: 2 | AA62: 1 | AB62: 1 | AC62: 29 | AD62: 2 | AE62: 1 | AF62: 1 | AG62: 2 | AH62: 2 | AI62: 3 | AJ62: 1 | AK62: 2 | AL62: 4 | AM62: 2 | AN62: 1 | AO62: 2 | AP62: 2 | AQ62: 2 | AR62: 2 | AS62: 3 | AT62: 1 | AU62: 1 | AV62: 34
A63: 2020-07-02 | B63: Kortmann, Uwe | C63: =IF(ISBLANK(E63),"",MID(E63,1,1)+MID(E63,2,1)+MID(E63,3,1)+MID(E63,4,1)+MID(E63,5,1)+MID(E63,6,1)+MID(E63,7,1)+MID(E63,8,1)+MID(E63,9,1)+MID(E63,10,1)+MID(E63,11,1)+MID(E63,12,1)+MID(E63,13,1)+MID(E63,14,1)+MID(E63,15,1)+MID(E63,16,1)+MID(E63,17,1)+MID(E63,18,1)) -> 32 | D63: =IF(ISBLANK(F63),"",MID(F63,1,1)+MID(F63,2,1)+MID(F63,3,1)+MID(F63,4,1)+MID(F63,5,1)+MID(F63,6,1)+MID(F63,7,1)+MID(F63,8,1)+MID(F63,9,1)+MID(F63,10,1)+MID(F63,11,1)+MID(F63,12,1)+MID(F63,13,1)+MID(F63,14,1)+MID(F63,15,1)+MID(F63,16,1)+MID(F63,17,1)+MID(F63,18,1)) ->  | E63: 122121112113313412 | G63: =LEN(E63) -> 18 | H63: =LEN(F63) -> 0 | I63: E | J63: B | K63: 1 | L63: 2 | M63: 2 | N63: 1 | O63: 2 | P63: 1 | Q63: 1 | R63: 1 | S63: 2 | T63: 1 | U63: 1 | V63: 3 | W63: 3 | X63: 1 | Y63: 3 | Z63: 4 | AA63: 1 | AB63: 2 | AC63: 32 | AV63: 0
A64: 2020-07-02 | B64: Kortmann, Sabine | C64: =IF(ISBLANK(E64),"",MID(E64,1,1)+MID(E64,2,1)+MID(E64,3,1)+MID(E64,4,1)+MID(E64,5,1)+MID(E64,6,1)+MID(E64,7,1)+MID(E64,8,1)+MID(E64,9,1)+MID(E64,10,1)+MID(E64,11,1)+MID(E64,12,1)+MID(E64,13,1)+MID(E64,14,1)+MID(E64,15,1)+MID(E64,16,1)+MID(E64,17,1)+MID(E64,18,1)) -> 33 | D64: =IF(ISBLANK(F64),"",MID(F64,1,1)+MID(F64,2,1)+MID(F64,3,1)+MID(F64,4,1)+MID(F64,5,1)+MID(F64,6,1)+MID(F64,7,1)+MID(F64,8,1)+MID(F64,9,1)+MID(F64,10,1)+MID(F64,11,1)+MID(F64,12,1)+MID(F64,13,1)+MID(F64,14,1)+MID(F64,15,1)+MID(F64,16,1)+MID(F64,17,1)+MID(F64,18,1)) ->  | E64: 132121312212212322 | G64: =LEN(E64) -> 18 | H64: =LEN(F64) -> 0 | I64: E | J64: B | K64: 1 | L64: 3 | M64: 2 | N64: 1 | O64: 2 | P64: 1 | Q64: 3 | R64: 1 | S64: 2 | T64: 2 | U64: 1 | V64: 2 | W64: 2 | X64: 1 | Y64: 2 | Z64: 3 | AA64: 2 | AB64: 2 | AC64: 33 | AV64: 0
A65: 2020-07-02 | B65: Rabe, Jonas | C65: 33 | E65: 132211312213222221 | G65: 18 | H65: 0 | I65: E | J65: B | K65: 1 | L65: 3 | M65: 2 | N65: 2 | O65: 1 | P65: 1 | Q65: 3 | R65: 1 | S65: 2 | T65: 2 | U65: 1 | V65: 3 | W65: 2 | X65: 2 | Y65: 2 | Z65: 2 | AA65: 2 | AB65: 1 | AC65: 33 | AV65: 0
A66: 2020-07-02 | B66: Lieber, Nicole | C66: 34 | E66: 111211111113253522 | G66: 18 | H66: 0 | I66: E | J66: B | K66: 1 | L66: 1 | M66: 1 | N66: 2 | O66: 1 | P66: 1 | Q66: 1 | R66: 1 | S66: 1 | T66: 1 | U66: 1 | V66: 3 | W66: 2 | X66: 5 | Y66: 3 | Z66: 5 | AA66: 2 | AB66: 2 | AC66: 34 | AV66: 0
A67: 2020-07-02 | B67: Greiffendorf, Hellmut | C67: 40 | E67: 312221111112572422 | G67: 18 | H67: 0 | I67: E | J67: B | K67: 3 | L67: 1 | M67: 2 | N67: 2 | O67: 2 | P67: 1 | Q67: 1 | R67: 1 | S67: 1 | T67: 1 | U67: 1 | V67: 2 | W67: 5 | X67: 7 | Y67: 2 | Z67: 4 | AA67: 2 | AB67: 2 | AC67: =IF(SUM(K67:AB67)>0,SUM(K67:AB67),0) -> 40 | AV67: =IF(SUM(AD67:AU67)>0,SUM(AD67:AU67),0) -> 0
A68: 2020-07-02 | B68: Battig, Wolfgang | C68: 28 | E68: 222221111111112322 | G68: 18 | H68: 0 | I68: E | J68: B | K68: 2 | L68: 2 | M68: 2 | N68: 2 | O68: 2 | P68: 1 | Q68: 1 | R68: 1 | S68: 1 | T68: 1 | U68: 1 | V68: 1 | W68: 1 | X68: 1 | Y68: 2 | Z68: 3 | AA68: 2 | AB68: 2 | AC68: 28 | AV68: 0
A69: 2020-07-02 | B69: Schmidt, Barbara | C69: 38 | E69: 172121211212233133 | G69: 18 | H69: 0 | I69: E | J69: B | K69: 1 | L69: 7 | M69: 2 | N69: 1 | O69: 2 | P69: 1 | Q69: 2 | R69: 1 | S69: 1 | T69: 2 | U69: 1 | V69: 2 | W69: 2 | X69: 3 | Y69: 3 | Z69: 1 | AA69: 3 | AB69: 3 | AC69: 38 | AV69: 0
A70: 2020-07-02 | B70: Buchholz, Ansgar | C70: 23 | E70: 211211112111112121 | G70: 18 | H70: 0 | I70: E | J70: B | K70: 2 | L70: 1 | M70: 1 | N70: 2 | O70: 1 | P70: 1 | Q70: 1 | R70: 1 | S70: 2 | T70: 1 | U70: 1 | V70: 1 | W70: 1 | X70: 1 | Y70: 2 | Z70: 1 | AA70: 2 | AB70: 1 | AC70: 23 | AV70: 0
A71: 2020-07-02 | B71: Puschner, Michael | C71: 38 | E71: 312221112212242712 | G71: 18 | H71: 0 | I71: E | J71: B | K71: 3 | L71: 1 | M71: 2 | N71: 2 | O71: 2 | P71: 1 | Q71: 1 | R71: 1 | S71: 2 | T71: 2 | U71: 1 | V71: 2 | W71: 2 | X71: 4 | Y71: 2 | Z71: 7 | AA71: 1 | AB71: 2 | AC71: 38 | AL71: =IF($I71=MID(AL$1,1,1),IF(ISBLANK($E71),"",VALUE(MID($E71,VALUE(MID(AL$1,2,LEN(AL$1)-1)),1))),IF($J71=MID(AL$1,1,1),IF(ISBLANK($F71),"",VALUE(MID($F71,VALUE(MID(AL$1,2,LEN(AL$1)-1)),1))))) ->  | AV71: 0
A72: 2020-07-02 | B72: Lenk, Rolf | C72: 29 | E72: 112211111213322212 | G72: 18 | H72: 0 | I72: E | J72: B | K72: 1 | L72: 1 | M72: 2 | N72: 2 | O72: 1 | P72: 1 | Q72: 1 | R72: 1 | S72: 1 | T72: 2 | U72: 1 | V72: 3 | W72: 3 | X72: 2 | Y72: 2 | Z72: 2 | AA72: 1 | AB72: 2 | AC72: 29 | AD72: =IF($I72=MID(AD$1,1,1),IF(ISBLANK($E72),"",VALUE(MID($E72,VALUE(MID(AD$1,2,LEN(AD$1)-1)),1))),IF($J72=MID(AD$1,1,1),IF(ISBLANK($F72),"",VALUE(MID($F72,VALUE(MID(AD$1,2,LEN(AD$1)-1)),1))))) ->  | AV72: 0
A73: 2020-07-02 | B73: Börgmann, Brigitte | C73: 41 | E73: 142221712121252222 | G73: 18 | H73: 0 | I73: E | J73: B | K73: 1 | L73: 4 | M73: 2 | N73: 2 | O73: 2 | P73: 1 | Q73: 7 | R73: 1 | S73: 2 | T73: 1 | U73: 2 | V73: 1 | W73: 2 | X73: 5 | Y73: 2 | Z73: 2 | AA73: 2 | AB73: 2 | AC73: 41 | AV73: 0
A74: 2020-07-02 | B74: Börgmann, Ulrich | C74: 33 | E74: 172241111111212122 | G74: 18 | H74: 0 | I74: E | J74: B | K74: 1 | L74: 7 | M74: 2 | N74: 2 | O74: 4 | P74: 1 | Q74: 1 | R74: 1 | S74: 1 | T74: 1 | U74: 1 | V74: 1 | W74: 2 | X74: 1 | Y74: 2 | Z74: =IF($I74=MID(Z$1,1,1),IF(ISBLANK($E74),"",VALUE(MID($E74,VALUE(MID(Z$1,2,LEN(Z$1)-1)),1))),IF($J74=MID(Z$1,1,1),IF(ISBLANK($F74),"",VALUE(MID($F74,VALUE(MID(Z$1,2,LEN(Z$1)-1)),1))))) -> 1 | AA74: 2 | AB74: 2 | AC74: 33 | AV74: 0
A75: 2020-07-02 | B75: Lehmann, Niclas | C75: 31 | E75: 311222121111212422 | G75: 18 | H75: 0 | I75: E | J75: B | K75: =IF($I75=MID(K$1,1,1),IF(ISBLANK($E75),"",VALUE(MID($E75,VALUE(MID(K$1,2,LEN(K$1)-1)),1))),IF($J75=MID(K$1,1,1),IF(ISBLANK($F75),"",VALUE(MID($F75,VALUE(MID(K$1,2,LEN(K$1)-1)),1))))) -> 3 | L75: 1 | M75: 1 | N75: 2 | O75: 2 | P75: 2 | Q75: 1 | R75: 2 | S75: 1 | T75: 1 | U75: 1 | V75: 1 | W75: 2 | X75: 1 | Y75: 2 | Z75: 4 | AA75: 2 | AB75: 2 | AC75: 31 | AV75: 0
A76: 2020-07-02 | B76: Schmidtbauer, Günter | C76: 39 | E76: 221121112313723232 | G76: 18 | H76: 0 | I76: E | J76: B | K76: 2 | L76: 2 | M76: 1 | N76: 1 | O76: 2 | P76: 1 | Q76: 1 | R76: 1 | S76: 2 | T76: 3 | U76: 1 | V76: 3 | W76: 7 | X76: 2 | Y76: 3 | Z76: 2 | AA76: 3 | AB76: 2 | AC76: 39 | AV76: 0
A77: 2020-07-02 | B77: Brunnenkant, Frank | C77: 43 | E77: 242212222422162223 | G77: 18 | H77: 0 | I77: E | J77: B | K77: 2 | L77: 4 | M77: 2 | N77: 2 | O77: 1 | P77: 2 | Q77: 2 | R77: 2 | S77: 2 | T77: 4 | U77: 2 | V77: 2 | W77: 1 | X77: 6 | Y77: 2 | Z77: 2 | AA77: 2 | AB77: 3 | AC77: 43 | AV77: 0
A78: 2020-07-02 | B78: Kunz, Martin | C78: 37 | E78: 342212322211322212 | G78: 18 | H78: 0 | I78: E | J78: B | K78: 3 | L78: 4 | M78: 2 | N78: 2 | O78: 1 | P78: 2 | Q78: 3 | R78: 2 | S78: 2 | T78: 2 | U78: 1 | V78: 1 | W78: 3 | X78: 2 | Y78: 2 | Z78: 2 | AA78: 1 | AB78: 2 | AC78: 37 | AV78: 0
A79: 2020-07-02 | B79: Hein, Hans-Jörg | C79: 31 | E79: 313121111211142222 | G79: 18 | H79: 0 | I79: E | J79: B | K79: 3 | L79: 1 | M79: 3 | N79: 1 | O79: 2 | P79: 1 | Q79: 1 | R79: 1 | S79: 1 | T79: 2 | U79: 1 | V79: 1 | W79: 1 | X79: 4 | Y79: 2 | Z79: 2 | AA79: 2 | AB79: 2 | AC79: 31 | AV79: 0
A80: 2020-07-09 | B80: Lenk, Rolf | C80: 33 | D80: 36 | E80: 212112111234222321 | F80: 232312122211212324 | G80: 18 | H80: 18 | I80: E | J80: B | K80: 2 | L80: 1 | M80: 2 | N80: 1 | O80: 1 | P80: 2 | Q80: 1 | R80: 1 | S80: 1 | T80: 2 | U80: 3 | V80: 4 | W80: 2 | X80: 2 | Y80: 2 | Z80: 3 | AA80: 2 | AB80: 1 | AC80: 33 | AD80: 2 | AE80: 3 | AF80: 2 | AG80: 3 | AH80: 1 | AI80: 2 | AJ80: 1 | AK80: 2 | AL80: 2 | AM80: 2 | AN80: 1 | AO80: 1 | AP80: 2 | AQ80: 1 | AR80: 2 | AS80: 3 | AT80: 2 | AU80: 4 | AV80: 36
A81: 2020-07-09 | B81: Lehmann, Niclas | C81: 26 | D81: 39 | E81: 121211211111222122 | F81: 222712222213122222 | G81: 18 | H81: 18 | I81: E | J81: B | K81: 1 | L81: 2 | M81: 1 | N81: 2 | O81: 1 | P81: 1 | Q81: 2 | R81: 1 | S81: 1 | T81: 1 | U81: 1 | V81: 1 | W81: 2 | X81: 2 | Y81: 2 | Z81: 1 | AA81: 2 | AB81: 2 | AC81: 26 | AD81: 2 | AE81: 2 | AF81: 2 | AG81: 7 | AH81: 1 | AI81: 2 | AJ81: 2 | AK81: 2 | AL81: 2 | AM81: 2 | AN81: 1 | AO81: 3 | AP81: 1 | AQ81: 2 | AR81: 2 | AS81: 2 | AT81: 2 | AU81: 2 | AV81: 39
A82: 2020-07-09 | B82: Schmidt, Barbara | C82: 46 | D82: 48 | E82: 122231411252273323 | F82: 232722214322224224 | G82: 18 | H82: 18 | I82: E | J82: B | K82: 1 | L82: 2 | M82: 2 | N82: 2 | O82: 3 | P82: 1 | Q82: 4 | R82: 1 | S82: 1 | T82: 2 | U82: 5 | V82: 2 | W82: 2 | X82: 7 | Y82: 3 | Z82: 3 | AA82: 2 | AB82: 3 | AC82: 46 | AD82: 2 | AE82: 3 | AF82: 2 | AG82: 7 | AH82: 2 | AI82: 2 | AJ82: 2 | AK82: 1 | AL82: 4 | AM82: 3 | AN82: 2 | AO82: 2 | AP82: 2 | AQ82: 2 | AR82: 4 | AS82: 2 | AT82: 2 | AU82: 4 | AV82: 48
A83: 2020-07-09 | B83: Kersch, Uwe | C83: 36 | D83: 41 | E83: 212121122221342233 | F83: 222512142211325222 | G83: 18 | H83: 18 | I83: E | J83: B | K83: 2 | L83: 1 | M83: 2 | N83: 1 | O83: 2 | P83: 1 | Q83: 1 | R83: 2 | S83: 2 | T83: 2 | U83: 2 | V83: 1 | W83: 3 | X83: 4 | Y83: 2 | Z83: 2 | AA83: 3 | AB83: 3 | AC83: 36 | AD83: 2 | AE83: 2 | AF83: 2 | AG83: 5 | AH83: 1 | AI83: 2 | AJ83: 1 | AK83: 4 | AL83: 2 | AM83: 2 | AN83: 1 | AO83: 1 | AP83: 3 | AQ83: 2 | AR83: 5 | AS83: 2 | AT83: 2 | AU83: 2 | AV83: 41
A84: 2020-07-09 | B84: Schmidtbauer, Günter | C84: 46 | D84: 34 | E84: 112213712151442522 | F84: 121221121212227221 | G84: 18 | H84: 18 | I84: E | J84: B | K84: 1 | L84: 1 | M84: 2 | N84: 2 | O84: 1 | P84: 3 | Q84: 7 | R84: 1 | S84: 2 | T84: 1 | U84: 5 | V84: 1 | W84: 4 | X84: 4 | Y84: 2 | Z84: 5 | AA84: 2 | AB84: 2 | AC84: 46 | AD84: 1 | AE84: 2 | AF84: 1 | AG84: 2 | AH84: 2 | AI84: 1 | AJ84: 1 | AK84: 2 | AL84: 1 | AM84: 2 | AN84: 1 | AO84: 2 | AP84: 2 | AQ84: 2 | AR84: 7 | AS84: 2 | AT84: 2 | AU84: 1 | AV84: 34
A85: 2020-07-09 | B85: Lieber, Nicole | C85: 27 | D85: 33 | E85: 231221111111211312 | F85: 222322122211222311 | G85: 18 | H85: 18 | I85: E | J85: B | K85: 2 | L85: 3 | M85: 1 | N85: 2 | O85: 2 | P85: 1 | Q85: 1 | R85: 1 | S85: 1 | T85: 1 | U85: 1 | V85: 1 | W85: 2 | X85: 1 | Y85: 1 | Z85: 3 | AA85: 1 | AB85: 2 | AC85: 27 | AD85: 2 | AE85: 2 | AF85: 2 | AG85: 3 | AH85: 2 | AI85: 2 | AJ85: 1 | AK85: 2 | AL85: =IF($I85=MID(AL$1,1,1),IF(ISBLANK($E85),"",VALUE(MID($E85,VALUE(MID(AL$1,2,LEN(AL$1)-1)),1))),IF($J85=MID(AL$1,1,1),IF(ISBLANK($F85),"",VALUE(MID($F85,VALUE(MID(AL$1,2,LEN(AL$1)-1)),1))))) -> 2 | AM85: 2 | AN85: 1 | AO85: 1 | AP85: 2 | AQ85: 2 | AR85: 2 | AS85: 3 | AT85: 1 | AU85: 1 | AV85: 33
A86: 2020-07-09 | B86: Puschner, Michael | C86: 30 | D86: 35 | E86: 242111122211212221 | F86: 122222223212124221 | G86: 18 | H86: 18 | I86: E | J86: B | K86: 2 | L86: 4 | M86: 2 | N86: 1 | O86: 1 | P86: 1 | Q86: 1 | R86: 2 | S86: 2 | T86: 2 | U86: 1 | V86: 1 | W86: 2 | X86: 1 | Y86: 2 | Z86: 2 | AA86: 2 | AB86: 1 | AC86: 30 | AD86: =IF($I86=MID(AD$1,1,1),IF(ISBLANK($E86),"",VALUE(MID($E86,VALUE(MID(AD$1,2,LEN(AD$1)-1)),1))),IF($J86=MID(AD$1,1,1),IF(ISBLANK($F86),"",VALUE(MID($F86,VALUE(MID(AD$1,2,LEN(AD$1)-1)),1))))) -> 1 | AE86: 2 | AF86: 2 | AG86: 2 | AH86: 2 | AI86: 2 | AJ86: 2 | AK86: 2 | AL86: 3 | AM86: 2 | AN86: 1 | AO86: 2 | AP86: 1 | AQ86: 2 | AR86: 4 | AS86: 2 | AT86: 2 | AU86: 1 | AV86: 35
A87: 2020-07-09 | B87: Rabe, Jonas | C87: 25 | D87: 34 | E87: 212212121211211111 | F87: 231322122122222221 | G87: 18 | H87: 18 | I87: E | J87: B | K87: 2 | L87: 1 | M87: 2 | N87: 2 | O87: 1 | P87: 2 | Q87: 1 | R87: 2 | S87: 1 | T87: 2 | U87: 1 | V87: 1 | W87: 2 | X87: 1 | Y87: 1 | Z87: 1 | AA87: 1 | AB87: 1 | AC87: 25 | AD87: 2 | AE87: 3 | AF87: 1 | AG87: 3 | AH87: 2 | AI87: 2 | AJ87: 1 | AK87: 2 | AL87: 2 | AM87: 1 | AN87: 2 | AO87: 2 | AP87: 2 | AQ87: 2 | AR87: 2 | AS87: 2 | AT87: 2 | AU87: 1 | AV87: 34
A88: 2020-07-09 | B88: Urban, Dominic | C88: 29 | D88: 37 | E88: 111321112211222141 | F88: 231212123222223223 | G88: 18 | H88: 18 | I88: E | J88: B | K88: 1 | L88: 1 | M88: 1 | N88: 3 | O88: 2 | P88: 1 | Q88: 1 | R88: 1 | S88: 2 | T88: 2 | U88: 1 | V88: 1 | W88: 2 | X88: 2 | Y88: 2 | Z88: 1 | AA88: 4 | AB88: 1 | AC88: 29 | AD88: 2 | AE88: 3 | AF88: 1 | AG88: 2 | AH88: 1 | AI88: 2 | AJ88: 1 | AK88: 2 | AL88: 3 | AM88: 2 | AN88: 2 | AO88: 2 | AP88: 2 | AQ88: 2 | AR88: 3 | AS88: 2 | AT88: 2 | AU88: 3 | AV88: 37
A89: 2020-07-09 | B89: Urban, Angela | C89: 37 | D89: 40 | E89: 212212312216212232 | F89: 232272122211223222 | G89: 18 | H89: 18 | I89: E | J89: B | K89: 2 | L89: 1 | M89: 2 | N89: 2 | O89: 1 | P89: 2 | Q89: 3 | R89: 1 | S89: 2 | T89: 2 | U89: 1 | V89: 6 | W89: 2 | X89: 1 | Y89: 2 | Z89: 2 | AA89: 3 | AB89: 2 | AC89: 37 | AD89: 2 | AE89: 3 | AF89: 2 | AG89: 2 | AH89: 7 | AI89: 2 | AJ89: 1 | AK89: 2 | AL89: 2 | AM89: 2 | AN89: 1 | AO89: 1 | AP89: 2 | AQ89: 2 | AR89: 3 | AS89: 2 | AT89: 2 | AU89: 2 | AV89: 40
A90: 2020-07-09 | B90: Urban, Volker | C90: 26 | D90: 31 | E90: 111121112212112213 | F90: 222212121211213222 | G90: 18 | H90: 18 | I90: E | J90: B | K90: 1 | L90: 1 | M90: 1 | N90: 1 | O90: 2 | P90: 1 | Q90: 1 | R90: 1 | S90: 2 | T90: 2 | U90: 1 | V90: 2 | W90: 1 | X90: 1 | Y90: 2 | Z90: 2 | AA90: 1 | AB90: 3 | AC90: 26 | AD90: 2 | AE90: 2 | AF90: 2 | AG90: 2 | AH90: 1 | AI90: 2 | AJ90: 1 | AK90: 2 | AL90: 1 | AM90: 2 | AN90: 1 | AO90: 1 | AP90: 2 | AQ90: 1 | AR90: 3 | AS90: 2 | AT90: 2 | AU90: 2 | AV90: 31
A91: 2020-07-09 | B91: Börgmann, Ulrich | C91: 36 | D91: 35 | E91: 252117111111232113 | F91: 122322122222222222 | G91: 18 | H91: 18 | I91: E | J91: B | K91: =IF($I91=MID(K$1,1,1),IF(ISBLANK($E91),"",VALUE(MID($E91,VALUE(MID(K$1,2,LEN(K$1)-1)),1))),IF($J91=MID(K$1,1,1),IF(ISBLANK($F91),"",VALUE(MID($F91,VALUE(MID(K$1,2,LEN(K$1)-1)),1))))) -> 2 | L91: 5 | M91: 2 | N91: 1 | O91: 1 | P91: 7 | Q91: 1 | R91: 1 | S91: 1 | T91: 1 | U91: 1 | V91: 1 | W91: 2 | X91: 3 | Y91: 2 | Z91: 1 | AA91: 1 | AB91: 3 | AC91: 36 | AD91: 1 | AE91: 2 | AF91: 2 | AG91: 3 | AH91: 2 | AI91: 2 | AJ91: 1 | AK91: 2 | AL91: 2 | AM91: 2 | AN91: 2 | AO91: 2 | AP91: 2 | AQ91: 2 | AR91: 2 | AS91: 2 | AT91: 2 | AU91: 2 | AV91: 35
A92: 2020-07-09 | B92: Börgmann, Brigitte | C92: 43 | D92: 34 | E92: 132223512146212222 | F92: 221322222211213222 | G92: 18 | H92: 18 | I92: E | J92: B | K92: 1 | L92: 3 | M92: 2 | N92: 2 | O92: 2 | P92: 3 | Q92: 5 | R92: 1 | S92: 2 | T92: 1 | U92: 4 | V92: 6 | W92: 2 | X92: 1 | Y92: 2 | Z92: 2 | AA92: 2 | AB92: 2 | AC92: 43 | AD92: 2 | AE92: 2 | AF92: 1 | AG92: 3 | AH92: 2 | AI92: 2 | AJ92: 2 | AK92: 2 | AL92: 2 | AM92: 2 | AN92: 1 | AO92: 1 | AP92: 2 | AQ92: 1 | AR92: 3 | AS92: 2 | AT92: 2 | AU92: 2 | AV92: 34
A93: 2020-07-09 | B93: Kortmann, Uwe | C93: 40 | D93: 41 | E93: 272221112211342322 | F93: 232312223212216223 | G93: 18 | H93: 18 | I93: E | J93: B | K93: 2 | L93: 7 | M93: 2 | N93: 2 | O93: 2 | P93: 1 | Q93: 1 | R93: 1 | S93: 2 | T93: 2 | U93: 1 | V93: 1 | W93: 3 | X93: 4 | Y93: 2 | Z93: 3 | AA93: 2 | AB93: 2 | AC93: 40 | AD93: 2 | AE93: 3 | AF93: 2 | AG93: 3 | AH93: 1 | AI93: 2 | AJ93: 2 | AK93: 2 | AL93: 3 | AM93: 2 | AN93: 1 | AO93: 2 | AP93: 2 | AQ93: 1 | AR93: 6 | AS93: 2 | AT93: 2 | AU93: 3 | AV93: 41
A94: 2020-07-09 | B94: Kortmann, Sabine | C94: 29 | D94: 34 | E94: 111221112312112223 | F94: 221122222112223322 | G94: 18 | H94: 18 | I94: E | J94: B | K94: 1 | L94: 1 | M94: 1 | N94: 2 | O94: 2 | P94: 1 | Q94: 1 | R94: 1 | S94: 2 | T94: 3 | U94: 1 | V94: 2 | W94: 1 | X94: 1 | Y94: 2 | Z94: 2 | AA94: =IF($I94=MID(AA$1,1,1),IF(ISBLANK($E94),"",VALUE(MID($E94,VALUE(MID(AA$1,2,LEN(AA$1)-1)),1))),IF($J94=MID(AA$1,1,1),IF(ISBLANK($F94),"",VALUE(MID($F94,VALUE(MID(AA$1,2,LEN(AA$1)-1)),1))))) -> 2 | AB94: 3 | AC94: 29 | AD94: 2 | AE94: 2 | AF94: 1 | AG94: 1 | AH94: 2 | AI94: 2 | AJ94: 2 | AK94: 2 | AL94: 2 | AM94: 1 | AN94: 1 | AO94: 2 | AP94: 2 | AQ94: 2 | AR94: 3 | AS94: 3 | AT94: 2 | AU94: 2 | AV94: 34
A95: 2020-07-09 | B95: Kunz, Martin | C95: 33 | D95: 36 | E95: 231221211212233212 | F95: 222221122213322223 | G95: 18 | H95: 18 | I95: E | J95: B | K95: 2 | L95: 3 | M95: 1 | N95: 2 | O95: 2 | P95: 1 | Q95: 2 | R95: 1 | S95: 1 | T95: 2 | U95: 1 | V95: 2 | W95: 2 | X95: 3 | Y95: 3 | Z95: 2 | AA95: 1 | AB95: 2 | AC95: 33 | AD95: 2 | AE95: 2 | AF95: 2 | AG95: 2 | AH95: 2 | AI95: 1 | AJ95: 1 | AK95: 2 | AL95: 2 | AM95: 2 | AN95: 1 | AO95: 3 | AP95: 3 | AQ95: 2 | AR95: 2 | AS95: 2 | AT95: 2 | AU95: 3 | AV95: 36
A96: 2020-07-16 | B96: Lenk, Rolf | C96: 35 | D96: 40 | E96: 143221212211213412 | F96: 211412215215232321 | G96: 18 | H96: 18 | I96: E | J96: B | K96: 1 | L96: 4 | M96: 3 | N96: 2 | O96: 2 | P96: 1 | Q96: 2 | R96: 1 | S96: 2 | T96: 2 | U96: 1 | V96: 1 | W96: 2 | X96: 1 | Y96: 3 | Z96: 4 | AA96: 1 | AB96: 2 | AC96: 35 | AD96: 2 | AE96: 1 | AF96: 1 | AG96: 4 | AH96: 1 | AI96: 2 | AJ96: 2 | AK96: 1 | AL96: 5 | AM96: 2 | AN96: 1 | AO96: 5 | AP96: 2 | AQ96: 3 | AR96: 2 | AS96: 3 | AT96: 2 | AU96: 1 | AV96: 40
A97: 2020-07-16 | B97: Rabe, Jonas | C97: 30 | D97: 39 | E97: 112221311211232212 | F97: 321332122312222413 | G97: 18 | H97: 18 | I97: E | J97: B | K97: 1 | L97: 1 | M97: 2 | N97: 2 | O97: 2 | P97: 1 | Q97: 3 | R97: 1 | S97: 1 | T97: 2 | U97: 1 | V97: 1 | W97: 2 | X97: 3 | Y97: 2 | Z97: 2 | AA97: 1 | AB97: 2 | AC97: 30 | AD97: 3 | AE97: 2 | AF97: 1 | AG97: 3 | AH97: 3 | AI97: 2 | AJ97: 1 | AK97: 2 | AL97: 2 | AM97: 3 | AN97: 1 | AO97: 2 | AP97: 2 | AQ97: 2 | AR97: 2 | AS97: 4 | AT97: 1 | AU97: 3 | AV97: 39
A98: 2020-07-16 | B98: Schmidtbauer, Günter | C98: 40 | D98: 31 | E98: 222212411227322122 | F98: 211132123211222221 | G98: 18 | H98: 18 | I98: E | J98: B | K98: 2 | L98: 2 | M98: 2 | N98: 2 | O98: 1 | P98: 2 | Q98: 4 | R98: 1 | S98: 1 | T98: 2 | U98: 2 | V98: 7 | W98: 3 | X98: 2 | Y98: 2 | Z98: 1 | AA98: 2 | AB98: 2 | AC98: 40 | AD98: 2 | AE98: 1 | AF98: 1 | AG98: 1 | AH98: 3 | AI98: 2 | AJ98: 1 | AK98: 2 | AL98: 3 | AM98: 2 | AN98: 1 | AO98: 1 | AP98: 2 | AQ98: 2 | AR98: 2 | AS98: 2 | AT98: 2 | AU98: 1 | AV98: 31
A99: 2020-07-16 | B99: Urban, Angela | C99: 38 | D99: 32 | E99: 322242132211212323 | F99: 222222111211332221 | G99: 18 | H99: 18 | I99: E | J99: B | K99: 3 | L99: 2 | M99: 2 | N99: 2 | O99: 4 | P99: 2 | Q99: 1 | R99: 3 | S99: 2 | T99: 2 | U99: 1 | V99: 1 | W99: 2 | X99: 1 | Y99: 2 | Z99: 3 | AA99: 2 | AB99: 3 | AC99: 38 | AD99: 2 | AE99: 2 | AF99: 2 | AG99: 2 | AH99: 2 | AI99: 2 | AJ99: 1 | AK99: 1 | AL99: =IF($I99=MID(AL$1,1,1),IF(ISBLANK($E99),"",VALUE(MID($E99,VALUE(MID(AL$1,2,LEN(AL$1)-1)),1))),IF($J99=MID(AL$1,1,1),IF(ISBLANK($F99),"",VALUE(MID($F99,VALUE(MID(AL$1,2,LEN(AL$1)-1)),1))))) -> 1 | AM99: 2 | AN99: 1 | AO99: 1 | AP99: 3 | AQ99: 3 | AR99: 2 | AS99: 2 | AT99: 2 | AU99: 1 | AV99: 32
A100: 2020-07-16 | B100: Urban, Dominic | C100: 24 | D100: 32 | E100: 111111121212111312 | F100: 221312113212222221 | G100: 18 | H100: 18 | I100: E | J100: B | K100: 1 | L100: 1 | M100: 1 | N100: 1 | O100: 1 | P100: 1 | Q100: 1 | R100: 2 | S100: 1 | T100: 2 | U100: 1 | V100: 2 | W100: 1 | X100: 1 | Y100: 1 | Z100: 3 | AA100: 1 | AB100: 2 | AC100: 24 | AD100: =IF($I100=MID(AD$1,1,1),IF(ISBLANK($E100),"",VALUE(MID($E100,VALUE(MID(AD$1,2,LEN(AD$1)-1)),1))),IF($J100=MID(AD$1,1,1),IF(ISBLANK($F100),"",VALUE(MID($F100,VALUE(MID(AD$1,2,LEN(AD$1)-1)),1))))) -> 2 | AE100: 2 | AF100: 1 | AG100: 3 | AH100: 1 | AI100: 2 | AJ100: 1 | AK100: 1 | AL100: 3 | AM100: 2 | AN100: 1 | AO100: 2 | AP100: 2 | AQ100: 2 | AR100: 2 | AS100: 2 | AT100: 2 | AU100: 1 | AV100: 32
A101: 2020-07-16 | B101: Urban, Volker | C101: 27 | D101: 32 | E101: 132221111111231112 | F101: 221222112221223221 | G101: 18 | H101: 18 | I101: E | J101: B | K101: 1 | L101: 3 | M101: 2 | N101: 2 | O101: 2 | P101: 1 | Q101: 1 | R101: 1 | S101: 1 | T101: 1 | U101: 1 | V101: 1 | W101: 2 | X101: 3 | Y101: 1 | Z101: 1 | AA101: 1 | AB101: 2 | AC101: 27 | AD101: 2 | AE101: 2 | AF101: 1 | AG101: 2 | AH101: 2 | AI101: 2 | AJ101: 1 | AK101: 1 | AL101: 2 | AM101: 2 | AN101: 2 | AO101: 1 | AP101: 2 | AQ101: 2 | AR101: 3 | AS101: 2 | AT101: 2 | AU101: 1 | AV101: 32
A102: 2020-07-16 | B102: Schmidt, Barbara | C102: 49 | D102: 47 | E102: 232221422214357322 | F102: 257233221122232251 | G102: 18 | H102: 18 | I102: E | J102: B | K102: 2 | L102: 3 | M102: 2 | N102: 2 | O102: 2 | P102: 1 | Q102: 4 | R102: 2 | S102: 2 | T102: 2 | U102: 1 | V102: 4 | W102: 3 | X102: 5 | Y102: 7 | Z102: 3 | AA102: 2 | AB102: 2 | AC102: 49 | AD102: 2 | AE102: 5 | AF102: 7 | AG102: 2 | AH102: 3 | AI102: 3 | AJ102: 2 | AK102: 2 | AL102: 1 | AM102: 1 | AN102: 2 | AO102: 2 | AP102: 2 | AQ102: 3 | AR102: 2 | AS102: 2 | AT102: 5 | AU102: 1 | AV102: 47
A103: 2020-07-16 | B103: Lieber, Nicole | C103: 27 | D103: 36 | E103: 212111121121212222 | F103: 225122221212222213 | G103: 18 | H103: 18 | I103: E | J103: B | K103: 2 | L103: 1 | M103: 2 | N103: 1 | O103: 1 | P103: 1 | Q103: 1 | R103: 2 | S103: 1 | T103: 1 | U103: 2 | V103: 1 | W103: 2 | X103: 1 | Y103: 2 | Z103: 2 | AA103: 2 | AB103: 2 | AC103: 27 | AD103: 2 | AE103: 2 | AF103: 5 | AG103: 1 | AH103: 2 | AI103: 2 | AJ103: 2 | AK103: 2 | AL103: 1 | AM103: 2 | AN103: 1 | AO103: 2 | AP103: 2 | AQ103: 2 | AR103: 2 | AS103: 2 | AT103: 1 | AU103: 3 | AV103: 36
A104: 2020-07-16 | B104: Scharpe, Sabine | C104: 38 | D104: 35 | E104: 123211152212412215 | F104: 122212125211222322 | G104: 18 | H104: 18 | I104: E | J104: B | K104: 1 | L104: 2 | M104: 3 | N104: 2 | O104: 1 | P104: 1 | Q104: 1 | R104: 5 | S104: 2 | T104: 2 | U104: 1 | V104: 2 | W104: 4 | X104: 1 | Y104: 2 | Z104: 2 | AA104: 1 | AB104: 5 | AC104: 38 | AD104: 1 | AE104: 2 | AF104: 2 | AG104: 2 | AH104: 1 | AI104: 2 | AJ104: 1 | AK104: 2 | AL104: 5 | AM104: 2 | AN104: 1 | AO104: 1 | AP104: 2 | AQ104: 2 | AR104: 2 | AS104: 3 | AT104: 2 | AU104: 2 | AV104: 35
A105: 2020-07-16 | B105: Puschner, Michael | C105: 28 | D105: 34 | E105: 211212111211212322 | F105: 232511122212212221 | G105: 18 | H105: 18 | I105: E | J105: B | K105: 2 | L105: 1 | M105: 1 | N105: 2 | O105: 1 | P105: 2 | Q105: 1 | R105: 1 | S105: 1 | T105: 2 | U105: 1 | V105: 1 | W105: 2 | X105: 1 | Y105: 2 | Z105: 3 | AA105: 2 | AB105: 2 | AC105: 28 | AD105: 2 | AE105: 3 | AF105: 2 | AG105: 5 | AH105: 1 | AI105: 1 | AJ105: 1 | AK105: 2 | AL105: 2 | AM105: 2 | AN105: 1 | AO105: 2 | AP105: 2 | AQ105: 1 | AR105: 2 | AS105: 2 | AT105: 2 | AU105: 1 | AV105: 34
A106: 2020-07-16 | B106: Battig, Wolfgang | C106: 28 | D106: 34 | E106: 122212121111212312 | F106: 132222123212222221 | G106: 18 | H106: 18 | I106: E | J106: B | K106: 1 | L106: 2 | M106: 2 | N106: 2 | O106: 1 | P106: 2 | Q106: 1 | R106: 2 | S106: 1 | T106: 1 | U106: 1 | V106: 1 | W106: 2 | X106: 1 | Y106: 2 | Z106: 3 | AA106: 1 | AB106: 2 | AC106: 28 | AD106: 1 | AE106: 3 | AF106: 2 | AG106: 2 | AH106: 2 | AI106: 2 | AJ106: 1 | AK106: 2 | AL106: 3 | AM106: 2 | AN106: 1 | AO106: 2 | AP106: 2 | AQ106: 2 | AR106: 2 | AS106: 2 | AT106: 2 | AU106: 1 | AV106: 34
A107: 2020-07-16 | B107: Kortmann, Uwe | C107: 37 | D107: 33 | E107: 242221112211432322 | F107: 221322122212222221 | G107: 18 | H107: 18 | I107: E | J107: B | K107: =IF($I107=MID(K$1,1,1),IF(ISBLANK($E107),"",VALUE(MID($E107,VALUE(MID(K$1,2,LEN(K$1)-1)),1))),IF($J107=MID(K$1,1,1),IF(ISBLANK($F107),"",VALUE(MID($F107,VALUE(MID(K$1,2,LEN(K$1)-1)),1))))) -> 2 | L107: 4 | M107: 2 | N107: 2 | O107: 2 | P107: 1 | Q107: 1 | R107: 1 | S107: 2 | T107: 2 | U107: 1 | V107: 1 | W107: 4 | X107: 3 | Y107: 2 | Z107: 3 | AA107: 2 | AB107: 2 | AC107: 37 | AD107: 2 | AE107: 2 | AF107: 1 | AG107: 3 | AH107: 2 | AI107: 2 | AJ107: 1 | AK107: 2 | AL107: 2 | AM107: 2 | AN107: 1 | AO107: 2 | AP107: 2 | AQ107: 2 | AR107: 2 | AS107: 2 | AT107: 2 | AU107: 1 | AV107: 33
A108: 2020-07-16 | B108: Kortmann, Sabine | C108: 32 | D108: 39 | E108: 121232121113312222 | F108: 232223223213222321 | G108: 18 | H108: 18 | I108: E | J108: B | K108: 1 | L108: 2 | M108: 1 | N108: 2 | O108: 3 | P108: 2 | Q108: 1 | R108: 2 | S108: 1 | T108: 1 | U108: 1 | V108: 3 | W108: 3 | X108: 1 | Y108: 2 | Z108: 2 | AA108: 2 | AB108: 2 | AC108: 32 | AD108: 2 | AE108: 3 | AF108: 2 | AG108: 2 | AH108: 2 | AI108: 3 | AJ108: 2 | AK108: 2 | AL108: 3 | AM108: 2 | AN108: 1 | AO108: 3 | AP108: 2 | AQ108: 2 | AR108: 2 | AS108: 3 | AT108: 2 | AU108: 1 | AV108: 39
A109: 2020-07-16 | B109: Börgmann, Brigitte | C109: 40 | D109: 43 | E109: 323221122141223612 | F109: 242622224112322312 | G109: 18 | H109: 18 | I109: E | J109: B | K109: 3 | L109: 2 | M109: 3 | N109: 2 | O109: 2 | P109: 1 | Q109: 1 | R109: 2 | S109: 2 | T109: 1 | U109: 4 | V109: 1 | W109: 2 | X109: 2 | Y109: 3 | Z109: 6 | AA109: 1 | AB109: 2 | AC109: 40 | AD109: 2 | AE109: 4 | AF109: 2 | AG109: 6 | AH109: 2 | AI109: 2 | AJ109: 2 | AK109: 2 | AL109: 4 | AM109: 1 | AN109: 1 | AO109: 2 | AP109: 3 | AQ109: 2 | AR109: 2 | AS109: 3 | AT109: 1 | AU109: 2 | AV109: 43
A110: 2020-07-16 | B110: Börgmann, Ulrich | C110: 36 | D110: 35 | E110: 112234112222412123 | F110: 222322132212222221 | G110: 18 | H110: 18 | I110: E | J110: B | K110: 1 | L110: 1 | M110: 2 | N110: 2 | O110: 3 | P110: 4 | Q110: 1 | R110: 1 | S110: 2 | T110: 2 | U110: 2 | V110: 2 | W110: 4 | X110: 1 | Y110: 2 | Z110: 1 | AA110: 2 | AB110: 3 | AC110: 36 | AD110: 2 | AE110: 2 | AF110: 2 | AG110: 3 | AH110: 2 | AI110: 2 | AJ110: 1 | AK110: 3 | AL110: 2 | AM110: 2 | AN110: 1 | AO110: 2 | AP110: 2 | AQ110: 2 | AR110: 2 | AS110: 2 | AT110: 2 | AU110: 1 | AV110: 35
A111: 2020-07-16 | B111: Hein, Hans-Jörg | C111: 34 | D111: 43 | E111: 132211411212222322 | F111: 233312222212224622 | G111: 18 | H111: 18 | I111: E | J111: B | K111: 1 | L111: 3 | M111: 2 | N111: 2 | O111: 1 | P111: 1 | Q111: 4 | R111: 1 | S111: 1 | T111: 2 | U111: 1 | V111: 2 | W111: 2 | X111: 2 | Y111: 2 | Z111: 3 | AA111: 2 | AB111: 2 | AC111: 34 | AD111: 2 | AE111: 3 | AF111: 3 | AG111: 3 | AH111: 1 | AI111: 2 | AJ111: 2 | AK111: 2 | AL111: 2 | AM111: 2 | AN111: 1 | AO111: 2 | AP111: 2 | AQ111: 2 | AR111: 4 | AS111: 6 | AT111: 2 | AU111: 2 | AV111: 43
A112: 2020-07-16 | B112: Kunz, Martin | C112: 29 | D112: 33 | E112: 111231112212312221 | F112: 133123222211221221 | G112: 18 | H112: 18 | I112: E | J112: B | K112: 1 | L112: 1 | M112: 1 | N112: 2 | O112: 3 | P112: 1 | Q112: 1 | R112: 1 | S112: 2 | T112: 2 | U112: 1 | V112: 2 | W112: 3 | X112: 1 | Y112: 2 | Z112: 2 | AA112: 2 | AB112: 1 | AC112: 29 | AD112: 1 | AE112: 3 | AF112: 3 | AG112: 1 | AH112: 2 | AI112: 3 | AJ112: 2 | AK112: 2 | AL112: 2 | AM112: 2 | AN112: 1 | AO112: 1 | AP112: 2 | AQ112: 2 | AR112: 1 | AS112: 2 | AT112: 2 | AU112: 1 | AV112: 33
A113: 2020-07-23 | B113: Börgmann, Brigitte | C113: 35 | D113: 41 | E113: 212221132222412312 | F113: 223222222213232315 | G113: 18 | H113: 18 | I113: E | J113: B | K113: 2 | L113: 1 | M113: 2 | N113: 2 | O113: 2 | P113: 1 | Q113: 1 | R113: 3 | S113: 2 | T113: 2 | U113: 2 | V113: 2 | W113: 4 | X113: 1 | Y113: 2 | Z113: 3 | AA113: 1 | AB113: 2 | AC113: 35 | AD113: 2 | AE113: 2 | AF113: 3 | AG113: 2 | AH113: 2 | AI113: 2 | AJ113: 2 | AK113: 2 | AL113: =IF($I113=MID(AL$1,1,1),IF(ISBLANK($E113),"",VALUE(MID($E113,VALUE(MID(AL$1,2,LEN(AL$1)-1)),1))),IF($J113=MID(AL$1,1,1),IF(ISBLANK($F113),"",VALUE(MID($F113,VALUE(MID(AL$1,2,LEN(AL$1)-1)),1))))) -> 2 | AM113: 2 | AN113: 1 | AO113: 3 | AP113: 2 | AQ113: 3 | AR113: 2 | AS113: 3 | AT113: 1 | AU113: 5 | AV113: 41
A114: 2020-07-23 | B114: Börgmann, Ulrich | C114: 32 | D114: 37 | E114: 121214112221232122 | F114: 122722122211223221 | G114: 18 | H114: 18 | I114: E | J114: B | K114: 1 | L114: 2 | M114: 1 | N114: 2 | O114: 1 | P114: 4 | Q114: 1 | R114: 1 | S114: 2 | T114: 2 | U114: 2 | V114: 1 | W114: 2 | X114: 3 | Y114: 2 | Z114: 1 | AA114: =IF($I114=MID(AA$1,1,1),IF(ISBLANK($E114),"",VALUE(MID($E114,VALUE(MID(AA$1,2,LEN(AA$1)-1)),1))),IF($J114=MID(AA$1,1,1),IF(ISBLANK($F114),"",VALUE(MID($F114,VALUE(MID(AA$1,2,LEN(AA$1)-1)),1))))) -> 2 | AB114: 2 | AC114: 32 | AD114: =IF($I114=MID(AD$1,1,1),IF(ISBLANK($E114),"",VALUE(MID($E114,VALUE(MID(AD$1,2,LEN(AD$1)-1)),1))),IF($J114=MID(AD$1,1,1),IF(ISBLANK($F114),"",VALUE(MID($F114,VALUE(MID(AD$1,2,LEN(AD$1)-1)),1))))) -> 1 | AE114: 2 | AF114: 2 | AG114: 7 | AH114: 2 | AI114: 2 | AJ114: 1 | AK114: 2 | AL114: 2 | AM114: 2 | AN114: 1 | AO114: 1 | AP114: 2 | AQ114: 2 | AR114: 3 | AS114: 2 | AT114: 2 | AU114: 1 | AV114: 37
A115: 2020-07-23 | B115: Lenk, Rolf | C115: 28 | D115: 34 | E115: 311111112221113321 | F115: 222212322212212321 | G115: 18 | H115: 18 | I115: E | J115: B | K115: 3 | L115: 1 | M115: 1 | N115: 1 | O115: 1 | P115: 1 | Q115: 1 | R115: 1 | S115: 2 | T115: 2 | U115: 2 | V115: 1 | W115: 1 | X115: 1 | Y115: 3 | Z115: 3 | AA115: 2 | AB115: 1 | AC115: 28 | AD115: 2 | AE115: 2 | AF115: 2 | AG115: 2 | AH115: 1 | AI115: 2 | AJ115: 3 | AK115: 2 | AL115: 2 | AM115: 2 | AN115: 1 | AO115: 2 | AP115: 2 | AQ115: 1 | AR115: 2 | AS115: 3 | AT115: 2 | AU115: 1 | AV115: 34
A116: 2020-07-23 | B116: Schmidtbauer, Günter | C116: 41 | D116: 37 | E116: 153213212113112723 | F116: 221232122232222331 | G116: 18 | H116: 18 | I116: E | J116: B | K116: 1 | L116: 5 | M116: 3 | N116: 2 | O116: 1 | P116: 3 | Q116: 2 | R116: 1 | S116: 2 | T116: 1 | U116: 1 | V116: 3 | W116: 1 | X116: 1 | Y116: 2 | Z116: 7 | AA116: 2 | AB116: 3 | AC116: 41 | AD116: 2 | AE116: 2 | AF116: 1 | AG116: 2 | AH116: 3 | AI116: 2 | AJ116: 1 | AK116: 2 | AL116: 2 | AM116: 2 | AN116: 3 | AO116: 2 | AP116: 2 | AQ116: 2 | AR116: 2 | AS116: 3 | AT116: 3 | AU116: 1 | AV116: 37
A117: 2020-07-23 | B117: Schmidt, Barbara | C117: 47 | D117: 47 | E117: 141252221112662513 | F117: 242723224212224312 | G117: 18 | H117: 18 | I117: E | J117: B | K117: 1 | L117: 4 | M117: 1 | N117: 2 | O117: 5 | P117: 2 | Q117: 2 | R117: 2 | S117: 1 | T117: 1 | U117: 1 | V117: 2 | W117: 6 | X117: 6 | Y117: 2 | Z117: 5 | AA117: 1 | AB117: 3 | AC117: 47 | AD117: 2 | AE117: 4 | AF117: 2 | AG117: 7 | AH117: 2 | AI117: 3 | AJ117: 2 | AK117: 2 | AL117: 4 | AM117: 2 | AN117: 1 | AO117: 2 | AP117: 2 | AQ117: 2 | AR117: 4 | AS117: 3 | AT117: 1 | AU117: 2 | AV117: 47
A118: 2020-07-23 | B118: Tabor, Peter | C118: 33 | D118: 31 | E118: 132221111312312313 | F118: 211512122111222221 | G118: 18 | H118: 18 | I118: E | J118: B | K118: 1 | L118: 3 | M118: 2 | N118: 2 | O118: 2 | P118: 1 | Q118: 1 | R118: 1 | S118: 1 | T118: 3 | U118: 1 | V118: 2 | W118: 3 | X118: 1 | Y118: 2 | Z118: 3 | AA118: 1 | AB118: 3 | AC118: 33 | AD118: 2 | AE118: 1 | AF118: 1 | AG118: 5 | AH118: 1 | AI118: 2 | AJ118: 1 | AK118: 2 | AL118: 2 | AM118: 1 | AN118: 1 | AO118: 1 | AP118: 2 | AQ118: 2 | AR118: 2 | AS118: 2 | AT118: 2 | AU118: 1 | AV118: 31
A119: 2020-07-23 | B119: Lieber, Nicole | C119: 32 | D119: 30 | E119: 111211112213232413 | F119: 221212122211123221 | G119: 18 | H119: 18 | I119: E | J119: B | K119: 1 | L119: 1 | M119: 1 | N119: 2 | O119: 1 | P119: 1 | Q119: 1 | R119: 1 | S119: 2 | T119: 2 | U119: 1 | V119: 3 | W119: 2 | X119: 3 | Y119: 2 | Z119: 4 | AA119: 1 | AB119: 3 | AC119: 32 | AD119: 2 | AE119: 2 | AF119: 1 | AG119: 2 | AH119: 1 | AI119: 2 | AJ119: 1 | AK119: 2 | AL119: 2 | AM119: 2 | AN119: 1 | AO119: 1 | AP119: 1 | AQ119: 2 | AR119: 3 | AS119: 2 | AT119: 2 | AU119: 1 | AV119: 30
A120: 2020-07-23 | B120: Puschner, Michael | C120: 27 | D120: 34 | E120: 111231121212212112 | F120: 211322242212122221 | G120: 18 | H120: 18 | I120: E | J120: B | K120: 1 | L120: 1 | M120: 1 | N120: 2 | O120: 3 | P120: 1 | Q120: 1 | R120: 2 | S120: 1 | T120: 2 | U120: 1 | V120: 2 | W120: 2 | X120: 1 | Y120: 2 | Z120: 1 | AA120: 1 | AB120: 2 | AC120: 27 | AD120: 2 | AE120: 1 | AF120: 1 | AG120: 3 | AH120: 2 | AI120: 2 | AJ120: 2 | AK120: 4 | AL120: 2 | AM120: 2 | AN120: 1 | AO120: 2 | AP120: 1 | AQ120: 2 | AR120: 2 | AS120: 2 | AT120: 2 | AU120: 1 | AV120: 34
A121: 2020-07-23 | B121: Battig, Wolfgang | C121: 23 | D121: 30 | E121: 311111111221112111 | F121: 112222112211123222 | G121: 18 | H121: 18 | I121: E | J121: B | K121: 3 | L121: 1 | M121: 1 | N121: 1 | O121: 1 | P121: 1 | Q121: 1 | R121: 1 | S121: 1 | T121: 2 | U121: 2 | V121: 1 | W121: 1 | X121: 1 | Y121: 2 | Z121: 1 | AA121: 1 | AB121: 1 | AC121: 23 | AD121: 1 | AE121: 1 | AF121: 2 | AG121: 2 | AH121: 2 | AI121: 2 | AJ121: 1 | AK121: 1 | AL121: 2 | AM121: 2 | AN121: 1 | AO121: 1 | AP121: 1 | AQ121: 2 | AR121: 3 | AS121: 2 | AT121: 2 | AU121: 2 | AV121: 30
A122: 2020-07-23 | B122: Kalhöfer, Anna | C122: 27 | D122: 33 | E122: 212211111222112212 | F122: 221222121211322223 | G122: 18 | H122: 18 | I122: E | J122: B | K122: 2 | L122: 1 | M122: 2 | N122: 2 | O122: 1 | P122: 1 | Q122: 1 | R122: 1 | S122: 1 | T122: 2 | U122: 2 | V122: 2 | W122: 1 | X122: 1 | Y122: 2 | Z122: =IF($I122=MID(Z$1,1,1),IF(ISBLANK($E122),"",VALUE(MID($E122,VALUE(MID(Z$1,2,LEN(Z$1)-1)),1))),IF($J122=MID(Z$1,1,1),IF(ISBLANK($F122),"",VALUE(MID($F122,VALUE(MID(Z$1,2,LEN(Z$1)-1)),1))))) -> 2 | AA122: 1 | AB122: 2 | AC122: 27 | AD122: 2 | AE122: 2 | AF122: 1 | AG122: 2 | AH122: 2 | AI122: 2 | AJ122: 1 | AK122: 2 | AL122: 1 | AM122: 2 | AN122: 1 | AO122: 1 | AP122: 3 | AQ122: 2 | AR122: 2 | AS122: 2 | AT122: 2 | AU122: 3 | AV122: 33
A123: 2020-07-23 | B123: Rabe, Jonas | C123: 36 | D123: 34 | E123: 211122112111453413 | F123: 212422122112223221 | G123: 18 | H123: 18 | I123: E | J123: B | K123: =IF($I123=MID(K$1,1,1),IF(ISBLANK($E123),"",VALUE(MID($E123,VALUE(MID(K$1,2,LEN(K$1)-1)),1))),IF($J123=MID(K$1,1,1),IF(ISBLANK($F123),"",VALUE(MID($F123,VALUE(MID(K$1,2,LEN(K$1)-1)),1))))) -> 2 | L123: 1 | M123: 1 | N123: 1 | O123: 2 | P123: 2 | Q123: 1 | R123: 1 | S123: 2 | T123: 1 | U123: 1 | V123: 1 | W123: 4 | X123: 5 | Y123: 3 | Z123: 4 | AA123: 1 | AB123: 3 | AC123: 36 | AD123: 2 | AE123: 1 | AF123: 2 | AG123: 4 | AH123: 2 | AI123: 2 | AJ123: 1 | AK123: 2 | AL123: 2 | AM123: 1 | AN123: 1 | AO123: 2 | AP123: 2 | AQ123: 2 | AR123: 3 | AS123: 2 | AT123: 2 | AU123: 1 | AV123: 34
A124: 2020-07-23 | B124: Urban, Angela | C124: 43 | D124: 46 | E124: 122224112312772112 | F124: 232222146122213335 | G124: 18 | H124: 18 | I124: E | J124: B | K124: 1 | L124: 2 | M124: 2 | N124: 2 | O124: 2 | P124: 4 | Q124: 1 | R124: 1 | S124: 2 | T124: 3 | U124: 1 | V124: 2 | W124: 7 | X124: 7 | Y124: 2 | Z124: 1 | AA124: 1 | AB124: 2 | AC124: 43 | AD124: 2 | AE124: 3 | AF124: 2 | AG124: 2 | AH124: 2 | AI124: 2 | AJ124: 1 | AK124: 4 | AL124: 6 | AM124: 1 | AN124: 2 | AO124: 2 | AP124: 2 | AQ124: 1 | AR124: 3 | AS124: 3 | AT124: 3 | AU124: 5 | AV124: 46
A125: 2020-07-23 | B125: Urban, Dominic | C125: 27 | D125: 34 | E125: 221111112212232111 | F125: 222223123211222221 | G125: 18 | H125: 18 | I125: E | J125: B | K125: 2 | L125: 2 | M125: 1 | N125: 1 | O125: 1 | P125: 1 | Q125: 1 | R125: 1 | S125: 2 | T125: 2 | U125: 1 | V125: 2 | W125: 2 | X125: 3 | Y125: 2 | Z125: 1 | AA125: 1 | AB125: 1 | AC125: 27 | AD125: 2 | AE125: 2 | AF125: 2 | AG125: 2 | AH125: 2 | AI125: 3 | AJ125: 1 | AK125: 2 | AL125: 3 | AM125: 2 | AN125: 1 | AO125: 1 | AP125: 2 | AQ125: 2 | AR125: 2 | AS125: 2 | AT125: 2 | AU125: 1 | AV125: 34
A126: 2020-07-23 | B126: Urban, Volker | C126: 27 | D126: 32 | E126: 211211112212123121 | F126: 221112125112222221 | G126: 18 | H126: 18 | I126: E | J126: B | K126: 2 | L126: 1 | M126: 1 | N126: 2 | O126: 1 | P126: 1 | Q126: 1 | R126: 1 | S126: 2 | T126: 2 | U126: 1 | V126: 2 | W126: 1 | X126: 2 | Y126: 3 | Z126: 1 | AA126: 2 | AB126: 1 | AC126: 27 | AD126: 2 | AE126: 2 | AF126: 1 | AG126: 1 | AH126: 1 | AI126: 2 | AJ126: 1 | AK126: 2 | AL126: 5 | AM126: 1 | AN126: 1 | AO126: 2 | AP126: 2 | AQ126: 2 | AR126: 2 | AS126: 2 | AT126: 2 | AU126: 1 | AV126: 32
A127: 2020-07-23 | B127: Kunz, Martin | C127: 39 | D127: 33 | E127: 121112132215312344 | F127: 221212122212222322 | G127: 18 | H127: 18 | I127: E | J127: B | K127: 1 | L127: 2 | M127: 1 | N127: 1 | O127: 1 | P127: 2 | Q127: 1 | R127: 3 | S127: 2 | T127: 2 | U127: 1 | V127: 5 | W127: 3 | X127: 1 | Y127: 2 | Z127: 3 | AA127: 4 | AB127: 4 | AC127: 39 | AD127: 2 | AE127: 2 | AF127: 1 | AG127: 2 | AH127: 1 | AI127: 2 | AJ127: 1 | AK127: 2 | AL127: =IF($I127=MID(AL$1,1,1),IF(ISBLANK($E127),"",VALUE(MID($E127,VALUE(MID(AL$1,2,LEN(AL$1)-1)),1))),IF($J127=MID(AL$1,1,1),IF(ISBLANK($F127),"",VALUE(MID($F127,VALUE(MID(AL$1,2,LEN(AL$1)-1)),1))))) -> 2 | AM127: 2 | AN127: 1 | AO127: 2 | AP127: 2 | AQ127: 2 | AR127: 2 | AS127: 3 | AT127: 2 | AU127: 2 | AV127: 33
A128: 2020-07-23 | B128: Kortmann, Sabine | C128: =IF(ISBLANK(E128),"",MID(E128,1,1)+MID(E128,2,1)+MID(E128,3,1)+MID(E128,4,1)+MID(E128,5,1)+MID(E128,6,1)+MID(E128,7,1)+MID(E128,8,1)+MID(E128,9,1)+MID(E128,10,1)+MID(E128,11,1)+MID(E128,12,1)+MID(E128,13,1)+MID(E128,14,1)+MID(E128,15,1)+MID(E128,16,1)+MID(E128,17,1)+MID(E128,18,1)) -> 33 | D128: =IF(ISBLANK(F128),"",MID(F128,1,1)+MID(F128,2,1)+MID(F128,3,1)+MID(F128,4,1)+MID(F128,5,1)+MID(F128,6,1)+MID(F128,7,1)+MID(F128,8,1)+MID(F128,9,1)+MID(F128,10,1)+MID(F128,11,1)+MID(F128,12,1)+MID(F128,13,1)+MID(F128,14,1)+MID(F128,15,1)+MID(F128,16,1)+MID(F128,17,1)+MID(F128,18,1)) -> 34 | E128: 212213111112222522 | F128: 222222222112212232 | G128: =LEN(E128) -> 18 | H128: =LEN(F128) -> 18 | I128: E | J128: B | K128: 2 | L128: 1 | M128: 2 | N128: 2 | O128: 1 | P128: 3 | Q128: 1 | R128: 1 | S128: 1 | T128: 1 | U128: 1 | V128: 2 | W128: 2 | X128: 2 | Y128: 2 | Z128: 5 | AA128: 2 | AB128: 2 | AC128: 33 | AD128: =IF($I128=MID(AD$1,1,1),IF(ISBLANK($E128),"",VALUE(MID($E128,VALUE(MID(AD$1,2,LEN(AD$1)-1)),1))),IF($J128=MID(AD$1,1,1),IF(ISBLANK($F128),"",VALUE(MID($F128,VALUE(MID(AD$1,2,LEN(AD$1)-1)),1))))) -> 2 | AE128: 2 | AF128: 2 | AG128: 2 | AH128: 2 | AI128: 2 | AJ128: 2 | AK128: 2 | AL128: 2 | AM128: 1 | AN128: 1 | AO128: 2 | AP128: 2 | AQ128: 1 | AR128: 2 | AS128: 2 | AT128: 3 | AU128: 2 | AV128: 34
A129: 2020-07-23 | B129: Kortmann, Uwe | C129: 40 | D129: 38 | E129: 211225312212145312 | F129: 221214212221223126 | G129: 18 | H129: 18 | I129: E | J129: B | K129: 2 | L129: 1 | M129: 1 | N129: 2 | O129: 2 | P129: 5 | Q129: 3 | R129: 1 | S129: 2 | T129: 2 | U129: 1 | V129: 2 | W129: 1 | X129: 4 | Y129: 5 | Z129: 3 | AA129: 1 | AB129: 2 | AC129: 40 | AD129: 2 | AE129: 2 | AF129: 1 | AG129: 2 | AH129: 1 | AI129: 4 | AJ129: 2 | AK129: 1 | AL129: 2 | AM129: 2 | AN129: 2 | AO129: 1 | AP129: 2 | AQ129: 2 | AR129: 3 | AS129: 1 | AT129: 2 | AU129: 6 | AV129: 38
A130: 2020-07-23 | B130: Greiffendorf, Hellmut | C130: 35 | D130: 31 | E130: 153212122221412112 | F130: 212311122112223221 | G130: 18 | H130: 18 | I130: E | J130: B | K130: 1 | L130: 5 | M130: 3 | N130: 2 | O130: 1 | P130: 2 | Q130: 1 | R130: 2 | S130: 2 | T130: 2 | U130: 2 | V130: 1 | W130: 4 | X130: 1 | Y130: 2 | Z130: 1 | AA130: 1 | AB130: 2 | AC130: 35 | AD130: 2 | AE130: 1 | AF130: 2 | AG130: 3 | AH130: 1 | AI130: 1 | AJ130: 1 | AK130: 2 | AL130: 2 | AM130: 1 | AN130: 1 | AO130: 2 | AP130: 2 | AQ130: 2 | AR130: 3 | AS130: 2 | AT130: 2 | AU130: 1 | AV130: 31
A131: 2020-07-30 | B131: Lieber, Nicole | C131: 31 | D131: 35 | E131: 211211112111133621 | F131: 221712113212212221 | G131: 18 | H131: 18 | I131: E | J131: B | K131: 2 | L131: 1 | M131: 1 | N131: 2 | O131: 1 | P131: 1 | Q131: 1 | R131: 1 | S131: 2 | T131: 1 | U131: 1 | V131: 1 | W131: 1 | X131: 3 | Y131: 3 | Z131: 6 | AA131: 2 | AB131: 1 | AC131: =IF(SUM(K131:AB131)>0,SUM(K131:AB131),0) -> 31 | AD131: 2 | AE131: 2 | AF131: 1 | AG131: 7 | AH131: 1 | AI131: 2 | AJ131: 1 | AK131: 1 | AL131: 3 | AM131: 2 | AN131: 1 | AO131: 2 | AP131: 2 | AQ131: 1 | AR131: 2 | AS131: 2 | AT131: 2 | AU131: 1 | AV131: =IF(SUM(AD131:AU131)>0,SUM(AD131:AU131),0) -> 35
A132: 2020-07-30 | B132: Lenk, Rolf | C132: 34 | D132: 34 | E132: 131131212223312114 | F132: 124222122212222122 | G132: 18 | H132: 18 | I132: E | J132: B | K132: 1 | L132: 3 | M132: 1 | N132: 1 | O132: 3 | P132: 1 | Q132: 2 | R132: 1 | S132: 2 | T132: 2 | U132: 2 | V132: 3 | W132: 3 | X132: 1 | Y132: 2 | Z132: 1 | AA132: 1 | AB132: 4 | AC132: 34 | AD132: 1 | AE132: 2 | AF132: 4 | AG132: 2 | AH132: 2 | AI132: 2 | AJ132: 1 | AK132: 2 | AL132: 2 | AM132: 2 | AN132: 1 | AO132: 2 | AP132: 2 | AQ132: 2 | AR132: 2 | AS132: 1 | AT132: 2 | AU132: 2 | AV132: 34
A133: 2020-07-30 | B133: Schmidtbauer, Günter | C133: 36 | D133: 51 | E133: 133211112213512421 | F133: 232723226312225223 | G133: 18 | H133: 18 | I133: E | J133: B | K133: 1 | L133: 3 | M133: 3 | N133: 2 | O133: 1 | P133: 1 | Q133: 1 | R133: 1 | S133: 2 | T133: 2 | U133: 1 | V133: 3 | W133: 5 | X133: 1 | Y133: 2 | Z133: 4 | AA133: 2 | AB133: 1 | AC133: 36 | AD133: 2 | AE133: 3 | AF133: 2 | AG133: 7 | AH133: 2 | AI133: 3 | AJ133: 2 | AK133: 2 | AL133: 6 | AM133: 3 | AN133: 1 | AO133: 2 | AP133: 2 | AQ133: 2 | AR133: 5 | AS133: 2 | AT133: 2 | AU133: 3 | AV133: 51
A134: 2020-07-30 | B134: Rabe, Jonas | C134: 26 | D134: 34 | E134: 121111112113112312 | F134: 221222122212223321 | G134: 18 | H134: 18 | I134: E | J134: B | K134: 1 | L134: 2 | M134: 1 | N134: 1 | O134: 1 | P134: 1 | Q134: 1 | R134: 1 | S134: 2 | T134: 1 | U134: 1 | V134: 3 | W134: 1 | X134: 1 | Y134: 2 | Z134: 3 | AA134: 1 | AB134: 2 | AC134: 26 | AD134: 2 | AE134: 2 | AF134: 1 | AG134: 2 | AH134: 2 | AI134: 2 | AJ134: 1 | AK134: 2 | AL134: 2 | AM134: 2 | AN134: 1 | AO134: 2 | AP134: 2 | AQ134: 2 | AR134: 3 | AS134: 3 | AT134: 2 | AU134: 1 | AV134: 34
A135: 2020-07-30 | B135: Puschner, Michael | C135: 27 | D135: 31 | E135: 131211111112212114 | F135: 221222121212222221 | G135: 18 | H135: 18 | I135: E | J135: B | K135: 1 | L135: 3 | M135: 1 | N135: 2 | O135: 1 | P135: 1 | Q135: 1 | R135: 1 | S135: 1 | T135: 1 | U135: 1 | V135: 2 | W135: 2 | X135: 1 | Y135: 2 | Z135: 1 | AA135: 1 | AB135: 4 | AC135: 27 | AD135: 2 | AE135: 2 | AF135: 1 | AG135: 2 | AH135: 2 | AI135: 2 | AJ135: 1 | AK135: 2 | AL135: 1 | AM135: 2 | AN135: 1 | AO135: 2 | AP135: 2 | AQ135: 2 | AR135: 2 | AS135: 2 | AT135: 2 | AU135: 1 | AV135: 31
